Workbook

Sheet 2018 (hidden)
A1: Tabel 1. Financieringslastpercentages voor consumenten die de AOW-leeftijd nog niet hebben bereikt | IV1: HIDE
B2: <=1,000% | C2: 1,001-1,500% | D2: 1,501-2,000% | E2: 2,001-2,500% | F2: 2,501-3,000% | G2: 3,001-3,500% | H2: 3,501-4,000% | I2: 4,001-4,500% | J2: 4,501-5,000% | K2: 5,001-5,500% | L2: 5,501-6,000% | M2: >=6,001%
A4: -1 | B4: 0 | C4: 0.010009 | D4: =+C4+0.5% -> 0.015009 | E4: 0.020009 | F4: 0.025009 | G4: 0.030009 | H4: 0.035009 | I4: 0.040009 | J4: 0.045009 | K4: 0.050009 | L4: 0.055009 | M4: 0.060009
A5: 0 | B5: 0.105 | C5: 0.11 | D5: 0.115 | E5: 0.12 | F5: 0.125 | G5: 0.13 | H5: 0.135 | I5: 0.14 | J5: 0.145 | K5: 0.15 | L5: 0.155 | M5: 0.16
A6: 20500 | B6: 0.105 | C6: 0.11 | D6: 0.115 | E6: 0.12 | F6: 0.125 | G6: 0.13 | H6: 0.135 | I6: 0.14 | J6: 0.145 | K6: 0.15 | L6: 0.155 | M6: 0.16
A7: 21000 | B7: 0.11 | C7: 0.115 | D7: 0.125 | E7: 0.13 | F7: 0.135 | G7: 0.14 | H7: 0.145 | I7: 0.15 | J7: 0.155 | K7: 0.16 | L7: 0.165 | M7: 0.17
A8: 21500 | B8: 0.115 | C8: 0.12 | D8: 0.13 | E8: 0.14 | F8: 0.145 | G8: 0.15 | H8: 0.16 | I8: 0.165 | J8: 0.17 | K8: 0.175 | L8: 0.18 | M8: 0.18
A9: 22000 | B9: 0.12 | C9: 0.125 | D9: 0.135 | E9: 0.145 | F9: 0.15 | G9: 0.16 | H9: 0.165 | I9: 0.175 | J9: 0.18 | K9: 0.185 | L9: 0.19 | M9: 0.19
A10: 22500 | B10: 0.125 | C10: 0.13 | D10: 0.14 | E10: 0.15 | F10: 0.155 | G10: 0.165 | H10: 0.175 | I10: 0.18 | J10: 0.185 | K10: 0.195 | L10: 0.2 | M10: 0.205
A11: 23000 | B11: 0.13 | C11: 0.135 | D11: 0.145 | E11: 0.15 | F11: 0.16 | G11: 0.17 | H11: 0.18 | I11: 0.19 | J11: 0.195 | K11: 0.2 | L11: 0.205 | M11: 0.21
A12: 23500 | B12: 0.135 | C12: 0.14 | D12: 0.15 | E12: 0.16 | F12: 0.17 | G12: 0.18 | H12: 0.19 | I12: 0.195 | J12: 0.205 | K12: 0.21 | L12: 0.215 | M12: 0.22
A13: 24000 | B13: 0.135 | C13: 0.14 | D13: 0.15 | E13: 0.16 | F13: 0.17 | G13: 0.18 | H13: 0.195 | I13: 0.205 | J13: 0.21 | K13: 0.22 | L13: 0.225 | M13: 0.23
A14: 24500 | B14: 0.14 | C14: 0.145 | D14: 0.155 | E14: 0.165 | F14: 0.175 | G14: 0.185 | H14: 0.195 | I14: 0.205 | J14: 0.215 | K14: 0.225 | L14: 0.23 | M14: 0.24
A15: 25000 | B15: 0.14 | C15: 0.15 | D15: 0.16 | E15: 0.17 | F15: 0.18 | G15: 0.19 | H15: 0.2 | I15: 0.21 | J15: 0.22 | K15: 0.23 | L15: 0.24 | M15: 0.245
A16: 26000 | B16: 0.145 | C16: 0.155 | D16: 0.165 | E16: 0.175 | F16: 0.185 | G16: 0.2 | H16: 0.21 | I16: 0.22 | J16: 0.23 | K16: 0.24 | L16: 0.25 | M16: 0.255
A17: 27000 | B17: 0.15 | C17: 0.16 | D17: 0.17 | E17: 0.18 | F17: 0.195 | G17: 0.205 | H17: 0.215 | I17: 0.225 | J17: 0.24 | K17: 0.25 | L17: 0.26 | M17: 0.27
A18: 28000 | B18: 0.155 | C18: 0.165 | D18: 0.175 | E18: 0.185 | F18: 0.2 | G18: 0.21 | H18: 0.22 | I18: 0.235 | J18: 0.245 | K18: 0.255 | L18: 0.265 | M18: 0.275
A19: 29000 | B19: 0.155 | C19: 0.165 | D19: 0.18 | E19: 0.19 | F19: 0.2 | G19: 0.215 | H19: 0.225 | I19: 0.24 | J19: 0.25 | K19: 0.26 | L19: 0.27 | M19: 0.28
A20: 30000 | B20: 0.16 | C20: 0.17 | D20: 0.185 | E20: 0.195 | F20: 0.21 | G20: 0.22 | H20: 0.23 | I20: 0.245 | J20: 0.255 | K20: 0.265 | L20: 0.275 | M20: 0.285
A21: 31000 | B21: 0.165 | C21: 0.175 | D21: 0.19 | E21: 0.2 | F21: 0.215 | G21: 0.23 | H21: 0.24 | I21: 0.25 | J21: 0.26 | K21: 0.275 | L21: 0.285 | M21: 0.295
A22: 32000 | B22: 0.17 | C22: 0.18 | D22: 0.19 | E22: 0.2 | F22: 0.215 | G22: 0.23 | H22: 0.24 | I22: 0.25 | J22: 0.26 | K22: 0.275 | L22: 0.285 | M22: 0.295
A23: 33000 | B23: 0.17 | C23: 0.18 | D23: 0.19 | E23: 0.2 | F23: 0.215 | G23: 0.23 | H23: 0.24 | I23: 0.25 | J23: 0.26 | K23: 0.275 | L23: 0.285 | M23: 0.295
A24: 34000 | B24: 0.17 | C24: 0.18 | D24: 0.19 | E24: 0.2 | F24: 0.215 | G24: 0.23 | H24: 0.24 | I24: 0.25 | J24: 0.26 | K24: 0.275 | L24: 0.285 | M24: 0.295
A25: 35000 | B25: 0.17 | C25: 0.18 | D25: 0.19 | E25: 0.2 | F25: 0.215 | G25: 0.23 | H25: 0.24 | I25: 0.25 | J25: 0.26 | K25: 0.275 | L25: 0.285 | M25: 0.295
A26: 36000 | B26: 0.17 | C26: 0.18 | D26: 0.19 | E26: 0.2 | F26: 0.215 | G26: 0.23 | H26: 0.24 | I26: 0.25 | J26: 0.26 | K26: 0.275 | L26: 0.285 | M26: 0.295
A27: 37000 | B27: 0.17 | C27: 0.18 | D27: 0.19 | E27: 0.2 | F27: 0.215 | G27: 0.23 | H27: 0.24 | I27: 0.25 | J27: 0.26 | K27: 0.275 | L27: 0.285 | M27: 0.295
A28: 38000 | B28: 0.17 | C28: 0.18 | D28: 0.19 | E28: 0.2 | F28: 0.215 | G28: 0.23 | H28: 0.24 | I28: 0.25 | J28: 0.26 | K28: 0.275 | L28: 0.285 | M28: 0.295
A29: 39000 | B29: 0.17 | C29: 0.18 | D29: 0.19 | E29: 0.2 | F29: 0.215 | G29: 0.23 | H29: 0.24 | I29: 0.25 | J29: 0.26 | K29: 0.275 | L29: 0.285 | M29: 0.295
A30: 40000 | B30: 0.17 | C30: 0.18 | D30: 0.19 | E30: 0.2 | F30: 0.215 | G30: 0.23 | H30: 0.24 | I30: 0.25 | J30: 0.26 | K30: 0.275 | L30: 0.285 | M30: 0.295
A31: 41000 | B31: 0.17 | C31: 0.18 | D31: 0.19 | E31: 0.2 | F31: 0.215 | G31: 0.23 | H31: 0.24 | I31: 0.25 | J31: 0.26 | K31: 0.275 | L31: 0.285 | M31: 0.295
A32: 42000 | B32: 0.17 | C32: 0.18 | D32: 0.19 | E32: 0.2 | F32: 0.215 | G32: 0.23 | H32: 0.24 | I32: 0.25 | J32: 0.26 | K32: 0.275 | L32: 0.285 | M32: 0.295
A33: 43000 | B33: 0.17 | C33: 0.18 | D33: 0.19 | E33: 0.2 | F33: 0.215 | G33: 0.23 | H33: 0.24 | I33: 0.25 | J33: 0.26 | K33: 0.275 | L33: 0.285 | M33: 0.295
A34: 44000 | B34: 0.17 | C34: 0.18 | D34: 0.195 | E34: 0.205 | F34: 0.215 | G34: 0.23 | H34: 0.24 | I34: 0.25 | J34: 0.26 | K34: 0.275 | L34: 0.285 | M34: 0.295
A35: 45000 | B35: 0.175 | C35: 0.185 | D35: 0.195 | E35: 0.205 | F35: 0.215 | G35: 0.23 | H35: 0.24 | I35: 0.25 | J35: 0.26 | K35: 0.275 | L35: 0.285 | M35: 0.295
A36: 46000 | B36: 0.175 | C36: 0.185 | D36: 0.195 | E36: 0.205 | F36: 0.215 | G36: 0.23 | H36: 0.24 | I36: 0.25 | J36: 0.26 | K36: 0.275 | L36: 0.285 | M36: 0.295
A37: 47000 | B37: 0.175 | C37: 0.185 | D37: 0.195 | E37: 0.21 | F37: 0.22 | G37: 0.23 | H37: 0.245 | I37: 0.255 | J37: 0.265 | K37: 0.275 | L37: 0.285 | M37: 0.295
A38: 48000 | B38: 0.175 | C38: 0.185 | D38: 0.2 | E38: 0.21 | F38: 0.22 | G38: 0.23 | H38: 0.245 | I38: 0.255 | J38: 0.265 | K38: 0.275 | L38: 0.285 | M38: 0.295
A39: 49000 | B39: 0.18 | C39: 0.19 | D39: 0.2 | E39: 0.21 | F39: 0.22 | G39: 0.23 | H39: 0.245 | I39: 0.255 | J39: 0.265 | K39: 0.275 | L39: 0.285 | M39: 0.295
A40: 50000 | B40: 0.18 | C40: 0.19 | D40: 0.2 | E40: 0.21 | F40: 0.225 | G40: 0.235 | H40: 0.245 | I40: 0.255 | J40: 0.265 | K40: 0.275 | L40: 0.285 | M40: 0.295
A41: 51000 | B41: 0.18 | C41: 0.19 | D41: 0.2 | E41: 0.215 | F41: 0.225 | G41: 0.235 | H41: 0.245 | I41: 0.255 | J41: 0.265 | K41: 0.28 | L41: 0.285 | M41: 0.295
A42: 52000 | B42: 0.18 | C42: 0.19 | D42: 0.205 | E42: 0.215 | F42: 0.225 | G42: 0.235 | H42: 0.245 | I42: 0.255 | J42: 0.265 | K42: 0.28 | L42: 0.29 | M42: 0.295
A43: 53000 | B43: 0.185 | C43: 0.195 | D43: 0.205 | E43: 0.215 | F43: 0.225 | G43: 0.235 | H43: 0.245 | I43: 0.255 | J43: 0.265 | K43: 0.28 | L43: 0.29 | M43: 0.295
A44: 54000 | B44: 0.185 | C44: 0.195 | D44: 0.205 | E44: 0.215 | F44: 0.225 | G44: 0.24 | H44: 0.25 | I44: 0.26 | J44: 0.27 | K44: 0.28 | L44: 0.29 | M44: 0.3
A45: 55000 | B45: 0.185 | C45: 0.195 | D45: 0.205 | E45: 0.215 | F45: 0.23 | G45: 0.24 | H45: 0.25 | I45: 0.26 | J45: 0.27 | K45: 0.28 | L45: 0.29 | M45: 0.3
A46: 56000 | B46: 0.185 | C46: 0.195 | D46: 0.21 | E46: 0.22 | F46: 0.23 | G46: 0.24 | H46: 0.25 | I46: 0.26 | J46: 0.27 | K46: 0.28 | L46: 0.29 | M46: 0.3
A47: 57000 | B47: 0.19 | C47: 0.2 | D47: 0.21 | E47: 0.22 | F47: 0.235 | G47: 0.245 | H47: 0.255 | I47: 0.265 | J47: 0.275 | K47: 0.285 | L47: 0.29 | M47: 0.3
A48: 58000 | B48: 0.19 | C48: 0.2 | D48: 0.21 | E48: 0.225 | F48: 0.235 | G48: 0.245 | H48: 0.255 | I48: 0.265 | J48: 0.275 | K48: 0.285 | L48: 0.295 | M48: 0.305
A49: 59000 | B49: 0.19 | C49: 0.2 | D49: 0.215 | E49: 0.225 | F49: 0.235 | G49: 0.25 | H49: 0.26 | I49: 0.27 | J49: 0.28 | K49: 0.29 | L49: 0.3 | M49: 0.305
A50: 60000 | B50: 0.195 | C50: 0.205 | D50: 0.215 | E50: 0.225 | F50: 0.24 | G50: 0.25 | H50: 0.26 | I50: 0.27 | J50: 0.28 | K50: 0.29 | L50: 0.3 | M50: 0.31
A51: 61000 | B51: 0.195 | C51: 0.205 | D51: 0.215 | E51: 0.23 | F51: 0.24 | G51: 0.25 | H51: 0.265 | I51: 0.275 | J51: 0.285 | K51: 0.295 | L51: 0.305 | M51: 0.31
A52: 62000 | B52: 0.195 | C52: 0.205 | D52: 0.22 | E52: 0.23 | F52: 0.245 | G52: 0.255 | H52: 0.265 | I52: 0.275 | J52: 0.285 | K52: 0.295 | L52: 0.305 | M52: 0.315
A53: 63000 | B53: 0.195 | C53: 0.205 | D53: 0.22 | E53: 0.235 | F53: 0.245 | G53: 0.255 | H53: 0.265 | I53: 0.28 | J53: 0.29 | K53: 0.3 | L53: 0.31 | M53: 0.315
A54: 64000 | B54: 0.2 | C54: 0.21 | D54: 0.22 | E54: 0.235 | F54: 0.245 | G54: 0.26 | H54: 0.27 | I54: 0.28 | J54: 0.29 | K54: 0.3 | L54: 0.31 | M54: 0.32
A55: 65000 | B55: 0.2 | C55: 0.21 | D55: 0.225 | E55: 0.235 | F55: 0.25 | G55: 0.26 | H55: 0.27 | I55: 0.28 | J55: 0.295 | K55: 0.305 | L55: 0.31 | M55: 0.32
A56: 66000 | B56: 0.2 | C56: 0.21 | D56: 0.225 | E56: 0.235 | F56: 0.25 | G56: 0.26 | H56: 0.275 | I56: 0.285 | J56: 0.295 | K56: 0.305 | L56: 0.315 | M56: 0.325
A57: 67000 | B57: 0.2 | C57: 0.21 | D57: 0.225 | E57: 0.24 | F57: 0.25 | G57: 0.265 | H57: 0.275 | I57: 0.285 | J57: 0.295 | K57: 0.305 | L57: 0.315 | M57: 0.325
A58: 68000 | B58: 0.205 | C58: 0.215 | D58: 0.225 | E58: 0.24 | F58: 0.255 | G58: 0.265 | H58: 0.275 | I58: 0.29 | J58: 0.3 | K58: 0.31 | L58: 0.32 | M58: 0.325
A59: 69000 | B59: 0.205 | C59: 0.215 | D59: 0.225 | E59: 0.24 | F59: 0.255 | G59: 0.265 | H59: 0.28 | I59: 0.29 | J59: 0.3 | K59: 0.31 | L59: 0.32 | M59: 0.33
A60: 70000 | B60: 0.205 | C60: 0.215 | D60: 0.23 | E60: 0.24 | F60: 0.255 | G60: 0.27 | H60: 0.28 | I60: 0.29 | J60: 0.3 | K60: 0.31 | L60: 0.32 | M60: 0.33
A61: 71000 | B61: 0.205 | C61: 0.215 | D61: 0.23 | E61: 0.24 | F61: 0.255 | G61: 0.27 | H61: 0.28 | I61: 0.295 | J61: 0.305 | K61: 0.315 | L61: 0.325 | M61: 0.335
A62: 72000 | B62: 0.205 | C62: 0.215 | D62: 0.23 | E62: 0.245 | F62: 0.255 | G62: 0.27 | H62: 0.28 | I62: 0.295 | J62: 0.305 | K62: 0.315 | L62: 0.325 | M62: 0.335
A63: 73000 | B63: 0.205 | C63: 0.215 | D63: 0.23 | E63: 0.245 | F63: 0.255 | G63: 0.27 | H63: 0.285 | I63: 0.295 | J63: 0.305 | K63: 0.315 | L63: 0.325 | M63: 0.335
A64: 74000 | B64: 0.205 | C64: 0.215 | D64: 0.23 | E64: 0.245 | F64: 0.26 | G64: 0.27 | H64: 0.285 | I64: 0.295 | J64: 0.31 | K64: 0.32 | L64: 0.33 | M64: 0.34
A65: 75000 | B65: 0.205 | C65: 0.215 | D65: 0.23 | E65: 0.245 | F65: 0.26 | G65: 0.27 | H65: 0.285 | I65: 0.295 | J65: 0.31 | K65: 0.32 | L65: 0.33 | M65: 0.34
A66: 76000 | B66: 0.205 | C66: 0.22 | D66: 0.23 | E66: 0.245 | F66: 0.26 | G66: 0.275 | H66: 0.285 | I66: 0.3 | J66: 0.31 | K66: 0.32 | L66: 0.33 | M66: 0.34
A67: 77000 | B67: 0.205 | C67: 0.22 | D67: 0.235 | E67: 0.245 | F67: 0.26 | G67: 0.275 | H67: 0.285 | I67: 0.3 | J67: 0.31 | K67: 0.325 | L67: 0.335 | M67: 0.345
A68: 78000 | B68: 0.205 | C68: 0.22 | D68: 0.235 | E68: 0.25 | F68: 0.26 | G68: 0.275 | H68: 0.285 | I68: 0.3 | J68: 0.31 | K68: 0.325 | L68: 0.335 | M68: 0.345
A69: 79000 | B69: 0.205 | C69: 0.22 | D69: 0.235 | E69: 0.25 | F69: 0.26 | G69: 0.275 | H69: 0.29 | I69: 0.3 | J69: 0.315 | K69: 0.325 | L69: 0.335 | M69: 0.345
A70: 80000 | B70: 0.205 | C70: 0.22 | D70: 0.235 | E70: 0.25 | F70: 0.265 | G70: 0.275 | H70: 0.29 | I70: 0.3 | J70: 0.315 | K70: 0.325 | L70: 0.335 | M70: 0.345
A71: 81000 | B71: 0.205 | C71: 0.22 | D71: 0.235 | E71: 0.25 | F71: 0.265 | G71: 0.275 | H71: 0.29 | I71: 0.305 | J71: 0.315 | K71: 0.325 | L71: 0.34 | M71: 0.35
A72: 82000 | B72: 0.205 | C72: 0.22 | D72: 0.235 | E72: 0.25 | F72: 0.265 | G72: 0.28 | H72: 0.29 | I72: 0.305 | J72: 0.315 | K72: 0.325 | L72: 0.34 | M72: 0.35
A73: 83000 | B73: 0.205 | C73: 0.22 | D73: 0.235 | E73: 0.25 | F73: 0.265 | G73: 0.28 | H73: 0.29 | I73: 0.305 | J73: 0.315 | K73: 0.33 | L73: 0.34 | M73: 0.35
A74: 84000 | B74: 0.205 | C74: 0.22 | D74: 0.235 | E74: 0.25 | F74: 0.265 | G74: 0.28 | H74: 0.295 | I74: 0.305 | J74: 0.315 | K74: 0.33 | L74: 0.34 | M74: 0.35
A75: 85000 | B75: 0.21 | C75: 0.22 | D75: 0.235 | E75: 0.25 | F75: 0.265 | G75: 0.28 | H75: 0.295 | I75: 0.305 | J75: 0.32 | K75: 0.33 | L75: 0.34 | M75: 0.35
A76: 86000 | B76: 0.21 | C76: 0.225 | D76: 0.235 | E76: 0.25 | F76: 0.265 | G76: 0.28 | H76: 0.295 | I76: 0.305 | J76: 0.32 | K76: 0.33 | L76: 0.34 | M76: 0.35
A77: 87000 | B77: 0.21 | C77: 0.225 | D77: 0.24 | E77: 0.25 | F77: 0.265 | G77: 0.28 | H77: 0.295 | I77: 0.305 | J77: 0.32 | K77: 0.33 | L77: 0.34 | M77: 0.355
A78: 88000 | B78: 0.21 | C78: 0.225 | D78: 0.24 | E78: 0.255 | F78: 0.265 | G78: 0.28 | H78: 0.295 | I78: 0.31 | J78: 0.32 | K78: 0.33 | L78: 0.345 | M78: 0.355
A79: 89000 | B79: 0.21 | C79: 0.225 | D79: 0.24 | E79: 0.255 | F79: 0.27 | G79: 0.28 | H79: 0.295 | I79: 0.31 | J79: 0.32 | K79: 0.335 | L79: 0.345 | M79: 0.355
A80: 90000 | B80: 0.21 | C80: 0.225 | D80: 0.24 | E80: 0.255 | F80: 0.27 | G80: 0.28 | H80: 0.295 | I80: 0.31 | J80: 0.32 | K80: 0.335 | L80: 0.345 | M80: 0.355
A81: 91000 | B81: 0.21 | C81: 0.225 | D81: 0.24 | E81: 0.255 | F81: 0.27 | G81: 0.285 | H81: 0.295 | I81: 0.31 | J81: 0.325 | K81: 0.335 | L81: 0.345 | M81: 0.355
A82: 92000 | B82: 0.21 | C82: 0.225 | D82: 0.24 | E82: 0.255 | F82: 0.27 | G82: 0.285 | H82: 0.295 | I82: 0.31 | J82: 0.325 | K82: 0.335 | L82: 0.345 | M82: 0.355
A83: 93000 | B83: 0.21 | C83: 0.225 | D83: 0.24 | E83: 0.255 | F83: 0.27 | G83: 0.285 | H83: 0.3 | I83: 0.31 | J83: 0.325 | K83: 0.335 | L83: 0.345 | M83: 0.36
A84: 94000 | B84: 0.21 | C84: 0.225 | D84: 0.24 | E84: 0.255 | F84: 0.27 | G84: 0.285 | H84: 0.3 | I84: 0.31 | J84: 0.325 | K84: 0.335 | L84: 0.35 | M84: 0.36
A85: 95000 | B85: 0.21 | C85: 0.225 | D85: 0.24 | E85: 0.255 | F85: 0.27 | G85: 0.285 | H85: 0.3 | I85: 0.31 | J85: 0.325 | K85: 0.335 | L85: 0.35 | M85: 0.36
A86: 96000 | B86: 0.21 | C86: 0.225 | D86: 0.24 | E86: 0.255 | F86: 0.27 | G86: 0.285 | H86: 0.3 | I86: 0.315 | J86: 0.325 | K86: 0.34 | L86: 0.35 | M86: 0.36
A87: 97000 | B87: 0.21 | C87: 0.225 | D87: 0.24 | E87: 0.255 | F87: 0.27 | G87: 0.285 | H87: 0.3 | I87: 0.315 | J87: 0.325 | K87: 0.34 | L87: 0.35 | M87: 0.36
A88: 98000 | B88: 0.21 | C88: 0.225 | D88: 0.24 | E88: 0.255 | F88: 0.27 | G88: 0.285 | H88: 0.3 | I88: 0.315 | J88: 0.325 | K88: 0.34 | L88: 0.35 | M88: 0.36
A89: 99000 | B89: 0.21 | C89: 0.225 | D89: 0.24 | E89: 0.255 | F89: 0.27 | G89: 0.285 | H89: 0.3 | I89: 0.315 | J89: 0.325 | K89: 0.34 | L89: 0.35 | M89: 0.36
A90: 100000 | B90: 0.21 | C90: 0.225 | D90: 0.24 | E90: 0.255 | F90: 0.27 | G90: 0.285 | H90: 0.3 | I90: 0.315 | J90: 0.325 | K90: 0.34 | L90: 0.35 | M90: 0.36
A91: 101000 | B91: 0.21 | C91: 0.225 | D91: 0.24 | E91: 0.255 | F91: 0.27 | G91: 0.285 | H91: 0.3 | I91: 0.315 | J91: 0.325 | K91: 0.34 | L91: 0.35 | M91: 0.36
A92: 102000 | B92: 0.21 | C92: 0.225 | D92: 0.24 | E92: 0.255 | F92: 0.27 | G92: 0.285 | H92: 0.3 | I92: 0.315 | J92: 0.325 | K92: 0.34 | L92: 0.35 | M92: 0.36
A93: 103000 | B93: 0.215 | C93: 0.225 | D93: 0.24 | E93: 0.255 | F93: 0.27 | G93: 0.285 | H93: 0.3 | I93: 0.315 | J93: 0.325 | K93: 0.34 | L93: 0.35 | M93: 0.36
A94: 104000 | B94: 0.215 | C94: 0.225 | D94: 0.24 | E94: 0.255 | F94: 0.27 | G94: 0.285 | H94: 0.3 | I94: 0.315 | J94: 0.325 | K94: 0.34 | L94: 0.35 | M94: 0.36
A95: 105000 | B95: 0.215 | C95: 0.23 | D95: 0.24 | E95: 0.255 | F95: 0.27 | G95: 0.285 | H95: 0.3 | I95: 0.315 | J95: 0.325 | K95: 0.34 | L95: 0.35 | M95: 0.36
A96: 106000 | B96: 0.215 | C96: 0.23 | D96: 0.245 | E96: 0.255 | F96: 0.27 | G96: 0.285 | H96: 0.3 | I96: 0.315 | J96: 0.325 | K96: 0.34 | L96: 0.35 | M96: 0.36
A97: 107000 | B97: 0.215 | C97: 0.23 | D97: 0.245 | E97: 0.255 | F97: 0.27 | G97: 0.285 | H97: 0.3 | I97: 0.315 | J97: 0.325 | K97: 0.34 | L97: 0.35 | M97: 0.36
A98: 108000 | B98: 0.215 | C98: 0.23 | D98: 0.245 | E98: 0.26 | F98: 0.27 | G98: 0.285 | H98: 0.3 | I98: 0.315 | J98: 0.325 | K98: 0.34 | L98: 0.35 | M98: 0.36
A99: 109000 | B99: 0.215 | C99: 0.23 | D99: 0.245 | E99: 0.26 | F99: 0.27 | G99: 0.285 | H99: 0.3 | I99: 0.315 | J99: 0.325 | K99: 0.34 | L99: 0.35 | M99: 0.36
A100: 110000 | B100: 0.215 | C100: 0.23 | D100: 0.245 | E100: 0.26 | F100: 0.275 | G100: 0.285 | H100: 0.3 | I100: 0.315 | J100: 0.325 | K100: 0.34 | L100: 0.35 | M100: 0.365
A101: 9999999 | B101: 0.215 | C101: 0.23 | D101: 0.245 | E101: 0.26 | F101: 0.275 | G101: 0.285 | H101: 0.3 | I101: 0.315 | J101: 0.325 | K101: 0.34 | L101: 0.35 | M101: 0.365

Sheet 2023 (hidden)
B1: Toetsrente in percentages | IV1: HIDE
A2: Bruto inkomen in euro's | B2: <=1,500% | C2: 1,501-2,000% | D2: 2,001-2,500% | E2: 2,501-3,000% | F2: 3,001-3,500% | G2: 3,501-4,000% | H2: 4,001-4,500% | I2: 4,501-5,000% | J2: 5,001-5,500% | K2: 5,501-6,000% | L2: 6,001-6,500% | M2: > 6,501%
A4: -1 | B4: 0 | C4: 0.01501 | D4: =+C4+0.5% -> 0.02001 | E4: 0.02501 | F4: 0.03001 | G4: 0.03501 | H4: 0.04001 | I4: 0.04501 | J4: 0.05001 | K4: 0.05501 | L4: 0.06001 | M4: 0.06501 | N4: <= beginrente
A5: 0 | B5: 0.145 | C5: 0.155 | D5: 0.16 | E5: 0.17 | F5: 0.175 | G5: 0.185 | H5: 0.19 | I5: 0.195 | J5: 0.2 | K5: 0.205 | L5: 0.21 | M5: 0.21
A6: 26000 | B6: 0.145 | C6: 0.155 | D6: 0.16 | E6: 0.17 | F6: 0.175 | G6: 0.185 | H6: 0.19 | I6: 0.195 | J6: 0.2 | K6: 0.205 | L6: 0.21 | M6: 0.21
A7: 27000 | B7: 0.155 | C7: 0.165 | D7: 0.175 | E7: 0.185 | F7: 0.19 | G7: 0.2 | H7: 0.205 | I7: 0.21 | J7: 0.22 | K7: 0.225 | L7: 0.23 | M7: 0.23
A8: 28000 | B8: 0.16 | C8: 0.175 | D8: 0.185 | E8: 0.195 | F8: 0.205 | G8: 0.21 | H8: 0.22 | I8: 0.225 | J8: 0.235 | K8: 0.24 | L8: 0.245 | M8: 0.25
A9: 29000 | B9: 0.165 | C9: 0.18 | D9: 0.195 | E9: 0.205 | F9: 0.215 | G9: 0.225 | H9: 0.235 | I9: 0.24 | J9: 0.245 | K9: 0.255 | L9: 0.26 | M9: 0.265
A10: 30000 | B10: 0.165 | C10: 0.18 | D10: 0.2 | E10: 0.215 | F10: 0.225 | G10: 0.235 | H10: 0.245 | I10: 0.255 | J10: 0.265 | K10: 0.27 | L10: 0.28 | M10: 0.285
A11: 31000 | B11: 0.17 | C11: 0.19 | D11: 0.205 | E11: 0.22 | F11: 0.23 | G11: 0.24 | H11: 0.245 | I11: 0.255 | J11: 0.265 | K11: 0.275 | L11: 0.285 | M11: 0.29
A12: 32000 | B12: 0.17 | C12: 0.195 | D12: 0.205 | E12: 0.22 | F12: 0.23 | G12: 0.24 | H12: 0.245 | I12: 0.255 | J12: 0.265 | K12: 0.275 | L12: 0.285 | M12: 0.29
A13: 33000 | B13: 0.175 | C13: 0.195 | D13: 0.205 | E13: 0.22 | F13: 0.23 | G13: 0.24 | H13: 0.245 | I13: 0.255 | J13: 0.265 | K13: 0.275 | L13: 0.285 | M13: 0.29
A14: 34000 | B14: 0.175 | C14: 0.195 | D14: 0.205 | E14: 0.22 | F14: 0.23 | G14: 0.24 | H14: 0.245 | I14: 0.255 | J14: 0.265 | K14: 0.275 | L14: 0.285 | M14: 0.29
A15: 35000 | B15: 0.18 | C15: 0.195 | D15: 0.205 | E15: 0.22 | F15: 0.23 | G15: 0.24 | H15: 0.245 | I15: 0.255 | J15: 0.265 | K15: 0.275 | L15: 0.285 | M15: 0.29
A16: 36000 | B16: 0.18 | C16: 0.195 | D16: 0.205 | E16: 0.22 | F16: 0.23 | G16: 0.24 | H16: 0.245 | I16: 0.255 | J16: 0.265 | K16: 0.275 | L16: 0.285 | M16: 0.29
A17: 37000 | B17: 0.185 | C17: 0.195 | D17: 0.205 | E17: 0.22 | F17: 0.23 | G17: 0.24 | H17: 0.245 | I17: 0.255 | J17: 0.265 | K17: 0.275 | L17: 0.285 | M17: 0.29
A18: 38000 | B18: 0.185 | C18: 0.195 | D18: 0.205 | E18: 0.22 | F18: 0.23 | G18: 0.24 | H18: 0.245 | I18: 0.255 | J18: 0.265 | K18: 0.275 | L18: 0.285 | M18: 0.29
A19: 39000 | B19: 0.185 | C19: 0.195 | D19: 0.205 | E19: 0.22 | F19: 0.23 | G19: 0.24 | H19: 0.245 | I19: 0.255 | J19: 0.265 | K19: 0.275 | L19: 0.285 | M19: 0.29
A20: 40000 | B20: 0.185 | C20: 0.195 | D20: 0.205 | E20: 0.22 | F20: 0.23 | G20: 0.24 | H20: 0.245 | I20: 0.255 | J20: 0.265 | K20: 0.275 | L20: 0.285 | M20: 0.29
A21: 41000 | B21: 0.185 | C21: 0.195 | D21: 0.205 | E21: 0.22 | F21: 0.23 | G21: 0.24 | H21: 0.245 | I21: 0.255 | J21: 0.265 | K21: 0.275 | L21: 0.285 | M21: 0.29
A22: 42000 | B22: 0.185 | C22: 0.195 | D22: 0.205 | E22: 0.22 | F22: 0.23 | G22: 0.24 | H22: 0.245 | I22: 0.255 | J22: 0.265 | K22: 0.275 | L22: 0.285 | M22: 0.29
A23: 43000 | B23: 0.185 | C23: 0.195 | D23: 0.205 | E23: 0.22 | F23: 0.23 | G23: 0.24 | H23: 0.245 | I23: 0.255 | J23: 0.265 | K23: 0.275 | L23: 0.285 | M23: 0.29
A24: 44000 | B24: 0.185 | C24: 0.195 | D24: 0.205 | E24: 0.22 | F24: 0.23 | G24: 0.24 | H24: 0.245 | I24: 0.255 | J24: 0.265 | K24: 0.275 | L24: 0.285 | M24: 0.29
A25: 45000 | B25: 0.185 | C25: 0.195 | D25: 0.205 | E25: 0.22 | F25: 0.23 | G25: 0.24 | H25: 0.245 | I25: 0.255 | J25: 0.265 | K25: 0.275 | L25: 0.285 | M25: 0.29
A26: 46000 | B26: 0.185 | C26: 0.195 | D26: 0.205 | E26: 0.22 | F26: 0.23 | G26: 0.24 | H26: 0.245 | I26: 0.255 | J26: 0.265 | K26: 0.275 | L26: 0.285 | M26: 0.29
A27: 47000 | B27: 0.185 | C27: 0.195 | D27: 0.205 | E27: 0.22 | F27: 0.23 | G27: 0.24 | H27: 0.245 | I27: 0.255 | J27: 0.265 | K27: 0.275 | L27: 0.285 | M27: 0.29
A28: 48000 | B28: 0.185 | C28: 0.195 | D28: 0.205 | E28: 0.22 | F28: 0.23 | G28: 0.24 | H28: 0.245 | I28: 0.255 | J28: 0.265 | K28: 0.275 | L28: 0.285 | M28: 0.29
A29: 49000 | B29: 0.185 | C29: 0.195 | D29: 0.205 | E29: 0.22 | F29: 0.23 | G29: 0.24 | H29: 0.245 | I29: 0.255 | J29: 0.265 | K29: 0.275 | L29: 0.285 | M29: 0.29
A30: 50000 | B30: 0.185 | C30: 0.2 | D30: 0.21 | E30: 0.22 | F30: 0.23 | G30: 0.24 | H30: 0.245 | I30: 0.255 | J30: 0.265 | K30: 0.275 | L30: 0.285 | M30: 0.29
A31: 51000 | B31: 0.185 | C31: 0.2 | D31: 0.21 | E31: 0.22 | F31: 0.23 | G31: 0.24 | H31: 0.245 | I31: 0.255 | J31: 0.265 | K31: 0.275 | L31: 0.285 | M31: 0.29
A32: 52000 | B32: 0.185 | C32: 0.2 | D32: 0.21 | E32: 0.22 | F32: 0.23 | G32: 0.24 | H32: 0.245 | I32: 0.255 | J32: 0.265 | K32: 0.275 | L32: 0.285 | M32: 0.29
A33: 53000 | B33: 0.185 | C33: 0.2 | D33: 0.21 | E33: 0.22 | F33: 0.23 | G33: 0.24 | H33: 0.245 | I33: 0.255 | J33: 0.265 | K33: 0.275 | L33: 0.285 | M33: 0.29
A34: 54000 | B34: 0.185 | C34: 0.2 | D34: 0.21 | E34: 0.22 | F34: 0.23 | G34: 0.24 | H34: 0.245 | I34: 0.255 | J34: 0.265 | K34: 0.275 | L34: 0.285 | M34: 0.29
A35: 55000 | B35: 0.185 | C35: 0.2 | D35: 0.21 | E35: 0.22 | F35: 0.23 | G35: 0.24 | H35: 0.25 | I35: 0.255 | J35: 0.265 | K35: 0.275 | L35: 0.285 | M35: 0.29
A36: 56000 | B36: 0.185 | C36: 0.2 | D36: 0.215 | E36: 0.225 | F36: 0.235 | G36: 0.245 | H36: 0.25 | I36: 0.26 | J36: 0.27 | K36: 0.275 | L36: 0.285 | M36: 0.295
A37: 57000 | B37: 0.19 | C37: 0.2 | D37: 0.215 | E37: 0.225 | F37: 0.235 | G37: 0.245 | H37: 0.255 | I37: 0.265 | J37: 0.27 | K37: 0.28 | L37: 0.285 | M37: 0.295
A38: 58000 | B38: 0.19 | C38: 0.2 | D38: 0.215 | E38: 0.225 | F38: 0.235 | G38: 0.245 | H38: 0.255 | I38: 0.265 | J38: 0.275 | K38: 0.28 | L38: 0.29 | M38: 0.295
A39: 59000 | B39: 0.19 | C39: 0.205 | D39: 0.215 | E39: 0.23 | F39: 0.24 | G39: 0.25 | H39: 0.26 | I39: 0.27 | J39: 0.275 | K39: 0.285 | L39: 0.29 | M39: 0.3
A40: 60000 | B40: 0.195 | C40: 0.205 | D40: 0.215 | E40: 0.23 | F40: 0.24 | G40: 0.25 | H40: 0.26 | I40: 0.27 | J40: 0.28 | K40: 0.285 | L40: 0.295 | M40: 0.3
A41: 61000 | B41: 0.195 | C41: 0.205 | D41: 0.22 | E41: 0.23 | F41: 0.24 | G41: 0.255 | H41: 0.265 | I41: 0.27 | J41: 0.28 | K41: 0.29 | L41: 0.295 | M41: 0.305
A42: 62000 | B42: 0.195 | C42: 0.21 | D42: 0.22 | E42: 0.23 | F42: 0.24 | G42: 0.255 | H42: 0.265 | I42: 0.275 | J42: 0.285 | K42: 0.29 | L42: 0.3 | M42: 0.305
A43: 63000 | B43: 0.2 | C43: 0.21 | D43: 0.22 | E43: 0.23 | F43: 0.24 | G43: 0.255 | H43: 0.265 | I43: 0.275 | J43: 0.285 | K43: 0.295 | L43: 0.3 | M43: 0.31
A44: 64000 | B44: 0.2 | C44: 0.21 | D44: 0.225 | E44: 0.235 | F44: 0.245 | G44: 0.255 | H44: 0.265 | I44: 0.28 | J44: 0.285 | K44: 0.295 | L44: 0.305 | M44: 0.31
A45: 65000 | B45: 0.2 | C45: 0.215 | D45: 0.225 | E45: 0.235 | F45: 0.245 | G45: 0.255 | H45: 0.265 | I45: 0.28 | J45: 0.29 | K45: 0.3 | L45: 0.305 | M45: 0.315
A46: 66000 | B46: 0.205 | C46: 0.215 | D46: 0.225 | E46: 0.235 | F46: 0.25 | G46: 0.26 | H46: 0.27 | I46: 0.28 | J46: 0.29 | K46: 0.3 | L46: 0.31 | M46: 0.315
A47: 67000 | B47: 0.205 | C47: 0.215 | D47: 0.225 | E47: 0.24 | F47: 0.25 | G47: 0.26 | H47: 0.27 | I47: 0.28 | J47: 0.29 | K47: 0.3 | L47: 0.31 | M47: 0.315
A48: 68000 | B48: 0.205 | C48: 0.22 | D48: 0.23 | E48: 0.24 | F48: 0.25 | G48: 0.26 | H48: 0.27 | I48: 0.28 | J48: 0.29 | K48: 0.3 | L48: 0.31 | M48: 0.32
A49: 69000 | B49: 0.205 | C49: 0.22 | D49: 0.23 | E49: 0.24 | F49: 0.255 | G49: 0.265 | H49: 0.275 | I49: 0.285 | J49: 0.29 | K49: 0.3 | L49: 0.315 | M49: 0.32
A50: 70000 | B50: 0.21 | C50: 0.22 | D50: 0.23 | E50: 0.245 | F50: 0.255 | G50: 0.265 | H50: 0.275 | I50: 0.285 | J50: 0.295 | K50: 0.305 | L50: 0.315 | M50: 0.325
A51: 71000 | B51: 0.21 | C51: 0.22 | D51: 0.235 | E51: 0.245 | F51: 0.255 | G51: 0.265 | H51: 0.275 | I51: 0.285 | J51: 0.295 | K51: 0.305 | L51: 0.315 | M51: 0.325
A52: 72000 | B52: 0.21 | C52: 0.225 | D52: 0.235 | E52: 0.245 | F52: 0.26 | G52: 0.27 | H52: 0.28 | I52: 0.29 | J52: 0.3 | K52: 0.305 | L52: 0.315 | M52: 0.325
A53: 73000 | B53: 0.21 | C53: 0.225 | D53: 0.235 | E53: 0.245 | F53: 0.26 | G53: 0.27 | H53: 0.28 | I53: 0.29 | J53: 0.3 | K53: 0.31 | L53: 0.315 | M53: 0.325
A54: 74000 | B54: 0.21 | C54: 0.225 | D54: 0.235 | E54: 0.25 | F54: 0.26 | G54: 0.27 | H54: 0.28 | I54: 0.29 | J54: 0.3 | K54: 0.31 | L54: 0.315 | M54: 0.325
A55: 75000 | B55: 0.21 | C55: 0.225 | D55: 0.235 | E55: 0.25 | F55: 0.26 | G55: 0.27 | H55: 0.28 | I55: 0.29 | J55: 0.3 | K55: 0.31 | L55: 0.32 | M55: 0.325
A56: 76000 | B56: 0.215 | C56: 0.225 | D56: 0.235 | E56: 0.25 | F56: 0.26 | G56: 0.27 | H56: 0.28 | I56: 0.29 | J56: 0.3 | K56: 0.31 | L56: 0.32 | M56: 0.325
A57: 77000 | B57: 0.215 | C57: 0.225 | D57: 0.24 | E57: 0.25 | F57: 0.26 | G57: 0.27 | H57: 0.28 | I57: 0.29 | J57: 0.3 | K57: 0.31 | L57: 0.32 | M57: 0.325
A58: 78000 | B58: 0.215 | C58: 0.225 | D58: 0.24 | E58: 0.25 | F58: 0.26 | G58: 0.275 | H58: 0.285 | I58: 0.295 | J58: 0.3 | K58: 0.31 | L58: 0.32 | M58: 0.325
A59: 79000 | B59: 0.215 | C59: 0.225 | D59: 0.24 | E59: 0.25 | F59: 0.26 | G59: 0.275 | H59: 0.285 | I59: 0.295 | J59: 0.305 | K59: 0.31 | L59: 0.32 | M59: 0.33
A60: 80000 | B60: 0.215 | C60: 0.225 | D60: 0.24 | E60: 0.25 | F60: 0.26 | G60: 0.275 | H60: 0.285 | I60: 0.295 | J60: 0.305 | K60: 0.315 | L60: 0.32 | M60: 0.33
A61: 81000 | B61: 0.215 | C61: 0.225 | D61: 0.24 | E61: 0.25 | F61: 0.265 | G61: 0.275 | H61: 0.285 | I61: 0.295 | J61: 0.305 | K61: 0.315 | L61: 0.32 | M61: 0.33
A62: 82000 | B62: 0.215 | C62: 0.23 | D62: 0.24 | E62: 0.25 | F62: 0.265 | G62: 0.275 | H62: 0.285 | I62: 0.295 | J62: 0.305 | K62: 0.315 | L62: 0.32 | M62: 0.33
A63: 83000 | B63: 0.215 | C63: 0.23 | D63: 0.24 | E63: 0.255 | F63: 0.265 | G63: 0.275 | H63: 0.285 | I63: 0.295 | J63: 0.305 | K63: 0.315 | L63: 0.325 | M63: 0.33
A64: 84000 | B64: 0.215 | C64: 0.23 | D64: 0.24 | E64: 0.255 | F64: 0.265 | G64: 0.275 | H64: 0.285 | I64: 0.295 | J64: 0.305 | K64: 0.315 | L64: 0.325 | M64: 0.33
A65: 85000 | B65: 0.22 | C65: 0.23 | D65: 0.24 | E65: 0.255 | F65: 0.265 | G65: 0.275 | H65: 0.285 | I65: 0.295 | J65: 0.305 | K65: 0.315 | L65: 0.325 | M65: 0.33
A66: 86000 | B66: 0.22 | C66: 0.23 | D66: 0.24 | E66: 0.255 | F66: 0.265 | G66: 0.275 | H66: 0.285 | I66: 0.295 | J66: 0.305 | K66: 0.315 | L66: 0.325 | M66: 0.335
A67: 87000 | B67: 0.22 | C67: 0.23 | D67: 0.245 | E67: 0.255 | F67: 0.265 | G67: 0.275 | H67: 0.29 | I67: 0.3 | J67: 0.305 | K67: 0.315 | L67: 0.325 | M67: 0.335
A68: 88000 | B68: 0.22 | C68: 0.23 | D68: 0.245 | E68: 0.255 | F68: 0.265 | G68: 0.275 | H68: 0.29 | I68: 0.3 | J68: 0.31 | K68: 0.315 | L68: 0.325 | M68: 0.335
A69: 89000 | B69: 0.22 | C69: 0.23 | D69: 0.245 | E69: 0.255 | F69: 0.265 | G69: 0.28 | H69: 0.29 | I69: 0.3 | J69: 0.31 | K69: 0.315 | L69: 0.325 | M69: 0.335
A70: 90000 | B70: 0.22 | C70: 0.23 | D70: 0.245 | E70: 0.255 | F70: 0.265 | G70: 0.28 | H70: 0.29 | I70: 0.3 | J70: 0.31 | K70: 0.32 | L70: 0.325 | M70: 0.335
A71: 91000 | B71: 0.22 | C71: 0.235 | D71: 0.245 | E71: 0.255 | F71: 0.27 | G71: 0.28 | H71: 0.29 | I71: 0.3 | J71: 0.31 | K71: 0.32 | L71: 0.325 | M71: 0.335
A72: 92000 | B72: 0.22 | C72: 0.235 | D72: 0.245 | E72: 0.255 | F72: 0.27 | G72: 0.28 | H72: 0.29 | I72: 0.3 | J72: 0.31 | K72: 0.32 | L72: 0.33 | M72: 0.335
A73: 93000 | B73: 0.22 | C73: 0.235 | D73: 0.245 | E73: 0.26 | F73: 0.27 | G73: 0.28 | H73: 0.29 | I73: 0.3 | J73: 0.31 | K73: 0.32 | L73: 0.33 | M73: 0.335
A74: 94000 | B74: 0.22 | C74: 0.235 | D74: 0.245 | E74: 0.26 | F74: 0.27 | G74: 0.28 | H74: 0.29 | I74: 0.3 | J74: 0.31 | K74: 0.32 | L74: 0.33 | M74: 0.335
A75: 95000 | B75: 0.22 | C75: 0.235 | D75: 0.245 | E75: 0.26 | F75: 0.27 | G75: 0.28 | H75: 0.29 | I75: 0.3 | J75: 0.31 | K75: 0.32 | L75: 0.33 | M75: 0.335
A76: 96000 | B76: 0.22 | C76: 0.235 | D76: 0.245 | E76: 0.26 | F76: 0.27 | G76: 0.28 | H76: 0.29 | I76: 0.3 | J76: 0.31 | K76: 0.32 | L76: 0.33 | M76: 0.34
A77: 97000 | B77: 0.225 | C77: 0.235 | D77: 0.25 | E77: 0.26 | F77: 0.27 | G77: 0.28 | H77: 0.295 | I77: 0.3 | J77: 0.31 | K77: 0.32 | L77: 0.33 | M77: 0.34
A78: 98000 | B78: 0.225 | C78: 0.235 | D78: 0.25 | E78: 0.26 | F78: 0.27 | G78: 0.28 | H78: 0.295 | I78: 0.305 | J78: 0.315 | K78: 0.32 | L78: 0.33 | M78: 0.34
A79: 99000 | B79: 0.225 | C79: 0.235 | D79: 0.25 | E79: 0.26 | F79: 0.27 | G79: 0.285 | H79: 0.295 | I79: 0.305 | J79: 0.315 | K79: 0.32 | L79: 0.33 | M79: 0.34
A80: 100000 | B80: 0.225 | C80: 0.235 | D80: 0.25 | E80: 0.26 | F80: 0.275 | G80: 0.285 | H80: 0.295 | I80: 0.305 | J80: 0.315 | K80: 0.325 | L80: 0.33 | M80: 0.34
A81: 101000 | B81: 0.225 | C81: 0.235 | D81: 0.25 | E81: 0.26 | F81: 0.275 | G81: 0.285 | H81: 0.295 | I81: 0.305 | J81: 0.315 | K81: 0.325 | L81: 0.33 | M81: 0.34
A82: 102000 | B82: 0.225 | C82: 0.24 | D82: 0.25 | E82: 0.26 | F82: 0.275 | G82: 0.285 | H82: 0.295 | I82: 0.305 | J82: 0.315 | K82: 0.325 | L82: 0.335 | M82: 0.34
A83: 103000 | B83: 0.225 | C83: 0.24 | D83: 0.25 | E83: 0.265 | F83: 0.275 | G83: 0.285 | H83: 0.295 | I83: 0.305 | J83: 0.315 | K83: 0.325 | L83: 0.335 | M83: 0.34
A84: 104000 | B84: 0.225 | C84: 0.24 | D84: 0.25 | E84: 0.265 | F84: 0.275 | G84: 0.285 | H84: 0.295 | I84: 0.305 | J84: 0.315 | K84: 0.325 | L84: 0.335 | M84: 0.34
A85: 105000 | B85: 0.225 | C85: 0.24 | D85: 0.25 | E85: 0.265 | F85: 0.275 | G85: 0.285 | H85: 0.295 | I85: 0.305 | J85: 0.315 | K85: 0.325 | L85: 0.335 | M85: 0.345
A86: 106000 | B86: 0.225 | C86: 0.24 | D86: 0.25 | E86: 0.265 | F86: 0.275 | G86: 0.285 | H86: 0.3 | I86: 0.31 | J86: 0.315 | K86: 0.325 | L86: 0.335 | M86: 0.345
A87: 107000 | B87: 0.225 | C87: 0.24 | D87: 0.25 | E87: 0.265 | F87: 0.275 | G87: 0.29 | H87: 0.3 | I87: 0.31 | J87: 0.32 | K87: 0.325 | L87: 0.335 | M87: 0.345
A88: 108000 | B88: 0.23 | C88: 0.24 | D88: 0.255 | E88: 0.265 | F88: 0.275 | G88: 0.29 | H88: 0.3 | I88: 0.31 | J88: 0.32 | K88: 0.33 | L88: 0.335 | M88: 0.345
A89: 109000 | B89: 0.23 | C89: 0.24 | D89: 0.255 | E89: 0.265 | F89: 0.275 | G89: 0.29 | H89: 0.3 | I89: 0.31 | J89: 0.32 | K89: 0.33 | L89: 0.335 | M89: 0.345
A90: 110000 | B90: 0.23 | C90: 0.24 | D90: 0.255 | E90: 0.265 | F90: 0.28 | G90: 0.29 | H90: 0.3 | I90: 0.31 | J90: 0.32 | K90: 0.33 | L90: 0.34 | M90: 0.345
A91: 100000000 | B91: 0.23 | C91: 0.24 | D91: 0.255 | E91: 0.265 | F91: 0.28 | G91: 0.29 | H91: 0.3 | I91: 0.31 | J91: 0.32 | K91: 0.33 | L91: 0.34 | M91: 0.345

Sheet 2023BOX3 (hidden)
B1: Toetsrente in percentages | IV1: HIDE
A2: Bruto inkomen in euro's | B2: <=1,500% | C2: 1,501-2,000% | D2: 2,001-2,500% | E2: 2,501-3,000% | F2: 3,001-3,500% | G2: 3,501-4,000% | H2: 4,001-4,500% | I2: 4,501-5,000% | J2: 5,001-5,500% | K2: 5,501-6,000% | L2: 6,001-6,500% | M2: > 6,501%
A4: -1 | B4: 0 | C4: 0.01501 | D4: =+C4+0.5% -> 0.02001 | E4: 0.02501 | F4: 0.03001 | G4: 0.03501 | H4: 0.04001 | I4: 0.04501 | J4: 0.05001 | K4: 0.05501 | L4: 0.06001 | M4: 0.06501 | N4: <= beginrente
A5: 0 | B5: 0.145 | C5: 0.145 | D5: 0.145 | E5: 0.15 | F5: 0.15 | G5: 0.155 | H5: 0.155 | I5: 0.155 | J5: 0.16 | K5: 0.16 | L5: 0.16 | M5: 0.165
A6: 26000 | B6: 0.145 | C6: 0.145 | D6: 0.145 | E6: 0.15 | F6: 0.15 | G6: 0.155 | H6: 0.155 | I6: 0.155 | J6: 0.16 | K6: 0.16 | L6: 0.16 | M6: 0.165
A7: 27000 | B7: 0.15 | C7: 0.15 | D7: 0.155 | E7: 0.155 | F7: 0.16 | G7: 0.16 | H7: 0.165 | I7: 0.165 | J7: 0.165 | K7: 0.17 | L7: 0.17 | M7: 0.17
A8: 28000 | B8: 0.155 | C8: 0.16 | D8: 0.16 | E8: 0.165 | F8: 0.165 | G8: 0.165 | H8: 0.17 | I8: 0.17 | J8: 0.175 | K8: 0.175 | L8: 0.175 | M8: 0.175
A9: 29000 | B9: 0.16 | C9: 0.165 | D9: 0.165 | E9: 0.17 | F9: 0.17 | G9: 0.175 | H9: 0.175 | I9: 0.175 | J9: 0.18 | K9: 0.18 | L9: 0.18 | M9: 0.185
A10: 30000 | B10: 0.165 | C10: 0.17 | D10: 0.17 | E10: 0.175 | F10: 0.175 | G10: 0.18 | H10: 0.18 | I10: 0.18 | J10: 0.185 | K10: 0.185 | L10: 0.185 | M10: 0.19
A11: 31000 | B11: 0.17 | C11: 0.175 | D11: 0.175 | E11: 0.18 | F11: 0.18 | G11: 0.185 | H11: 0.185 | I11: 0.185 | J11: 0.19 | K11: 0.19 | L11: 0.19 | M11: 0.195
A12: 32000 | B12: 0.17 | C12: 0.175 | D12: 0.175 | E12: 0.18 | F12: 0.18 | G12: 0.185 | H12: 0.185 | I12: 0.19 | J12: 0.19 | K12: 0.19 | L12: 0.195 | M12: 0.195
A13: 33000 | B13: 0.17 | C13: 0.175 | D13: 0.18 | E13: 0.18 | F13: 0.185 | G13: 0.185 | H13: 0.185 | I13: 0.19 | J13: 0.19 | K13: 0.195 | L13: 0.195 | M13: 0.195
A14: 34000 | B14: 0.17 | C14: 0.175 | D14: 0.18 | E14: 0.18 | F14: 0.185 | G14: 0.185 | H14: 0.185 | I14: 0.19 | J14: 0.19 | K14: 0.195 | L14: 0.195 | M14: 0.195
A15: 35000 | B15: 0.17 | C15: 0.175 | D15: 0.18 | E15: 0.18 | F15: 0.185 | G15: 0.185 | H15: 0.19 | I15: 0.19 | J15: 0.19 | K15: 0.195 | L15: 0.195 | M15: 0.195
A16: 36000 | B16: 0.17 | C16: 0.175 | D16: 0.18 | E16: 0.18 | F16: 0.185 | G16: 0.185 | H16: 0.19 | I16: 0.19 | J16: 0.19 | K16: 0.195 | L16: 0.195 | M16: 0.195
A17: 37000 | B17: 0.17 | C17: 0.175 | D17: 0.18 | E17: 0.18 | F17: 0.185 | G17: 0.185 | H17: 0.19 | I17: 0.19 | J17: 0.19 | K17: 0.195 | L17: 0.195 | M17: 0.195
A18: 38000 | B18: 0.17 | C18: 0.175 | D18: 0.18 | E18: 0.18 | F18: 0.185 | G18: 0.185 | H18: 0.19 | I18: 0.19 | J18: 0.19 | K18: 0.195 | L18: 0.195 | M18: 0.195
A19: 39000 | B19: 0.17 | C19: 0.175 | D19: 0.18 | E19: 0.18 | F19: 0.185 | G19: 0.185 | H19: 0.19 | I19: 0.19 | J19: 0.19 | K19: 0.195 | L19: 0.195 | M19: 0.195
A20: 40000 | B20: 0.17 | C20: 0.175 | D20: 0.18 | E20: 0.18 | F20: 0.185 | G20: 0.185 | H20: 0.19 | I20: 0.19 | J20: 0.19 | K20: 0.195 | L20: 0.195 | M20: 0.195
A21: 41000 | B21: 0.17 | C21: 0.175 | D21: 0.18 | E21: 0.18 | F21: 0.185 | G21: 0.185 | H21: 0.19 | I21: 0.19 | J21: 0.19 | K21: 0.195 | L21: 0.195 | M21: 0.195
A22: 42000 | B22: 0.17 | C22: 0.175 | D22: 0.18 | E22: 0.18 | F22: 0.185 | G22: 0.185 | H22: 0.19 | I22: 0.19 | J22: 0.19 | K22: 0.195 | L22: 0.195 | M22: 0.195
A23: 43000 | B23: 0.17 | C23: 0.175 | D23: 0.18 | E23: 0.18 | F23: 0.185 | G23: 0.185 | H23: 0.19 | I23: 0.19 | J23: 0.19 | K23: 0.195 | L23: 0.195 | M23: 0.195
A24: 44000 | B24: 0.17 | C24: 0.175 | D24: 0.18 | E24: 0.18 | F24: 0.185 | G24: 0.185 | H24: 0.19 | I24: 0.19 | J24: 0.19 | K24: 0.195 | L24: 0.195 | M24: 0.195
A25: 45000 | B25: 0.17 | C25: 0.175 | D25: 0.18 | E25: 0.18 | F25: 0.185 | G25: 0.185 | H25: 0.19 | I25: 0.19 | J25: 0.19 | K25: 0.195 | L25: 0.195 | M25: 0.195
A26: 46000 | B26: 0.17 | C26: 0.175 | D26: 0.18 | E26: 0.18 | F26: 0.185 | G26: 0.185 | H26: 0.19 | I26: 0.19 | J26: 0.19 | K26: 0.195 | L26: 0.195 | M26: 0.195
A27: 47000 | B27: 0.17 | C27: 0.175 | D27: 0.18 | E27: 0.18 | F27: 0.185 | G27: 0.185 | H27: 0.19 | I27: 0.19 | J27: 0.19 | K27: 0.195 | L27: 0.195 | M27: 0.195
A28: 48000 | B28: 0.17 | C28: 0.175 | D28: 0.18 | E28: 0.18 | F28: 0.185 | G28: 0.185 | H28: 0.19 | I28: 0.19 | J28: 0.19 | K28: 0.195 | L28: 0.195 | M28: 0.195
A29: 49000 | B29: 0.17 | C29: 0.175 | D29: 0.18 | E29: 0.18 | F29: 0.185 | G29: 0.185 | H29: 0.19 | I29: 0.19 | J29: 0.19 | K29: 0.195 | L29: 0.195 | M29: 0.195
A30: 50000 | B30: 0.17 | C30: 0.175 | D30: 0.18 | E30: 0.18 | F30: 0.185 | G30: 0.185 | H30: 0.19 | I30: 0.19 | J30: 0.19 | K30: 0.195 | L30: 0.195 | M30: 0.195
A31: 51000 | B31: 0.17 | C31: 0.175 | D31: 0.18 | E31: 0.18 | F31: 0.185 | G31: 0.185 | H31: 0.19 | I31: 0.19 | J31: 0.19 | K31: 0.195 | L31: 0.195 | M31: 0.195
A32: 52000 | B32: 0.17 | C32: 0.175 | D32: 0.18 | E32: 0.18 | F32: 0.185 | G32: 0.185 | H32: 0.19 | I32: 0.19 | J32: 0.19 | K32: 0.195 | L32: 0.195 | M32: 0.195
A33: 53000 | B33: 0.17 | C33: 0.175 | D33: 0.18 | E33: 0.18 | F33: 0.185 | G33: 0.185 | H33: 0.19 | I33: 0.19 | J33: 0.19 | K33: 0.195 | L33: 0.195 | M33: 0.195
A34: 54000 | B34: 0.17 | C34: 0.175 | D34: 0.18 | E34: 0.18 | F34: 0.185 | G34: 0.185 | H34: 0.19 | I34: 0.19 | J34: 0.19 | K34: 0.195 | L34: 0.195 | M34: 0.195
A35: 55000 | B35: 0.175 | C35: 0.175 | D35: 0.18 | E35: 0.18 | F35: 0.185 | G35: 0.185 | H35: 0.19 | I35: 0.19 | J35: 0.195 | K35: 0.195 | L35: 0.195 | M35: 0.2
A36: 56000 | B36: 0.175 | C36: 0.18 | D36: 0.18 | E36: 0.185 | F36: 0.185 | G36: 0.19 | H36: 0.19 | I36: 0.195 | J36: 0.195 | K36: 0.195 | L36: 0.2 | M36: 0.2
A37: 57000 | B37: 0.175 | C37: 0.18 | D37: 0.185 | E37: 0.185 | F37: 0.19 | G37: 0.19 | H37: 0.195 | I37: 0.195 | J37: 0.2 | K37: 0.2 | L37: 0.2 | M37: 0.205
A38: 58000 | B38: 0.18 | C38: 0.18 | D38: 0.185 | E38: 0.19 | F38: 0.19 | G38: 0.195 | H38: 0.195 | I38: 0.2 | J38: 0.2 | K38: 0.2 | L38: 0.205 | M38: 0.205
A39: 59000 | B39: 0.18 | C39: 0.185 | D39: 0.185 | E39: 0.19 | F39: 0.19 | G39: 0.195 | H39: 0.195 | I39: 0.2 | J39: 0.2 | K39: 0.205 | L39: 0.205 | M39: 0.205
A40: 60000 | B40: 0.18 | C40: 0.185 | D40: 0.19 | E40: 0.19 | F40: 0.195 | G40: 0.195 | H40: 0.2 | I40: 0.2 | J40: 0.205 | K40: 0.205 | L40: 0.205 | M40: 0.21
A41: 61000 | B41: 0.185 | C41: 0.185 | D41: 0.19 | E41: 0.195 | F41: 0.195 | G41: 0.2 | H41: 0.2 | I41: 0.205 | J41: 0.205 | K41: 0.205 | L41: 0.21 | M41: 0.21
A42: 62000 | B42: 0.185 | C42: 0.19 | D42: 0.19 | E42: 0.195 | F42: 0.195 | G42: 0.2 | H42: 0.2 | I42: 0.205 | J42: 0.205 | K42: 0.21 | L42: 0.21 | M42: 0.21
A43: 63000 | B43: 0.185 | C43: 0.19 | D43: 0.195 | E43: 0.195 | F43: 0.2 | G43: 0.2 | H43: 0.205 | I43: 0.205 | J43: 0.21 | K43: 0.21 | L43: 0.21 | M43: 0.215
A44: 64000 | B44: 0.19 | C44: 0.19 | D44: 0.195 | E44: 0.195 | F44: 0.2 | G44: 0.205 | H44: 0.205 | I44: 0.21 | J44: 0.21 | K44: 0.21 | L44: 0.215 | M44: 0.215
A45: 65000 | B45: 0.19 | C45: 0.195 | D45: 0.195 | E45: 0.2 | F45: 0.2 | G45: 0.205 | H45: 0.205 | I45: 0.21 | J45: 0.21 | K45: 0.215 | L45: 0.215 | M45: 0.215
A46: 66000 | B46: 0.19 | C46: 0.195 | D46: 0.195 | E46: 0.2 | F46: 0.205 | G46: 0.205 | H46: 0.21 | I46: 0.21 | J46: 0.215 | K46: 0.215 | L46: 0.215 | M46: 0.22
A47: 67000 | B47: 0.19 | C47: 0.195 | D47: 0.2 | E47: 0.2 | F47: 0.205 | G47: 0.205 | H47: 0.21 | I47: 0.21 | J47: 0.215 | K47: 0.215 | L47: 0.22 | M47: 0.22
A48: 68000 | B48: 0.195 | C48: 0.195 | D48: 0.2 | E48: 0.205 | F48: 0.205 | G48: 0.21 | H48: 0.21 | I48: 0.215 | J48: 0.215 | K48: 0.22 | L48: 0.22 | M48: 0.22
A49: 69000 | B49: 0.195 | C49: 0.2 | D49: 0.2 | E49: 0.205 | F49: 0.205 | G49: 0.21 | H49: 0.215 | I49: 0.215 | J49: 0.215 | K49: 0.22 | L49: 0.22 | M49: 0.225
A50: 70000 | B50: 0.195 | C50: 0.2 | D50: 0.205 | E50: 0.205 | F50: 0.21 | G50: 0.21 | H50: 0.215 | I50: 0.215 | J50: 0.22 | K50: 0.22 | L50: 0.225 | M50: 0.225
A51: 71000 | B51: 0.195 | C51: 0.2 | D51: 0.205 | E51: 0.205 | F51: 0.21 | G51: 0.215 | H51: 0.215 | I51: 0.22 | J51: 0.22 | K51: 0.22 | L51: 0.225 | M51: 0.225
A52: 72000 | B52: 0.2 | C52: 0.2 | D52: 0.205 | E52: 0.21 | F52: 0.21 | G52: 0.215 | H52: 0.215 | I52: 0.22 | J52: 0.22 | K52: 0.225 | L52: 0.225 | M52: 0.225
A53: 73000 | B53: 0.2 | C53: 0.205 | D53: 0.205 | E53: 0.21 | F53: 0.215 | G53: 0.215 | H53: 0.22 | I53: 0.22 | J53: 0.225 | K53: 0.225 | L53: 0.225 | M53: 0.23
A54: 74000 | B54: 0.2 | C54: 0.205 | D54: 0.205 | E54: 0.21 | F54: 0.215 | G54: 0.215 | H54: 0.22 | I54: 0.22 | J54: 0.225 | K54: 0.225 | L54: 0.23 | M54: 0.23
A55: 75000 | B55: 0.2 | C55: 0.205 | D55: 0.21 | E55: 0.21 | F55: 0.215 | G55: 0.215 | H55: 0.22 | I55: 0.22 | J55: 0.225 | K55: 0.225 | L55: 0.23 | M55: 0.23
A56: 76000 | B56: 0.2 | C56: 0.205 | D56: 0.21 | E56: 0.21 | F56: 0.215 | G56: 0.22 | H56: 0.22 | I56: 0.225 | J56: 0.225 | K56: 0.23 | L56: 0.23 | M56: 0.23
A57: 77000 | B57: 0.2 | C57: 0.205 | D57: 0.21 | E57: 0.215 | F57: 0.215 | G57: 0.22 | H57: 0.22 | I57: 0.225 | J57: 0.225 | K57: 0.23 | L57: 0.23 | M57: 0.23
A58: 78000 | B58: 0.205 | C58: 0.205 | D58: 0.21 | E58: 0.215 | F58: 0.215 | G58: 0.22 | H58: 0.22 | I58: 0.225 | J58: 0.225 | K58: 0.23 | L58: 0.23 | M58: 0.235
A59: 79000 | B59: 0.205 | C59: 0.205 | D59: 0.21 | E59: 0.215 | F59: 0.215 | G59: 0.22 | H59: 0.22 | I59: 0.225 | J59: 0.225 | K59: 0.23 | L59: 0.23 | M59: 0.235
A60: 80000 | B60: 0.205 | C60: 0.21 | D60: 0.21 | E60: 0.215 | F60: 0.215 | G60: 0.22 | H60: 0.225 | I60: 0.225 | J60: 0.23 | K60: 0.23 | L60: 0.23 | M60: 0.235
A61: 81000 | B61: 0.205 | C61: 0.21 | D61: 0.21 | E61: 0.215 | F61: 0.22 | G61: 0.22 | H61: 0.225 | I61: 0.225 | J61: 0.23 | K61: 0.23 | L61: 0.235 | M61: 0.235
A62: 82000 | B62: 0.205 | C62: 0.21 | D62: 0.21 | E62: 0.215 | F62: 0.22 | G62: 0.22 | H62: 0.225 | I62: 0.225 | J62: 0.23 | K62: 0.23 | L62: 0.235 | M62: 0.235
A63: 83000 | B63: 0.205 | C63: 0.21 | D63: 0.215 | E63: 0.215 | F63: 0.22 | G63: 0.22 | H63: 0.225 | I63: 0.225 | J63: 0.23 | K63: 0.23 | L63: 0.235 | M63: 0.235
A64: 84000 | B64: 0.205 | C64: 0.21 | D64: 0.215 | E64: 0.215 | F64: 0.22 | G64: 0.22 | H64: 0.225 | I64: 0.23 | J64: 0.23 | K64: 0.23 | L64: 0.235 | M64: 0.235
A65: 85000 | B65: 0.205 | C65: 0.21 | D65: 0.215 | E65: 0.215 | F65: 0.22 | G65: 0.225 | H65: 0.225 | I65: 0.23 | J65: 0.23 | K65: 0.235 | L65: 0.235 | M65: 0.235
A66: 86000 | B66: 0.205 | C66: 0.21 | D66: 0.215 | E66: 0.22 | F66: 0.22 | G66: 0.225 | H66: 0.225 | I66: 0.23 | J66: 0.23 | K66: 0.235 | L66: 0.235 | M66: 0.235
A67: 87000 | B67: 0.21 | C67: 0.21 | D67: 0.215 | E67: 0.22 | F67: 0.22 | G67: 0.225 | H67: 0.225 | I67: 0.23 | J67: 0.23 | K67: 0.235 | L67: 0.235 | M67: 0.24
A68: 88000 | B68: 0.21 | C68: 0.21 | D68: 0.215 | E68: 0.22 | F68: 0.22 | G68: 0.225 | H68: 0.225 | I68: 0.23 | J68: 0.23 | K68: 0.235 | L68: 0.235 | M68: 0.24
A69: 89000 | B69: 0.21 | C69: 0.21 | D69: 0.215 | E69: 0.22 | F69: 0.22 | G69: 0.225 | H69: 0.23 | I69: 0.23 | J69: 0.235 | K69: 0.235 | L69: 0.235 | M69: 0.24
A70: 90000 | B70: 0.21 | C70: 0.215 | D70: 0.215 | E70: 0.22 | F70: 0.22 | G70: 0.225 | H70: 0.23 | I70: 0.23 | J70: 0.235 | K70: 0.235 | L70: 0.235 | M70: 0.24
A71: 91000 | B71: 0.21 | C71: 0.215 | D71: 0.215 | E71: 0.22 | F71: 0.225 | G71: 0.225 | H71: 0.23 | I71: 0.23 | J71: 0.235 | K71: 0.235 | L71: 0.24 | M71: 0.24
A72: 92000 | B72: 0.21 | C72: 0.215 | D72: 0.215 | E72: 0.22 | F72: 0.225 | G72: 0.225 | H72: 0.23 | I72: 0.23 | J72: 0.235 | K72: 0.235 | L72: 0.24 | M72: 0.24
A73: 93000 | B73: 0.21 | C73: 0.215 | D73: 0.215 | E73: 0.22 | F73: 0.225 | G73: 0.225 | H73: 0.23 | I73: 0.23 | J73: 0.235 | K73: 0.235 | L73: 0.24 | M73: 0.24
A74: 94000 | B74: 0.21 | C74: 0.215 | D74: 0.22 | E74: 0.22 | F74: 0.225 | G74: 0.225 | H74: 0.23 | I74: 0.23 | J74: 0.235 | K74: 0.235 | L74: 0.24 | M74: 0.24
A75: 95000 | B75: 0.21 | C75: 0.215 | D75: 0.22 | E75: 0.22 | F75: 0.225 | G75: 0.225 | H75: 0.23 | I75: 0.235 | J75: 0.235 | K75: 0.24 | L75: 0.24 | M75: 0.24
A76: 96000 | B76: 0.21 | C76: 0.215 | D76: 0.22 | E76: 0.22 | F76: 0.225 | G76: 0.23 | H76: 0.23 | I76: 0.235 | J76: 0.235 | K76: 0.24 | L76: 0.24 | M76: 0.24
A77: 97000 | B77: 0.21 | C77: 0.215 | D77: 0.22 | E77: 0.22 | F77: 0.225 | G77: 0.23 | H77: 0.23 | I77: 0.235 | J77: 0.235 | K77: 0.24 | L77: 0.24 | M77: 0.24
A78: 98000 | B78: 0.21 | C78: 0.215 | D78: 0.22 | E78: 0.225 | F78: 0.225 | G78: 0.23 | H78: 0.23 | I78: 0.235 | J78: 0.235 | K78: 0.24 | L78: 0.24 | M78: 0.245
A79: 99000 | B79: 0.21 | C79: 0.215 | D79: 0.22 | E79: 0.225 | F79: 0.225 | G79: 0.23 | H79: 0.23 | I79: 0.235 | J79: 0.235 | K79: 0.24 | L79: 0.24 | M79: 0.245
A80: 100000 | B80: 0.215 | C80: 0.215 | D80: 0.22 | E80: 0.225 | F80: 0.225 | G80: 0.23 | H80: 0.23 | I80: 0.235 | J80: 0.24 | K80: 0.24 | L80: 0.24 | M80: 0.245
A81: 101000 | B81: 0.215 | C81: 0.215 | D81: 0.22 | E81: 0.225 | F81: 0.225 | G81: 0.23 | H81: 0.235 | I81: 0.235 | J81: 0.24 | K81: 0.24 | L81: 0.24 | M81: 0.245
A82: 102000 | B82: 0.215 | C82: 0.22 | D82: 0.22 | E82: 0.225 | F82: 0.23 | G82: 0.23 | H82: 0.235 | I82: 0.235 | J82: 0.24 | K82: 0.24 | L82: 0.245 | M82: 0.245
A83: 103000 | B83: 0.215 | C83: 0.22 | D83: 0.22 | E83: 0.225 | F83: 0.23 | G83: 0.23 | H83: 0.235 | I83: 0.235 | J83: 0.24 | K83: 0.24 | L83: 0.245 | M83: 0.245
A84: 104000 | B84: 0.215 | C84: 0.22 | D84: 0.22 | E84: 0.225 | F84: 0.23 | G84: 0.23 | H84: 0.235 | I84: 0.235 | J84: 0.24 | K84: 0.24 | L84: 0.245 | M84: 0.245
A85: 105000 | B85: 0.215 | C85: 0.22 | D85: 0.22 | E85: 0.225 | F85: 0.23 | G85: 0.23 | H85: 0.235 | I85: 0.235 | J85: 0.24 | K85: 0.24 | L85: 0.245 | M85: 0.245
A86: 106000 | B86: 0.215 | C86: 0.22 | D86: 0.225 | E86: 0.225 | F86: 0.23 | G86: 0.23 | H86: 0.235 | I86: 0.24 | J86: 0.24 | K86: 0.245 | L86: 0.245 | M86: 0.245
A87: 107000 | B87: 0.215 | C87: 0.22 | D87: 0.225 | E87: 0.225 | F87: 0.23 | G87: 0.235 | H87: 0.235 | I87: 0.24 | J87: 0.24 | K87: 0.245 | L87: 0.245 | M87: 0.245
A88: 108000 | B88: 0.215 | C88: 0.22 | D88: 0.225 | E88: 0.225 | F88: 0.23 | G88: 0.235 | H88: 0.235 | I88: 0.24 | J88: 0.24 | K88: 0.245 | L88: 0.245 | M88: 0.25
A89: 109000 | B89: 0.215 | C89: 0.22 | D89: 0.225 | E89: 0.23 | F89: 0.23 | G89: 0.235 | H89: 0.235 | I89: 0.24 | J89: 0.24 | K89: 0.245 | L89: 0.245 | M89: 0.25
A90: 110000 | B90: 0.215 | C90: 0.22 | D90: 0.225 | E90: 0.23 | F90: 0.23 | G90: 0.235 | H90: 0.235 | I90: 0.24 | J90: 0.24 | K90: 0.245 | L90: 0.245 | M90: 0.25
A91: 100000000 | B91: 0.215 | C91: 0.22 | D91: 0.225 | E91: 0.23 | F91: 0.23 | G91: 0.235 | H91: 0.235 | I91: 0.24 | J91: 0.24 | K91: 0.245 | L91: 0.245 | M91: 0.25

Sheet 2023AOW (hidden)
B1: Toetsrente in percentages | IV1: HIDE
A2: Bruto inkomen in euro's | B2: <=1,500% | C2: 1,501-2,000% | D2: 2,001-2,500% | E2: 2,501-3,000% | F2: 3,001-3,500% | G2: 3,501-4,000% | H2: 4,001-4,500% | I2: 4,501-5,000% | J2: 5,001-5,500% | K2: 5,501-6,000% | L2: 6,001-6,500% | M2: > 6,501%
A4: -1 | B4: 0 | C4: 0.01501 | D4: =+C4+0.5% -> 0.02001 | E4: 0.02501 | F4: 0.03001 | G4: 0.03501 | H4: 0.04001 | I4: 0.04501 | J4: 0.05001 | K4: 0.05501 | L4: 0.06001 | M4: 0.06501 | N4: <= beginrente
A5: 0 | B5: 0.18 | C5: 0.185 | D5: 0.19 | E5: 0.19 | F5: 0.195 | G5: 0.195 | H5: 0.2 | I5: 0.2 | J5: 0.2 | K5: 0.205 | L5: 0.205 | M5: 0.205
A6: 26000 | B6: 0.18 | C6: 0.185 | D6: 0.19 | E6: 0.19 | F6: 0.195 | G6: 0.195 | H6: 0.2 | I6: 0.2 | J6: 0.2 | K6: 0.205 | L6: 0.205 | M6: 0.205
A7: 27000 | B7: 0.2 | C7: 0.205 | D7: 0.21 | E7: 0.21 | F7: 0.215 | G7: 0.215 | H7: 0.22 | I7: 0.22 | J7: 0.225 | K7: 0.225 | L7: 0.23 | M7: 0.23
A8: 28000 | B8: 0.215 | C8: 0.22 | D8: 0.225 | E8: 0.23 | F8: 0.235 | G8: 0.235 | H8: 0.24 | I8: 0.24 | J8: 0.245 | K8: 0.245 | L8: 0.25 | M8: 0.25
A9: 29000 | B9: 0.23 | C9: 0.235 | D9: 0.24 | E9: 0.245 | F9: 0.25 | G9: 0.255 | H9: 0.255 | I9: 0.26 | J9: 0.265 | K9: 0.265 | L9: 0.265 | M9: 0.27
A10: 30000 | B10: 0.23 | C10: 0.24 | D10: 0.25 | E10: 0.255 | F10: 0.265 | G10: 0.27 | H10: 0.275 | I10: 0.275 | J10: 0.28 | K10: 0.285 | L10: 0.285 | M10: 0.285
A11: 31000 | B11: 0.23 | C11: 0.245 | D11: 0.255 | E11: 0.26 | F11: 0.27 | G11: 0.275 | H11: 0.28 | I11: 0.285 | J11: 0.29 | K11: 0.295 | L11: 0.3 | M11: 0.3
A12: 32000 | B12: 0.235 | C12: 0.245 | D12: 0.255 | E12: 0.265 | F12: 0.275 | G12: 0.28 | H12: 0.285 | I12: 0.29 | J12: 0.295 | K12: 0.3 | L12: 0.305 | M12: 0.31
A13: 33000 | B13: 0.235 | C13: 0.245 | D13: 0.255 | E13: 0.265 | F13: 0.275 | G13: 0.285 | H13: 0.29 | I13: 0.295 | J13: 0.3 | K13: 0.305 | L13: 0.31 | M13: 0.315
A14: 34000 | B14: 0.235 | C14: 0.245 | D14: 0.255 | E14: 0.265 | F14: 0.275 | G14: 0.285 | H14: 0.295 | I14: 0.3 | J14: 0.305 | K14: 0.31 | L14: 0.315 | M14: 0.32
A15: 35000 | B15: 0.235 | C15: 0.245 | D15: 0.255 | E15: 0.27 | F15: 0.275 | G15: 0.285 | H15: 0.295 | I15: 0.305 | J15: 0.31 | K15: 0.315 | L15: 0.32 | M15: 0.325
A16: 36000 | B16: 0.235 | C16: 0.245 | D16: 0.255 | E16: 0.27 | F16: 0.28 | G16: 0.29 | H16: 0.295 | I16: 0.305 | J16: 0.31 | K16: 0.32 | L16: 0.325 | M16: 0.33
A17: 37000 | B17: 0.235 | C17: 0.245 | D17: 0.26 | E17: 0.27 | F17: 0.28 | G17: 0.29 | H17: 0.295 | I17: 0.305 | J17: 0.315 | K17: 0.32 | L17: 0.325 | M17: 0.33
A18: 38000 | B18: 0.235 | C18: 0.245 | D18: 0.26 | E18: 0.27 | F18: 0.28 | G18: 0.29 | H18: 0.3 | I18: 0.305 | J18: 0.315 | K18: 0.32 | L18: 0.33 | M18: 0.335
A19: 39000 | B19: 0.235 | C19: 0.245 | D19: 0.26 | E19: 0.27 | F19: 0.28 | G19: 0.29 | H19: 0.3 | I19: 0.305 | J19: 0.315 | K19: 0.32 | L19: 0.33 | M19: 0.335
A20: 40000 | B20: 0.235 | C20: 0.245 | D20: 0.26 | E20: 0.27 | F20: 0.28 | G20: 0.29 | H20: 0.3 | I20: 0.305 | J20: 0.315 | K20: 0.32 | L20: 0.33 | M20: 0.335
A21: 41000 | B21: 0.235 | C21: 0.245 | D21: 0.26 | E21: 0.27 | F21: 0.28 | G21: 0.29 | H21: 0.3 | I21: 0.305 | J21: 0.315 | K21: 0.32 | L21: 0.33 | M21: 0.335
A22: 42000 | B22: 0.235 | C22: 0.245 | D22: 0.26 | E22: 0.27 | F22: 0.28 | G22: 0.29 | H22: 0.3 | I22: 0.31 | J22: 0.315 | K22: 0.325 | L22: 0.33 | M22: 0.34
A23: 43000 | B23: 0.24 | C23: 0.25 | D23: 0.26 | E23: 0.27 | F23: 0.28 | G23: 0.29 | H23: 0.3 | I23: 0.31 | J23: 0.32 | K23: 0.325 | L23: 0.335 | M23: 0.34
A24: 44000 | B24: 0.245 | C24: 0.255 | D24: 0.265 | E24: 0.275 | F24: 0.285 | G24: 0.295 | H24: 0.305 | I24: 0.315 | J24: 0.325 | K24: 0.33 | L24: 0.34 | M24: 0.345
A25: 45000 | B25: 0.25 | C25: 0.26 | D25: 0.27 | E25: 0.28 | F25: 0.29 | G25: 0.3 | H25: 0.31 | I25: 0.315 | J25: 0.325 | K25: 0.335 | L25: 0.34 | M25: 0.35
A26: 46000 | B26: 0.255 | C26: 0.265 | D26: 0.275 | E26: 0.28 | F26: 0.29 | G26: 0.3 | H26: 0.31 | I26: 0.32 | J26: 0.33 | K26: 0.34 | L26: 0.345 | M26: 0.355
A27: 47000 | B27: 0.26 | C27: 0.27 | D27: 0.28 | E27: 0.285 | F27: 0.295 | G27: 0.305 | H27: 0.315 | I27: 0.325 | J27: 0.335 | K27: 0.34 | L27: 0.35 | M27: 0.355
A28: 48000 | B28: 0.26 | C28: 0.275 | D28: 0.28 | E28: 0.29 | F28: 0.3 | G28: 0.31 | H28: 0.32 | I28: 0.33 | J28: 0.335 | K28: 0.345 | L28: 0.355 | M28: 0.36
A29: 49000 | B29: 0.265 | C29: 0.275 | D29: 0.285 | E29: 0.295 | F29: 0.305 | G29: 0.315 | H29: 0.32 | I29: 0.33 | J29: 0.34 | K29: 0.35 | L29: 0.355 | M29: 0.365
A30: 50000 | B30: 0.265 | C30: 0.28 | D30: 0.29 | E30: 0.3 | F30: 0.31 | G30: 0.32 | H30: 0.325 | I30: 0.335 | J30: 0.345 | K30: 0.35 | L30: 0.36 | M30: 0.37
A31: 51000 | B31: 0.27 | C31: 0.285 | D31: 0.295 | E31: 0.305 | F31: 0.315 | G31: 0.32 | H31: 0.33 | I31: 0.34 | J31: 0.35 | K31: 0.355 | L31: 0.365 | M31: 0.37
A32: 52000 | B32: 0.27 | C32: 0.285 | D32: 0.3 | E32: 0.31 | F32: 0.32 | G32: 0.325 | H32: 0.335 | I32: 0.345 | J32: 0.35 | K32: 0.36 | L32: 0.37 | M32: 0.375
A33: 53000 | B33: 0.27 | C33: 0.285 | D33: 0.3 | E33: 0.315 | F33: 0.325 | G33: 0.33 | H33: 0.34 | I33: 0.35 | J33: 0.355 | K33: 0.365 | L33: 0.37 | M33: 0.38
A34: 54000 | B34: 0.27 | C34: 0.285 | D34: 0.3 | E34: 0.315 | F34: 0.33 | G34: 0.335 | H34: 0.345 | I34: 0.355 | J34: 0.36 | K34: 0.37 | L34: 0.375 | M34: 0.385
A35: 55000 | B35: 0.27 | C35: 0.29 | D35: 0.305 | E35: 0.32 | F35: 0.33 | G35: 0.34 | H35: 0.35 | I35: 0.355 | J35: 0.365 | K35: 0.37 | L35: 0.38 | M35: 0.39
A36: 56000 | B36: 0.27 | C36: 0.29 | D36: 0.305 | E36: 0.32 | F36: 0.335 | G36: 0.345 | H36: 0.355 | I36: 0.36 | J36: 0.37 | K36: 0.375 | L36: 0.385 | M36: 0.39
A37: 57000 | B37: 0.27 | C37: 0.29 | D37: 0.305 | E37: 0.325 | F37: 0.34 | G37: 0.35 | H37: 0.36 | I37: 0.365 | J37: 0.375 | K37: 0.38 | L37: 0.385 | M37: 0.395
A38: 58000 | B38: 0.27 | C38: 0.29 | D38: 0.305 | E38: 0.325 | F38: 0.34 | G38: 0.355 | H38: 0.365 | I38: 0.37 | J38: 0.38 | K38: 0.385 | L38: 0.39 | M38: 0.4
A39: 59000 | B39: 0.27 | C39: 0.29 | D39: 0.305 | E39: 0.325 | F39: 0.34 | G39: 0.355 | H39: 0.365 | I39: 0.375 | J39: 0.38 | K39: 0.39 | L39: 0.395 | M39: 0.4
A40: 60000 | B40: 0.27 | C40: 0.29 | D40: 0.305 | E40: 0.325 | F40: 0.34 | G40: 0.355 | H40: 0.37 | I40: 0.38 | J40: 0.385 | K40: 0.395 | L40: 0.4 | M40: 0.405
A41: 61000 | B41: 0.27 | C41: 0.29 | D41: 0.305 | E41: 0.325 | F41: 0.34 | G41: 0.36 | H41: 0.37 | I41: 0.38 | J41: 0.39 | K41: 0.395 | L41: 0.405 | M41: 0.41
A42: 62000 | B42: 0.27 | C42: 0.29 | D42: 0.305 | E42: 0.325 | F42: 0.34 | G42: 0.36 | H42: 0.375 | I42: 0.385 | J42: 0.395 | K42: 0.4 | L42: 0.405 | M42: 0.415
A43: 63000 | B43: 0.27 | C43: 0.29 | D43: 0.305 | E43: 0.325 | F43: 0.34 | G43: 0.36 | H43: 0.375 | I43: 0.385 | J43: 0.395 | K43: 0.405 | L43: 0.41 | M43: 0.415
A44: 64000 | B44: 0.27 | C44: 0.29 | D44: 0.305 | E44: 0.325 | F44: 0.34 | G44: 0.36 | H44: 0.375 | I44: 0.385 | J44: 0.395 | K44: 0.405 | L44: 0.415 | M44: 0.42
A45: 65000 | B45: 0.27 | C45: 0.29 | D45: 0.305 | E45: 0.325 | F45: 0.34 | G45: 0.36 | H45: 0.375 | I45: 0.385 | J45: 0.395 | K45: 0.41 | L45: 0.415 | M45: 0.425
A46: 66000 | B46: 0.27 | C46: 0.29 | D46: 0.305 | E46: 0.325 | F46: 0.34 | G46: 0.36 | H46: 0.375 | I46: 0.385 | J46: 0.395 | K46: 0.41 | L46: 0.42 | M46: 0.425
A47: 67000 | B47: 0.27 | C47: 0.29 | D47: 0.305 | E47: 0.325 | F47: 0.34 | G47: 0.36 | H47: 0.375 | I47: 0.385 | J47: 0.395 | K47: 0.41 | L47: 0.42 | M47: 0.43
A48: 68000 | B48: 0.275 | C48: 0.29 | D48: 0.305 | E48: 0.325 | F48: 0.34 | G48: 0.36 | H48: 0.375 | I48: 0.385 | J48: 0.395 | K48: 0.41 | L48: 0.42 | M48: 0.43
A49: 69000 | B49: 0.275 | C49: 0.29 | D49: 0.305 | E49: 0.325 | F49: 0.34 | G49: 0.36 | H49: 0.375 | I49: 0.385 | J49: 0.395 | K49: 0.41 | L49: 0.42 | M49: 0.43
A50: 70000 | B50: 0.275 | C50: 0.29 | D50: 0.305 | E50: 0.325 | F50: 0.34 | G50: 0.36 | H50: 0.375 | I50: 0.385 | J50: 0.395 | K50: 0.41 | L50: 0.42 | M50: 0.43
A51: 71000 | B51: 0.28 | C51: 0.295 | D51: 0.31 | E51: 0.325 | F51: 0.34 | G51: 0.36 | H51: 0.375 | I51: 0.385 | J51: 0.395 | K51: 0.41 | L51: 0.42 | M51: 0.43
A52: 72000 | B52: 0.28 | C52: 0.295 | D52: 0.31 | E52: 0.325 | F52: 0.34 | G52: 0.36 | H52: 0.375 | I52: 0.385 | J52: 0.395 | K52: 0.41 | L52: 0.42 | M52: 0.43
A53: 73000 | B53: 0.28 | C53: 0.295 | D53: 0.31 | E53: 0.325 | F53: 0.34 | G53: 0.36 | H53: 0.375 | I53: 0.385 | J53: 0.395 | K53: 0.41 | L53: 0.42 | M53: 0.43
A54: 74000 | B54: 0.285 | C54: 0.3 | D54: 0.315 | E54: 0.33 | F54: 0.34 | G54: 0.36 | H54: 0.375 | I54: 0.385 | J54: 0.395 | K54: 0.41 | L54: 0.42 | M54: 0.43
A55: 75000 | B55: 0.285 | C55: 0.3 | D55: 0.315 | E55: 0.33 | F55: 0.345 | G55: 0.36 | H55: 0.375 | I55: 0.385 | J55: 0.395 | K55: 0.41 | L55: 0.42 | M55: 0.43
A56: 76000 | B56: 0.285 | C56: 0.3 | D56: 0.315 | E56: 0.33 | F56: 0.345 | G56: 0.36 | H56: 0.375 | I56: 0.385 | J56: 0.395 | K56: 0.41 | L56: 0.42 | M56: 0.43
A57: 77000 | B57: 0.285 | C57: 0.3 | D57: 0.315 | E57: 0.33 | F57: 0.345 | G57: 0.36 | H57: 0.375 | I57: 0.385 | J57: 0.395 | K57: 0.41 | L57: 0.42 | M57: 0.43
A58: 78000 | B58: 0.285 | C58: 0.3 | D58: 0.315 | E58: 0.33 | F58: 0.345 | G58: 0.36 | H58: 0.375 | I58: 0.385 | J58: 0.395 | K58: 0.41 | L58: 0.42 | M58: 0.43
A59: 79000 | B59: 0.285 | C59: 0.3 | D59: 0.315 | E59: 0.33 | F59: 0.345 | G59: 0.36 | H59: 0.375 | I59: 0.385 | J59: 0.395 | K59: 0.41 | L59: 0.42 | M59: 0.43
A60: 80000 | B60: 0.285 | C60: 0.3 | D60: 0.315 | E60: 0.33 | F60: 0.345 | G60: 0.36 | H60: 0.375 | I60: 0.385 | J60: 0.395 | K60: 0.41 | L60: 0.42 | M60: 0.43
A61: 81000 | B61: 0.285 | C61: 0.3 | D61: 0.315 | E61: 0.33 | F61: 0.345 | G61: 0.36 | H61: 0.375 | I61: 0.385 | J61: 0.395 | K61: 0.41 | L61: 0.42 | M61: 0.43
A62: 82000 | B62: 0.285 | C62: 0.3 | D62: 0.315 | E62: 0.33 | F62: 0.345 | G62: 0.36 | H62: 0.375 | I62: 0.385 | J62: 0.395 | K62: 0.41 | L62: 0.42 | M62: 0.43
A63: 83000 | B63: 0.285 | C63: 0.3 | D63: 0.315 | E63: 0.33 | F63: 0.345 | G63: 0.36 | H63: 0.375 | I63: 0.385 | J63: 0.395 | K63: 0.41 | L63: 0.42 | M63: 0.43
A64: 84000 | B64: 0.285 | C64: 0.3 | D64: 0.315 | E64: 0.33 | F64: 0.345 | G64: 0.36 | H64: 0.375 | I64: 0.385 | J64: 0.395 | K64: 0.41 | L64: 0.42 | M64: 0.43
A65: 85000 | B65: 0.285 | C65: 0.3 | D65: 0.315 | E65: 0.33 | F65: 0.345 | G65: 0.36 | H65: 0.375 | I65: 0.385 | J65: 0.395 | K65: 0.41 | L65: 0.42 | M65: 0.43
A66: 86000 | B66: 0.285 | C66: 0.3 | D66: 0.315 | E66: 0.33 | F66: 0.345 | G66: 0.36 | H66: 0.375 | I66: 0.385 | J66: 0.395 | K66: 0.41 | L66: 0.42 | M66: 0.43
A67: 87000 | B67: 0.285 | C67: 0.3 | D67: 0.315 | E67: 0.33 | F67: 0.345 | G67: 0.36 | H67: 0.375 | I67: 0.385 | J67: 0.395 | K67: 0.41 | L67: 0.42 | M67: 0.43
A68: 88000 | B68: 0.285 | C68: 0.3 | D68: 0.315 | E68: 0.33 | F68: 0.345 | G68: 0.36 | H68: 0.375 | I68: 0.385 | J68: 0.395 | K68: 0.41 | L68: 0.42 | M68: 0.43
A69: 89000 | B69: 0.285 | C69: 0.3 | D69: 0.315 | E69: 0.33 | F69: 0.345 | G69: 0.36 | H69: 0.375 | I69: 0.385 | J69: 0.395 | K69: 0.41 | L69: 0.42 | M69: 0.43
A70: 90000 | B70: 0.285 | C70: 0.3 | D70: 0.315 | E70: 0.33 | F70: 0.345 | G70: 0.36 | H70: 0.375 | I70: 0.385 | J70: 0.395 | K70: 0.41 | L70: 0.42 | M70: 0.43
A71: 91000 | B71: 0.285 | C71: 0.3 | D71: 0.315 | E71: 0.33 | F71: 0.345 | G71: 0.36 | H71: 0.375 | I71: 0.385 | J71: 0.395 | K71: 0.41 | L71: 0.42 | M71: 0.43
A72: 92000 | B72: 0.285 | C72: 0.3 | D72: 0.315 | E72: 0.33 | F72: 0.345 | G72: 0.36 | H72: 0.375 | I72: 0.385 | J72: 0.395 | K72: 0.41 | L72: 0.42 | M72: 0.43
A73: 93000 | B73: 0.285 | C73: 0.3 | D73: 0.315 | E73: 0.33 | F73: 0.345 | G73: 0.36 | H73: 0.375 | I73: 0.385 | J73: 0.395 | K73: 0.41 | L73: 0.42 | M73: 0.43
A74: 94000 | B74: 0.285 | C74: 0.3 | D74: 0.315 | E74: 0.33 | F74: 0.345 | G74: 0.36 | H74: 0.375 | I74: 0.385 | J74: 0.395 | K74: 0.41 | L74: 0.42 | M74: 0.43
A75: 95000 | B75: 0.285 | C75: 0.3 | D75: 0.315 | E75: 0.33 | F75: 0.345 | G75: 0.36 | H75: 0.375 | I75: 0.385 | J75: 0.395 | K75: 0.41 | L75: 0.42 | M75: 0.43
A76: 96000 | B76: 0.285 | C76: 0.3 | D76: 0.315 | E76: 0.33 | F76: 0.345 | G76: 0.36 | H76: 0.375 | I76: 0.385 | J76: 0.395 | K76: 0.41 | L76: 0.42 | M76: 0.43
A77: 97000 | B77: 0.285 | C77: 0.3 | D77: 0.315 | E77: 0.33 | F77: 0.345 | G77: 0.36 | H77: 0.375 | I77: 0.385 | J77: 0.395 | K77: 0.41 | L77: 0.42 | M77: 0.43
A78: 98000 | B78: 0.285 | C78: 0.3 | D78: 0.315 | E78: 0.33 | F78: 0.345 | G78: 0.36 | H78: 0.375 | I78: 0.385 | J78: 0.395 | K78: 0.41 | L78: 0.42 | M78: 0.43
A79: 99000 | B79: 0.285 | C79: 0.3 | D79: 0.315 | E79: 0.33 | F79: 0.345 | G79: 0.36 | H79: 0.375 | I79: 0.385 | J79: 0.395 | K79: 0.41 | L79: 0.42 | M79: 0.43
A80: 100000 | B80: 0.285 | C80: 0.3 | D80: 0.315 | E80: 0.33 | F80: 0.345 | G80: 0.36 | H80: 0.375 | I80: 0.385 | J80: 0.395 | K80: 0.41 | L80: 0.42 | M80: 0.43
A81: 101000 | B81: 0.285 | C81: 0.3 | D81: 0.315 | E81: 0.33 | F81: 0.345 | G81: 0.36 | H81: 0.375 | I81: 0.385 | J81: 0.395 | K81: 0.41 | L81: 0.42 | M81: 0.43
A82: 102000 | B82: 0.285 | C82: 0.3 | D82: 0.315 | E82: 0.33 | F82: 0.345 | G82: 0.36 | H82: 0.375 | I82: 0.385 | J82: 0.395 | K82: 0.41 | L82: 0.42 | M82: 0.43
A83: 103000 | B83: 0.285 | C83: 0.3 | D83: 0.315 | E83: 0.33 | F83: 0.345 | G83: 0.36 | H83: 0.375 | I83: 0.385 | J83: 0.395 | K83: 0.41 | L83: 0.42 | M83: 0.43
A84: 104000 | B84: 0.285 | C84: 0.3 | D84: 0.315 | E84: 0.33 | F84: 0.345 | G84: 0.36 | H84: 0.375 | I84: 0.385 | J84: 0.395 | K84: 0.41 | L84: 0.42 | M84: 0.43
A85: 105000 | B85: 0.285 | C85: 0.3 | D85: 0.315 | E85: 0.33 | F85: 0.345 | G85: 0.36 | H85: 0.375 | I85: 0.385 | J85: 0.395 | K85: 0.41 | L85: 0.42 | M85: 0.43
A86: 106000 | B86: 0.285 | C86: 0.3 | D86: 0.315 | E86: 0.33 | F86: 0.345 | G86: 0.36 | H86: 0.375 | I86: 0.385 | J86: 0.395 | K86: 0.41 | L86: 0.42 | M86: 0.43
A87: 107000 | B87: 0.285 | C87: 0.3 | D87: 0.315 | E87: 0.33 | F87: 0.345 | G87: 0.36 | H87: 0.375 | I87: 0.385 | J87: 0.395 | K87: 0.41 | L87: 0.42 | M87: 0.43
A88: 108000 | B88: 0.285 | C88: 0.3 | D88: 0.315 | E88: 0.33 | F88: 0.345 | G88: 0.36 | H88: 0.375 | I88: 0.385 | J88: 0.395 | K88: 0.41 | L88: 0.42 | M88: 0.43
A89: 109000 | B89: 0.285 | C89: 0.3 | D89: 0.315 | E89: 0.33 | F89: 0.345 | G89: 0.36 | H89: 0.375 | I89: 0.385 | J89: 0.395 | K89: 0.41 | L89: 0.42 | M89: 0.43
A90: 110000 | B90: 0.285 | C90: 0.3 | D90: 0.315 | E90: 0.33 | F90: 0.345 | G90: 0.36 | H90: 0.375 | I90: 0.385 | J90: 0.395 | K90: 0.41 | L90: 0.42 | M90: 0.43
A91: 10000000 | B91: 0.285 | C91: 0.3 | D91: 0.315 | E91: 0.33 | F91: 0.345 | G91: 0.36 | H91: 0.375 | I91: 0.385 | J91: 0.395 | K91: 0.41 | L91: 0.42 | M91: 0.43

Sheet 2023AOWBOX3 (hidden)
B1: Toetsrente in percentages | IV1: HIDE
A2: Bruto inkomen in euro's | B2: <=1,500% | C2: 1,501-2,000% | D2: 2,001-2,500% | E2: 2,501-3,000% | F2: 3,001-3,500% | G2: 3,501-4,000% | H2: 4,001-4,500% | I2: 4,501-5,000% | J2: 5,001-5,500% | K2: 5,501-6,000% | L2: 6,001-6,500% | M2: > 6,501%
A4: -1 | B4: 0 | C4: 0.01501 | D4: =+C4+0.5% -> 0.02001 | E4: 0.02501 | F4: 0.03001 | G4: 0.03501 | H4: 0.04001 | I4: 0.04501 | J4: 0.05001 | K4: 0.05501 | L4: 0.06001 | M4: 0.06501 | N4: <= beginrente
A5: 0 | B5: 0.18 | C5: 0.18 | D5: 0.185 | E5: 0.185 | F5: 0.19 | G5: 0.19 | H5: 0.195 | I5: 0.195 | J5: 0.2 | K5: 0.2 | L5: 0.2 | M5: 0.205
A6: 26000 | B6: 0.18 | C6: 0.18 | D6: 0.185 | E6: 0.185 | F6: 0.19 | G6: 0.19 | H6: 0.195 | I6: 0.195 | J6: 0.2 | K6: 0.2 | L6: 0.2 | M6: 0.205
A7: 27000 | B7: 0.195 | C7: 0.195 | D7: 0.2 | E7: 0.205 | F7: 0.205 | G7: 0.21 | H7: 0.21 | I7: 0.215 | J7: 0.215 | K7: 0.215 | L7: 0.22 | M7: 0.22
A8: 28000 | B8: 0.21 | C8: 0.21 | D8: 0.215 | E8: 0.22 | F8: 0.22 | G8: 0.225 | H8: 0.225 | I8: 0.23 | J8: 0.23 | K8: 0.235 | L8: 0.235 | M8: 0.24
A9: 29000 | B9: 0.22 | C9: 0.22 | D9: 0.225 | E9: 0.23 | F9: 0.23 | G9: 0.235 | H9: 0.235 | I9: 0.24 | J9: 0.24 | K9: 0.245 | L9: 0.245 | M9: 0.25
A10: 30000 | B10: 0.22 | C10: 0.225 | D10: 0.225 | E10: 0.23 | F10: 0.235 | G10: 0.235 | H10: 0.24 | I10: 0.24 | J10: 0.245 | K10: 0.245 | L10: 0.25 | M10: 0.25
A11: 31000 | B11: 0.22 | C11: 0.225 | D11: 0.23 | E11: 0.23 | F11: 0.235 | G11: 0.24 | H11: 0.24 | I11: 0.245 | J11: 0.245 | K11: 0.25 | L11: 0.25 | M11: 0.25
A12: 32000 | B12: 0.22 | C12: 0.225 | D12: 0.23 | E12: 0.235 | F12: 0.235 | G12: 0.24 | H12: 0.24 | I12: 0.245 | J12: 0.245 | K12: 0.25 | L12: 0.25 | M12: 0.255
A13: 33000 | B13: 0.22 | C13: 0.225 | D13: 0.23 | E13: 0.235 | F13: 0.235 | G13: 0.24 | H13: 0.24 | I13: 0.245 | J13: 0.245 | K13: 0.25 | L13: 0.25 | M13: 0.255
A14: 34000 | B14: 0.22 | C14: 0.225 | D14: 0.23 | E14: 0.235 | F14: 0.235 | G14: 0.24 | H14: 0.24 | I14: 0.245 | J14: 0.245 | K14: 0.25 | L14: 0.25 | M14: 0.255
A15: 35000 | B15: 0.22 | C15: 0.225 | D15: 0.23 | E15: 0.235 | F15: 0.235 | G15: 0.24 | H15: 0.24 | I15: 0.245 | J15: 0.25 | K15: 0.25 | L15: 0.25 | M15: 0.255
A16: 36000 | B16: 0.22 | C16: 0.225 | D16: 0.23 | E16: 0.235 | F16: 0.235 | G16: 0.24 | H16: 0.245 | I16: 0.245 | J16: 0.25 | K16: 0.25 | L16: 0.25 | M16: 0.255
A17: 37000 | B17: 0.22 | C17: 0.225 | D17: 0.23 | E17: 0.235 | F17: 0.235 | G17: 0.24 | H17: 0.245 | I17: 0.245 | J17: 0.25 | K17: 0.25 | L17: 0.25 | M17: 0.255
A18: 38000 | B18: 0.225 | C18: 0.225 | D18: 0.23 | E18: 0.235 | F18: 0.235 | G18: 0.24 | H18: 0.245 | I18: 0.245 | J18: 0.25 | K18: 0.25 | L18: 0.255 | M18: 0.255
A19: 39000 | B19: 0.225 | C19: 0.225 | D19: 0.23 | E19: 0.235 | F19: 0.24 | G19: 0.24 | H19: 0.245 | I19: 0.245 | J19: 0.25 | K19: 0.25 | L19: 0.255 | M19: 0.255
A20: 40000 | B20: 0.225 | C20: 0.23 | D20: 0.23 | E20: 0.235 | F20: 0.24 | G20: 0.24 | H20: 0.245 | I20: 0.245 | J20: 0.25 | K20: 0.25 | L20: 0.255 | M20: 0.255
A21: 41000 | B21: 0.225 | C21: 0.23 | D21: 0.235 | E21: 0.235 | F21: 0.24 | G21: 0.245 | H21: 0.245 | I21: 0.25 | J21: 0.25 | K21: 0.255 | L21: 0.255 | M21: 0.255
A22: 42000 | B22: 0.23 | C22: 0.23 | D22: 0.235 | E22: 0.24 | F22: 0.245 | G22: 0.245 | H22: 0.25 | I22: 0.25 | J22: 0.255 | K22: 0.255 | L22: 0.26 | M22: 0.26
A23: 43000 | B23: 0.235 | C23: 0.235 | D23: 0.24 | E23: 0.245 | F23: 0.25 | G23: 0.25 | H23: 0.255 | I23: 0.255 | J23: 0.26 | K23: 0.26 | L23: 0.265 | M23: 0.265
A24: 44000 | B24: 0.24 | C24: 0.24 | D24: 0.245 | E24: 0.25 | F24: 0.255 | G24: 0.255 | H24: 0.26 | I24: 0.26 | J24: 0.265 | K24: 0.265 | L24: 0.27 | M24: 0.27
A25: 45000 | B25: 0.24 | C25: 0.245 | D25: 0.25 | E25: 0.255 | F25: 0.255 | G25: 0.26 | H25: 0.265 | I25: 0.265 | J25: 0.27 | K25: 0.27 | L25: 0.275 | M25: 0.275
A26: 46000 | B26: 0.245 | C26: 0.25 | D26: 0.255 | E26: 0.255 | F26: 0.26 | G26: 0.265 | H26: 0.265 | I26: 0.27 | J26: 0.275 | K26: 0.275 | L26: 0.28 | M26: 0.28
A27: 47000 | B27: 0.245 | C27: 0.25 | D27: 0.255 | E27: 0.26 | F27: 0.265 | G27: 0.265 | H27: 0.27 | I27: 0.275 | J27: 0.275 | K27: 0.28 | L27: 0.28 | M27: 0.285
A28: 48000 | B28: 0.25 | C28: 0.255 | D28: 0.255 | E28: 0.26 | F28: 0.265 | G28: 0.27 | H28: 0.27 | I28: 0.275 | J28: 0.275 | K28: 0.28 | L28: 0.28 | M28: 0.285
A29: 49000 | B29: 0.25 | C29: 0.255 | D29: 0.26 | E29: 0.26 | F29: 0.265 | G29: 0.27 | H29: 0.27 | I29: 0.275 | J29: 0.28 | K29: 0.28 | L29: 0.285 | M29: 0.285
A30: 50000 | B30: 0.25 | C30: 0.255 | D30: 0.26 | E30: 0.26 | F30: 0.265 | G30: 0.27 | H30: 0.27 | I30: 0.275 | J30: 0.28 | K30: 0.28 | L30: 0.285 | M30: 0.285
A31: 51000 | B31: 0.25 | C31: 0.255 | D31: 0.26 | E31: 0.26 | F31: 0.265 | G31: 0.27 | H31: 0.27 | I31: 0.275 | J31: 0.28 | K31: 0.28 | L31: 0.285 | M31: 0.285
A32: 52000 | B32: 0.25 | C32: 0.255 | D32: 0.26 | E32: 0.26 | F32: 0.265 | G32: 0.27 | H32: 0.27 | I32: 0.275 | J32: 0.28 | K32: 0.28 | L32: 0.285 | M32: 0.285
A33: 53000 | B33: 0.25 | C33: 0.255 | D33: 0.26 | E33: 0.26 | F33: 0.265 | G33: 0.27 | H33: 0.27 | I33: 0.275 | J33: 0.28 | K33: 0.28 | L33: 0.285 | M33: 0.285
A34: 54000 | B34: 0.25 | C34: 0.255 | D34: 0.26 | E34: 0.26 | F34: 0.265 | G34: 0.27 | H34: 0.27 | I34: 0.275 | J34: 0.28 | K34: 0.28 | L34: 0.285 | M34: 0.285
A35: 55000 | B35: 0.25 | C35: 0.255 | D35: 0.26 | E35: 0.26 | F35: 0.265 | G35: 0.27 | H35: 0.27 | I35: 0.275 | J35: 0.28 | K35: 0.28 | L35: 0.285 | M35: 0.285
A36: 56000 | B36: 0.25 | C36: 0.255 | D36: 0.26 | E36: 0.26 | F36: 0.265 | G36: 0.27 | H36: 0.27 | I36: 0.275 | J36: 0.28 | K36: 0.28 | L36: 0.285 | M36: 0.285
A37: 57000 | B37: 0.25 | C37: 0.255 | D37: 0.26 | E37: 0.26 | F37: 0.265 | G37: 0.27 | H37: 0.27 | I37: 0.275 | J37: 0.28 | K37: 0.28 | L37: 0.285 | M37: 0.285
A38: 58000 | B38: 0.25 | C38: 0.255 | D38: 0.26 | E38: 0.26 | F38: 0.265 | G38: 0.27 | H38: 0.27 | I38: 0.275 | J38: 0.28 | K38: 0.28 | L38: 0.285 | M38: 0.285
A39: 59000 | B39: 0.25 | C39: 0.255 | D39: 0.26 | E39: 0.26 | F39: 0.265 | G39: 0.27 | H39: 0.27 | I39: 0.275 | J39: 0.28 | K39: 0.28 | L39: 0.285 | M39: 0.285
A40: 60000 | B40: 0.25 | C40: 0.255 | D40: 0.26 | E40: 0.26 | F40: 0.265 | G40: 0.27 | H40: 0.27 | I40: 0.275 | J40: 0.28 | K40: 0.28 | L40: 0.285 | M40: 0.285
A41: 61000 | B41: 0.25 | C41: 0.255 | D41: 0.26 | E41: 0.26 | F41: 0.265 | G41: 0.27 | H41: 0.27 | I41: 0.275 | J41: 0.28 | K41: 0.28 | L41: 0.285 | M41: 0.285
A42: 62000 | B42: 0.25 | C42: 0.255 | D42: 0.26 | E42: 0.265 | F42: 0.265 | G42: 0.27 | H42: 0.275 | I42: 0.275 | J42: 0.28 | K42: 0.28 | L42: 0.285 | M42: 0.285
A43: 63000 | B43: 0.25 | C43: 0.255 | D43: 0.26 | E43: 0.265 | F43: 0.27 | G43: 0.27 | H43: 0.275 | I43: 0.28 | J43: 0.28 | K43: 0.285 | L43: 0.285 | M43: 0.29
A44: 64000 | B44: 0.255 | C44: 0.26 | D44: 0.26 | E44: 0.265 | F44: 0.27 | G44: 0.275 | H44: 0.275 | I44: 0.28 | J44: 0.285 | K44: 0.285 | L44: 0.29 | M44: 0.29
A45: 65000 | B45: 0.255 | C45: 0.26 | D45: 0.265 | E45: 0.265 | F45: 0.27 | G45: 0.275 | H45: 0.28 | I45: 0.28 | J45: 0.285 | K45: 0.285 | L45: 0.29 | M45: 0.29
A46: 66000 | B46: 0.255 | C46: 0.26 | D46: 0.265 | E46: 0.27 | F46: 0.27 | G46: 0.275 | H46: 0.28 | I46: 0.28 | J46: 0.285 | K46: 0.29 | L46: 0.29 | M46: 0.295
A47: 67000 | B47: 0.255 | C47: 0.26 | D47: 0.265 | E47: 0.27 | F47: 0.275 | G47: 0.275 | H47: 0.28 | I47: 0.285 | J47: 0.285 | K47: 0.29 | L47: 0.29 | M47: 0.295
A48: 68000 | B48: 0.26 | C48: 0.265 | D48: 0.265 | E48: 0.27 | F48: 0.275 | G48: 0.28 | H48: 0.28 | I48: 0.285 | J48: 0.29 | K48: 0.29 | L48: 0.295 | M48: 0.295
A49: 69000 | B49: 0.26 | C49: 0.265 | D49: 0.27 | E49: 0.27 | F49: 0.275 | G49: 0.28 | H49: 0.285 | I49: 0.285 | J49: 0.29 | K49: 0.29 | L49: 0.295 | M49: 0.295
A50: 70000 | B50: 0.26 | C50: 0.265 | D50: 0.27 | E50: 0.275 | F50: 0.28 | G50: 0.28 | H50: 0.285 | I50: 0.29 | J50: 0.29 | K50: 0.295 | L50: 0.295 | M50: 0.3
A51: 71000 | B51: 0.26 | C51: 0.265 | D51: 0.27 | E51: 0.275 | F51: 0.28 | G51: 0.285 | H51: 0.285 | I51: 0.29 | J51: 0.29 | K51: 0.295 | L51: 0.3 | M51: 0.3
A52: 72000 | B52: 0.265 | C52: 0.27 | D52: 0.275 | E52: 0.275 | F52: 0.28 | G52: 0.285 | H52: 0.29 | I52: 0.29 | J52: 0.295 | K52: 0.295 | L52: 0.3 | M52: 0.3
A53: 73000 | B53: 0.265 | C53: 0.27 | D53: 0.275 | E53: 0.28 | F53: 0.28 | G53: 0.285 | H53: 0.29 | I53: 0.295 | J53: 0.295 | K53: 0.3 | L53: 0.3 | M53: 0.305
A54: 74000 | B54: 0.265 | C54: 0.27 | D54: 0.275 | E54: 0.28 | F54: 0.285 | G54: 0.285 | H54: 0.29 | I54: 0.295 | J54: 0.295 | K54: 0.3 | L54: 0.305 | M54: 0.305
A55: 75000 | B55: 0.27 | C55: 0.275 | D55: 0.275 | E55: 0.28 | F55: 0.285 | G55: 0.29 | H55: 0.295 | I55: 0.295 | J55: 0.3 | K55: 0.3 | L55: 0.305 | M55: 0.305
A56: 76000 | B56: 0.27 | C56: 0.275 | D56: 0.28 | E56: 0.285 | F56: 0.285 | G56: 0.29 | H56: 0.295 | I56: 0.295 | J56: 0.3 | K56: 0.305 | L56: 0.305 | M56: 0.31
A57: 77000 | B57: 0.27 | C57: 0.275 | D57: 0.28 | E57: 0.285 | F57: 0.29 | G57: 0.29 | H57: 0.295 | I57: 0.3 | J57: 0.3 | K57: 0.305 | L57: 0.305 | M57: 0.31
A58: 78000 | B58: 0.27 | C58: 0.275 | D58: 0.28 | E58: 0.285 | F58: 0.29 | G58: 0.29 | H58: 0.295 | I58: 0.3 | J58: 0.3 | K58: 0.305 | L58: 0.305 | M58: 0.31
A59: 79000 | B59: 0.27 | C59: 0.275 | D59: 0.28 | E59: 0.285 | F59: 0.29 | G59: 0.29 | H59: 0.295 | I59: 0.3 | J59: 0.3 | K59: 0.305 | L59: 0.305 | M59: 0.31
A60: 80000 | B60: 0.27 | C60: 0.275 | D60: 0.28 | E60: 0.285 | F60: 0.29 | G60: 0.29 | H60: 0.295 | I60: 0.3 | J60: 0.3 | K60: 0.305 | L60: 0.305 | M60: 0.31
A61: 81000 | B61: 0.27 | C61: 0.275 | D61: 0.28 | E61: 0.285 | F61: 0.29 | G61: 0.29 | H61: 0.295 | I61: 0.3 | J61: 0.3 | K61: 0.305 | L61: 0.305 | M61: 0.31
A62: 82000 | B62: 0.27 | C62: 0.275 | D62: 0.28 | E62: 0.285 | F62: 0.29 | G62: 0.29 | H62: 0.295 | I62: 0.3 | J62: 0.3 | K62: 0.305 | L62: 0.305 | M62: 0.31
A63: 83000 | B63: 0.27 | C63: 0.275 | D63: 0.28 | E63: 0.285 | F63: 0.29 | G63: 0.29 | H63: 0.295 | I63: 0.3 | J63: 0.3 | K63: 0.305 | L63: 0.305 | M63: 0.31
A64: 84000 | B64: 0.27 | C64: 0.275 | D64: 0.28 | E64: 0.285 | F64: 0.29 | G64: 0.29 | H64: 0.295 | I64: 0.3 | J64: 0.3 | K64: 0.305 | L64: 0.305 | M64: 0.31
A65: 85000 | B65: 0.27 | C65: 0.275 | D65: 0.28 | E65: 0.285 | F65: 0.29 | G65: 0.29 | H65: 0.295 | I65: 0.3 | J65: 0.3 | K65: 0.305 | L65: 0.305 | M65: 0.31
A66: 86000 | B66: 0.27 | C66: 0.275 | D66: 0.28 | E66: 0.285 | F66: 0.29 | G66: 0.29 | H66: 0.295 | I66: 0.3 | J66: 0.3 | K66: 0.305 | L66: 0.305 | M66: 0.31
A67: 87000 | B67: 0.27 | C67: 0.275 | D67: 0.28 | E67: 0.285 | F67: 0.29 | G67: 0.29 | H67: 0.295 | I67: 0.3 | J67: 0.3 | K67: 0.305 | L67: 0.305 | M67: 0.31
A68: 88000 | B68: 0.27 | C68: 0.275 | D68: 0.28 | E68: 0.285 | F68: 0.29 | G68: 0.29 | H68: 0.295 | I68: 0.3 | J68: 0.3 | K68: 0.305 | L68: 0.305 | M68: 0.31
A69: 89000 | B69: 0.27 | C69: 0.275 | D69: 0.28 | E69: 0.285 | F69: 0.29 | G69: 0.29 | H69: 0.295 | I69: 0.3 | J69: 0.3 | K69: 0.305 | L69: 0.305 | M69: 0.31
A70: 90000 | B70: 0.27 | C70: 0.275 | D70: 0.28 | E70: 0.285 | F70: 0.29 | G70: 0.29 | H70: 0.295 | I70: 0.3 | J70: 0.3 | K70: 0.305 | L70: 0.305 | M70: 0.31
A71: 91000 | B71: 0.27 | C71: 0.275 | D71: 0.28 | E71: 0.285 | F71: 0.29 | G71: 0.29 | H71: 0.295 | I71: 0.3 | J71: 0.3 | K71: 0.305 | L71: 0.305 | M71: 0.31
A72: 92000 | B72: 0.27 | C72: 0.275 | D72: 0.28 | E72: 0.285 | F72: 0.29 | G72: 0.29 | H72: 0.295 | I72: 0.3 | J72: 0.3 | K72: 0.305 | L72: 0.305 | M72: 0.31
A73: 93000 | B73: 0.27 | C73: 0.275 | D73: 0.28 | E73: 0.285 | F73: 0.29 | G73: 0.29 | H73: 0.295 | I73: 0.3 | J73: 0.3 | K73: 0.305 | L73: 0.305 | M73: 0.31
A74: 94000 | B74: 0.27 | C74: 0.275 | D74: 0.28 | E74: 0.285 | F74: 0.29 | G74: 0.29 | H74: 0.295 | I74: 0.3 | J74: 0.3 | K74: 0.305 | L74: 0.305 | M74: 0.31
A75: 95000 | B75: 0.27 | C75: 0.275 | D75: 0.28 | E75: 0.285 | F75: 0.29 | G75: 0.29 | H75: 0.295 | I75: 0.3 | J75: 0.3 | K75: 0.305 | L75: 0.305 | M75: 0.31
A76: 96000 | B76: 0.27 | C76: 0.275 | D76: 0.28 | E76: 0.285 | F76: 0.29 | G76: 0.29 | H76: 0.295 | I76: 0.3 | J76: 0.3 | K76: 0.305 | L76: 0.305 | M76: 0.31
A77: 97000 | B77: 0.27 | C77: 0.275 | D77: 0.28 | E77: 0.285 | F77: 0.29 | G77: 0.29 | H77: 0.295 | I77: 0.3 | J77: 0.3 | K77: 0.305 | L77: 0.305 | M77: 0.31
A78: 98000 | B78: 0.27 | C78: 0.275 | D78: 0.28 | E78: 0.285 | F78: 0.29 | G78: 0.29 | H78: 0.295 | I78: 0.3 | J78: 0.3 | K78: 0.305 | L78: 0.305 | M78: 0.31
A79: 99000 | B79: 0.27 | C79: 0.275 | D79: 0.28 | E79: 0.285 | F79: 0.29 | G79: 0.29 | H79: 0.295 | I79: 0.3 | J79: 0.3 | K79: 0.305 | L79: 0.305 | M79: 0.31
A80: 100000 | B80: 0.27 | C80: 0.275 | D80: 0.28 | E80: 0.285 | F80: 0.29 | G80: 0.29 | H80: 0.295 | I80: 0.3 | J80: 0.3 | K80: 0.305 | L80: 0.305 | M80: 0.31
A81: 101000 | B81: 0.27 | C81: 0.275 | D81: 0.28 | E81: 0.285 | F81: 0.29 | G81: 0.29 | H81: 0.295 | I81: 0.3 | J81: 0.3 | K81: 0.305 | L81: 0.305 | M81: 0.31
A82: 102000 | B82: 0.27 | C82: 0.275 | D82: 0.28 | E82: 0.285 | F82: 0.29 | G82: 0.29 | H82: 0.295 | I82: 0.3 | J82: 0.3 | K82: 0.305 | L82: 0.305 | M82: 0.31
A83: 103000 | B83: 0.27 | C83: 0.275 | D83: 0.28 | E83: 0.285 | F83: 0.29 | G83: 0.29 | H83: 0.295 | I83: 0.3 | J83: 0.3 | K83: 0.305 | L83: 0.305 | M83: 0.31
A84: 104000 | B84: 0.27 | C84: 0.275 | D84: 0.28 | E84: 0.285 | F84: 0.29 | G84: 0.29 | H84: 0.295 | I84: 0.3 | J84: 0.3 | K84: 0.305 | L84: 0.305 | M84: 0.31
A85: 105000 | B85: 0.27 | C85: 0.275 | D85: 0.28 | E85: 0.285 | F85: 0.29 | G85: 0.29 | H85: 0.295 | I85: 0.3 | J85: 0.3 | K85: 0.305 | L85: 0.305 | M85: 0.31
A86: 106000 | B86: 0.27 | C86: 0.275 | D86: 0.28 | E86: 0.285 | F86: 0.29 | G86: 0.29 | H86: 0.295 | I86: 0.3 | J86: 0.3 | K86: 0.305 | L86: 0.305 | M86: 0.31
A87: 107000 | B87: 0.27 | C87: 0.275 | D87: 0.28 | E87: 0.285 | F87: 0.29 | G87: 0.29 | H87: 0.295 | I87: 0.3 | J87: 0.3 | K87: 0.305 | L87: 0.305 | M87: 0.31
A88: 108000 | B88: 0.27 | C88: 0.275 | D88: 0.28 | E88: 0.285 | F88: 0.29 | G88: 0.29 | H88: 0.295 | I88: 0.3 | J88: 0.3 | K88: 0.305 | L88: 0.305 | M88: 0.31
A89: 109000 | B89: 0.27 | C89: 0.275 | D89: 0.28 | E89: 0.285 | F89: 0.29 | G89: 0.29 | H89: 0.295 | I89: 0.3 | J89: 0.3 | K89: 0.305 | L89: 0.305 | M89: 0.31
A90: 110000 | B90: 0.27 | C90: 0.275 | D90: 0.28 | E90: 0.285 | F90: 0.29 | G90: 0.29 | H90: 0.295 | I90: 0.3 | J90: 0.3 | K90: 0.305 | L90: 0.305 | M90: 0.31
A91: 10000000 | B91: 0.27 | C91: 0.275 | D91: 0.28 | E91: 0.285 | F91: 0.29 | G91: 0.29 | H91: 0.295 | I91: 0.3 | J91: 0.3 | K91: 0.305 | L91: 0.305 | M91: 0.31

Sheet 2023AMA (hidden)
B1: Toetsrente in percentages
A2: Bruto inkomen in euro's | B2: <=1,500% | C2: 1,501-2,000% | D2: 2,001-2,500% | E2: 2,501-3,000% | F2: 3,001-3,500% | G2: 3,501-4,000% | H2: 4,001-4,500% | I2: 4,501-5,000% | J2: 5,001-5,500% | K2: 5,501-6,000% | L2: 6,001-6,500% | M2: > 6,501%
A4: -1 | B4: 0 | C4: 0.01501 | D4: =+C4+0.5% -> 0.02001 | E4: 0.02501 | F4: 0.03001 | G4: 0.03501 | H4: 0.04001 | I4: 0.04501 | J4: 0.05001 | K4: 0.05501 | L4: 0.06001 | M4: 0.06501 | N4: <= beginrente
A5: 0 | B5: 0.24 | C5: 0.245 | D5: 0.245 | E5: 0.25 | F5: 0.255 | G5: 0.255 | H5: 0.26 | I5: 0.26 | J5: 0.265 | K5: 0.265 | L5: 0.27 | M5: 0.27
A6: 18500 | B6: 0.24 | C6: 0.245 | D6: 0.245 | E6: 0.25 | F6: 0.255 | G6: 0.255 | H6: 0.26 | I6: 0.26 | J6: 0.265 | K6: 0.265 | L6: 0.27 | M6: 0.27
A7: 19000 | B7: 0.25 | C7: 0.255 | D7: 0.26 | E7: 0.265 | F7: 0.265 | G7: 0.27 | H7: 0.275 | I7: 0.275 | J7: 0.28 | K7: 0.28 | L7: 0.285 | M7: 0.285
A8: 19500 | B8: 0.26 | C8: 0.265 | D8: 0.27 | E8: 0.275 | F8: 0.28 | G8: 0.28 | H8: 0.285 | I8: 0.29 | J8: 0.29 | K8: 0.295 | L8: 0.295 | M8: 0.3
A9: 20000 | B9: 0.27 | C9: 0.275 | D9: 0.285 | E9: 0.285 | F9: 0.29 | G9: 0.295 | H9: 0.3 | I9: 0.3 | J9: 0.305 | K9: 0.305 | L9: 0.31 | M9: 0.31
A10: 20500 | B10: 0.275 | C10: 0.285 | D10: 0.295 | E10: 0.3 | F10: 0.3 | G10: 0.305 | H10: 0.31 | I10: 0.315 | J10: 0.315 | K10: 0.32 | L10: 0.32 | M10: 0.325
A11: 21000 | B11: 0.285 | C11: 0.295 | D11: 0.3 | E11: 0.31 | F11: 0.315 | G11: 0.315 | H11: 0.32 | I11: 0.325 | J11: 0.325 | K11: 0.33 | L11: 0.335 | M11: 0.335
A12: 21500 | B12: 0.285 | C12: 0.3 | D12: 0.31 | E12: 0.315 | F12: 0.325 | G12: 0.325 | H12: 0.33 | I12: 0.335 | J12: 0.34 | K12: 0.34 | L12: 0.345 | M12: 0.345
A13: 22000 | B13: 0.285 | C13: 0.3 | D13: 0.31 | E13: 0.32 | F13: 0.325 | G13: 0.33 | H13: 0.335 | I13: 0.34 | J13: 0.345 | K13: 0.35 | L13: 0.35 | M13: 0.355
A14: 22500 | B14: 0.285 | C14: 0.3 | D14: 0.31 | E14: 0.32 | F14: 0.325 | G14: 0.335 | H14: 0.34 | I14: 0.345 | J14: 0.35 | K14: 0.35 | L14: 0.355 | M14: 0.36
A15: 23000 | B15: 0.285 | C15: 0.3 | D15: 0.315 | E15: 0.32 | F15: 0.33 | G15: 0.335 | H15: 0.345 | I15: 0.35 | J15: 0.35 | K15: 0.355 | L15: 0.36 | M15: 0.365
A16: 23500 | B16: 0.285 | C16: 0.3 | D16: 0.315 | E16: 0.325 | F16: 0.33 | G16: 0.34 | H16: 0.345 | I16: 0.35 | J16: 0.355 | K16: 0.36 | L16: 0.365 | M16: 0.365
A17: 24000 | B17: 0.285 | C17: 0.3 | D17: 0.315 | E17: 0.325 | F17: 0.335 | G17: 0.34 | H17: 0.345 | I17: 0.355 | J17: 0.36 | K17: 0.365 | L17: 0.365 | M17: 0.37
A18: 24500 | B18: 0.285 | C18: 0.3 | D18: 0.315 | E18: 0.325 | F18: 0.335 | G18: 0.34 | H18: 0.35 | I18: 0.355 | J18: 0.36 | K18: 0.365 | L18: 0.37 | M18: 0.375
A19: 25000 | B19: 0.285 | C19: 0.3 | D19: 0.315 | E19: 0.325 | F19: 0.335 | G19: 0.345 | H19: 0.35 | I19: 0.36 | J19: 0.365 | K19: 0.37 | L19: 0.375 | M19: 0.375
A20: 26000 | B20: 0.285 | C20: 0.3 | D20: 0.315 | E20: 0.325 | F20: 0.335 | G20: 0.345 | H20: 0.355 | I20: 0.36 | J20: 0.365 | K20: 0.375 | L20: 0.38 | M20: 0.38
A21: 27000 | B21: 0.285 | C21: 0.3 | D21: 0.315 | E21: 0.325 | F21: 0.335 | G21: 0.345 | H21: 0.355 | I21: 0.365 | J21: 0.37 | K21: 0.375 | L21: 0.38 | M21: 0.385
A22: 28000 | B22: 0.285 | C22: 0.3 | D22: 0.315 | E22: 0.325 | F22: 0.335 | G22: 0.35 | H22: 0.36 | I22: 0.365 | J22: 0.375 | K22: 0.38 | L22: 0.385 | M22: 0.39
A23: 29000 | B23: 0.285 | C23: 0.3 | D23: 0.315 | E23: 0.325 | F23: 0.335 | G23: 0.35 | H23: 0.36 | I23: 0.37 | J23: 0.375 | K23: 0.385 | L23: 0.39 | M23: 0.395
A24: 30000 | B24: 0.285 | C24: 0.3 | D24: 0.315 | E24: 0.325 | F24: 0.335 | G24: 0.35 | H24: 0.36 | I24: 0.37 | J24: 0.38 | K24: 0.385 | L24: 0.39 | M24: 0.4
A25: 31000 | B25: 0.285 | C25: 0.3 | D25: 0.315 | E25: 0.325 | F25: 0.335 | G25: 0.35 | H25: 0.36 | I25: 0.37 | J25: 0.38 | K25: 0.385 | L25: 0.395 | M25: 0.4
A26: 32000 | B26: 0.285 | C26: 0.3 | D26: 0.315 | E26: 0.325 | F26: 0.335 | G26: 0.35 | H26: 0.36 | I26: 0.37 | J26: 0.38 | K26: 0.385 | L26: 0.395 | M26: 0.4
A27: 33000 | B27: 0.29 | C27: 0.3 | D27: 0.315 | E27: 0.325 | F27: 0.335 | G27: 0.35 | H27: 0.36 | I27: 0.37 | J27: 0.38 | K27: 0.39 | L27: 0.395 | M27: 0.405
A28: 34000 | B28: 0.29 | C28: 0.305 | D28: 0.315 | E28: 0.325 | F28: 0.335 | G28: 0.35 | H28: 0.36 | I28: 0.37 | J28: 0.38 | K28: 0.39 | L28: 0.4 | M28: 0.41
A29: 35000 | B29: 0.29 | C29: 0.305 | D29: 0.315 | E29: 0.325 | F29: 0.34 | G29: 0.35 | H29: 0.36 | I29: 0.375 | J29: 0.385 | K29: 0.395 | L29: 0.4 | M29: 0.41
A30: 36000 | B30: 0.295 | C30: 0.305 | D30: 0.32 | E30: 0.33 | F30: 0.34 | G30: 0.355 | H30: 0.365 | I30: 0.375 | J30: 0.385 | K30: 0.395 | L30: 0.405 | M30: 0.415
A31: 37000 | B31: 0.3 | C31: 0.31 | D31: 0.32 | E31: 0.335 | F31: 0.345 | G31: 0.355 | H31: 0.37 | I31: 0.38 | J31: 0.39 | K31: 0.4 | L31: 0.41 | M31: 0.415
A32: 38000 | B32: 0.3 | C32: 0.315 | D32: 0.33 | E32: 0.34 | F32: 0.35 | G32: 0.36 | H32: 0.37 | I32: 0.385 | J32: 0.395 | K32: 0.405 | L32: 0.41 | M32: 0.42
A33: 39000 | B33: 0.3 | C33: 0.32 | D33: 0.335 | E33: 0.345 | F33: 0.355 | G33: 0.365 | H33: 0.375 | I33: 0.385 | J33: 0.395 | K33: 0.405 | L33: 0.415 | M33: 0.425
A34: 40000 | B34: 0.3 | C34: 0.32 | D34: 0.335 | E34: 0.35 | F34: 0.36 | G34: 0.37 | H34: 0.38 | I34: 0.39 | J34: 0.4 | K34: 0.41 | L34: 0.42 | M34: 0.43
A35: 41000 | B35: 0.3 | C35: 0.32 | D35: 0.335 | E35: 0.355 | F35: 0.365 | G35: 0.375 | H35: 0.385 | I35: 0.395 | J35: 0.405 | K35: 0.415 | L35: 0.425 | M35: 0.43
A36: 42000 | B36: 0.3 | C36: 0.32 | D36: 0.335 | E36: 0.355 | F36: 0.37 | G36: 0.38 | H36: 0.385 | I36: 0.395 | J36: 0.405 | K36: 0.415 | L36: 0.425 | M36: 0.435
A37: 43000 | B37: 0.3 | C37: 0.32 | D37: 0.335 | E37: 0.355 | F37: 0.37 | G37: 0.38 | H37: 0.39 | I37: 0.4 | J37: 0.41 | K37: 0.42 | L37: 0.43 | M37: 0.44
A38: 44000 | B38: 0.3 | C38: 0.32 | D38: 0.335 | E38: 0.355 | F38: 0.37 | G38: 0.385 | H38: 0.395 | I38: 0.405 | J38: 0.415 | K38: 0.425 | L38: 0.435 | M38: 0.44
A39: 45000 | B39: 0.3 | C39: 0.32 | D39: 0.335 | E39: 0.355 | F39: 0.37 | G39: 0.39 | H39: 0.4 | I39: 0.41 | J39: 0.42 | K39: 0.425 | L39: 0.435 | M39: 0.445
A40: 46000 | B40: 0.3 | C40: 0.32 | D40: 0.335 | E40: 0.355 | F40: 0.37 | G40: 0.39 | H40: 0.405 | I40: 0.415 | J40: 0.42 | K40: 0.43 | L40: 0.44 | M40: 0.45
A41: 47000 | B41: 0.3 | C41: 0.32 | D41: 0.335 | E41: 0.355 | F41: 0.37 | G41: 0.39 | H41: 0.41 | I41: 0.42 | J41: 0.425 | K41: 0.435 | L41: 0.445 | M41: 0.45
A42: 48000 | B42: 0.3 | C42: 0.32 | D42: 0.335 | E42: 0.355 | F42: 0.37 | G42: 0.39 | H42: 0.41 | I42: 0.42 | J42: 0.43 | K42: 0.44 | L42: 0.445 | M42: 0.455
A43: 49000 | B43: 0.3 | C43: 0.32 | D43: 0.335 | E43: 0.355 | F43: 0.37 | G43: 0.39 | H43: 0.41 | I43: 0.425 | J43: 0.435 | K43: 0.44 | L43: 0.45 | M43: 0.455
A44: 50000 | B44: 0.3 | C44: 0.32 | D44: 0.335 | E44: 0.355 | F44: 0.37 | G44: 0.39 | H44: 0.41 | I44: 0.425 | J44: 0.435 | K44: 0.445 | L44: 0.455 | M44: 0.46
A45: 51000 | B45: 0.3 | C45: 0.32 | D45: 0.335 | E45: 0.355 | F45: 0.37 | G45: 0.39 | H45: 0.41 | I45: 0.425 | J45: 0.44 | K45: 0.45 | L45: 0.455 | M45: 0.465
A46: 52000 | B46: 0.3 | C46: 0.32 | D46: 0.335 | E46: 0.355 | F46: 0.37 | G46: 0.39 | H46: 0.41 | I46: 0.425 | J46: 0.44 | K46: 0.45 | L46: 0.46 | M46: 0.465
A47: 53000 | B47: 0.3 | C47: 0.32 | D47: 0.335 | E47: 0.355 | F47: 0.37 | G47: 0.39 | H47: 0.41 | I47: 0.425 | J47: 0.44 | K47: 0.455 | L47: 0.46 | M47: 0.47
A48: 54000 | B48: 0.3 | C48: 0.32 | D48: 0.335 | E48: 0.355 | F48: 0.37 | G48: 0.39 | H48: 0.41 | I48: 0.425 | J48: 0.44 | K48: 0.455 | L48: 0.465 | M48: 0.47
A49: 55000 | B49: 0.3 | C49: 0.32 | D49: 0.335 | E49: 0.355 | F49: 0.37 | G49: 0.39 | H49: 0.41 | I49: 0.425 | J49: 0.44 | K49: 0.455 | L49: 0.465 | M49: 0.475
A50: 56000 | B50: 0.3 | C50: 0.32 | D50: 0.335 | E50: 0.355 | F50: 0.37 | G50: 0.39 | H50: 0.41 | I50: 0.425 | J50: 0.44 | K50: 0.455 | L50: 0.47 | M50: 0.475
A51: 57000 | B51: 0.305 | C51: 0.32 | D51: 0.335 | E51: 0.355 | F51: 0.37 | G51: 0.39 | H51: 0.41 | I51: 0.425 | J51: 0.44 | K51: 0.455 | L51: 0.47 | M51: 0.48
A52: 58000 | B52: 0.305 | C52: 0.32 | D52: 0.335 | E52: 0.355 | F52: 0.37 | G52: 0.39 | H52: 0.41 | I52: 0.425 | J52: 0.44 | K52: 0.455 | L52: 0.47 | M52: 0.48
A53: 59000 | B53: 0.305 | C53: 0.32 | D53: 0.34 | E53: 0.355 | F53: 0.37 | G53: 0.39 | H53: 0.41 | I53: 0.425 | J53: 0.44 | K53: 0.455 | L53: 0.47 | M53: 0.48
A54: 60000 | B54: 0.305 | C54: 0.325 | D54: 0.34 | E54: 0.355 | F54: 0.37 | G54: 0.39 | H54: 0.41 | I54: 0.425 | J54: 0.44 | K54: 0.455 | L54: 0.47 | M54: 0.485
A55: 61000 | B55: 0.305 | C55: 0.325 | D55: 0.34 | E55: 0.355 | F55: 0.37 | G55: 0.39 | H55: 0.41 | I55: 0.425 | J55: 0.44 | K55: 0.455 | L55: 0.47 | M55: 0.485
A56: 1000000000 | B56: 0.305 | C56: 0.325 | D56: 0.34 | E56: 0.355 | F56: 0.37 | G56: 0.39 | H56: 0.41 | I56: 0.425 | J56: 0.44 | K56: 0.455 | L56: 0.47 | M56: 0.485

Sheet 2023AMABOX3 (hidden)
B1: Toetsrente in percentages
A2: Bruto inkomen in euro's | B2: <=1,500% | C2: 1,501-2,000% | D2: 2,001-2,500% | E2: 2,501-3,000% | F2: 3,001-3,500% | G2: 3,501-4,000% | H2: 4,001-4,500% | I2: 4,501-5,000% | J2: 5,001-5,500% | K2: 5,501-6,000% | L2: 6,001-6,500% | M2: > 6,501%
A4: -1 | B4: 0 | C4: 0.01501 | D4: =+C4+0.5% -> 0.02001 | E4: 0.02501 | F4: 0.03001 | G4: 0.03501 | H4: 0.04001 | I4: 0.04501 | J4: 0.05001 | K4: 0.05501 | L4: 0.06001 | M4: 0.06501 | N4: <= beginrente
A5: 0 | B5: 0.235 | C5: 0.24 | D5: 0.24 | E5: 0.245 | F5: 0.25 | G5: 0.25 | H5: 0.255 | I5: 0.255 | J5: 0.26 | K5: 0.26 | L5: 0.265 | M5: 0.265
A6: 18500 | B6: 0.235 | C6: 0.24 | D6: 0.24 | E6: 0.245 | F6: 0.25 | G6: 0.25 | H6: 0.255 | I6: 0.255 | J6: 0.26 | K6: 0.26 | L6: 0.265 | M6: 0.265
A7: 19000 | B7: 0.245 | C7: 0.245 | D7: 0.25 | E7: 0.255 | F7: 0.26 | G7: 0.26 | H7: 0.265 | I7: 0.265 | J7: 0.27 | K7: 0.27 | L7: 0.275 | M7: 0.275
A8: 19500 | B8: 0.25 | C8: 0.255 | D8: 0.26 | E8: 0.265 | F8: 0.265 | G8: 0.27 | H8: 0.275 | I8: 0.275 | J8: 0.28 | K8: 0.28 | L8: 0.285 | M8: 0.285
A9: 20000 | B9: 0.26 | C9: 0.265 | D9: 0.265 | E9: 0.27 | F9: 0.275 | G9: 0.28 | H9: 0.28 | I9: 0.285 | J9: 0.285 | K9: 0.29 | L9: 0.29 | M9: 0.295
A10: 20500 | B10: 0.265 | C10: 0.27 | D10: 0.275 | E10: 0.28 | F10: 0.285 | G10: 0.285 | H10: 0.29 | I10: 0.295 | J10: 0.3 | K10: 0.3 | L10: 0.305 | M10: 0.305
A11: 21000 | B11: 0.27 | C11: 0.275 | D11: 0.28 | E11: 0.285 | F11: 0.29 | G11: 0.295 | H11: 0.295 | I11: 0.3 | J11: 0.3 | K11: 0.305 | L11: 0.305 | M11: 0.31
A12: 21500 | B12: 0.27 | C12: 0.275 | D12: 0.28 | E12: 0.285 | F12: 0.29 | G12: 0.295 | H12: 0.295 | I12: 0.3 | J12: 0.3 | K12: 0.305 | L12: 0.305 | M12: 0.31
A13: 22000 | B13: 0.27 | C13: 0.275 | D13: 0.28 | E13: 0.285 | F13: 0.29 | G13: 0.295 | H13: 0.295 | I13: 0.3 | J13: 0.3 | K13: 0.305 | L13: 0.305 | M13: 0.31
A14: 22500 | B14: 0.27 | C14: 0.275 | D14: 0.28 | E14: 0.285 | F14: 0.29 | G14: 0.295 | H14: 0.295 | I14: 0.3 | J14: 0.3 | K14: 0.305 | L14: 0.305 | M14: 0.31
A15: 23000 | B15: 0.27 | C15: 0.275 | D15: 0.28 | E15: 0.285 | F15: 0.29 | G15: 0.295 | H15: 0.295 | I15: 0.3 | J15: 0.3 | K15: 0.305 | L15: 0.305 | M15: 0.31
A16: 23500 | B16: 0.27 | C16: 0.275 | D16: 0.28 | E16: 0.285 | F16: 0.29 | G16: 0.295 | H16: 0.295 | I16: 0.3 | J16: 0.3 | K16: 0.305 | L16: 0.305 | M16: 0.31
A17: 24000 | B17: 0.27 | C17: 0.275 | D17: 0.28 | E17: 0.285 | F17: 0.29 | G17: 0.295 | H17: 0.295 | I17: 0.3 | J17: 0.3 | K17: 0.305 | L17: 0.305 | M17: 0.31
A18: 24500 | B18: 0.27 | C18: 0.275 | D18: 0.28 | E18: 0.285 | F18: 0.29 | G18: 0.295 | H18: 0.295 | I18: 0.3 | J18: 0.3 | K18: 0.305 | L18: 0.305 | M18: 0.31
A19: 25000 | B19: 0.27 | C19: 0.275 | D19: 0.28 | E19: 0.285 | F19: 0.29 | G19: 0.295 | H19: 0.295 | I19: 0.3 | J19: 0.3 | K19: 0.305 | L19: 0.305 | M19: 0.31
A20: 26000 | B20: 0.27 | C20: 0.275 | D20: 0.28 | E20: 0.285 | F20: 0.29 | G20: 0.295 | H20: 0.295 | I20: 0.3 | J20: 0.3 | K20: 0.305 | L20: 0.305 | M20: 0.31
A21: 27000 | B21: 0.27 | C21: 0.275 | D21: 0.28 | E21: 0.285 | F21: 0.29 | G21: 0.295 | H21: 0.295 | I21: 0.3 | J21: 0.3 | K21: 0.305 | L21: 0.305 | M21: 0.31
A22: 28000 | B22: 0.27 | C22: 0.275 | D22: 0.28 | E22: 0.285 | F22: 0.29 | G22: 0.295 | H22: 0.295 | I22: 0.3 | J22: 0.3 | K22: 0.305 | L22: 0.305 | M22: 0.31
A23: 29000 | B23: 0.27 | C23: 0.275 | D23: 0.28 | E23: 0.285 | F23: 0.29 | G23: 0.295 | H23: 0.295 | I23: 0.3 | J23: 0.3 | K23: 0.305 | L23: 0.305 | M23: 0.31
A24: 30000 | B24: 0.27 | C24: 0.275 | D24: 0.28 | E24: 0.285 | F24: 0.29 | G24: 0.295 | H24: 0.295 | I24: 0.3 | J24: 0.3 | K24: 0.305 | L24: 0.305 | M24: 0.31
A25: 31000 | B25: 0.27 | C25: 0.275 | D25: 0.28 | E25: 0.285 | F25: 0.29 | G25: 0.295 | H25: 0.295 | I25: 0.3 | J25: 0.3 | K25: 0.305 | L25: 0.305 | M25: 0.31
A26: 32000 | B26: 0.275 | C26: 0.28 | D26: 0.28 | E26: 0.285 | F26: 0.29 | G26: 0.295 | H26: 0.3 | I26: 0.3 | J26: 0.305 | K26: 0.305 | L26: 0.31 | M26: 0.31
A27: 33000 | B27: 0.275 | C27: 0.28 | D27: 0.285 | E27: 0.285 | F27: 0.29 | G27: 0.295 | H27: 0.3 | I27: 0.3 | J27: 0.305 | K27: 0.305 | L27: 0.31 | M27: 0.31
A28: 34000 | B28: 0.275 | C28: 0.28 | D28: 0.285 | E28: 0.29 | F28: 0.295 | G28: 0.3 | H28: 0.305 | I28: 0.305 | J28: 0.31 | K28: 0.31 | L28: 0.315 | M28: 0.315
A29: 35000 | B29: 0.28 | C29: 0.285 | D29: 0.29 | E29: 0.295 | F29: 0.3 | G29: 0.3 | H29: 0.305 | I29: 0.31 | J29: 0.31 | K29: 0.315 | L29: 0.315 | M29: 0.32
A30: 36000 | B30: 0.28 | C30: 0.285 | D30: 0.29 | E30: 0.295 | F30: 0.3 | G30: 0.3 | H30: 0.305 | I30: 0.31 | J30: 0.31 | K30: 0.315 | L30: 0.315 | M30: 0.32
A31: 37000 | B31: 0.28 | C31: 0.285 | D31: 0.29 | E31: 0.295 | F31: 0.3 | G31: 0.3 | H31: 0.305 | I31: 0.31 | J31: 0.31 | K31: 0.315 | L31: 0.315 | M31: 0.32
A32: 38000 | B32: 0.28 | C32: 0.285 | D32: 0.29 | E32: 0.295 | F32: 0.3 | G32: 0.3 | H32: 0.305 | I32: 0.31 | J32: 0.31 | K32: 0.315 | L32: 0.315 | M32: 0.32
A33: 39000 | B33: 0.28 | C33: 0.285 | D33: 0.29 | E33: 0.295 | F33: 0.3 | G33: 0.3 | H33: 0.305 | I33: 0.31 | J33: 0.31 | K33: 0.315 | L33: 0.315 | M33: 0.32
A34: 40000 | B34: 0.28 | C34: 0.285 | D34: 0.29 | E34: 0.295 | F34: 0.3 | G34: 0.3 | H34: 0.305 | I34: 0.31 | J34: 0.31 | K34: 0.315 | L34: 0.315 | M34: 0.32
A35: 41000 | B35: 0.28 | C35: 0.285 | D35: 0.29 | E35: 0.295 | F35: 0.3 | G35: 0.3 | H35: 0.305 | I35: 0.31 | J35: 0.31 | K35: 0.315 | L35: 0.315 | M35: 0.32
A36: 42000 | B36: 0.28 | C36: 0.285 | D36: 0.29 | E36: 0.295 | F36: 0.3 | G36: 0.3 | H36: 0.305 | I36: 0.31 | J36: 0.31 | K36: 0.315 | L36: 0.315 | M36: 0.32
A37: 43000 | B37: 0.28 | C37: 0.285 | D37: 0.29 | E37: 0.295 | F37: 0.3 | G37: 0.3 | H37: 0.305 | I37: 0.31 | J37: 0.31 | K37: 0.315 | L37: 0.315 | M37: 0.32
A38: 44000 | B38: 0.28 | C38: 0.285 | D38: 0.29 | E38: 0.295 | F38: 0.3 | G38: 0.3 | H38: 0.305 | I38: 0.31 | J38: 0.31 | K38: 0.315 | L38: 0.315 | M38: 0.32
A39: 45000 | B39: 0.28 | C39: 0.285 | D39: 0.29 | E39: 0.295 | F39: 0.3 | G39: 0.3 | H39: 0.305 | I39: 0.31 | J39: 0.31 | K39: 0.315 | L39: 0.315 | M39: 0.32
A40: 46000 | B40: 0.28 | C40: 0.285 | D40: 0.29 | E40: 0.295 | F40: 0.3 | G40: 0.3 | H40: 0.305 | I40: 0.31 | J40: 0.31 | K40: 0.315 | L40: 0.315 | M40: 0.32
A41: 47000 | B41: 0.28 | C41: 0.285 | D41: 0.29 | E41: 0.295 | F41: 0.3 | G41: 0.3 | H41: 0.305 | I41: 0.31 | J41: 0.31 | K41: 0.315 | L41: 0.315 | M41: 0.32
A42: 48000 | B42: 0.28 | C42: 0.285 | D42: 0.29 | E42: 0.295 | F42: 0.3 | G42: 0.3 | H42: 0.305 | I42: 0.31 | J42: 0.31 | K42: 0.315 | L42: 0.315 | M42: 0.32
A43: 49000 | B43: 0.28 | C43: 0.285 | D43: 0.29 | E43: 0.295 | F43: 0.3 | G43: 0.3 | H43: 0.305 | I43: 0.31 | J43: 0.31 | K43: 0.315 | L43: 0.315 | M43: 0.32
A44: 50000 | B44: 0.28 | C44: 0.285 | D44: 0.29 | E44: 0.295 | F44: 0.3 | G44: 0.3 | H44: 0.305 | I44: 0.31 | J44: 0.31 | K44: 0.315 | L44: 0.315 | M44: 0.32
A45: 51000 | B45: 0.28 | C45: 0.285 | D45: 0.29 | E45: 0.295 | F45: 0.3 | G45: 0.305 | H45: 0.305 | I45: 0.31 | J45: 0.315 | K45: 0.315 | L45: 0.32 | M45: 0.32
A46: 52000 | B46: 0.28 | C46: 0.285 | D46: 0.29 | E46: 0.295 | F46: 0.3 | G46: 0.305 | H46: 0.305 | I46: 0.31 | J46: 0.315 | K46: 0.315 | L46: 0.32 | M46: 0.32
A47: 53000 | B47: 0.285 | C47: 0.29 | D47: 0.29 | E47: 0.295 | F47: 0.3 | G47: 0.305 | H47: 0.31 | I47: 0.31 | J47: 0.315 | K47: 0.32 | L47: 0.32 | M47: 0.325
A48: 54000 | B48: 0.285 | C48: 0.29 | D48: 0.295 | E48: 0.295 | F48: 0.3 | G48: 0.305 | H48: 0.31 | I48: 0.315 | J48: 0.315 | K48: 0.32 | L48: 0.32 | M48: 0.325
A49: 55000 | B49: 0.285 | C49: 0.29 | D49: 0.295 | E49: 0.295 | F49: 0.3 | G49: 0.305 | H49: 0.31 | I49: 0.315 | J49: 0.315 | K49: 0.32 | L49: 0.32 | M49: 0.325
A50: 56000 | B50: 0.285 | C50: 0.29 | D50: 0.295 | E50: 0.295 | F50: 0.3 | G50: 0.305 | H50: 0.31 | I50: 0.315 | J50: 0.315 | K50: 0.32 | L50: 0.32 | M50: 0.325
A51: 57000 | B51: 0.285 | C51: 0.29 | D51: 0.295 | E51: 0.295 | F51: 0.3 | G51: 0.305 | H51: 0.31 | I51: 0.315 | J51: 0.315 | K51: 0.32 | L51: 0.32 | M51: 0.325
A52: 58000 | B52: 0.285 | C52: 0.29 | D52: 0.295 | E52: 0.295 | F52: 0.3 | G52: 0.305 | H52: 0.31 | I52: 0.315 | J52: 0.315 | K52: 0.32 | L52: 0.32 | M52: 0.325
A53: 59000 | B53: 0.285 | C53: 0.29 | D53: 0.295 | E53: 0.3 | F53: 0.3 | G53: 0.305 | H53: 0.31 | I53: 0.315 | J53: 0.315 | K53: 0.32 | L53: 0.32 | M53: 0.325
A54: 60000 | B54: 0.285 | C54: 0.29 | D54: 0.295 | E54: 0.3 | F54: 0.305 | G54: 0.305 | H54: 0.31 | I54: 0.315 | J54: 0.32 | K54: 0.32 | L54: 0.325 | M54: 0.325
A55: 61000 | B55: 0.285 | C55: 0.29 | D55: 0.295 | E55: 0.3 | F55: 0.305 | G55: 0.31 | H55: 0.31 | I55: 0.315 | J55: 0.32 | K55: 0.32 | L55: 0.325 | M55: 0.33
A56: 1000000000 | B56: 0.285 | C56: 0.29 | D56: 0.295 | E56: 0.3 | F56: 0.305 | G56: 0.31 | H56: 0.31 | I56: 0.315 | J56: 0.32 | K56: 0.32 | L56: 0.325 | M56: 0.33

Sheet 2023AMW (hidden)
B1: Toetsrente in percentages
A2: Bruto inkomen in euro's | B2: <=1,500% | C2: 1,501-2,000% | D2: 2,001-2,500% | E2: 2,501-3,000% | F2: 3,001-3,500% | G2: 3,501-4,000% | H2: 4,001-4,500% | I2: 4,501-5,000% | J2: 5,001-5,500% | K2: 5,501-6,000% | L2: 6,001-6,500% | M2: > 6,501%
A4: -1 | B4: 0 | C4: 0.01501 | D4: =+C4+0.5% -> 0.02001 | E4: 0.02501 | F4: 0.03001 | G4: 0.03501 | H4: 0.04001 | I4: 0.04501 | J4: 0.05001 | K4: 0.05501 | L4: 0.06001 | M4: 0.06501 | N4: <= beginrente
A5: 0 | B5: 0.265 | C5: 0.28 | D5: 0.295 | E5: 0.31 | F5: 0.325 | G5: 0.34 | H5: 0.355 | I5: 0.37 | J5: 0.385 | K5: 0.395 | L5: 0.405 | M5: 0.41
A6: 26000 | B6: 0.265 | C6: 0.28 | D6: 0.295 | E6: 0.31 | F6: 0.325 | G6: 0.34 | H6: 0.355 | I6: 0.37 | J6: 0.385 | K6: 0.395 | L6: 0.405 | M6: 0.41
A7: 27000 | B7: 0.265 | C7: 0.28 | D7: 0.295 | E7: 0.31 | F7: 0.325 | G7: 0.34 | H7: 0.355 | I7: 0.37 | J7: 0.385 | K7: 0.395 | L7: 0.41 | M7: 0.42
A8: 28000 | B8: 0.265 | C8: 0.28 | D8: 0.295 | E8: 0.31 | F8: 0.325 | G8: 0.34 | H8: 0.355 | I8: 0.37 | J8: 0.385 | K8: 0.395 | L8: 0.41 | M8: 0.42
A9: 29000 | B9: 0.265 | C9: 0.28 | D9: 0.295 | E9: 0.31 | F9: 0.325 | G9: 0.34 | H9: 0.355 | I9: 0.37 | J9: 0.385 | K9: 0.395 | L9: 0.41 | M9: 0.42
A10: 30000 | B10: 0.265 | C10: 0.28 | D10: 0.295 | E10: 0.31 | F10: 0.325 | G10: 0.34 | H10: 0.355 | I10: 0.37 | J10: 0.385 | K10: 0.395 | L10: 0.41 | M10: 0.42
A11: 31000 | B11: 0.265 | C11: 0.28 | D11: 0.295 | E11: 0.31 | F11: 0.325 | G11: 0.34 | H11: 0.355 | I11: 0.37 | J11: 0.385 | K11: 0.395 | L11: 0.41 | M11: 0.42
A12: 32000 | B12: 0.265 | C12: 0.28 | D12: 0.295 | E12: 0.31 | F12: 0.325 | G12: 0.34 | H12: 0.355 | I12: 0.37 | J12: 0.385 | K12: 0.395 | L12: 0.41 | M12: 0.42
A13: 33000 | B13: 0.265 | C13: 0.28 | D13: 0.295 | E13: 0.31 | F13: 0.325 | G13: 0.34 | H13: 0.355 | I13: 0.37 | J13: 0.385 | K13: 0.395 | L13: 0.41 | M13: 0.42
A14: 34000 | B14: 0.265 | C14: 0.28 | D14: 0.295 | E14: 0.31 | F14: 0.325 | G14: 0.34 | H14: 0.355 | I14: 0.37 | J14: 0.385 | K14: 0.395 | L14: 0.41 | M14: 0.42
A15: 35000 | B15: 0.265 | C15: 0.28 | D15: 0.295 | E15: 0.31 | F15: 0.325 | G15: 0.34 | H15: 0.355 | I15: 0.37 | J15: 0.385 | K15: 0.395 | L15: 0.41 | M15: 0.42
A16: 36000 | B16: 0.265 | C16: 0.28 | D16: 0.295 | E16: 0.31 | F16: 0.325 | G16: 0.34 | H16: 0.355 | I16: 0.37 | J16: 0.385 | K16: 0.395 | L16: 0.41 | M16: 0.42
A17: 37000 | B17: 0.265 | C17: 0.28 | D17: 0.295 | E17: 0.31 | F17: 0.325 | G17: 0.34 | H17: 0.355 | I17: 0.37 | J17: 0.385 | K17: 0.395 | L17: 0.41 | M17: 0.42
A18: 38000 | B18: 0.265 | C18: 0.28 | D18: 0.295 | E18: 0.31 | F18: 0.325 | G18: 0.34 | H18: 0.355 | I18: 0.37 | J18: 0.385 | K18: 0.395 | L18: 0.41 | M18: 0.42
A19: 39000 | B19: 0.265 | C19: 0.28 | D19: 0.295 | E19: 0.31 | F19: 0.325 | G19: 0.34 | H19: 0.355 | I19: 0.37 | J19: 0.385 | K19: 0.395 | L19: 0.41 | M19: 0.42
A20: 40000 | B20: 0.265 | C20: 0.28 | D20: 0.295 | E20: 0.31 | F20: 0.325 | G20: 0.34 | H20: 0.355 | I20: 0.37 | J20: 0.385 | K20: 0.395 | L20: 0.41 | M20: 0.42
A21: 41000 | B21: 0.265 | C21: 0.28 | D21: 0.295 | E21: 0.31 | F21: 0.325 | G21: 0.34 | H21: 0.355 | I21: 0.37 | J21: 0.385 | K21: 0.395 | L21: 0.41 | M21: 0.42
A22: 42000 | B22: 0.265 | C22: 0.28 | D22: 0.295 | E22: 0.31 | F22: 0.325 | G22: 0.34 | H22: 0.355 | I22: 0.37 | J22: 0.385 | K22: 0.395 | L22: 0.41 | M22: 0.42
A23: 43000 | B23: 0.27 | C23: 0.285 | D23: 0.3 | E23: 0.31 | F23: 0.325 | G23: 0.34 | H23: 0.355 | I23: 0.37 | J23: 0.385 | K23: 0.395 | L23: 0.41 | M23: 0.42
A24: 44000 | B24: 0.27 | C24: 0.285 | D24: 0.3 | E24: 0.315 | F24: 0.325 | G24: 0.34 | H24: 0.355 | I24: 0.37 | J24: 0.385 | K24: 0.395 | L24: 0.41 | M24: 0.42
A25: 45000 | B25: 0.27 | C25: 0.285 | D25: 0.3 | E25: 0.315 | F25: 0.33 | G25: 0.34 | H25: 0.355 | I25: 0.37 | J25: 0.385 | K25: 0.395 | L25: 0.41 | M25: 0.42
A26: 46000 | B26: 0.27 | C26: 0.285 | D26: 0.3 | E26: 0.315 | F26: 0.33 | G26: 0.34 | H26: 0.355 | I26: 0.37 | J26: 0.385 | K26: 0.395 | L26: 0.41 | M26: 0.42
A27: 47000 | B27: 0.27 | C27: 0.285 | D27: 0.3 | E27: 0.315 | F27: 0.33 | G27: 0.345 | H27: 0.355 | I27: 0.37 | J27: 0.385 | K27: 0.395 | L27: 0.41 | M27: 0.42
A28: 48000 | B28: 0.27 | C28: 0.285 | D28: 0.3 | E28: 0.315 | F28: 0.33 | G28: 0.345 | H28: 0.355 | I28: 0.37 | J28: 0.385 | K28: 0.395 | L28: 0.41 | M28: 0.42
A29: 49000 | B29: 0.275 | C29: 0.29 | D29: 0.305 | E29: 0.32 | F29: 0.33 | G29: 0.345 | H29: 0.36 | I29: 0.37 | J29: 0.385 | K29: 0.395 | L29: 0.41 | M29: 0.42
A30: 50000 | B30: 0.275 | C30: 0.29 | D30: 0.305 | E30: 0.32 | F30: 0.335 | G30: 0.345 | H30: 0.36 | I30: 0.37 | J30: 0.385 | K30: 0.395 | L30: 0.41 | M30: 0.42
A31: 51000 | B31: 0.275 | C31: 0.29 | D31: 0.305 | E31: 0.32 | F31: 0.335 | G31: 0.345 | H31: 0.36 | I31: 0.37 | J31: 0.385 | K31: 0.395 | L31: 0.41 | M31: 0.42
A32: 52000 | B32: 0.275 | C32: 0.29 | D32: 0.305 | E32: 0.32 | F32: 0.335 | G32: 0.35 | H32: 0.36 | I32: 0.375 | J32: 0.385 | K32: 0.395 | L32: 0.41 | M32: 0.42
A33: 53000 | B33: 0.275 | C33: 0.29 | D33: 0.305 | E33: 0.32 | F33: 0.335 | G33: 0.35 | H33: 0.36 | I33: 0.375 | J33: 0.385 | K33: 0.395 | L33: 0.41 | M33: 0.42
A34: 54000 | B34: 0.275 | C34: 0.29 | D34: 0.305 | E34: 0.32 | F34: 0.335 | G34: 0.35 | H34: 0.36 | I34: 0.375 | J34: 0.385 | K34: 0.4 | L34: 0.41 | M34: 0.42
A35: 55000 | B35: 0.275 | C35: 0.29 | D35: 0.305 | E35: 0.32 | F35: 0.335 | G35: 0.35 | H35: 0.365 | I35: 0.375 | J35: 0.39 | K35: 0.4 | L35: 0.41 | M35: 0.42
A36: 56000 | B36: 0.275 | C36: 0.29 | D36: 0.305 | E36: 0.32 | F36: 0.335 | G36: 0.35 | H36: 0.365 | I36: 0.375 | J36: 0.39 | K36: 0.4 | L36: 0.41 | M36: 0.42
A37: 57000 | B37: 0.28 | C37: 0.295 | D37: 0.31 | E37: 0.325 | F37: 0.335 | G37: 0.35 | H37: 0.365 | I37: 0.375 | J37: 0.39 | K37: 0.4 | L37: 0.41 | M37: 0.42
A38: 58000 | B38: 0.28 | C38: 0.295 | D38: 0.31 | E38: 0.325 | F38: 0.34 | G38: 0.35 | H38: 0.365 | I38: 0.38 | J38: 0.39 | K38: 0.4 | L38: 0.41 | M38: 0.42
A39: 59000 | B39: 0.28 | C39: 0.295 | D39: 0.31 | E39: 0.325 | F39: 0.34 | G39: 0.35 | H39: 0.365 | I39: 0.38 | J39: 0.39 | K39: 0.4 | L39: 0.41 | M39: 0.42
A40: 60000 | B40: 0.28 | C40: 0.295 | D40: 0.31 | E40: 0.325 | F40: 0.34 | G40: 0.355 | H40: 0.365 | I40: 0.38 | J40: 0.39 | K40: 0.4 | L40: 0.415 | M40: 0.425
A41: 61000 | B41: 0.28 | C41: 0.295 | D41: 0.31 | E41: 0.325 | F41: 0.34 | G41: 0.355 | H41: 0.365 | I41: 0.38 | J41: 0.39 | K41: 0.405 | L41: 0.415 | M41: 0.425
A42: 62000 | B42: 0.28 | C42: 0.295 | D42: 0.31 | E42: 0.325 | F42: 0.34 | G42: 0.355 | H42: 0.365 | I42: 0.38 | J42: 0.39 | K42: 0.405 | L42: 0.415 | M42: 0.425
A43: 63000 | B43: 0.28 | C43: 0.295 | D43: 0.31 | E43: 0.325 | F43: 0.34 | G43: 0.355 | H43: 0.37 | I43: 0.38 | J43: 0.39 | K43: 0.405 | L43: 0.415 | M43: 0.425
A44: 64000 | B44: 0.28 | C44: 0.295 | D44: 0.31 | E44: 0.325 | F44: 0.34 | G44: 0.355 | H44: 0.37 | I44: 0.38 | J44: 0.395 | K44: 0.405 | L44: 0.415 | M44: 0.425
A45: 65000 | B45: 0.28 | C45: 0.295 | D45: 0.31 | E45: 0.325 | F45: 0.34 | G45: 0.355 | H45: 0.37 | I45: 0.38 | J45: 0.395 | K45: 0.405 | L45: 0.415 | M45: 0.425
A46: 66000 | B46: 0.28 | C46: 0.295 | D46: 0.31 | E46: 0.325 | F46: 0.34 | G46: 0.355 | H46: 0.37 | I46: 0.38 | J46: 0.395 | K46: 0.405 | L46: 0.415 | M46: 0.425
A47: 67000 | B47: 0.28 | C47: 0.295 | D47: 0.315 | E47: 0.33 | F47: 0.34 | G47: 0.355 | H47: 0.37 | I47: 0.385 | J47: 0.395 | K47: 0.405 | L47: 0.415 | M47: 0.425
A48: 68000 | B48: 0.28 | C48: 0.3 | D48: 0.315 | E48: 0.33 | F48: 0.345 | G48: 0.355 | H48: 0.37 | I48: 0.385 | J48: 0.395 | K48: 0.405 | L48: 0.42 | M48: 0.43
A49: 69000 | B49: 0.28 | C49: 0.3 | D49: 0.315 | E49: 0.33 | F49: 0.345 | G49: 0.36 | H49: 0.37 | I49: 0.385 | J49: 0.395 | K49: 0.41 | L49: 0.42 | M49: 0.43
A50: 1000000000 | B50: 0.28 | C50: 0.3 | D50: 0.315 | E50: 0.33 | F50: 0.345 | G50: 0.36 | H50: 0.37 | I50: 0.385 | J50: 0.395 | K50: 0.41 | L50: 0.42 | M50: 0.43

Sheet 2023AMWBOX3 (hidden)
B1: Toetsrente in percentages
A2: Bruto inkomen in euro's | B2: <=1,500% | C2: 1,501-2,000% | D2: 2,001-2,500% | E2: 2,501-3,000% | F2: 3,001-3,500% | G2: 3,501-4,000% | H2: 4,001-4,500% | I2: 4,501-5,000% | J2: 5,001-5,500% | K2: 5,501-6,000% | L2: 6,001-6,500% | M2: > 6,501%
A4: -1 | B4: 0 | C4: 0.01501 | D4: =+C4+0.5% -> 0.02001 | E4: 0.02501 | F4: 0.03001 | G4: 0.03501 | H4: 0.04001 | I4: 0.04501 | J4: 0.05001 | K4: 0.05501 | L4: 0.06001 | M4: 0.06501 | N4: <= beginrente
A5: 0 | B5: 0.245 | C5: 0.25 | D5: 0.255 | E5: 0.26 | F5: 0.26 | G5: 0.265 | H5: 0.27 | I5: 0.27 | J5: 0.275 | K5: 0.275 | L5: 0.28 | M5: 0.28
A6: 26000 | B6: 0.245 | C6: 0.25 | D6: 0.255 | E6: 0.26 | F6: 0.26 | G6: 0.265 | H6: 0.27 | I6: 0.27 | J6: 0.275 | K6: 0.275 | L6: 0.28 | M6: 0.28
A7: 27000 | B7: 0.245 | C7: 0.25 | D7: 0.255 | E7: 0.26 | F7: 0.26 | G7: 0.265 | H7: 0.27 | I7: 0.27 | J7: 0.275 | K7: 0.275 | L7: 0.28 | M7: 0.28
A8: 28000 | B8: 0.245 | C8: 0.25 | D8: 0.255 | E8: 0.26 | F8: 0.26 | G8: 0.265 | H8: 0.27 | I8: 0.27 | J8: 0.275 | K8: 0.275 | L8: 0.28 | M8: 0.28
A9: 29000 | B9: 0.245 | C9: 0.25 | D9: 0.255 | E9: 0.26 | F9: 0.26 | G9: 0.265 | H9: 0.27 | I9: 0.27 | J9: 0.275 | K9: 0.275 | L9: 0.28 | M9: 0.28
A10: 30000 | B10: 0.245 | C10: 0.25 | D10: 0.255 | E10: 0.26 | F10: 0.26 | G10: 0.265 | H10: 0.27 | I10: 0.27 | J10: 0.275 | K10: 0.275 | L10: 0.28 | M10: 0.28
A11: 31000 | B11: 0.245 | C11: 0.25 | D11: 0.255 | E11: 0.26 | F11: 0.26 | G11: 0.265 | H11: 0.27 | I11: 0.27 | J11: 0.275 | K11: 0.275 | L11: 0.28 | M11: 0.28
A12: 32000 | B12: 0.245 | C12: 0.25 | D12: 0.255 | E12: 0.26 | F12: 0.26 | G12: 0.265 | H12: 0.27 | I12: 0.27 | J12: 0.275 | K12: 0.275 | L12: 0.28 | M12: 0.28
A13: 33000 | B13: 0.245 | C13: 0.25 | D13: 0.255 | E13: 0.26 | F13: 0.26 | G13: 0.265 | H13: 0.27 | I13: 0.27 | J13: 0.275 | K13: 0.275 | L13: 0.28 | M13: 0.28
A14: 34000 | B14: 0.245 | C14: 0.25 | D14: 0.255 | E14: 0.26 | F14: 0.26 | G14: 0.265 | H14: 0.27 | I14: 0.27 | J14: 0.275 | K14: 0.275 | L14: 0.28 | M14: 0.28
A15: 35000 | B15: 0.245 | C15: 0.25 | D15: 0.255 | E15: 0.26 | F15: 0.26 | G15: 0.265 | H15: 0.27 | I15: 0.27 | J15: 0.275 | K15: 0.275 | L15: 0.28 | M15: 0.28
A16: 36000 | B16: 0.245 | C16: 0.25 | D16: 0.255 | E16: 0.26 | F16: 0.26 | G16: 0.265 | H16: 0.27 | I16: 0.27 | J16: 0.275 | K16: 0.275 | L16: 0.28 | M16: 0.28
A17: 37000 | B17: 0.245 | C17: 0.25 | D17: 0.255 | E17: 0.26 | F17: 0.265 | G17: 0.265 | H17: 0.27 | I17: 0.275 | J17: 0.275 | K17: 0.28 | L17: 0.28 | M17: 0.28
A18: 38000 | B18: 0.25 | C18: 0.255 | D18: 0.255 | E18: 0.26 | F18: 0.265 | G18: 0.27 | H18: 0.27 | I18: 0.275 | J18: 0.275 | K18: 0.28 | L18: 0.28 | M18: 0.285
A19: 39000 | B19: 0.25 | C19: 0.255 | D19: 0.26 | E19: 0.26 | F19: 0.265 | G19: 0.27 | H19: 0.27 | I19: 0.275 | J19: 0.28 | K19: 0.28 | L19: 0.285 | M19: 0.285
A20: 40000 | B20: 0.25 | C20: 0.255 | D20: 0.26 | E20: 0.265 | F20: 0.265 | G20: 0.27 | H20: 0.275 | I20: 0.275 | J20: 0.28 | K20: 0.28 | L20: 0.285 | M20: 0.285
A21: 41000 | B21: 0.25 | C21: 0.255 | D21: 0.26 | E21: 0.265 | F21: 0.265 | G21: 0.27 | H21: 0.275 | I21: 0.275 | J21: 0.28 | K21: 0.28 | L21: 0.285 | M21: 0.285
A22: 42000 | B22: 0.25 | C22: 0.255 | D22: 0.26 | E22: 0.265 | F22: 0.27 | G22: 0.27 | H22: 0.275 | I22: 0.28 | J22: 0.28 | K22: 0.285 | L22: 0.285 | M22: 0.29
A23: 43000 | B23: 0.255 | C23: 0.255 | D23: 0.26 | E23: 0.265 | F23: 0.27 | G23: 0.27 | H23: 0.275 | I23: 0.28 | J23: 0.28 | K23: 0.285 | L23: 0.285 | M23: 0.29
A24: 44000 | B24: 0.255 | C24: 0.26 | D24: 0.26 | E24: 0.265 | F24: 0.27 | G24: 0.275 | H24: 0.275 | I24: 0.28 | J24: 0.285 | K24: 0.285 | L24: 0.29 | M24: 0.29
A25: 45000 | B25: 0.255 | C25: 0.26 | D25: 0.265 | E25: 0.265 | F25: 0.27 | G25: 0.275 | H25: 0.275 | I25: 0.28 | J25: 0.285 | K25: 0.285 | L25: 0.29 | M25: 0.29
A26: 46000 | B26: 0.255 | C26: 0.26 | D26: 0.265 | E26: 0.27 | F26: 0.27 | G26: 0.275 | H26: 0.28 | I26: 0.28 | J26: 0.285 | K26: 0.285 | L26: 0.29 | M26: 0.29
A27: 47000 | B27: 0.255 | C27: 0.26 | D27: 0.265 | E27: 0.27 | F27: 0.27 | G27: 0.275 | H27: 0.28 | I27: 0.28 | J27: 0.285 | K27: 0.29 | L27: 0.29 | M27: 0.29
A28: 48000 | B28: 0.255 | C28: 0.26 | D28: 0.265 | E28: 0.27 | F28: 0.275 | G28: 0.275 | H28: 0.28 | I28: 0.285 | J28: 0.285 | K28: 0.29 | L28: 0.29 | M28: 0.295
A29: 49000 | B29: 0.255 | C29: 0.26 | D29: 0.265 | E29: 0.27 | F29: 0.275 | G29: 0.275 | H29: 0.28 | I29: 0.285 | J29: 0.285 | K29: 0.29 | L29: 0.29 | M29: 0.295
A30: 50000 | B30: 0.26 | C30: 0.26 | D30: 0.265 | E30: 0.27 | F30: 0.275 | G30: 0.28 | H30: 0.28 | I30: 0.285 | J30: 0.285 | K30: 0.29 | L30: 0.295 | M30: 0.295
A31: 51000 | B31: 0.26 | C31: 0.265 | D31: 0.265 | E31: 0.27 | F31: 0.275 | G31: 0.28 | H31: 0.28 | I31: 0.285 | J31: 0.29 | K31: 0.29 | L31: 0.295 | M31: 0.295
A32: 52000 | B32: 0.26 | C32: 0.265 | D32: 0.27 | E32: 0.27 | F32: 0.275 | G32: 0.28 | H32: 0.28 | I32: 0.285 | J32: 0.29 | K32: 0.29 | L32: 0.295 | M32: 0.295
A33: 53000 | B33: 0.26 | C33: 0.265 | D33: 0.27 | E33: 0.27 | F33: 0.275 | G33: 0.28 | H33: 0.285 | I33: 0.285 | J33: 0.29 | K33: 0.29 | L33: 0.295 | M33: 0.295
A34: 54000 | B34: 0.26 | C34: 0.265 | D34: 0.27 | E34: 0.275 | F34: 0.275 | G34: 0.28 | H34: 0.285 | I34: 0.285 | J34: 0.29 | K34: 0.29 | L34: 0.295 | M34: 0.295
A35: 55000 | B35: 0.26 | C35: 0.265 | D35: 0.27 | E35: 0.275 | F35: 0.275 | G35: 0.28 | H35: 0.285 | I35: 0.285 | J35: 0.29 | K35: 0.29 | L35: 0.295 | M35: 0.295
A36: 56000 | B36: 0.26 | C36: 0.265 | D36: 0.27 | E36: 0.275 | F36: 0.275 | G36: 0.28 | H36: 0.285 | I36: 0.285 | J36: 0.29 | K36: 0.29 | L36: 0.295 | M36: 0.295
A37: 57000 | B37: 0.26 | C37: 0.265 | D37: 0.27 | E37: 0.275 | F37: 0.275 | G37: 0.28 | H37: 0.285 | I37: 0.285 | J37: 0.29 | K37: 0.29 | L37: 0.295 | M37: 0.295
A38: 58000 | B38: 0.26 | C38: 0.265 | D38: 0.27 | E38: 0.275 | F38: 0.275 | G38: 0.28 | H38: 0.285 | I38: 0.285 | J38: 0.29 | K38: 0.29 | L38: 0.295 | M38: 0.295
A39: 59000 | B39: 0.26 | C39: 0.265 | D39: 0.27 | E39: 0.275 | F39: 0.275 | G39: 0.28 | H39: 0.285 | I39: 0.285 | J39: 0.29 | K39: 0.29 | L39: 0.295 | M39: 0.295
A40: 60000 | B40: 0.26 | C40: 0.265 | D40: 0.27 | E40: 0.275 | F40: 0.275 | G40: 0.28 | H40: 0.285 | I40: 0.285 | J40: 0.29 | K40: 0.29 | L40: 0.295 | M40: 0.295
A41: 61000 | B41: 0.26 | C41: 0.265 | D41: 0.27 | E41: 0.275 | F41: 0.275 | G41: 0.28 | H41: 0.285 | I41: 0.285 | J41: 0.29 | K41: 0.29 | L41: 0.295 | M41: 0.295
A42: 62000 | B42: 0.26 | C42: 0.265 | D42: 0.27 | E42: 0.275 | F42: 0.275 | G42: 0.28 | H42: 0.285 | I42: 0.285 | J42: 0.29 | K42: 0.29 | L42: 0.295 | M42: 0.295
A43: 63000 | B43: 0.26 | C43: 0.265 | D43: 0.27 | E43: 0.275 | F43: 0.275 | G43: 0.28 | H43: 0.285 | I43: 0.285 | J43: 0.29 | K43: 0.29 | L43: 0.295 | M43: 0.295
A44: 64000 | B44: 0.26 | C44: 0.265 | D44: 0.27 | E44: 0.275 | F44: 0.275 | G44: 0.28 | H44: 0.285 | I44: 0.285 | J44: 0.29 | K44: 0.29 | L44: 0.295 | M44: 0.295
A45: 65000 | B45: 0.26 | C45: 0.265 | D45: 0.27 | E45: 0.275 | F45: 0.275 | G45: 0.28 | H45: 0.285 | I45: 0.285 | J45: 0.29 | K45: 0.29 | L45: 0.295 | M45: 0.3
A46: 66000 | B46: 0.26 | C46: 0.265 | D46: 0.27 | E46: 0.275 | F46: 0.275 | G46: 0.28 | H46: 0.285 | I46: 0.285 | J46: 0.29 | K46: 0.295 | L46: 0.295 | M46: 0.3
A47: 67000 | B47: 0.26 | C47: 0.265 | D47: 0.27 | E47: 0.275 | F47: 0.275 | G47: 0.28 | H47: 0.285 | I47: 0.285 | J47: 0.29 | K47: 0.295 | L47: 0.295 | M47: 0.3
A48: 68000 | B48: 0.26 | C48: 0.265 | D48: 0.27 | E48: 0.275 | F48: 0.28 | G48: 0.28 | H48: 0.285 | I48: 0.29 | J48: 0.29 | K48: 0.295 | L48: 0.295 | M48: 0.3
A49: 69000 | B49: 0.26 | C49: 0.265 | D49: 0.27 | E49: 0.275 | F49: 0.28 | G49: 0.28 | H49: 0.285 | I49: 0.29 | J49: 0.29 | K49: 0.295 | L49: 0.295 | M49: 0.3
A50: 1000000000 | B50: 0.26 | C50: 0.265 | D50: 0.27 | E50: 0.275 | F50: 0.28 | G50: 0.28 | H50: 0.285 | I50: 0.29 | J50: 0.29 | K50: 0.295 | L50: 0.295 | M50: 0.3

Sheet 2023AZW (hidden)
B1: Toetsrente in percentages
A2: Bruto inkomen in euro's | B2: <=1,500% | C2: 1,501-2,000% | D2: 2,001-2,500% | E2: 2,501-3,000% | F2: 3,001-3,500% | G2: 3,501-4,000% | H2: 4,001-4,500% | I2: 4,501-5,000% | J2: 5,001-5,500% | K2: 5,501-6,000% | L2: 6,001-6,500% | M2: > 6,501%
A4: -1 | B4: 0 | C4: 0.01501 | D4: =+C4+0.5% -> 0.02001 | E4: 0.02501 | F4: 0.03001 | G4: 0.03501 | H4: 0.04001 | I4: 0.04501 | J4: 0.05001 | K4: 0.05501 | L4: 0.06001 | M4: 0.06501 | N4: <= beginrente
A5: 0 | B5: 0.135 | C5: 0.14 | D5: 0.15 | E5: 0.155 | F5: 0.16 | G5: 0.165 | H5: 0.17 | I5: 0.175 | J5: 0.18 | K5: 0.185 | L5: 0.19 | M5: 0.195
A6: 18500 | B6: 0.135 | C6: 0.14 | D6: 0.15 | E6: 0.155 | F6: 0.16 | G6: 0.165 | H6: 0.17 | I6: 0.175 | J6: 0.18 | K6: 0.185 | L6: 0.19 | M6: 0.195
A7: 19000 | B7: 0.145 | C7: 0.15 | D7: 0.16 | E7: 0.165 | F7: 0.17 | G7: 0.18 | H7: 0.185 | I7: 0.19 | J7: 0.195 | K7: 0.2 | L7: 0.205 | M7: 0.21
A8: 19500 | B8: 0.155 | C8: 0.16 | D8: 0.17 | E8: 0.175 | F8: 0.185 | G8: 0.19 | H8: 0.195 | I8: 0.2 | J8: 0.21 | K8: 0.215 | L8: 0.22 | M8: 0.22
A9: 20000 | B9: 0.16 | C9: 0.17 | D9: 0.18 | E9: 0.185 | F9: 0.195 | G9: 0.2 | H9: 0.205 | I9: 0.215 | J9: 0.22 | K9: 0.225 | L9: 0.23 | M9: 0.235
A10: 20500 | B10: 0.17 | C10: 0.18 | D10: 0.19 | E10: 0.195 | F10: 0.205 | G10: 0.21 | H10: 0.22 | I10: 0.225 | J10: 0.23 | K10: 0.235 | L10: 0.24 | M10: 0.245
A11: 21000 | B11: 0.18 | C11: 0.19 | D11: 0.195 | E11: 0.205 | F11: 0.215 | G11: 0.22 | H11: 0.23 | I11: 0.235 | J11: 0.24 | K11: 0.245 | L11: 0.255 | M11: 0.26
A12: 21500 | B12: 0.185 | C12: 0.195 | D12: 0.205 | E12: 0.215 | F12: 0.22 | G12: 0.23 | H12: 0.24 | I12: 0.245 | J12: 0.25 | K12: 0.26 | L12: 0.265 | M12: 0.27
A13: 22000 | B13: 0.195 | C13: 0.205 | D13: 0.215 | E13: 0.22 | F13: 0.23 | G13: 0.24 | H13: 0.245 | I13: 0.255 | J13: 0.26 | K13: 0.27 | L13: 0.275 | M13: 0.28
A14: 22500 | B14: 0.2 | C14: 0.21 | D14: 0.22 | E14: 0.23 | F14: 0.24 | G14: 0.25 | H14: 0.255 | I14: 0.265 | J14: 0.27 | K14: 0.275 | L14: 0.285 | M14: 0.29
A15: 23000 | B15: 0.205 | C15: 0.22 | D15: 0.23 | E15: 0.24 | F15: 0.245 | G15: 0.255 | H15: 0.265 | I15: 0.27 | J15: 0.28 | K15: 0.285 | L15: 0.295 | M15: 0.3
A16: 23500 | B16: 0.215 | C16: 0.225 | D16: 0.235 | E16: 0.245 | F16: 0.255 | G16: 0.265 | H16: 0.27 | I16: 0.28 | J16: 0.29 | K16: 0.295 | L16: 0.3 | M16: 0.31
A17: 24000 | B17: 0.22 | C17: 0.23 | D17: 0.24 | E17: 0.25 | F17: 0.26 | G17: 0.27 | H17: 0.28 | I17: 0.29 | J17: 0.295 | K17: 0.305 | L17: 0.31 | M17: 0.315
A18: 24500 | B18: 0.225 | C18: 0.235 | D18: 0.25 | E18: 0.26 | F18: 0.27 | G18: 0.28 | H18: 0.285 | I18: 0.295 | J18: 0.305 | K18: 0.31 | L18: 0.32 | M18: 0.325
A19: 25000 | B19: 0.225 | C19: 0.235 | D19: 0.25 | E19: 0.26 | F19: 0.275 | G19: 0.285 | H19: 0.295 | I19: 0.305 | J19: 0.31 | K19: 0.32 | L19: 0.325 | M19: 0.335
A20: 26000 | B20: 0.225 | C20: 0.235 | D20: 0.25 | E20: 0.26 | F20: 0.275 | G20: 0.285 | H20: 0.3 | I20: 0.31 | J20: 0.32 | K20: 0.325 | L20: 0.335 | M20: 0.34
A21: 27000 | B21: 0.225 | C21: 0.235 | D21: 0.25 | E21: 0.26 | F21: 0.275 | G21: 0.285 | H21: 0.3 | I21: 0.31 | J21: 0.32 | K21: 0.335 | L21: 0.34 | M21: 0.35
A22: 28000 | B22: 0.225 | C22: 0.235 | D22: 0.25 | E22: 0.26 | F22: 0.275 | G22: 0.285 | H22: 0.3 | I22: 0.31 | J22: 0.32 | K22: 0.335 | L22: 0.345 | M22: 0.355
A23: 29000 | B23: 0.225 | C23: 0.235 | D23: 0.25 | E23: 0.26 | F23: 0.275 | G23: 0.285 | H23: 0.3 | I23: 0.31 | J23: 0.32 | K23: 0.335 | L23: 0.345 | M23: 0.355
A24: 30000 | B24: 0.225 | C24: 0.235 | D24: 0.25 | E24: 0.26 | F24: 0.275 | G24: 0.285 | H24: 0.3 | I24: 0.31 | J24: 0.32 | K24: 0.335 | L24: 0.345 | M24: 0.355
A25: 31000 | B25: 0.225 | C25: 0.235 | D25: 0.25 | E25: 0.26 | F25: 0.275 | G25: 0.285 | H25: 0.3 | I25: 0.31 | J25: 0.32 | K25: 0.335 | L25: 0.345 | M25: 0.355
A26: 32000 | B26: 0.225 | C26: 0.235 | D26: 0.25 | E26: 0.26 | F26: 0.275 | G26: 0.285 | H26: 0.3 | I26: 0.31 | J26: 0.32 | K26: 0.335 | L26: 0.345 | M26: 0.355
A27: 33000 | B27: 0.225 | C27: 0.235 | D27: 0.25 | E27: 0.26 | F27: 0.275 | G27: 0.285 | H27: 0.3 | I27: 0.31 | J27: 0.32 | K27: 0.335 | L27: 0.345 | M27: 0.355
A28: 34000 | B28: 0.225 | C28: 0.235 | D28: 0.25 | E28: 0.26 | F28: 0.275 | G28: 0.285 | H28: 0.3 | I28: 0.31 | J28: 0.32 | K28: 0.335 | L28: 0.345 | M28: 0.355
A29: 35000 | B29: 0.225 | C29: 0.235 | D29: 0.25 | E29: 0.26 | F29: 0.275 | G29: 0.285 | H29: 0.3 | I29: 0.31 | J29: 0.32 | K29: 0.335 | L29: 0.345 | M29: 0.355
A30: 36000 | B30: 0.225 | C30: 0.235 | D30: 0.25 | E30: 0.26 | F30: 0.275 | G30: 0.285 | H30: 0.3 | I30: 0.31 | J30: 0.32 | K30: 0.335 | L30: 0.345 | M30: 0.355
A31: 37000 | B31: 0.225 | C31: 0.235 | D31: 0.25 | E31: 0.26 | F31: 0.275 | G31: 0.285 | H31: 0.3 | I31: 0.31 | J31: 0.32 | K31: 0.335 | L31: 0.345 | M31: 0.355
A32: 38000 | B32: 0.225 | C32: 0.235 | D32: 0.25 | E32: 0.265 | F32: 0.275 | G32: 0.285 | H32: 0.3 | I32: 0.31 | J32: 0.32 | K32: 0.335 | L32: 0.345 | M32: 0.355
A33: 39000 | B33: 0.225 | C33: 0.235 | D33: 0.25 | E33: 0.265 | F33: 0.275 | G33: 0.285 | H33: 0.3 | I33: 0.31 | J33: 0.32 | K33: 0.335 | L33: 0.345 | M33: 0.355
A34: 40000 | B34: 0.225 | C34: 0.235 | D34: 0.255 | E34: 0.265 | F34: 0.275 | G34: 0.29 | H34: 0.3 | I34: 0.31 | J34: 0.32 | K34: 0.335 | L34: 0.345 | M34: 0.355
A35: 1000000000 | B35: 0.225 | C35: 0.235 | D35: 0.255 | E35: 0.265 | F35: 0.275 | G35: 0.29 | H35: 0.3 | I35: 0.31 | J35: 0.32 | K35: 0.335 | L35: 0.345 | M35: 0.355

Sheet 2023AZWBOX3 (hidden)
B1: Toetsrente in percentages
A2: Bruto inkomen in euro's | B2: <=1,500% | C2: 1,501-2,000% | D2: 2,001-2,500% | E2: 2,501-3,000% | F2: 3,001-3,500% | G2: 3,501-4,000% | H2: 4,001-4,500% | I2: 4,501-5,000% | J2: 5,001-5,500% | K2: 5,501-6,000% | L2: 6,001-6,500% | M2: > 6,501%
A4: -1 | B4: 0 | C4: 0.01501 | D4: =+C4+0.5% -> 0.02001 | E4: 0.02501 | F4: 0.03001 | G4: 0.03501 | H4: 0.04001 | I4: 0.04501 | J4: 0.05001 | K4: 0.05501 | L4: 0.06001 | M4: 0.06501 | N4: <= beginrente
A5: 0 | B5: 0.125 | C5: 0.13 | D5: 0.13 | E5: 0.13 | F5: 0.135 | G5: 0.135 | H5: 0.135 | I5: 0.14 | J5: 0.14 | K5: 0.14 | L5: 0.14 | M5: 0.145
A6: 18500 | B6: 0.125 | C6: 0.13 | D6: 0.13 | E6: 0.13 | F6: 0.135 | G6: 0.135 | H6: 0.135 | I6: 0.14 | J6: 0.14 | K6: 0.14 | L6: 0.14 | M6: 0.145
A7: 19000 | B7: 0.135 | C7: 0.135 | D7: 0.14 | E7: 0.14 | F7: 0.145 | G7: 0.145 | H7: 0.145 | I7: 0.15 | J7: 0.15 | K7: 0.15 | L7: 0.15 | M7: 0.155
A8: 19500 | B8: 0.145 | C8: 0.145 | D8: 0.15 | E8: 0.15 | F8: 0.15 | G8: 0.155 | H8: 0.155 | I8: 0.16 | J8: 0.16 | K8: 0.16 | L8: 0.16 | M8: 0.165
A9: 20000 | B9: 0.15 | C9: 0.155 | D9: 0.155 | E9: 0.16 | F9: 0.16 | G9: 0.165 | H9: 0.165 | I9: 0.165 | J9: 0.17 | K9: 0.17 | L9: 0.17 | M9: 0.175
A10: 20500 | B10: 0.16 | C10: 0.16 | D10: 0.165 | E10: 0.165 | F10: 0.17 | G10: 0.17 | H10: 0.175 | I10: 0.175 | J10: 0.175 | K10: 0.18 | L10: 0.18 | M10: 0.18
A11: 21000 | B11: 0.165 | C11: 0.17 | D11: 0.17 | E11: 0.175 | F11: 0.175 | G11: 0.18 | H11: 0.18 | I11: 0.185 | J11: 0.185 | K11: 0.185 | L11: 0.19 | M11: 0.19
A12: 21500 | B12: 0.175 | C12: 0.175 | D12: 0.18 | E12: 0.18 | F12: 0.185 | G12: 0.185 | H12: 0.19 | I12: 0.19 | J12: 0.195 | K12: 0.195 | L12: 0.195 | M12: 0.2
A13: 22000 | B13: 0.18 | C13: 0.185 | D13: 0.185 | E13: 0.19 | F13: 0.19 | G13: 0.195 | H13: 0.195 | I13: 0.2 | J13: 0.2 | K13: 0.2 | L13: 0.205 | M13: 0.205
A14: 22500 | B14: 0.185 | C14: 0.19 | D14: 0.195 | E14: 0.195 | F14: 0.2 | G14: 0.2 | H14: 0.205 | I14: 0.205 | J14: 0.21 | K14: 0.21 | L14: 0.21 | M14: 0.215
A15: 23000 | B15: 0.19 | C15: 0.195 | D15: 0.2 | E15: 0.2 | F15: 0.205 | G15: 0.205 | H15: 0.21 | I15: 0.21 | J15: 0.215 | K15: 0.215 | L15: 0.22 | M15: 0.22
A16: 23500 | B16: 0.195 | C16: 0.2 | D16: 0.205 | E16: 0.205 | F16: 0.21 | G16: 0.21 | H16: 0.215 | I16: 0.215 | J16: 0.22 | K16: 0.22 | L16: 0.225 | M16: 0.225
A17: 24000 | B17: 0.2 | C17: 0.205 | D17: 0.21 | E17: 0.21 | F17: 0.215 | G17: 0.215 | H17: 0.22 | I17: 0.22 | J17: 0.225 | K17: 0.225 | L17: 0.23 | M17: 0.23
A18: 24500 | B18: 0.205 | C18: 0.21 | D18: 0.215 | E18: 0.215 | F18: 0.22 | G18: 0.22 | H18: 0.225 | I18: 0.225 | J18: 0.23 | K18: 0.23 | L18: 0.235 | M18: 0.235
A19: 25000 | B19: 0.21 | C19: 0.21 | D19: 0.215 | E19: 0.22 | F19: 0.22 | G19: 0.225 | H19: 0.225 | I19: 0.23 | J19: 0.23 | K19: 0.235 | L19: 0.235 | M19: 0.24
A20: 26000 | B20: 0.21 | C20: 0.21 | D20: 0.215 | E20: 0.22 | F20: 0.22 | G20: 0.225 | H20: 0.225 | I20: 0.23 | J20: 0.23 | K20: 0.235 | L20: 0.235 | M20: 0.24
A21: 27000 | B21: 0.21 | C21: 0.21 | D21: 0.215 | E21: 0.22 | F21: 0.22 | G21: 0.225 | H21: 0.225 | I21: 0.23 | J21: 0.23 | K21: 0.235 | L21: 0.235 | M21: 0.24
A22: 28000 | B22: 0.21 | C22: 0.21 | D22: 0.215 | E22: 0.22 | F22: 0.22 | G22: 0.225 | H22: 0.225 | I22: 0.23 | J22: 0.23 | K22: 0.235 | L22: 0.235 | M22: 0.24
A23: 29000 | B23: 0.21 | C23: 0.21 | D23: 0.215 | E23: 0.22 | F23: 0.22 | G23: 0.225 | H23: 0.225 | I23: 0.23 | J23: 0.23 | K23: 0.235 | L23: 0.235 | M23: 0.24
A24: 30000 | B24: 0.21 | C24: 0.21 | D24: 0.215 | E24: 0.22 | F24: 0.22 | G24: 0.225 | H24: 0.225 | I24: 0.23 | J24: 0.23 | K24: 0.235 | L24: 0.235 | M24: 0.24
A25: 31000 | B25: 0.21 | C25: 0.21 | D25: 0.215 | E25: 0.22 | F25: 0.22 | G25: 0.225 | H25: 0.225 | I25: 0.23 | J25: 0.23 | K25: 0.235 | L25: 0.235 | M25: 0.24
A26: 32000 | B26: 0.21 | C26: 0.21 | D26: 0.215 | E26: 0.22 | F26: 0.22 | G26: 0.225 | H26: 0.225 | I26: 0.23 | J26: 0.23 | K26: 0.235 | L26: 0.235 | M26: 0.24
A27: 33000 | B27: 0.21 | C27: 0.21 | D27: 0.215 | E27: 0.22 | F27: 0.22 | G27: 0.225 | H27: 0.225 | I27: 0.23 | J27: 0.23 | K27: 0.235 | L27: 0.235 | M27: 0.24
A28: 34000 | B28: 0.21 | C28: 0.21 | D28: 0.215 | E28: 0.22 | F28: 0.22 | G28: 0.225 | H28: 0.225 | I28: 0.23 | J28: 0.23 | K28: 0.235 | L28: 0.235 | M28: 0.24
A29: 35000 | B29: 0.21 | C29: 0.21 | D29: 0.215 | E29: 0.22 | F29: 0.22 | G29: 0.225 | H29: 0.225 | I29: 0.23 | J29: 0.23 | K29: 0.235 | L29: 0.235 | M29: 0.24
A30: 36000 | B30: 0.21 | C30: 0.21 | D30: 0.215 | E30: 0.22 | F30: 0.22 | G30: 0.225 | H30: 0.225 | I30: 0.23 | J30: 0.23 | K30: 0.235 | L30: 0.235 | M30: 0.24
A31: 37000 | B31: 0.21 | C31: 0.21 | D31: 0.215 | E31: 0.22 | F31: 0.22 | G31: 0.225 | H31: 0.225 | I31: 0.23 | J31: 0.23 | K31: 0.235 | L31: 0.235 | M31: 0.24
A32: 38000 | B32: 0.21 | C32: 0.21 | D32: 0.215 | E32: 0.22 | F32: 0.22 | G32: 0.225 | H32: 0.225 | I32: 0.23 | J32: 0.23 | K32: 0.235 | L32: 0.235 | M32: 0.24
A33: 39000 | B33: 0.21 | C33: 0.21 | D33: 0.215 | E33: 0.22 | F33: 0.22 | G33: 0.225 | H33: 0.225 | I33: 0.23 | J33: 0.23 | K33: 0.235 | L33: 0.235 | M33: 0.24
A34: 40000 | B34: 0.21 | C34: 0.215 | D34: 0.215 | E34: 0.22 | F34: 0.225 | G34: 0.225 | H34: 0.23 | I34: 0.23 | J34: 0.235 | K34: 0.235 | L34: 0.235 | M34: 0.24
A35: 1000000000 | B35: 0.21 | C35: 0.215 | D35: 0.215 | E35: 0.22 | F35: 0.225 | G35: 0.225 | H35: 0.23 | I35: 0.23 | J35: 0.235 | K35: 0.235 | L35: 0.235 | M35: 0.24

Sheet 2023EMA (hidden)
B1: Toetsrente in percentages
A2: Bruto inkomen in euro's | B2: <=1,500% | C2: 1,501-2,000% | D2: 2,001-2,500% | E2: 2,501-3,000% | F2: 3,001-3,500% | G2: 3,501-4,000% | H2: 4,001-4,500% | I2: 4,501-5,000% | J2: 5,001-5,500% | K2: 5,501-6,000% | L2: 6,001-6,500% | M2: > 6,501%
A4: -1 | B4: 0 | C4: 0.01501 | D4: =+C4+0.5% -> 0.02001 | E4: 0.02501 | F4: 0.03001 | G4: 0.03501 | H4: 0.04001 | I4: 0.04501 | J4: 0.05001 | K4: 0.05501 | L4: 0.06001 | M4: 0.06501 | N4: <= beginrente
A5: 0 | B5: 0.18 | C5: 0.185 | D5: 0.19 | E5: 0.19 | F5: 0.195 | G5: 0.195 | H5: 0.2 | I5: 0.2 | J5: 0.2 | K5: 0.205 | L5: 0.205 | M5: 0.205
A6: 26000 | B6: 0.18 | C6: 0.185 | D6: 0.19 | E6: 0.19 | F6: 0.195 | G6: 0.195 | H6: 0.2 | I6: 0.2 | J6: 0.2 | K6: 0.205 | L6: 0.205 | M6: 0.205
A7: 27000 | B7: 0.2 | C7: 0.205 | D7: 0.21 | E7: 0.21 | F7: 0.215 | G7: 0.215 | H7: 0.22 | I7: 0.22 | J7: 0.225 | K7: 0.225 | L7: 0.23 | M7: 0.23
A8: 28000 | B8: 0.215 | C8: 0.22 | D8: 0.225 | E8: 0.23 | F8: 0.235 | G8: 0.235 | H8: 0.24 | I8: 0.24 | J8: 0.245 | K8: 0.245 | L8: 0.25 | M8: 0.25
A9: 29000 | B9: 0.23 | C9: 0.235 | D9: 0.24 | E9: 0.245 | F9: 0.25 | G9: 0.255 | H9: 0.255 | I9: 0.26 | J9: 0.265 | K9: 0.265 | L9: 0.265 | M9: 0.27
A10: 30000 | B10: 0.23 | C10: 0.24 | D10: 0.25 | E10: 0.255 | F10: 0.265 | G10: 0.27 | H10: 0.275 | I10: 0.275 | J10: 0.28 | K10: 0.285 | L10: 0.285 | M10: 0.285
A11: 31000 | B11: 0.23 | C11: 0.245 | D11: 0.255 | E11: 0.26 | F11: 0.27 | G11: 0.275 | H11: 0.28 | I11: 0.285 | J11: 0.29 | K11: 0.295 | L11: 0.3 | M11: 0.3
A12: 32000 | B12: 0.235 | C12: 0.245 | D12: 0.255 | E12: 0.265 | F12: 0.275 | G12: 0.28 | H12: 0.285 | I12: 0.29 | J12: 0.295 | K12: 0.3 | L12: 0.305 | M12: 0.31
A13: 33000 | B13: 0.235 | C13: 0.245 | D13: 0.255 | E13: 0.265 | F13: 0.275 | G13: 0.285 | H13: 0.29 | I13: 0.295 | J13: 0.3 | K13: 0.305 | L13: 0.31 | M13: 0.315
A14: 34000 | B14: 0.235 | C14: 0.245 | D14: 0.255 | E14: 0.265 | F14: 0.275 | G14: 0.285 | H14: 0.295 | I14: 0.3 | J14: 0.305 | K14: 0.31 | L14: 0.315 | M14: 0.32
A15: 35000 | B15: 0.235 | C15: 0.245 | D15: 0.255 | E15: 0.27 | F15: 0.275 | G15: 0.285 | H15: 0.295 | I15: 0.305 | J15: 0.31 | K15: 0.315 | L15: 0.32 | M15: 0.325
A16: 36000 | B16: 0.235 | C16: 0.245 | D16: 0.255 | E16: 0.27 | F16: 0.28 | G16: 0.29 | H16: 0.295 | I16: 0.305 | J16: 0.31 | K16: 0.32 | L16: 0.325 | M16: 0.33
A17: 37000 | B17: 0.235 | C17: 0.245 | D17: 0.26 | E17: 0.27 | F17: 0.28 | G17: 0.29 | H17: 0.295 | I17: 0.305 | J17: 0.315 | K17: 0.32 | L17: 0.325 | M17: 0.33
A18: 38000 | B18: 0.235 | C18: 0.245 | D18: 0.26 | E18: 0.27 | F18: 0.28 | G18: 0.29 | H18: 0.3 | I18: 0.305 | J18: 0.315 | K18: 0.32 | L18: 0.33 | M18: 0.335
A19: 39000 | B19: 0.235 | C19: 0.245 | D19: 0.26 | E19: 0.27 | F19: 0.28 | G19: 0.29 | H19: 0.3 | I19: 0.305 | J19: 0.315 | K19: 0.32 | L19: 0.33 | M19: 0.335
A20: 40000 | B20: 0.235 | C20: 0.245 | D20: 0.26 | E20: 0.27 | F20: 0.28 | G20: 0.29 | H20: 0.3 | I20: 0.305 | J20: 0.315 | K20: 0.32 | L20: 0.33 | M20: 0.335
A21: 41000 | B21: 0.235 | C21: 0.245 | D21: 0.26 | E21: 0.27 | F21: 0.28 | G21: 0.29 | H21: 0.3 | I21: 0.305 | J21: 0.315 | K21: 0.32 | L21: 0.33 | M21: 0.335
A22: 42000 | B22: 0.235 | C22: 0.245 | D22: 0.26 | E22: 0.27 | F22: 0.28 | G22: 0.29 | H22: 0.3 | I22: 0.31 | J22: 0.315 | K22: 0.325 | L22: 0.33 | M22: 0.34
A23: 43000 | B23: 0.24 | C23: 0.25 | D23: 0.26 | E23: 0.27 | F23: 0.28 | G23: 0.29 | H23: 0.3 | I23: 0.31 | J23: 0.32 | K23: 0.325 | L23: 0.335 | M23: 0.34
A24: 44000 | B24: 0.245 | C24: 0.255 | D24: 0.265 | E24: 0.275 | F24: 0.285 | G24: 0.295 | H24: 0.305 | I24: 0.315 | J24: 0.325 | K24: 0.33 | L24: 0.34 | M24: 0.345
A25: 45000 | B25: 0.25 | C25: 0.26 | D25: 0.27 | E25: 0.28 | F25: 0.29 | G25: 0.3 | H25: 0.31 | I25: 0.315 | J25: 0.325 | K25: 0.335 | L25: 0.34 | M25: 0.35
A26: 46000 | B26: 0.255 | C26: 0.265 | D26: 0.275 | E26: 0.28 | F26: 0.29 | G26: 0.3 | H26: 0.31 | I26: 0.32 | J26: 0.33 | K26: 0.34 | L26: 0.345 | M26: 0.355
A27: 47000 | B27: 0.26 | C27: 0.27 | D27: 0.28 | E27: 0.285 | F27: 0.295 | G27: 0.305 | H27: 0.315 | I27: 0.325 | J27: 0.335 | K27: 0.34 | L27: 0.35 | M27: 0.355
A28: 48000 | B28: 0.26 | C28: 0.275 | D28: 0.28 | E28: 0.29 | F28: 0.3 | G28: 0.31 | H28: 0.32 | I28: 0.33 | J28: 0.335 | K28: 0.345 | L28: 0.355 | M28: 0.36
A29: 49000 | B29: 0.265 | C29: 0.275 | D29: 0.285 | E29: 0.295 | F29: 0.305 | G29: 0.315 | H29: 0.32 | I29: 0.33 | J29: 0.34 | K29: 0.35 | L29: 0.355 | M29: 0.365
A30: 50000 | B30: 0.265 | C30: 0.28 | D30: 0.29 | E30: 0.3 | F30: 0.31 | G30: 0.32 | H30: 0.325 | I30: 0.335 | J30: 0.345 | K30: 0.35 | L30: 0.36 | M30: 0.37
A31: 51000 | B31: 0.27 | C31: 0.285 | D31: 0.295 | E31: 0.305 | F31: 0.315 | G31: 0.32 | H31: 0.33 | I31: 0.34 | J31: 0.35 | K31: 0.355 | L31: 0.365 | M31: 0.37
A32: 52000 | B32: 0.27 | C32: 0.285 | D32: 0.3 | E32: 0.31 | F32: 0.32 | G32: 0.325 | H32: 0.335 | I32: 0.345 | J32: 0.35 | K32: 0.36 | L32: 0.37 | M32: 0.375
A33: 53000 | B33: 0.27 | C33: 0.285 | D33: 0.3 | E33: 0.315 | F33: 0.325 | G33: 0.33 | H33: 0.34 | I33: 0.35 | J33: 0.355 | K33: 0.365 | L33: 0.37 | M33: 0.38
A34: 54000 | B34: 0.27 | C34: 0.285 | D34: 0.3 | E34: 0.315 | F34: 0.33 | G34: 0.335 | H34: 0.345 | I34: 0.355 | J34: 0.36 | K34: 0.37 | L34: 0.375 | M34: 0.385
A35: 55000 | B35: 0.27 | C35: 0.29 | D35: 0.305 | E35: 0.32 | F35: 0.33 | G35: 0.34 | H35: 0.35 | I35: 0.355 | J35: 0.365 | K35: 0.37 | L35: 0.38 | M35: 0.39
A36: 56000 | B36: 0.27 | C36: 0.29 | D36: 0.305 | E36: 0.32 | F36: 0.335 | G36: 0.345 | H36: 0.355 | I36: 0.36 | J36: 0.37 | K36: 0.375 | L36: 0.385 | M36: 0.39
A37: 57000 | B37: 0.27 | C37: 0.29 | D37: 0.305 | E37: 0.325 | F37: 0.34 | G37: 0.35 | H37: 0.36 | I37: 0.365 | J37: 0.375 | K37: 0.38 | L37: 0.385 | M37: 0.395
A38: 58000 | B38: 0.27 | C38: 0.29 | D38: 0.305 | E38: 0.325 | F38: 0.34 | G38: 0.355 | H38: 0.365 | I38: 0.37 | J38: 0.38 | K38: 0.385 | L38: 0.39 | M38: 0.4
A39: 59000 | B39: 0.27 | C39: 0.29 | D39: 0.305 | E39: 0.325 | F39: 0.34 | G39: 0.355 | H39: 0.365 | I39: 0.375 | J39: 0.38 | K39: 0.39 | L39: 0.395 | M39: 0.4
A40: 60000 | B40: 0.27 | C40: 0.29 | D40: 0.305 | E40: 0.325 | F40: 0.34 | G40: 0.355 | H40: 0.37 | I40: 0.38 | J40: 0.385 | K40: 0.395 | L40: 0.4 | M40: 0.405
A41: 61000 | B41: 0.27 | C41: 0.29 | D41: 0.305 | E41: 0.325 | F41: 0.34 | G41: 0.36 | H41: 0.37 | I41: 0.38 | J41: 0.39 | K41: 0.395 | L41: 0.405 | M41: 0.41
A42: 62000 | B42: 0.27 | C42: 0.29 | D42: 0.305 | E42: 0.325 | F42: 0.34 | G42: 0.36 | H42: 0.375 | I42: 0.385 | J42: 0.395 | K42: 0.4 | L42: 0.405 | M42: 0.415
A43: 63000 | B43: 0.27 | C43: 0.29 | D43: 0.305 | E43: 0.325 | F43: 0.34 | G43: 0.36 | H43: 0.375 | I43: 0.385 | J43: 0.395 | K43: 0.405 | L43: 0.41 | M43: 0.415
A44: 64000 | B44: 0.27 | C44: 0.29 | D44: 0.305 | E44: 0.325 | F44: 0.34 | G44: 0.36 | H44: 0.375 | I44: 0.385 | J44: 0.395 | K44: 0.405 | L44: 0.415 | M44: 0.42
A45: 65000 | B45: 0.27 | C45: 0.29 | D45: 0.305 | E45: 0.325 | F45: 0.34 | G45: 0.36 | H45: 0.375 | I45: 0.385 | J45: 0.395 | K45: 0.41 | L45: 0.415 | M45: 0.425
A46: 66000 | B46: 0.27 | C46: 0.29 | D46: 0.305 | E46: 0.325 | F46: 0.34 | G46: 0.36 | H46: 0.375 | I46: 0.385 | J46: 0.395 | K46: 0.41 | L46: 0.42 | M46: 0.425
A47: 67000 | B47: 0.27 | C47: 0.29 | D47: 0.305 | E47: 0.325 | F47: 0.34 | G47: 0.36 | H47: 0.375 | I47: 0.385 | J47: 0.395 | K47: 0.41 | L47: 0.42 | M47: 0.43
A48: 68000 | B48: 0.275 | C48: 0.29 | D48: 0.305 | E48: 0.325 | F48: 0.34 | G48: 0.36 | H48: 0.375 | I48: 0.385 | J48: 0.395 | K48: 0.41 | L48: 0.42 | M48: 0.43
A49: 69000 | B49: 0.275 | C49: 0.29 | D49: 0.305 | E49: 0.325 | F49: 0.34 | G49: 0.36 | H49: 0.375 | I49: 0.385 | J49: 0.395 | K49: 0.41 | L49: 0.42 | M49: 0.43
A50: 70000 | B50: 0.275 | C50: 0.29 | D50: 0.305 | E50: 0.325 | F50: 0.34 | G50: 0.36 | H50: 0.375 | I50: 0.385 | J50: 0.395 | K50: 0.41 | L50: 0.42 | M50: 0.43
A51: 71000 | B51: 0.28 | C51: 0.295 | D51: 0.31 | E51: 0.325 | F51: 0.34 | G51: 0.36 | H51: 0.375 | I51: 0.385 | J51: 0.395 | K51: 0.41 | L51: 0.42 | M51: 0.43
A52: 72000 | B52: 0.28 | C52: 0.295 | D52: 0.31 | E52: 0.325 | F52: 0.34 | G52: 0.36 | H52: 0.375 | I52: 0.385 | J52: 0.395 | K52: 0.41 | L52: 0.42 | M52: 0.43
A53: 73000 | B53: 0.28 | C53: 0.295 | D53: 0.31 | E53: 0.325 | F53: 0.34 | G53: 0.36 | H53: 0.375 | I53: 0.385 | J53: 0.395 | K53: 0.41 | L53: 0.42 | M53: 0.43
A54: 74000 | B54: 0.285 | C54: 0.3 | D54: 0.315 | E54: 0.33 | F54: 0.34 | G54: 0.36 | H54: 0.375 | I54: 0.385 | J54: 0.395 | K54: 0.41 | L54: 0.42 | M54: 0.43
A55: 75000 | B55: 0.285 | C55: 0.3 | D55: 0.315 | E55: 0.33 | F55: 0.345 | G55: 0.36 | H55: 0.375 | I55: 0.385 | J55: 0.395 | K55: 0.41 | L55: 0.42 | M55: 0.43
A56: 76000 | B56: 0.285 | C56: 0.3 | D56: 0.315 | E56: 0.33 | F56: 0.345 | G56: 0.36 | H56: 0.375 | I56: 0.385 | J56: 0.395 | K56: 0.41 | L56: 0.42 | M56: 0.43
A57: 77000 | B57: 0.285 | C57: 0.3 | D57: 0.315 | E57: 0.33 | F57: 0.345 | G57: 0.36 | H57: 0.375 | I57: 0.385 | J57: 0.395 | K57: 0.41 | L57: 0.42 | M57: 0.43
A58: 78000 | B58: 0.285 | C58: 0.3 | D58: 0.315 | E58: 0.33 | F58: 0.345 | G58: 0.36 | H58: 0.375 | I58: 0.385 | J58: 0.395 | K58: 0.41 | L58: 0.42 | M58: 0.43
A59: 79000 | B59: 0.285 | C59: 0.3 | D59: 0.315 | E59: 0.33 | F59: 0.345 | G59: 0.36 | H59: 0.375 | I59: 0.385 | J59: 0.395 | K59: 0.41 | L59: 0.42 | M59: 0.43
A60: 80000 | B60: 0.285 | C60: 0.3 | D60: 0.315 | E60: 0.33 | F60: 0.345 | G60: 0.36 | H60: 0.375 | I60: 0.385 | J60: 0.395 | K60: 0.41 | L60: 0.42 | M60: 0.43
A61: 81000 | B61: 0.285 | C61: 0.3 | D61: 0.315 | E61: 0.33 | F61: 0.345 | G61: 0.36 | H61: 0.375 | I61: 0.385 | J61: 0.395 | K61: 0.41 | L61: 0.42 | M61: 0.43
A62: 82000 | B62: 0.285 | C62: 0.3 | D62: 0.315 | E62: 0.33 | F62: 0.345 | G62: 0.36 | H62: 0.375 | I62: 0.385 | J62: 0.395 | K62: 0.41 | L62: 0.42 | M62: 0.43
A63: 83000 | B63: 0.285 | C63: 0.3 | D63: 0.315 | E63: 0.33 | F63: 0.345 | G63: 0.36 | H63: 0.375 | I63: 0.385 | J63: 0.395 | K63: 0.41 | L63: 0.42 | M63: 0.43
A64: 84000 | B64: 0.285 | C64: 0.3 | D64: 0.315 | E64: 0.33 | F64: 0.345 | G64: 0.36 | H64: 0.375 | I64: 0.385 | J64: 0.395 | K64: 0.41 | L64: 0.42 | M64: 0.43
A65: 85000 | B65: 0.285 | C65: 0.3 | D65: 0.315 | E65: 0.33 | F65: 0.345 | G65: 0.36 | H65: 0.375 | I65: 0.385 | J65: 0.395 | K65: 0.41 | L65: 0.42 | M65: 0.43
A66: 86000 | B66: 0.285 | C66: 0.3 | D66: 0.315 | E66: 0.33 | F66: 0.345 | G66: 0.36 | H66: 0.375 | I66: 0.385 | J66: 0.395 | K66: 0.41 | L66: 0.42 | M66: 0.43
A67: 87000 | B67: 0.285 | C67: 0.3 | D67: 0.315 | E67: 0.33 | F67: 0.345 | G67: 0.36 | H67: 0.375 | I67: 0.385 | J67: 0.395 | K67: 0.41 | L67: 0.42 | M67: 0.43
A68: 88000 | B68: 0.285 | C68: 0.3 | D68: 0.315 | E68: 0.33 | F68: 0.345 | G68: 0.36 | H68: 0.375 | I68: 0.385 | J68: 0.395 | K68: 0.41 | L68: 0.42 | M68: 0.43
A69: 89000 | B69: 0.285 | C69: 0.3 | D69: 0.315 | E69: 0.33 | F69: 0.345 | G69: 0.36 | H69: 0.375 | I69: 0.385 | J69: 0.395 | K69: 0.41 | L69: 0.42 | M69: 0.43
A70: 90000 | B70: 0.285 | C70: 0.3 | D70: 0.315 | E70: 0.33 | F70: 0.345 | G70: 0.36 | H70: 0.375 | I70: 0.385 | J70: 0.395 | K70: 0.41 | L70: 0.42 | M70: 0.43
A71: 91000 | B71: 0.285 | C71: 0.3 | D71: 0.315 | E71: 0.33 | F71: 0.345 | G71: 0.36 | H71: 0.375 | I71: 0.385 | J71: 0.395 | K71: 0.41 | L71: 0.42 | M71: 0.43
A72: 92000 | B72: 0.285 | C72: 0.3 | D72: 0.315 | E72: 0.33 | F72: 0.345 | G72: 0.36 | H72: 0.375 | I72: 0.385 | J72: 0.395 | K72: 0.41 | L72: 0.42 | M72: 0.43
A73: 93000 | B73: 0.285 | C73: 0.3 | D73: 0.315 | E73: 0.33 | F73: 0.345 | G73: 0.36 | H73: 0.375 | I73: 0.385 | J73: 0.395 | K73: 0.41 | L73: 0.42 | M73: 0.43
A74: 94000 | B74: 0.285 | C74: 0.3 | D74: 0.315 | E74: 0.33 | F74: 0.345 | G74: 0.36 | H74: 0.375 | I74: 0.385 | J74: 0.395 | K74: 0.41 | L74: 0.42 | M74: 0.43
A75: 95000 | B75: 0.285 | C75: 0.3 | D75: 0.315 | E75: 0.33 | F75: 0.345 | G75: 0.36 | H75: 0.375 | I75: 0.385 | J75: 0.395 | K75: 0.41 | L75: 0.42 | M75: 0.43
A76: 96000 | B76: 0.285 | C76: 0.3 | D76: 0.315 | E76: 0.33 | F76: 0.345 | G76: 0.36 | H76: 0.375 | I76: 0.385 | J76: 0.395 | K76: 0.41 | L76: 0.42 | M76: 0.43
A77: 97000 | B77: 0.285 | C77: 0.3 | D77: 0.315 | E77: 0.33 | F77: 0.345 | G77: 0.36 | H77: 0.375 | I77: 0.385 | J77: 0.395 | K77: 0.41 | L77: 0.42 | M77: 0.43
A78: 98000 | B78: 0.285 | C78: 0.3 | D78: 0.315 | E78: 0.33 | F78: 0.345 | G78: 0.36 | H78: 0.375 | I78: 0.385 | J78: 0.395 | K78: 0.41 | L78: 0.42 | M78: 0.43
A79: 99000 | B79: 0.285 | C79: 0.3 | D79: 0.315 | E79: 0.33 | F79: 0.345 | G79: 0.36 | H79: 0.375 | I79: 0.385 | J79: 0.395 | K79: 0.41 | L79: 0.42 | M79: 0.43
A80: 100000 | B80: 0.285 | C80: 0.3 | D80: 0.315 | E80: 0.33 | F80: 0.345 | G80: 0.36 | H80: 0.375 | I80: 0.385 | J80: 0.395 | K80: 0.41 | L80: 0.42 | M80: 0.43
A81: 101000 | B81: 0.285 | C81: 0.3 | D81: 0.315 | E81: 0.33 | F81: 0.345 | G81: 0.36 | H81: 0.375 | I81: 0.385 | J81: 0.395 | K81: 0.41 | L81: 0.42 | M81: 0.43
A82: 102000 | B82: 0.285 | C82: 0.3 | D82: 0.315 | E82: 0.33 | F82: 0.345 | G82: 0.36 | H82: 0.375 | I82: 0.385 | J82: 0.395 | K82: 0.41 | L82: 0.42 | M82: 0.43
A83: 103000 | B83: 0.285 | C83: 0.3 | D83: 0.315 | E83: 0.33 | F83: 0.345 | G83: 0.36 | H83: 0.375 | I83: 0.385 | J83: 0.395 | K83: 0.41 | L83: 0.42 | M83: 0.43
A84: 104000 | B84: 0.285 | C84: 0.3 | D84: 0.315 | E84: 0.33 | F84: 0.345 | G84: 0.36 | H84: 0.375 | I84: 0.385 | J84: 0.395 | K84: 0.41 | L84: 0.42 | M84: 0.43
A85: 105000 | B85: 0.285 | C85: 0.3 | D85: 0.315 | E85: 0.33 | F85: 0.345 | G85: 0.36 | H85: 0.375 | I85: 0.385 | J85: 0.395 | K85: 0.41 | L85: 0.42 | M85: 0.43
A86: 106000 | B86: 0.285 | C86: 0.3 | D86: 0.315 | E86: 0.33 | F86: 0.345 | G86: 0.36 | H86: 0.375 | I86: 0.385 | J86: 0.395 | K86: 0.41 | L86: 0.42 | M86: 0.43
A87: 107000 | B87: 0.285 | C87: 0.3 | D87: 0.315 | E87: 0.33 | F87: 0.345 | G87: 0.36 | H87: 0.375 | I87: 0.385 | J87: 0.395 | K87: 0.41 | L87: 0.42 | M87: 0.43
A88: 108000 | B88: 0.285 | C88: 0.3 | D88: 0.315 | E88: 0.33 | F88: 0.345 | G88: 0.36 | H88: 0.375 | I88: 0.385 | J88: 0.395 | K88: 0.41 | L88: 0.42 | M88: 0.43
A89: 109000 | B89: 0.285 | C89: 0.3 | D89: 0.315 | E89: 0.33 | F89: 0.345 | G89: 0.36 | H89: 0.375 | I89: 0.385 | J89: 0.395 | K89: 0.41 | L89: 0.42 | M89: 0.43
A90: 110000 | B90: 0.285 | C90: 0.3 | D90: 0.315 | E90: 0.33 | F90: 0.345 | G90: 0.36 | H90: 0.375 | I90: 0.385 | J90: 0.395 | K90: 0.41 | L90: 0.42 | M90: 0.43
A91: 1000000000 | B91: 0.285 | C91: 0.3 | D91: 0.315 | E91: 0.33 | F91: 0.345 | G91: 0.36 | H91: 0.375 | I91: 0.385 | J91: 0.395 | K91: 0.41 | L91: 0.42 | M91: 0.43

Sheet 2023EMABOX3 (hidden)
B1: Toetsrente in percentages
A2: Bruto inkomen in euro's | B2: <=1,500% | C2: 1,501-2,000% | D2: 2,001-2,500% | E2: 2,501-3,000% | F2: 3,001-3,500% | G2: 3,501-4,000% | H2: 4,001-4,500% | I2: 4,501-5,000% | J2: 5,001-5,500% | K2: 5,501-6,000% | L2: 6,001-6,500% | M2: > 6,501%
A4: -1 | B4: 0 | C4: 0.01501 | D4: =+C4+0.5% -> 0.02001 | E4: 0.02501 | F4: 0.03001 | G4: 0.03501 | H4: 0.04001 | I4: 0.04501 | J4: 0.05001 | K4: 0.05501 | L4: 0.06001 | M4: 0.06501 | N4: <= beginrente
A5: 0 | B5: 0.18 | C5: 0.18 | D5: 0.185 | E5: 0.185 | F5: 0.19 | G5: 0.19 | H5: 0.195 | I5: 0.195 | J5: 0.2 | K5: 0.2 | L5: 0.2 | M5: 0.205
A6: 26000 | B6: 0.18 | C6: 0.18 | D6: 0.185 | E6: 0.185 | F6: 0.19 | G6: 0.19 | H6: 0.195 | I6: 0.195 | J6: 0.2 | K6: 0.2 | L6: 0.2 | M6: 0.205
A7: 27000 | B7: 0.195 | C7: 0.195 | D7: 0.2 | E7: 0.205 | F7: 0.205 | G7: 0.21 | H7: 0.21 | I7: 0.215 | J7: 0.215 | K7: 0.215 | L7: 0.22 | M7: 0.22
A8: 28000 | B8: 0.21 | C8: 0.21 | D8: 0.215 | E8: 0.22 | F8: 0.22 | G8: 0.225 | H8: 0.225 | I8: 0.23 | J8: 0.23 | K8: 0.235 | L8: 0.235 | M8: 0.24
A9: 29000 | B9: 0.22 | C9: 0.22 | D9: 0.225 | E9: 0.23 | F9: 0.23 | G9: 0.235 | H9: 0.235 | I9: 0.24 | J9: 0.24 | K9: 0.245 | L9: 0.245 | M9: 0.25
A10: 30000 | B10: 0.22 | C10: 0.225 | D10: 0.225 | E10: 0.23 | F10: 0.235 | G10: 0.235 | H10: 0.24 | I10: 0.24 | J10: 0.245 | K10: 0.245 | L10: 0.25 | M10: 0.25
A11: 31000 | B11: 0.22 | C11: 0.225 | D11: 0.23 | E11: 0.23 | F11: 0.235 | G11: 0.24 | H11: 0.24 | I11: 0.245 | J11: 0.245 | K11: 0.25 | L11: 0.25 | M11: 0.25
A12: 32000 | B12: 0.22 | C12: 0.225 | D12: 0.23 | E12: 0.235 | F12: 0.235 | G12: 0.24 | H12: 0.24 | I12: 0.245 | J12: 0.245 | K12: 0.25 | L12: 0.25 | M12: 0.255
A13: 33000 | B13: 0.22 | C13: 0.225 | D13: 0.23 | E13: 0.235 | F13: 0.235 | G13: 0.24 | H13: 0.24 | I13: 0.245 | J13: 0.245 | K13: 0.25 | L13: 0.25 | M13: 0.255
A14: 34000 | B14: 0.22 | C14: 0.225 | D14: 0.23 | E14: 0.235 | F14: 0.235 | G14: 0.24 | H14: 0.24 | I14: 0.245 | J14: 0.245 | K14: 0.25 | L14: 0.25 | M14: 0.255
A15: 35000 | B15: 0.22 | C15: 0.225 | D15: 0.23 | E15: 0.235 | F15: 0.235 | G15: 0.24 | H15: 0.24 | I15: 0.245 | J15: 0.25 | K15: 0.25 | L15: 0.25 | M15: 0.255
A16: 36000 | B16: 0.22 | C16: 0.225 | D16: 0.23 | E16: 0.235 | F16: 0.235 | G16: 0.24 | H16: 0.245 | I16: 0.245 | J16: 0.25 | K16: 0.25 | L16: 0.25 | M16: 0.255
A17: 37000 | B17: 0.22 | C17: 0.225 | D17: 0.23 | E17: 0.235 | F17: 0.235 | G17: 0.24 | H17: 0.245 | I17: 0.245 | J17: 0.25 | K17: 0.25 | L17: 0.25 | M17: 0.255
A18: 38000 | B18: 0.225 | C18: 0.225 | D18: 0.23 | E18: 0.235 | F18: 0.235 | G18: 0.24 | H18: 0.245 | I18: 0.245 | J18: 0.25 | K18: 0.25 | L18: 0.255 | M18: 0.255
A19: 39000 | B19: 0.225 | C19: 0.225 | D19: 0.23 | E19: 0.235 | F19: 0.24 | G19: 0.24 | H19: 0.245 | I19: 0.245 | J19: 0.25 | K19: 0.25 | L19: 0.255 | M19: 0.255
A20: 40000 | B20: 0.225 | C20: 0.23 | D20: 0.23 | E20: 0.235 | F20: 0.24 | G20: 0.24 | H20: 0.245 | I20: 0.245 | J20: 0.25 | K20: 0.25 | L20: 0.255 | M20: 0.255
A21: 41000 | B21: 0.225 | C21: 0.23 | D21: 0.235 | E21: 0.235 | F21: 0.24 | G21: 0.245 | H21: 0.245 | I21: 0.25 | J21: 0.25 | K21: 0.255 | L21: 0.255 | M21: 0.255
A22: 42000 | B22: 0.23 | C22: 0.23 | D22: 0.235 | E22: 0.24 | F22: 0.245 | G22: 0.245 | H22: 0.25 | I22: 0.25 | J22: 0.255 | K22: 0.255 | L22: 0.26 | M22: 0.26
A23: 43000 | B23: 0.235 | C23: 0.235 | D23: 0.24 | E23: 0.245 | F23: 0.25 | G23: 0.25 | H23: 0.255 | I23: 0.255 | J23: 0.26 | K23: 0.26 | L23: 0.265 | M23: 0.265
A24: 44000 | B24: 0.24 | C24: 0.24 | D24: 0.245 | E24: 0.25 | F24: 0.255 | G24: 0.255 | H24: 0.26 | I24: 0.26 | J24: 0.265 | K24: 0.265 | L24: 0.27 | M24: 0.27
A25: 45000 | B25: 0.24 | C25: 0.245 | D25: 0.25 | E25: 0.255 | F25: 0.255 | G25: 0.26 | H25: 0.265 | I25: 0.265 | J25: 0.27 | K25: 0.27 | L25: 0.275 | M25: 0.275
A26: 46000 | B26: 0.245 | C26: 0.25 | D26: 0.255 | E26: 0.255 | F26: 0.26 | G26: 0.265 | H26: 0.265 | I26: 0.27 | J26: 0.275 | K26: 0.275 | L26: 0.28 | M26: 0.28
A27: 47000 | B27: 0.245 | C27: 0.25 | D27: 0.255 | E27: 0.26 | F27: 0.265 | G27: 0.265 | H27: 0.27 | I27: 0.275 | J27: 0.275 | K27: 0.28 | L27: 0.28 | M27: 0.285
A28: 48000 | B28: 0.25 | C28: 0.255 | D28: 0.255 | E28: 0.26 | F28: 0.265 | G28: 0.27 | H28: 0.27 | I28: 0.275 | J28: 0.275 | K28: 0.28 | L28: 0.28 | M28: 0.285
A29: 49000 | B29: 0.25 | C29: 0.255 | D29: 0.26 | E29: 0.26 | F29: 0.265 | G29: 0.27 | H29: 0.27 | I29: 0.275 | J29: 0.28 | K29: 0.28 | L29: 0.285 | M29: 0.285
A30: 50000 | B30: 0.25 | C30: 0.255 | D30: 0.26 | E30: 0.26 | F30: 0.265 | G30: 0.27 | H30: 0.27 | I30: 0.275 | J30: 0.28 | K30: 0.28 | L30: 0.285 | M30: 0.285
A31: 51000 | B31: 0.25 | C31: 0.255 | D31: 0.26 | E31: 0.26 | F31: 0.265 | G31: 0.27 | H31: 0.27 | I31: 0.275 | J31: 0.28 | K31: 0.28 | L31: 0.285 | M31: 0.285
A32: 52000 | B32: 0.25 | C32: 0.255 | D32: 0.26 | E32: 0.26 | F32: 0.265 | G32: 0.27 | H32: 0.27 | I32: 0.275 | J32: 0.28 | K32: 0.28 | L32: 0.285 | M32: 0.285
A33: 53000 | B33: 0.25 | C33: 0.255 | D33: 0.26 | E33: 0.26 | F33: 0.265 | G33: 0.27 | H33: 0.27 | I33: 0.275 | J33: 0.28 | K33: 0.28 | L33: 0.285 | M33: 0.285
A34: 54000 | B34: 0.25 | C34: 0.255 | D34: 0.26 | E34: 0.26 | F34: 0.265 | G34: 0.27 | H34: 0.27 | I34: 0.275 | J34: 0.28 | K34: 0.28 | L34: 0.285 | M34: 0.285
A35: 55000 | B35: 0.25 | C35: 0.255 | D35: 0.26 | E35: 0.26 | F35: 0.265 | G35: 0.27 | H35: 0.27 | I35: 0.275 | J35: 0.28 | K35: 0.28 | L35: 0.285 | M35: 0.285
A36: 56000 | B36: 0.25 | C36: 0.255 | D36: 0.26 | E36: 0.26 | F36: 0.265 | G36: 0.27 | H36: 0.27 | I36: 0.275 | J36: 0.28 | K36: 0.28 | L36: 0.285 | M36: 0.285
A37: 57000 | B37: 0.25 | C37: 0.255 | D37: 0.26 | E37: 0.26 | F37: 0.265 | G37: 0.27 | H37: 0.27 | I37: 0.275 | J37: 0.28 | K37: 0.28 | L37: 0.285 | M37: 0.285
A38: 58000 | B38: 0.25 | C38: 0.255 | D38: 0.26 | E38: 0.26 | F38: 0.265 | G38: 0.27 | H38: 0.27 | I38: 0.275 | J38: 0.28 | K38: 0.28 | L38: 0.285 | M38: 0.285
A39: 59000 | B39: 0.25 | C39: 0.255 | D39: 0.26 | E39: 0.26 | F39: 0.265 | G39: 0.27 | H39: 0.27 | I39: 0.275 | J39: 0.28 | K39: 0.28 | L39: 0.285 | M39: 0.285
A40: 60000 | B40: 0.25 | C40: 0.255 | D40: 0.26 | E40: 0.26 | F40: 0.265 | G40: 0.27 | H40: 0.27 | I40: 0.275 | J40: 0.28 | K40: 0.28 | L40: 0.285 | M40: 0.285
A41: 61000 | B41: 0.25 | C41: 0.255 | D41: 0.26 | E41: 0.26 | F41: 0.265 | G41: 0.27 | H41: 0.27 | I41: 0.275 | J41: 0.28 | K41: 0.28 | L41: 0.285 | M41: 0.285
A42: 62000 | B42: 0.25 | C42: 0.255 | D42: 0.26 | E42: 0.265 | F42: 0.265 | G42: 0.27 | H42: 0.275 | I42: 0.275 | J42: 0.28 | K42: 0.28 | L42: 0.285 | M42: 0.285
A43: 63000 | B43: 0.25 | C43: 0.255 | D43: 0.26 | E43: 0.265 | F43: 0.27 | G43: 0.27 | H43: 0.275 | I43: 0.28 | J43: 0.28 | K43: 0.285 | L43: 0.285 | M43: 0.29
A44: 64000 | B44: 0.255 | C44: 0.26 | D44: 0.26 | E44: 0.265 | F44: 0.27 | G44: 0.275 | H44: 0.275 | I44: 0.28 | J44: 0.285 | K44: 0.285 | L44: 0.29 | M44: 0.29
A45: 65000 | B45: 0.255 | C45: 0.26 | D45: 0.265 | E45: 0.265 | F45: 0.27 | G45: 0.275 | H45: 0.28 | I45: 0.28 | J45: 0.285 | K45: 0.285 | L45: 0.29 | M45: 0.29
A46: 66000 | B46: 0.255 | C46: 0.26 | D46: 0.265 | E46: 0.27 | F46: 0.27 | G46: 0.275 | H46: 0.28 | I46: 0.28 | J46: 0.285 | K46: 0.29 | L46: 0.29 | M46: 0.295
A47: 67000 | B47: 0.255 | C47: 0.26 | D47: 0.265 | E47: 0.27 | F47: 0.275 | G47: 0.275 | H47: 0.28 | I47: 0.285 | J47: 0.285 | K47: 0.29 | L47: 0.29 | M47: 0.295
A48: 68000 | B48: 0.26 | C48: 0.265 | D48: 0.265 | E48: 0.27 | F48: 0.275 | G48: 0.28 | H48: 0.28 | I48: 0.285 | J48: 0.29 | K48: 0.29 | L48: 0.295 | M48: 0.295
A49: 69000 | B49: 0.26 | C49: 0.265 | D49: 0.27 | E49: 0.27 | F49: 0.275 | G49: 0.28 | H49: 0.285 | I49: 0.285 | J49: 0.29 | K49: 0.29 | L49: 0.295 | M49: 0.295
A50: 70000 | B50: 0.26 | C50: 0.265 | D50: 0.27 | E50: 0.275 | F50: 0.28 | G50: 0.28 | H50: 0.285 | I50: 0.29 | J50: 0.29 | K50: 0.295 | L50: 0.295 | M50: 0.3
A51: 71000 | B51: 0.26 | C51: 0.265 | D51: 0.27 | E51: 0.275 | F51: 0.28 | G51: 0.285 | H51: 0.285 | I51: 0.29 | J51: 0.29 | K51: 0.295 | L51: 0.3 | M51: 0.3
A52: 72000 | B52: 0.265 | C52: 0.27 | D52: 0.275 | E52: 0.275 | F52: 0.28 | G52: 0.285 | H52: 0.29 | I52: 0.29 | J52: 0.295 | K52: 0.295 | L52: 0.3 | M52: 0.3
A53: 73000 | B53: 0.265 | C53: 0.27 | D53: 0.275 | E53: 0.28 | F53: 0.28 | G53: 0.285 | H53: 0.29 | I53: 0.295 | J53: 0.295 | K53: 0.3 | L53: 0.3 | M53: 0.305
A54: 74000 | B54: 0.265 | C54: 0.27 | D54: 0.275 | E54: 0.28 | F54: 0.285 | G54: 0.285 | H54: 0.29 | I54: 0.295 | J54: 0.295 | K54: 0.3 | L54: 0.305 | M54: 0.305
A55: 75000 | B55: 0.27 | C55: 0.275 | D55: 0.275 | E55: 0.28 | F55: 0.285 | G55: 0.29 | H55: 0.295 | I55: 0.295 | J55: 0.3 | K55: 0.3 | L55: 0.305 | M55: 0.305
A56: 76000 | B56: 0.27 | C56: 0.275 | D56: 0.28 | E56: 0.285 | F56: 0.285 | G56: 0.29 | H56: 0.295 | I56: 0.295 | J56: 0.3 | K56: 0.305 | L56: 0.305 | M56: 0.31
A57: 77000 | B57: 0.27 | C57: 0.275 | D57: 0.28 | E57: 0.285 | F57: 0.29 | G57: 0.29 | H57: 0.295 | I57: 0.3 | J57: 0.3 | K57: 0.305 | L57: 0.305 | M57: 0.31
A58: 78000 | B58: 0.27 | C58: 0.275 | D58: 0.28 | E58: 0.285 | F58: 0.29 | G58: 0.29 | H58: 0.295 | I58: 0.3 | J58: 0.3 | K58: 0.305 | L58: 0.305 | M58: 0.31
A59: 79000 | B59: 0.27 | C59: 0.275 | D59: 0.28 | E59: 0.285 | F59: 0.29 | G59: 0.29 | H59: 0.295 | I59: 0.3 | J59: 0.3 | K59: 0.305 | L59: 0.305 | M59: 0.31
A60: 80000 | B60: 0.27 | C60: 0.275 | D60: 0.28 | E60: 0.285 | F60: 0.29 | G60: 0.29 | H60: 0.295 | I60: 0.3 | J60: 0.3 | K60: 0.305 | L60: 0.305 | M60: 0.31
A61: 81000 | B61: 0.27 | C61: 0.275 | D61: 0.28 | E61: 0.285 | F61: 0.29 | G61: 0.29 | H61: 0.295 | I61: 0.3 | J61: 0.3 | K61: 0.305 | L61: 0.305 | M61: 0.31
A62: 82000 | B62: 0.27 | C62: 0.275 | D62: 0.28 | E62: 0.285 | F62: 0.29 | G62: 0.29 | H62: 0.295 | I62: 0.3 | J62: 0.3 | K62: 0.305 | L62: 0.305 | M62: 0.31
A63: 83000 | B63: 0.27 | C63: 0.275 | D63: 0.28 | E63: 0.285 | F63: 0.29 | G63: 0.29 | H63: 0.295 | I63: 0.3 | J63: 0.3 | K63: 0.305 | L63: 0.305 | M63: 0.31
A64: 84000 | B64: 0.27 | C64: 0.275 | D64: 0.28 | E64: 0.285 | F64: 0.29 | G64: 0.29 | H64: 0.295 | I64: 0.3 | J64: 0.3 | K64: 0.305 | L64: 0.305 | M64: 0.31
A65: 85000 | B65: 0.27 | C65: 0.275 | D65: 0.28 | E65: 0.285 | F65: 0.29 | G65: 0.29 | H65: 0.295 | I65: 0.3 | J65: 0.3 | K65: 0.305 | L65: 0.305 | M65: 0.31
A66: 86000 | B66: 0.27 | C66: 0.275 | D66: 0.28 | E66: 0.285 | F66: 0.29 | G66: 0.29 | H66: 0.295 | I66: 0.3 | J66: 0.3 | K66: 0.305 | L66: 0.305 | M66: 0.31
A67: 87000 | B67: 0.27 | C67: 0.275 | D67: 0.28 | E67: 0.285 | F67: 0.29 | G67: 0.29 | H67: 0.295 | I67: 0.3 | J67: 0.3 | K67: 0.305 | L67: 0.305 | M67: 0.31
A68: 88000 | B68: 0.27 | C68: 0.275 | D68: 0.28 | E68: 0.285 | F68: 0.29 | G68: 0.29 | H68: 0.295 | I68: 0.3 | J68: 0.3 | K68: 0.305 | L68: 0.305 | M68: 0.31
A69: 89000 | B69: 0.27 | C69: 0.275 | D69: 0.28 | E69: 0.285 | F69: 0.29 | G69: 0.29 | H69: 0.295 | I69: 0.3 | J69: 0.3 | K69: 0.305 | L69: 0.305 | M69: 0.31
A70: 90000 | B70: 0.27 | C70: 0.275 | D70: 0.28 | E70: 0.285 | F70: 0.29 | G70: 0.29 | H70: 0.295 | I70: 0.3 | J70: 0.3 | K70: 0.305 | L70: 0.305 | M70: 0.31
A71: 91000 | B71: 0.27 | C71: 0.275 | D71: 0.28 | E71: 0.285 | F71: 0.29 | G71: 0.29 | H71: 0.295 | I71: 0.3 | J71: 0.3 | K71: 0.305 | L71: 0.305 | M71: 0.31
A72: 92000 | B72: 0.27 | C72: 0.275 | D72: 0.28 | E72: 0.285 | F72: 0.29 | G72: 0.29 | H72: 0.295 | I72: 0.3 | J72: 0.3 | K72: 0.305 | L72: 0.305 | M72: 0.31
A73: 93000 | B73: 0.27 | C73: 0.275 | D73: 0.28 | E73: 0.285 | F73: 0.29 | G73: 0.29 | H73: 0.295 | I73: 0.3 | J73: 0.3 | K73: 0.305 | L73: 0.305 | M73: 0.31
A74: 94000 | B74: 0.27 | C74: 0.275 | D74: 0.28 | E74: 0.285 | F74: 0.29 | G74: 0.29 | H74: 0.295 | I74: 0.3 | J74: 0.3 | K74: 0.305 | L74: 0.305 | M74: 0.31
A75: 95000 | B75: 0.27 | C75: 0.275 | D75: 0.28 | E75: 0.285 | F75: 0.29 | G75: 0.29 | H75: 0.295 | I75: 0.3 | J75: 0.3 | K75: 0.305 | L75: 0.305 | M75: 0.31
A76: 96000 | B76: 0.27 | C76: 0.275 | D76: 0.28 | E76: 0.285 | F76: 0.29 | G76: 0.29 | H76: 0.295 | I76: 0.3 | J76: 0.3 | K76: 0.305 | L76: 0.305 | M76: 0.31
A77: 97000 | B77: 0.27 | C77: 0.275 | D77: 0.28 | E77: 0.285 | F77: 0.29 | G77: 0.29 | H77: 0.295 | I77: 0.3 | J77: 0.3 | K77: 0.305 | L77: 0.305 | M77: 0.31
A78: 98000 | B78: 0.27 | C78: 0.275 | D78: 0.28 | E78: 0.285 | F78: 0.29 | G78: 0.29 | H78: 0.295 | I78: 0.3 | J78: 0.3 | K78: 0.305 | L78: 0.305 | M78: 0.31
A79: 99000 | B79: 0.27 | C79: 0.275 | D79: 0.28 | E79: 0.285 | F79: 0.29 | G79: 0.29 | H79: 0.295 | I79: 0.3 | J79: 0.3 | K79: 0.305 | L79: 0.305 | M79: 0.31
A80: 100000 | B80: 0.27 | C80: 0.275 | D80: 0.28 | E80: 0.285 | F80: 0.29 | G80: 0.29 | H80: 0.295 | I80: 0.3 | J80: 0.3 | K80: 0.305 | L80: 0.305 | M80: 0.31
A81: 101000 | B81: 0.27 | C81: 0.275 | D81: 0.28 | E81: 0.285 | F81: 0.29 | G81: 0.29 | H81: 0.295 | I81: 0.3 | J81: 0.3 | K81: 0.305 | L81: 0.305 | M81: 0.31
A82: 102000 | B82: 0.27 | C82: 0.275 | D82: 0.28 | E82: 0.285 | F82: 0.29 | G82: 0.29 | H82: 0.295 | I82: 0.3 | J82: 0.3 | K82: 0.305 | L82: 0.305 | M82: 0.31
A83: 103000 | B83: 0.27 | C83: 0.275 | D83: 0.28 | E83: 0.285 | F83: 0.29 | G83: 0.29 | H83: 0.295 | I83: 0.3 | J83: 0.3 | K83: 0.305 | L83: 0.305 | M83: 0.31
A84: 104000 | B84: 0.27 | C84: 0.275 | D84: 0.28 | E84: 0.285 | F84: 0.29 | G84: 0.29 | H84: 0.295 | I84: 0.3 | J84: 0.3 | K84: 0.305 | L84: 0.305 | M84: 0.31
A85: 105000 | B85: 0.27 | C85: 0.275 | D85: 0.28 | E85: 0.285 | F85: 0.29 | G85: 0.29 | H85: 0.295 | I85: 0.3 | J85: 0.3 | K85: 0.305 | L85: 0.305 | M85: 0.31
A86: 106000 | B86: 0.27 | C86: 0.275 | D86: 0.28 | E86: 0.285 | F86: 0.29 | G86: 0.29 | H86: 0.295 | I86: 0.3 | J86: 0.3 | K86: 0.305 | L86: 0.305 | M86: 0.31
A87: 107000 | B87: 0.27 | C87: 0.275 | D87: 0.28 | E87: 0.285 | F87: 0.29 | G87: 0.29 | H87: 0.295 | I87: 0.3 | J87: 0.3 | K87: 0.305 | L87: 0.305 | M87: 0.31
A88: 108000 | B88: 0.27 | C88: 0.275 | D88: 0.28 | E88: 0.285 | F88: 0.29 | G88: 0.29 | H88: 0.295 | I88: 0.3 | J88: 0.3 | K88: 0.305 | L88: 0.305 | M88: 0.31
A89: 109000 | B89: 0.27 | C89: 0.275 | D89: 0.28 | E89: 0.285 | F89: 0.29 | G89: 0.29 | H89: 0.295 | I89: 0.3 | J89: 0.3 | K89: 0.305 | L89: 0.305 | M89: 0.31
A90: 110000 | B90: 0.27 | C90: 0.275 | D90: 0.28 | E90: 0.285 | F90: 0.29 | G90: 0.29 | H90: 0.295 | I90: 0.3 | J90: 0.3 | K90: 0.305 | L90: 0.305 | M90: 0.31
A91: 1000000000 | B91: 0.27 | C91: 0.275 | D91: 0.28 | E91: 0.285 | F91: 0.29 | G91: 0.29 | H91: 0.295 | I91: 0.3 | J91: 0.3 | K91: 0.305 | L91: 0.305 | M91: 0.31

Sheet 2023EMW (hidden)
B1: Toetsrente in percentages
A2: Bruto inkomen in euro's | B2: <=1,500% | C2: 1,501-2,000% | D2: 2,001-2,500% | E2: 2,501-3,000% | F2: 3,001-3,500% | G2: 3,501-4,000% | H2: 4,001-4,500% | I2: 4,501-5,000% | J2: 5,001-5,500% | K2: 5,501-6,000% | L2: 6,001-6,500% | M2: > 6,501%
A4: -1 | B4: 0 | C4: 0.01501 | D4: =+C4+0.5% -> 0.02001 | E4: 0.02501 | F4: 0.03001 | G4: 0.03501 | H4: 0.04001 | I4: 0.04501 | J4: 0.05001 | K4: 0.05501 | L4: 0.06001 | M4: 0.06501 | N4: <= beginrente
A5: 0 | B5: 0.145 | C5: 0.155 | D5: 0.16 | E5: 0.17 | F5: 0.175 | G5: 0.185 | H5: 0.19 | I5: 0.195 | J5: 0.2 | K5: 0.205 | L5: 0.21 | M5: 0.21
A6: 26000 | B6: 0.145 | C6: 0.155 | D6: 0.16 | E6: 0.17 | F6: 0.175 | G6: 0.185 | H6: 0.19 | I6: 0.195 | J6: 0.2 | K6: 0.205 | L6: 0.21 | M6: 0.21
A7: 27000 | B7: 0.155 | C7: 0.165 | D7: 0.175 | E7: 0.185 | F7: 0.19 | G7: 0.2 | H7: 0.205 | I7: 0.21 | J7: 0.22 | K7: 0.225 | L7: 0.23 | M7: 0.23
A8: 28000 | B8: 0.16 | C8: 0.175 | D8: 0.185 | E8: 0.195 | F8: 0.205 | G8: 0.21 | H8: 0.22 | I8: 0.225 | J8: 0.235 | K8: 0.24 | L8: 0.245 | M8: 0.25
A9: 29000 | B9: 0.165 | C9: 0.18 | D9: 0.195 | E9: 0.205 | F9: 0.215 | G9: 0.225 | H9: 0.235 | I9: 0.24 | J9: 0.245 | K9: 0.255 | L9: 0.26 | M9: 0.265
A10: 30000 | B10: 0.165 | C10: 0.18 | D10: 0.2 | E10: 0.215 | F10: 0.225 | G10: 0.235 | H10: 0.245 | I10: 0.255 | J10: 0.265 | K10: 0.27 | L10: 0.28 | M10: 0.285
A11: 31000 | B11: 0.17 | C11: 0.19 | D11: 0.205 | E11: 0.22 | F11: 0.23 | G11: 0.24 | H11: 0.245 | I11: 0.255 | J11: 0.265 | K11: 0.275 | L11: 0.285 | M11: 0.29
A12: 32000 | B12: 0.17 | C12: 0.195 | D12: 0.205 | E12: 0.22 | F12: 0.23 | G12: 0.24 | H12: 0.245 | I12: 0.255 | J12: 0.265 | K12: 0.275 | L12: 0.285 | M12: 0.29
A13: 33000 | B13: 0.175 | C13: 0.195 | D13: 0.205 | E13: 0.22 | F13: 0.23 | G13: 0.24 | H13: 0.245 | I13: 0.255 | J13: 0.265 | K13: 0.275 | L13: 0.285 | M13: 0.29
A14: 34000 | B14: 0.175 | C14: 0.195 | D14: 0.205 | E14: 0.22 | F14: 0.23 | G14: 0.24 | H14: 0.245 | I14: 0.255 | J14: 0.265 | K14: 0.275 | L14: 0.285 | M14: 0.29
A15: 35000 | B15: 0.18 | C15: 0.195 | D15: 0.205 | E15: 0.22 | F15: 0.23 | G15: 0.24 | H15: 0.245 | I15: 0.255 | J15: 0.265 | K15: 0.275 | L15: 0.285 | M15: 0.29
A16: 36000 | B16: 0.18 | C16: 0.195 | D16: 0.205 | E16: 0.22 | F16: 0.23 | G16: 0.24 | H16: 0.245 | I16: 0.255 | J16: 0.265 | K16: 0.275 | L16: 0.285 | M16: 0.29
A17: 37000 | B17: 0.185 | C17: 0.195 | D17: 0.205 | E17: 0.22 | F17: 0.23 | G17: 0.24 | H17: 0.245 | I17: 0.255 | J17: 0.265 | K17: 0.275 | L17: 0.285 | M17: 0.29
A18: 38000 | B18: 0.185 | C18: 0.195 | D18: 0.205 | E18: 0.22 | F18: 0.23 | G18: 0.24 | H18: 0.245 | I18: 0.255 | J18: 0.265 | K18: 0.275 | L18: 0.285 | M18: 0.29
A19: 39000 | B19: 0.185 | C19: 0.195 | D19: 0.205 | E19: 0.22 | F19: 0.23 | G19: 0.24 | H19: 0.245 | I19: 0.255 | J19: 0.265 | K19: 0.275 | L19: 0.285 | M19: 0.29
A20: 40000 | B20: 0.185 | C20: 0.195 | D20: 0.205 | E20: 0.22 | F20: 0.23 | G20: 0.24 | H20: 0.245 | I20: 0.255 | J20: 0.265 | K20: 0.275 | L20: 0.285 | M20: 0.29
A21: 41000 | B21: 0.185 | C21: 0.195 | D21: 0.205 | E21: 0.22 | F21: 0.23 | G21: 0.24 | H21: 0.245 | I21: 0.255 | J21: 0.265 | K21: 0.275 | L21: 0.285 | M21: 0.29
A22: 42000 | B22: 0.185 | C22: 0.195 | D22: 0.205 | E22: 0.22 | F22: 0.23 | G22: 0.24 | H22: 0.245 | I22: 0.255 | J22: 0.265 | K22: 0.275 | L22: 0.285 | M22: 0.29
A23: 43000 | B23: 0.185 | C23: 0.195 | D23: 0.205 | E23: 0.22 | F23: 0.23 | G23: 0.24 | H23: 0.245 | I23: 0.255 | J23: 0.265 | K23: 0.275 | L23: 0.285 | M23: 0.29
A24: 44000 | B24: 0.185 | C24: 0.195 | D24: 0.205 | E24: 0.22 | F24: 0.23 | G24: 0.24 | H24: 0.245 | I24: 0.255 | J24: 0.265 | K24: 0.275 | L24: 0.285 | M24: 0.29
A25: 45000 | B25: 0.185 | C25: 0.195 | D25: 0.205 | E25: 0.22 | F25: 0.23 | G25: 0.24 | H25: 0.245 | I25: 0.255 | J25: 0.265 | K25: 0.275 | L25: 0.285 | M25: 0.29
A26: 46000 | B26: 0.185 | C26: 0.195 | D26: 0.205 | E26: 0.22 | F26: 0.23 | G26: 0.24 | H26: 0.245 | I26: 0.255 | J26: 0.265 | K26: 0.275 | L26: 0.285 | M26: 0.29
A27: 47000 | B27: 0.185 | C27: 0.195 | D27: 0.205 | E27: 0.22 | F27: 0.23 | G27: 0.24 | H27: 0.245 | I27: 0.255 | J27: 0.265 | K27: 0.275 | L27: 0.285 | M27: 0.29
A28: 48000 | B28: 0.185 | C28: 0.195 | D28: 0.205 | E28: 0.22 | F28: 0.23 | G28: 0.24 | H28: 0.245 | I28: 0.255 | J28: 0.265 | K28: 0.275 | L28: 0.285 | M28: 0.29
A29: 49000 | B29: 0.185 | C29: 0.195 | D29: 0.205 | E29: 0.22 | F29: 0.23 | G29: 0.24 | H29: 0.245 | I29: 0.255 | J29: 0.265 | K29: 0.275 | L29: 0.285 | M29: 0.29
A30: 50000 | B30: 0.185 | C30: 0.2 | D30: 0.21 | E30: 0.22 | F30: 0.23 | G30: 0.24 | H30: 0.245 | I30: 0.255 | J30: 0.265 | K30: 0.275 | L30: 0.285 | M30: 0.29
A31: 51000 | B31: 0.185 | C31: 0.2 | D31: 0.21 | E31: 0.22 | F31: 0.23 | G31: 0.24 | H31: 0.245 | I31: 0.255 | J31: 0.265 | K31: 0.275 | L31: 0.285 | M31: 0.29
A32: 52000 | B32: 0.185 | C32: 0.2 | D32: 0.21 | E32: 0.22 | F32: 0.23 | G32: 0.24 | H32: 0.245 | I32: 0.255 | J32: 0.265 | K32: 0.275 | L32: 0.285 | M32: 0.29
A33: 53000 | B33: 0.185 | C33: 0.2 | D33: 0.21 | E33: 0.22 | F33: 0.23 | G33: 0.24 | H33: 0.245 | I33: 0.255 | J33: 0.265 | K33: 0.275 | L33: 0.285 | M33: 0.29
A34: 54000 | B34: 0.185 | C34: 0.2 | D34: 0.21 | E34: 0.22 | F34: 0.23 | G34: 0.24 | H34: 0.245 | I34: 0.255 | J34: 0.265 | K34: 0.275 | L34: 0.285 | M34: 0.29
A35: 55000 | B35: 0.185 | C35: 0.2 | D35: 0.21 | E35: 0.22 | F35: 0.23 | G35: 0.24 | H35: 0.25 | I35: 0.255 | J35: 0.265 | K35: 0.275 | L35: 0.285 | M35: 0.29
A36: 56000 | B36: 0.185 | C36: 0.2 | D36: 0.215 | E36: 0.225 | F36: 0.235 | G36: 0.245 | H36: 0.25 | I36: 0.26 | J36: 0.27 | K36: 0.275 | L36: 0.285 | M36: 0.295
A37: 57000 | B37: 0.19 | C37: 0.2 | D37: 0.215 | E37: 0.225 | F37: 0.235 | G37: 0.245 | H37: 0.255 | I37: 0.265 | J37: 0.27 | K37: 0.28 | L37: 0.285 | M37: 0.295
A38: 58000 | B38: 0.19 | C38: 0.2 | D38: 0.215 | E38: 0.225 | F38: 0.235 | G38: 0.245 | H38: 0.255 | I38: 0.265 | J38: 0.275 | K38: 0.28 | L38: 0.29 | M38: 0.295
A39: 59000 | B39: 0.19 | C39: 0.205 | D39: 0.215 | E39: 0.23 | F39: 0.24 | G39: 0.25 | H39: 0.26 | I39: 0.27 | J39: 0.275 | K39: 0.285 | L39: 0.29 | M39: 0.3
A40: 60000 | B40: 0.195 | C40: 0.205 | D40: 0.215 | E40: 0.23 | F40: 0.24 | G40: 0.25 | H40: 0.26 | I40: 0.27 | J40: 0.28 | K40: 0.285 | L40: 0.295 | M40: 0.3
A41: 61000 | B41: 0.195 | C41: 0.205 | D41: 0.22 | E41: 0.23 | F41: 0.24 | G41: 0.255 | H41: 0.265 | I41: 0.27 | J41: 0.28 | K41: 0.29 | L41: 0.295 | M41: 0.305
A42: 62000 | B42: 0.195 | C42: 0.21 | D42: 0.22 | E42: 0.23 | F42: 0.24 | G42: 0.255 | H42: 0.265 | I42: 0.275 | J42: 0.285 | K42: 0.29 | L42: 0.3 | M42: 0.305
A43: 63000 | B43: 0.2 | C43: 0.21 | D43: 0.22 | E43: 0.23 | F43: 0.24 | G43: 0.255 | H43: 0.265 | I43: 0.275 | J43: 0.285 | K43: 0.295 | L43: 0.3 | M43: 0.31
A44: 64000 | B44: 0.2 | C44: 0.21 | D44: 0.225 | E44: 0.235 | F44: 0.245 | G44: 0.255 | H44: 0.265 | I44: 0.28 | J44: 0.285 | K44: 0.295 | L44: 0.305 | M44: 0.31
A45: 65000 | B45: 0.2 | C45: 0.215 | D45: 0.225 | E45: 0.235 | F45: 0.245 | G45: 0.255 | H45: 0.265 | I45: 0.28 | J45: 0.29 | K45: 0.3 | L45: 0.305 | M45: 0.315
A46: 66000 | B46: 0.205 | C46: 0.215 | D46: 0.225 | E46: 0.235 | F46: 0.25 | G46: 0.26 | H46: 0.27 | I46: 0.28 | J46: 0.29 | K46: 0.3 | L46: 0.31 | M46: 0.315
A47: 67000 | B47: 0.205 | C47: 0.215 | D47: 0.225 | E47: 0.24 | F47: 0.25 | G47: 0.26 | H47: 0.27 | I47: 0.28 | J47: 0.29 | K47: 0.3 | L47: 0.31 | M47: 0.315
A48: 68000 | B48: 0.205 | C48: 0.22 | D48: 0.23 | E48: 0.24 | F48: 0.25 | G48: 0.26 | H48: 0.27 | I48: 0.28 | J48: 0.29 | K48: 0.3 | L48: 0.31 | M48: 0.32
A49: 69000 | B49: 0.205 | C49: 0.22 | D49: 0.23 | E49: 0.24 | F49: 0.255 | G49: 0.265 | H49: 0.275 | I49: 0.285 | J49: 0.29 | K49: 0.3 | L49: 0.315 | M49: 0.32
A50: 70000 | B50: 0.21 | C50: 0.22 | D50: 0.23 | E50: 0.245 | F50: 0.255 | G50: 0.265 | H50: 0.275 | I50: 0.285 | J50: 0.295 | K50: 0.305 | L50: 0.315 | M50: 0.325
A51: 71000 | B51: 0.21 | C51: 0.22 | D51: 0.235 | E51: 0.245 | F51: 0.255 | G51: 0.265 | H51: 0.275 | I51: 0.285 | J51: 0.295 | K51: 0.305 | L51: 0.315 | M51: 0.325
A52: 72000 | B52: 0.21 | C52: 0.225 | D52: 0.235 | E52: 0.245 | F52: 0.26 | G52: 0.27 | H52: 0.28 | I52: 0.29 | J52: 0.3 | K52: 0.305 | L52: 0.315 | M52: 0.325
A53: 73000 | B53: 0.21 | C53: 0.225 | D53: 0.235 | E53: 0.245 | F53: 0.26 | G53: 0.27 | H53: 0.28 | I53: 0.29 | J53: 0.3 | K53: 0.31 | L53: 0.315 | M53: 0.325
A54: 74000 | B54: 0.21 | C54: 0.225 | D54: 0.235 | E54: 0.25 | F54: 0.26 | G54: 0.27 | H54: 0.28 | I54: 0.29 | J54: 0.3 | K54: 0.31 | L54: 0.315 | M54: 0.325
A55: 75000 | B55: 0.21 | C55: 0.225 | D55: 0.235 | E55: 0.25 | F55: 0.26 | G55: 0.27 | H55: 0.28 | I55: 0.29 | J55: 0.3 | K55: 0.31 | L55: 0.32 | M55: 0.325
A56: 76000 | B56: 0.215 | C56: 0.225 | D56: 0.235 | E56: 0.25 | F56: 0.26 | G56: 0.27 | H56: 0.28 | I56: 0.29 | J56: 0.3 | K56: 0.31 | L56: 0.32 | M56: 0.325
A57: 77000 | B57: 0.215 | C57: 0.225 | D57: 0.24 | E57: 0.25 | F57: 0.26 | G57: 0.27 | H57: 0.28 | I57: 0.29 | J57: 0.3 | K57: 0.31 | L57: 0.32 | M57: 0.325
A58: 78000 | B58: 0.215 | C58: 0.225 | D58: 0.24 | E58: 0.25 | F58: 0.26 | G58: 0.275 | H58: 0.285 | I58: 0.295 | J58: 0.3 | K58: 0.31 | L58: 0.32 | M58: 0.325
A59: 79000 | B59: 0.215 | C59: 0.225 | D59: 0.24 | E59: 0.25 | F59: 0.26 | G59: 0.275 | H59: 0.285 | I59: 0.295 | J59: 0.305 | K59: 0.31 | L59: 0.32 | M59: 0.33
A60: 80000 | B60: 0.215 | C60: 0.225 | D60: 0.24 | E60: 0.25 | F60: 0.26 | G60: 0.275 | H60: 0.285 | I60: 0.295 | J60: 0.305 | K60: 0.315 | L60: 0.32 | M60: 0.33
A61: 81000 | B61: 0.215 | C61: 0.225 | D61: 0.24 | E61: 0.25 | F61: 0.265 | G61: 0.275 | H61: 0.285 | I61: 0.295 | J61: 0.305 | K61: 0.315 | L61: 0.32 | M61: 0.33
A62: 82000 | B62: 0.215 | C62: 0.23 | D62: 0.24 | E62: 0.25 | F62: 0.265 | G62: 0.275 | H62: 0.285 | I62: 0.295 | J62: 0.305 | K62: 0.315 | L62: 0.32 | M62: 0.33
A63: 83000 | B63: 0.215 | C63: 0.23 | D63: 0.24 | E63: 0.255 | F63: 0.265 | G63: 0.275 | H63: 0.285 | I63: 0.295 | J63: 0.305 | K63: 0.315 | L63: 0.325 | M63: 0.33
A64: 84000 | B64: 0.215 | C64: 0.23 | D64: 0.24 | E64: 0.255 | F64: 0.265 | G64: 0.275 | H64: 0.285 | I64: 0.295 | J64: 0.305 | K64: 0.315 | L64: 0.325 | M64: 0.33
A65: 85000 | B65: 0.22 | C65: 0.23 | D65: 0.24 | E65: 0.255 | F65: 0.265 | G65: 0.275 | H65: 0.285 | I65: 0.295 | J65: 0.305 | K65: 0.315 | L65: 0.325 | M65: 0.33
A66: 86000 | B66: 0.22 | C66: 0.23 | D66: 0.24 | E66: 0.255 | F66: 0.265 | G66: 0.275 | H66: 0.285 | I66: 0.295 | J66: 0.305 | K66: 0.315 | L66: 0.325 | M66: 0.335
A67: 87000 | B67: 0.22 | C67: 0.23 | D67: 0.245 | E67: 0.255 | F67: 0.265 | G67: 0.275 | H67: 0.29 | I67: 0.3 | J67: 0.305 | K67: 0.315 | L67: 0.325 | M67: 0.335
A68: 88000 | B68: 0.22 | C68: 0.23 | D68: 0.245 | E68: 0.255 | F68: 0.265 | G68: 0.275 | H68: 0.29 | I68: 0.3 | J68: 0.31 | K68: 0.315 | L68: 0.325 | M68: 0.335
A69: 89000 | B69: 0.22 | C69: 0.23 | D69: 0.245 | E69: 0.255 | F69: 0.265 | G69: 0.28 | H69: 0.29 | I69: 0.3 | J69: 0.31 | K69: 0.315 | L69: 0.325 | M69: 0.335
A70: 90000 | B70: 0.22 | C70: 0.23 | D70: 0.245 | E70: 0.255 | F70: 0.265 | G70: 0.28 | H70: 0.29 | I70: 0.3 | J70: 0.31 | K70: 0.32 | L70: 0.325 | M70: 0.335
A71: 91000 | B71: 0.22 | C71: 0.235 | D71: 0.245 | E71: 0.255 | F71: 0.27 | G71: 0.28 | H71: 0.29 | I71: 0.3 | J71: 0.31 | K71: 0.32 | L71: 0.325 | M71: 0.335
A72: 92000 | B72: 0.22 | C72: 0.235 | D72: 0.245 | E72: 0.255 | F72: 0.27 | G72: 0.28 | H72: 0.29 | I72: 0.3 | J72: 0.31 | K72: 0.32 | L72: 0.33 | M72: 0.335
A73: 93000 | B73: 0.22 | C73: 0.235 | D73: 0.245 | E73: 0.26 | F73: 0.27 | G73: 0.28 | H73: 0.29 | I73: 0.3 | J73: 0.31 | K73: 0.32 | L73: 0.33 | M73: 0.335
A74: 94000 | B74: 0.22 | C74: 0.235 | D74: 0.245 | E74: 0.26 | F74: 0.27 | G74: 0.28 | H74: 0.29 | I74: 0.3 | J74: 0.31 | K74: 0.32 | L74: 0.33 | M74: 0.335
A75: 95000 | B75: 0.22 | C75: 0.235 | D75: 0.245 | E75: 0.26 | F75: 0.27 | G75: 0.28 | H75: 0.29 | I75: 0.3 | J75: 0.31 | K75: 0.32 | L75: 0.33 | M75: 0.335
A76: 96000 | B76: 0.22 | C76: 0.235 | D76: 0.245 | E76: 0.26 | F76: 0.27 | G76: 0.28 | H76: 0.29 | I76: 0.3 | J76: 0.31 | K76: 0.32 | L76: 0.33 | M76: 0.34
A77: 97000 | B77: 0.225 | C77: 0.235 | D77: 0.25 | E77: 0.26 | F77: 0.27 | G77: 0.28 | H77: 0.295 | I77: 0.3 | J77: 0.31 | K77: 0.32 | L77: 0.33 | M77: 0.34
A78: 98000 | B78: 0.225 | C78: 0.235 | D78: 0.25 | E78: 0.26 | F78: 0.27 | G78: 0.28 | H78: 0.295 | I78: 0.305 | J78: 0.315 | K78: 0.32 | L78: 0.33 | M78: 0.34
A79: 99000 | B79: 0.225 | C79: 0.235 | D79: 0.25 | E79: 0.26 | F79: 0.27 | G79: 0.285 | H79: 0.295 | I79: 0.305 | J79: 0.315 | K79: 0.32 | L79: 0.33 | M79: 0.34
A80: 100000 | B80: 0.225 | C80: 0.235 | D80: 0.25 | E80: 0.26 | F80: 0.275 | G80: 0.285 | H80: 0.295 | I80: 0.305 | J80: 0.315 | K80: 0.325 | L80: 0.33 | M80: 0.34
A81: 101000 | B81: 0.225 | C81: 0.235 | D81: 0.25 | E81: 0.26 | F81: 0.275 | G81: 0.285 | H81: 0.295 | I81: 0.305 | J81: 0.315 | K81: 0.325 | L81: 0.33 | M81: 0.34
A82: 102000 | B82: 0.225 | C82: 0.24 | D82: 0.25 | E82: 0.26 | F82: 0.275 | G82: 0.285 | H82: 0.295 | I82: 0.305 | J82: 0.315 | K82: 0.325 | L82: 0.335 | M82: 0.34
A83: 103000 | B83: 0.225 | C83: 0.24 | D83: 0.25 | E83: 0.265 | F83: 0.275 | G83: 0.285 | H83: 0.295 | I83: 0.305 | J83: 0.315 | K83: 0.325 | L83: 0.335 | M83: 0.34
A84: 104000 | B84: 0.225 | C84: 0.24 | D84: 0.25 | E84: 0.265 | F84: 0.275 | G84: 0.285 | H84: 0.295 | I84: 0.305 | J84: 0.315 | K84: 0.325 | L84: 0.335 | M84: 0.34
A85: 105000 | B85: 0.225 | C85: 0.24 | D85: 0.25 | E85: 0.265 | F85: 0.275 | G85: 0.285 | H85: 0.295 | I85: 0.305 | J85: 0.315 | K85: 0.325 | L85: 0.335 | M85: 0.345
A86: 106000 | B86: 0.225 | C86: 0.24 | D86: 0.25 | E86: 0.265 | F86: 0.275 | G86: 0.285 | H86: 0.3 | I86: 0.31 | J86: 0.315 | K86: 0.325 | L86: 0.335 | M86: 0.345
A87: 107000 | B87: 0.225 | C87: 0.24 | D87: 0.25 | E87: 0.265 | F87: 0.275 | G87: 0.29 | H87: 0.3 | I87: 0.31 | J87: 0.32 | K87: 0.325 | L87: 0.335 | M87: 0.345
A88: 108000 | B88: 0.23 | C88: 0.24 | D88: 0.255 | E88: 0.265 | F88: 0.275 | G88: 0.29 | H88: 0.3 | I88: 0.31 | J88: 0.32 | K88: 0.33 | L88: 0.335 | M88: 0.345
A89: 109000 | B89: 0.23 | C89: 0.24 | D89: 0.255 | E89: 0.265 | F89: 0.275 | G89: 0.29 | H89: 0.3 | I89: 0.31 | J89: 0.32 | K89: 0.33 | L89: 0.335 | M89: 0.345
A90: 110000 | B90: 0.23 | C90: 0.24 | D90: 0.255 | E90: 0.265 | F90: 0.28 | G90: 0.29 | H90: 0.3 | I90: 0.31 | J90: 0.32 | K90: 0.33 | L90: 0.34 | M90: 0.345
A91: 1000000000 | B91: 0.23 | C91: 0.24 | D91: 0.255 | E91: 0.265 | F91: 0.28 | G91: 0.29 | H91: 0.3 | I91: 0.31 | J91: 0.32 | K91: 0.33 | L91: 0.34 | M91: 0.345

Sheet 2023EMWBOX3 (hidden)
B1: Toetsrente in percentages
A2: Bruto inkomen in euro's | B2: <=1,500% | C2: 1,501-2,000% | D2: 2,001-2,500% | E2: 2,501-3,000% | F2: 3,001-3,500% | G2: 3,501-4,000% | H2: 4,001-4,500% | I2: 4,501-5,000% | J2: 5,001-5,500% | K2: 5,501-6,000% | L2: 6,001-6,500% | M2: > 6,501%
A4: -1 | B4: 0 | C4: 0.01501 | D4: =+C4+0.5% -> 0.02001 | E4: 0.02501 | F4: 0.03001 | G4: 0.03501 | H4: 0.04001 | I4: 0.04501 | J4: 0.05001 | K4: 0.05501 | L4: 0.06001 | M4: 0.06501 | N4: <= beginrente
A5: 0 | B5: 0.145 | C5: 0.145 | D5: 0.145 | E5: 0.15 | F5: 0.15 | G5: 0.155 | H5: 0.155 | I5: 0.155 | J5: 0.16 | K5: 0.16 | L5: 0.16 | M5: 0.165
A6: 26000 | B6: 0.145 | C6: 0.145 | D6: 0.145 | E6: 0.15 | F6: 0.15 | G6: 0.155 | H6: 0.155 | I6: 0.155 | J6: 0.16 | K6: 0.16 | L6: 0.16 | M6: 0.165
A7: 27000 | B7: 0.15 | C7: 0.15 | D7: 0.155 | E7: 0.155 | F7: 0.16 | G7: 0.16 | H7: 0.165 | I7: 0.165 | J7: 0.165 | K7: 0.17 | L7: 0.17 | M7: 0.17
A8: 28000 | B8: 0.155 | C8: 0.16 | D8: 0.16 | E8: 0.165 | F8: 0.165 | G8: 0.165 | H8: 0.17 | I8: 0.17 | J8: 0.175 | K8: 0.175 | L8: 0.175 | M8: 0.175
A9: 29000 | B9: 0.16 | C9: 0.165 | D9: 0.165 | E9: 0.17 | F9: 0.17 | G9: 0.175 | H9: 0.175 | I9: 0.175 | J9: 0.18 | K9: 0.18 | L9: 0.18 | M9: 0.185
A10: 30000 | B10: 0.165 | C10: 0.17 | D10: 0.17 | E10: 0.175 | F10: 0.175 | G10: 0.18 | H10: 0.18 | I10: 0.18 | J10: 0.185 | K10: 0.185 | L10: 0.185 | M10: 0.19
A11: 31000 | B11: 0.17 | C11: 0.175 | D11: 0.175 | E11: 0.18 | F11: 0.18 | G11: 0.185 | H11: 0.185 | I11: 0.185 | J11: 0.19 | K11: 0.19 | L11: 0.19 | M11: 0.195
A12: 32000 | B12: 0.17 | C12: 0.175 | D12: 0.175 | E12: 0.18 | F12: 0.18 | G12: 0.185 | H12: 0.185 | I12: 0.19 | J12: 0.19 | K12: 0.19 | L12: 0.195 | M12: 0.195
A13: 33000 | B13: 0.17 | C13: 0.175 | D13: 0.18 | E13: 0.18 | F13: 0.185 | G13: 0.185 | H13: 0.185 | I13: 0.19 | J13: 0.19 | K13: 0.195 | L13: 0.195 | M13: 0.195
A14: 34000 | B14: 0.17 | C14: 0.175 | D14: 0.18 | E14: 0.18 | F14: 0.185 | G14: 0.185 | H14: 0.185 | I14: 0.19 | J14: 0.19 | K14: 0.195 | L14: 0.195 | M14: 0.195
A15: 35000 | B15: 0.17 | C15: 0.175 | D15: 0.18 | E15: 0.18 | F15: 0.185 | G15: 0.185 | H15: 0.19 | I15: 0.19 | J15: 0.19 | K15: 0.195 | L15: 0.195 | M15: 0.195
A16: 36000 | B16: 0.17 | C16: 0.175 | D16: 0.18 | E16: 0.18 | F16: 0.185 | G16: 0.185 | H16: 0.19 | I16: 0.19 | J16: 0.19 | K16: 0.195 | L16: 0.195 | M16: 0.195
A17: 37000 | B17: 0.17 | C17: 0.175 | D17: 0.18 | E17: 0.18 | F17: 0.185 | G17: 0.185 | H17: 0.19 | I17: 0.19 | J17: 0.19 | K17: 0.195 | L17: 0.195 | M17: 0.195
A18: 38000 | B18: 0.17 | C18: 0.175 | D18: 0.18 | E18: 0.18 | F18: 0.185 | G18: 0.185 | H18: 0.19 | I18: 0.19 | J18: 0.19 | K18: 0.195 | L18: 0.195 | M18: 0.195
A19: 39000 | B19: 0.17 | C19: 0.175 | D19: 0.18 | E19: 0.18 | F19: 0.185 | G19: 0.185 | H19: 0.19 | I19: 0.19 | J19: 0.19 | K19: 0.195 | L19: 0.195 | M19: 0.195
A20: 40000 | B20: 0.17 | C20: 0.175 | D20: 0.18 | E20: 0.18 | F20: 0.185 | G20: 0.185 | H20: 0.19 | I20: 0.19 | J20: 0.19 | K20: 0.195 | L20: 0.195 | M20: 0.195
A21: 41000 | B21: 0.17 | C21: 0.175 | D21: 0.18 | E21: 0.18 | F21: 0.185 | G21: 0.185 | H21: 0.19 | I21: 0.19 | J21: 0.19 | K21: 0.195 | L21: 0.195 | M21: 0.195
A22: 42000 | B22: 0.17 | C22: 0.175 | D22: 0.18 | E22: 0.18 | F22: 0.185 | G22: 0.185 | H22: 0.19 | I22: 0.19 | J22: 0.19 | K22: 0.195 | L22: 0.195 | M22: 0.195
A23: 43000 | B23: 0.17 | C23: 0.175 | D23: 0.18 | E23: 0.18 | F23: 0.185 | G23: 0.185 | H23: 0.19 | I23: 0.19 | J23: 0.19 | K23: 0.195 | L23: 0.195 | M23: 0.195
A24: 44000 | B24: 0.17 | C24: 0.175 | D24: 0.18 | E24: 0.18 | F24: 0.185 | G24: 0.185 | H24: 0.19 | I24: 0.19 | J24: 0.19 | K24: 0.195 | L24: 0.195 | M24: 0.195
A25: 45000 | B25: 0.17 | C25: 0.175 | D25: 0.18 | E25: 0.18 | F25: 0.185 | G25: 0.185 | H25: 0.19 | I25: 0.19 | J25: 0.19 | K25: 0.195 | L25: 0.195 | M25: 0.195
A26: 46000 | B26: 0.17 | C26: 0.175 | D26: 0.18 | E26: 0.18 | F26: 0.185 | G26: 0.185 | H26: 0.19 | I26: 0.19 | J26: 0.19 | K26: 0.195 | L26: 0.195 | M26: 0.195
A27: 47000 | B27: 0.17 | C27: 0.175 | D27: 0.18 | E27: 0.18 | F27: 0.185 | G27: 0.185 | H27: 0.19 | I27: 0.19 | J27: 0.19 | K27: 0.195 | L27: 0.195 | M27: 0.195
A28: 48000 | B28: 0.17 | C28: 0.175 | D28: 0.18 | E28: 0.18 | F28: 0.185 | G28: 0.185 | H28: 0.19 | I28: 0.19 | J28: 0.19 | K28: 0.195 | L28: 0.195 | M28: 0.195
A29: 49000 | B29: 0.17 | C29: 0.175 | D29: 0.18 | E29: 0.18 | F29: 0.185 | G29: 0.185 | H29: 0.19 | I29: 0.19 | J29: 0.19 | K29: 0.195 | L29: 0.195 | M29: 0.195
A30: 50000 | B30: 0.17 | C30: 0.175 | D30: 0.18 | E30: 0.18 | F30: 0.185 | G30: 0.185 | H30: 0.19 | I30: 0.19 | J30: 0.19 | K30: 0.195 | L30: 0.195 | M30: 0.195
A31: 51000 | B31: 0.17 | C31: 0.175 | D31: 0.18 | E31: 0.18 | F31: 0.185 | G31: 0.185 | H31: 0.19 | I31: 0.19 | J31: 0.19 | K31: 0.195 | L31: 0.195 | M31: 0.195
A32: 52000 | B32: 0.17 | C32: 0.175 | D32: 0.18 | E32: 0.18 | F32: 0.185 | G32: 0.185 | H32: 0.19 | I32: 0.19 | J32: 0.19 | K32: 0.195 | L32: 0.195 | M32: 0.195
A33: 53000 | B33: 0.17 | C33: 0.175 | D33: 0.18 | E33: 0.18 | F33: 0.185 | G33: 0.185 | H33: 0.19 | I33: 0.19 | J33: 0.19 | K33: 0.195 | L33: 0.195 | M33: 0.195
A34: 54000 | B34: 0.17 | C34: 0.175 | D34: 0.18 | E34: 0.18 | F34: 0.185 | G34: 0.185 | H34: 0.19 | I34: 0.19 | J34: 0.19 | K34: 0.195 | L34: 0.195 | M34: 0.195
A35: 55000 | B35: 0.175 | C35: 0.175 | D35: 0.18 | E35: 0.18 | F35: 0.185 | G35: 0.185 | H35: 0.19 | I35: 0.19 | J35: 0.195 | K35: 0.195 | L35: 0.195 | M35: 0.2
A36: 56000 | B36: 0.175 | C36: 0.18 | D36: 0.18 | E36: 0.185 | F36: 0.185 | G36: 0.19 | H36: 0.19 | I36: 0.195 | J36: 0.195 | K36: 0.195 | L36: 0.2 | M36: 0.2
A37: 57000 | B37: 0.175 | C37: 0.18 | D37: 0.185 | E37: 0.185 | F37: 0.19 | G37: 0.19 | H37: 0.195 | I37: 0.195 | J37: 0.2 | K37: 0.2 | L37: 0.2 | M37: 0.205
A38: 58000 | B38: 0.18 | C38: 0.18 | D38: 0.185 | E38: 0.19 | F38: 0.19 | G38: 0.195 | H38: 0.195 | I38: 0.2 | J38: 0.2 | K38: 0.2 | L38: 0.205 | M38: 0.205
A39: 59000 | B39: 0.18 | C39: 0.185 | D39: 0.185 | E39: 0.19 | F39: 0.19 | G39: 0.195 | H39: 0.195 | I39: 0.2 | J39: 0.2 | K39: 0.205 | L39: 0.205 | M39: 0.205
A40: 60000 | B40: 0.18 | C40: 0.185 | D40: 0.19 | E40: 0.19 | F40: 0.195 | G40: 0.195 | H40: 0.2 | I40: 0.2 | J40: 0.205 | K40: 0.205 | L40: 0.205 | M40: 0.21
A41: 61000 | B41: 0.185 | C41: 0.185 | D41: 0.19 | E41: 0.195 | F41: 0.195 | G41: 0.2 | H41: 0.2 | I41: 0.205 | J41: 0.205 | K41: 0.205 | L41: 0.21 | M41: 0.21
A42: 62000 | B42: 0.185 | C42: 0.19 | D42: 0.19 | E42: 0.195 | F42: 0.195 | G42: 0.2 | H42: 0.2 | I42: 0.205 | J42: 0.205 | K42: 0.21 | L42: 0.21 | M42: 0.21
A43: 63000 | B43: 0.185 | C43: 0.19 | D43: 0.195 | E43: 0.195 | F43: 0.2 | G43: 0.2 | H43: 0.205 | I43: 0.205 | J43: 0.21 | K43: 0.21 | L43: 0.21 | M43: 0.215
A44: 64000 | B44: 0.19 | C44: 0.19 | D44: 0.195 | E44: 0.195 | F44: 0.2 | G44: 0.205 | H44: 0.205 | I44: 0.21 | J44: 0.21 | K44: 0.21 | L44: 0.215 | M44: 0.215
A45: 65000 | B45: 0.19 | C45: 0.195 | D45: 0.195 | E45: 0.2 | F45: 0.2 | G45: 0.205 | H45: 0.205 | I45: 0.21 | J45: 0.21 | K45: 0.215 | L45: 0.215 | M45: 0.215
A46: 66000 | B46: 0.19 | C46: 0.195 | D46: 0.195 | E46: 0.2 | F46: 0.205 | G46: 0.205 | H46: 0.21 | I46: 0.21 | J46: 0.215 | K46: 0.215 | L46: 0.215 | M46: 0.22
A47: 67000 | B47: 0.19 | C47: 0.195 | D47: 0.2 | E47: 0.2 | F47: 0.205 | G47: 0.205 | H47: 0.21 | I47: 0.21 | J47: 0.215 | K47: 0.215 | L47: 0.22 | M47: 0.22
A48: 68000 | B48: 0.195 | C48: 0.195 | D48: 0.2 | E48: 0.205 | F48: 0.205 | G48: 0.21 | H48: 0.21 | I48: 0.215 | J48: 0.215 | K48: 0.22 | L48: 0.22 | M48: 0.22
A49: 69000 | B49: 0.195 | C49: 0.2 | D49: 0.2 | E49: 0.205 | F49: 0.205 | G49: 0.21 | H49: 0.215 | I49: 0.215 | J49: 0.215 | K49: 0.22 | L49: 0.22 | M49: 0.225
A50: 70000 | B50: 0.195 | C50: 0.2 | D50: 0.205 | E50: 0.205 | F50: 0.21 | G50: 0.21 | H50: 0.215 | I50: 0.215 | J50: 0.22 | K50: 0.22 | L50: 0.225 | M50: 0.225
A51: 71000 | B51: 0.195 | C51: 0.2 | D51: 0.205 | E51: 0.205 | F51: 0.21 | G51: 0.215 | H51: 0.215 | I51: 0.22 | J51: 0.22 | K51: 0.22 | L51: 0.225 | M51: 0.225
A52: 72000 | B52: 0.2 | C52: 0.2 | D52: 0.205 | E52: 0.21 | F52: 0.21 | G52: 0.215 | H52: 0.215 | I52: 0.22 | J52: 0.22 | K52: 0.225 | L52: 0.225 | M52: 0.225
A53: 73000 | B53: 0.2 | C53: 0.205 | D53: 0.205 | E53: 0.21 | F53: 0.215 | G53: 0.215 | H53: 0.22 | I53: 0.22 | J53: 0.225 | K53: 0.225 | L53: 0.225 | M53: 0.23
A54: 74000 | B54: 0.2 | C54: 0.205 | D54: 0.205 | E54: 0.21 | F54: 0.215 | G54: 0.215 | H54: 0.22 | I54: 0.22 | J54: 0.225 | K54: 0.225 | L54: 0.23 | M54: 0.23
A55: 75000 | B55: 0.2 | C55: 0.205 | D55: 0.21 | E55: 0.21 | F55: 0.215 | G55: 0.215 | H55: 0.22 | I55: 0.22 | J55: 0.225 | K55: 0.225 | L55: 0.23 | M55: 0.23
A56: 76000 | B56: 0.2 | C56: 0.205 | D56: 0.21 | E56: 0.21 | F56: 0.215 | G56: 0.22 | H56: 0.22 | I56: 0.225 | J56: 0.225 | K56: 0.23 | L56: 0.23 | M56: 0.23
A57: 77000 | B57: 0.2 | C57: 0.205 | D57: 0.21 | E57: 0.215 | F57: 0.215 | G57: 0.22 | H57: 0.22 | I57: 0.225 | J57: 0.225 | K57: 0.23 | L57: 0.23 | M57: 0.23
A58: 78000 | B58: 0.205 | C58: 0.205 | D58: 0.21 | E58: 0.215 | F58: 0.215 | G58: 0.22 | H58: 0.22 | I58: 0.225 | J58: 0.225 | K58: 0.23 | L58: 0.23 | M58: 0.235
A59: 79000 | B59: 0.205 | C59: 0.205 | D59: 0.21 | E59: 0.215 | F59: 0.215 | G59: 0.22 | H59: 0.22 | I59: 0.225 | J59: 0.225 | K59: 0.23 | L59: 0.23 | M59: 0.235
A60: 80000 | B60: 0.205 | C60: 0.21 | D60: 0.21 | E60: 0.215 | F60: 0.215 | G60: 0.22 | H60: 0.225 | I60: 0.225 | J60: 0.23 | K60: 0.23 | L60: 0.23 | M60: 0.235
A61: 81000 | B61: 0.205 | C61: 0.21 | D61: 0.21 | E61: 0.215 | F61: 0.22 | G61: 0.22 | H61: 0.225 | I61: 0.225 | J61: 0.23 | K61: 0.23 | L61: 0.235 | M61: 0.235
A62: 82000 | B62: 0.205 | C62: 0.21 | D62: 0.21 | E62: 0.215 | F62: 0.22 | G62: 0.22 | H62: 0.225 | I62: 0.225 | J62: 0.23 | K62: 0.23 | L62: 0.235 | M62: 0.235
A63: 83000 | B63: 0.205 | C63: 0.21 | D63: 0.215 | E63: 0.215 | F63: 0.22 | G63: 0.22 | H63: 0.225 | I63: 0.225 | J63: 0.23 | K63: 0.23 | L63: 0.235 | M63: 0.235
A64: 84000 | B64: 0.205 | C64: 0.21 | D64: 0.215 | E64: 0.215 | F64: 0.22 | G64: 0.22 | H64: 0.225 | I64: 0.23 | J64: 0.23 | K64: 0.23 | L64: 0.235 | M64: 0.235
A65: 85000 | B65: 0.205 | C65: 0.21 | D65: 0.215 | E65: 0.215 | F65: 0.22 | G65: 0.225 | H65: 0.225 | I65: 0.23 | J65: 0.23 | K65: 0.235 | L65: 0.235 | M65: 0.235
A66: 86000 | B66: 0.205 | C66: 0.21 | D66: 0.215 | E66: 0.22 | F66: 0.22 | G66: 0.225 | H66: 0.225 | I66: 0.23 | J66: 0.23 | K66: 0.235 | L66: 0.235 | M66: 0.235
A67: 87000 | B67: 0.21 | C67: 0.21 | D67: 0.215 | E67: 0.22 | F67: 0.22 | G67: 0.225 | H67: 0.225 | I67: 0.23 | J67: 0.23 | K67: 0.235 | L67: 0.235 | M67: 0.24
A68: 88000 | B68: 0.21 | C68: 0.21 | D68: 0.215 | E68: 0.22 | F68: 0.22 | G68: 0.225 | H68: 0.225 | I68: 0.23 | J68: 0.23 | K68: 0.235 | L68: 0.235 | M68: 0.24
A69: 89000 | B69: 0.21 | C69: 0.21 | D69: 0.215 | E69: 0.22 | F69: 0.22 | G69: 0.225 | H69: 0.23 | I69: 0.23 | J69: 0.235 | K69: 0.235 | L69: 0.235 | M69: 0.24
A70: 90000 | B70: 0.21 | C70: 0.215 | D70: 0.215 | E70: 0.22 | F70: 0.22 | G70: 0.225 | H70: 0.23 | I70: 0.23 | J70: 0.235 | K70: 0.235 | L70: 0.235 | M70: 0.24
A71: 91000 | B71: 0.21 | C71: 0.215 | D71: 0.215 | E71: 0.22 | F71: 0.225 | G71: 0.225 | H71: 0.23 | I71: 0.23 | J71: 0.235 | K71: 0.235 | L71: 0.24 | M71: 0.24
A72: 92000 | B72: 0.21 | C72: 0.215 | D72: 0.215 | E72: 0.22 | F72: 0.225 | G72: 0.225 | H72: 0.23 | I72: 0.23 | J72: 0.235 | K72: 0.235 | L72: 0.24 | M72: 0.24
A73: 93000 | B73: 0.21 | C73: 0.215 | D73: 0.215 | E73: 0.22 | F73: 0.225 | G73: 0.225 | H73: 0.23 | I73: 0.23 | J73: 0.235 | K73: 0.235 | L73: 0.24 | M73: 0.24
A74: 94000 | B74: 0.21 | C74: 0.215 | D74: 0.22 | E74: 0.22 | F74: 0.225 | G74: 0.225 | H74: 0.23 | I74: 0.23 | J74: 0.235 | K74: 0.235 | L74: 0.24 | M74: 0.24
A75: 95000 | B75: 0.21 | C75: 0.215 | D75: 0.22 | E75: 0.22 | F75: 0.225 | G75: 0.225 | H75: 0.23 | I75: 0.235 | J75: 0.235 | K75: 0.24 | L75: 0.24 | M75: 0.24
A76: 96000 | B76: 0.21 | C76: 0.215 | D76: 0.22 | E76: 0.22 | F76: 0.225 | G76: 0.23 | H76: 0.23 | I76: 0.235 | J76: 0.235 | K76: 0.24 | L76: 0.24 | M76: 0.24
A77: 97000 | B77: 0.21 | C77: 0.215 | D77: 0.22 | E77: 0.22 | F77: 0.225 | G77: 0.23 | H77: 0.23 | I77: 0.235 | J77: 0.235 | K77: 0.24 | L77: 0.24 | M77: 0.24
A78: 98000 | B78: 0.21 | C78: 0.215 | D78: 0.22 | E78: 0.225 | F78: 0.225 | G78: 0.23 | H78: 0.23 | I78: 0.235 | J78: 0.235 | K78: 0.24 | L78: 0.24 | M78: 0.245
A79: 99000 | B79: 0.21 | C79: 0.215 | D79: 0.22 | E79: 0.225 | F79: 0.225 | G79: 0.23 | H79: 0.23 | I79: 0.235 | J79: 0.235 | K79: 0.24 | L79: 0.24 | M79: 0.245
A80: 100000 | B80: 0.215 | C80: 0.215 | D80: 0.22 | E80: 0.225 | F80: 0.225 | G80: 0.23 | H80: 0.23 | I80: 0.235 | J80: 0.24 | K80: 0.24 | L80: 0.24 | M80: 0.245
A81: 101000 | B81: 0.215 | C81: 0.215 | D81: 0.22 | E81: 0.225 | F81: 0.225 | G81: 0.23 | H81: 0.235 | I81: 0.235 | J81: 0.24 | K81: 0.24 | L81: 0.24 | M81: 0.245
A82: 102000 | B82: 0.215 | C82: 0.22 | D82: 0.22 | E82: 0.225 | F82: 0.23 | G82: 0.23 | H82: 0.235 | I82: 0.235 | J82: 0.24 | K82: 0.24 | L82: 0.245 | M82: 0.245
A83: 103000 | B83: 0.215 | C83: 0.22 | D83: 0.22 | E83: 0.225 | F83: 0.23 | G83: 0.23 | H83: 0.235 | I83: 0.235 | J83: 0.24 | K83: 0.24 | L83: 0.245 | M83: 0.245
A84: 104000 | B84: 0.215 | C84: 0.22 | D84: 0.22 | E84: 0.225 | F84: 0.23 | G84: 0.23 | H84: 0.235 | I84: 0.235 | J84: 0.24 | K84: 0.24 | L84: 0.245 | M84: 0.245
A85: 105000 | B85: 0.215 | C85: 0.22 | D85: 0.22 | E85: 0.225 | F85: 0.23 | G85: 0.23 | H85: 0.235 | I85: 0.235 | J85: 0.24 | K85: 0.24 | L85: 0.245 | M85: 0.245
A86: 106000 | B86: 0.215 | C86: 0.22 | D86: 0.225 | E86: 0.225 | F86: 0.23 | G86: 0.23 | H86: 0.235 | I86: 0.24 | J86: 0.24 | K86: 0.245 | L86: 0.245 | M86: 0.245
A87: 107000 | B87: 0.215 | C87: 0.22 | D87: 0.225 | E87: 0.225 | F87: 0.23 | G87: 0.235 | H87: 0.235 | I87: 0.24 | J87: 0.24 | K87: 0.245 | L87: 0.245 | M87: 0.245
A88: 108000 | B88: 0.215 | C88: 0.22 | D88: 0.225 | E88: 0.225 | F88: 0.23 | G88: 0.235 | H88: 0.235 | I88: 0.24 | J88: 0.24 | K88: 0.245 | L88: 0.245 | M88: 0.25
A89: 109000 | B89: 0.215 | C89: 0.22 | D89: 0.225 | E89: 0.23 | F89: 0.23 | G89: 0.235 | H89: 0.235 | I89: 0.24 | J89: 0.24 | K89: 0.245 | L89: 0.245 | M89: 0.25
A90: 110000 | B90: 0.215 | C90: 0.22 | D90: 0.225 | E90: 0.23 | F90: 0.23 | G90: 0.235 | H90: 0.235 | I90: 0.24 | J90: 0.24 | K90: 0.245 | L90: 0.245 | M90: 0.25
A91: 1000000000 | B91: 0.215 | C91: 0.22 | D91: 0.225 | E91: 0.23 | F91: 0.23 | G91: 0.235 | H91: 0.235 | I91: 0.24 | J91: 0.24 | K91: 0.245 | L91: 0.245 | M91: 0.25

Sheet 2023EZW (hidden)
B1: Toetsrente in percentages
A2: Bruto inkomen in euro's | B2: <=1,500% | C2: 1,501-2,000% | D2: 2,001-2,500% | E2: 2,501-3,000% | F2: 3,001-3,500% | G2: 3,501-4,000% | H2: 4,001-4,500% | I2: 4,501-5,000% | J2: 5,001-5,500% | K2: 5,501-6,000% | L2: 6,001-6,500% | M2: > 6,501%
A4: -1 | B4: 0 | C4: 0.01501 | D4: =+C4+0.5% -> 0.02001 | E4: 0.02501 | F4: 0.03001 | G4: 0.03501 | H4: 0.04001 | I4: 0.04501 | J4: 0.05001 | K4: 0.05501 | L4: 0.06001 | M4: 0.06501 | N4: <= beginrente
A5: 0 | B5: 0.025 | C5: 0.03 | D5: 0.03 | E5: 0.035 | F5: 0.035 | G5: 0.035 | H5: 0.04 | I5: 0.04 | J5: 0.045 | K5: 0.045 | L5: 0.045 | M5: 0.045
A6: 26000 | B6: 0.025 | C6: 0.03 | D6: 0.03 | E6: 0.035 | F6: 0.035 | G6: 0.035 | H6: 0.04 | I6: 0.04 | J6: 0.045 | K6: 0.045 | L6: 0.045 | M6: 0.045
A7: 27000 | B7: 0.04 | C7: 0.04 | D7: 0.045 | E7: 0.05 | F7: 0.05 | G7: 0.055 | H7: 0.055 | I7: 0.06 | J7: 0.06 | K7: 0.065 | L7: 0.065 | M7: 0.07
A8: 28000 | B8: 0.05 | C8: 0.055 | D8: 0.06 | E8: 0.06 | F8: 0.065 | G8: 0.07 | H8: 0.075 | I8: 0.075 | J8: 0.08 | K8: 0.085 | L8: 0.085 | M8: 0.09
A9: 29000 | B9: 0.06 | C9: 0.065 | D9: 0.07 | E9: 0.075 | F9: 0.08 | G9: 0.085 | H9: 0.09 | I9: 0.09 | J9: 0.095 | K9: 0.1 | L9: 0.105 | M9: 0.105
A10: 30000 | B10: 0.07 | C10: 0.075 | D10: 0.08 | E10: 0.085 | F10: 0.09 | G10: 0.095 | H10: 0.1 | I10: 0.105 | J10: 0.11 | K10: 0.115 | L10: 0.12 | M10: 0.125
A11: 31000 | B11: 0.08 | C11: 0.085 | D11: 0.09 | E11: 0.1 | F11: 0.105 | G11: 0.11 | H11: 0.115 | I11: 0.12 | J11: 0.125 | K11: 0.13 | L11: 0.135 | M11: 0.14
A12: 32000 | B12: 0.09 | C12: 0.095 | D12: 0.1 | E12: 0.11 | F12: 0.115 | G12: 0.12 | H12: 0.125 | I12: 0.135 | J12: 0.14 | K12: 0.145 | L12: 0.15 | M12: 0.155
A13: 33000 | B13: 0.095 | C13: 0.105 | D13: 0.11 | E13: 0.12 | F13: 0.125 | G13: 0.13 | H13: 0.14 | I13: 0.145 | J13: 0.15 | K13: 0.155 | L13: 0.16 | M13: 0.165
A14: 34000 | B14: 0.105 | C14: 0.11 | D14: 0.12 | E14: 0.125 | F14: 0.135 | G14: 0.14 | H14: 0.15 | I14: 0.155 | J14: 0.165 | K14: 0.17 | L14: 0.175 | M14: 0.18
A15: 35000 | B15: 0.11 | C15: 0.12 | D15: 0.13 | E15: 0.135 | F15: 0.145 | G15: 0.15 | H15: 0.16 | I15: 0.165 | J15: 0.175 | K15: 0.18 | L15: 0.185 | M15: 0.195
A16: 36000 | B16: 0.12 | C16: 0.125 | D16: 0.135 | E16: 0.145 | F16: 0.155 | G16: 0.16 | H16: 0.17 | I16: 0.175 | J16: 0.185 | K16: 0.19 | L16: 0.2 | M16: 0.205
A17: 37000 | B17: 0.125 | C17: 0.135 | D17: 0.145 | E17: 0.15 | F17: 0.16 | G17: 0.17 | H17: 0.18 | I17: 0.185 | J17: 0.195 | K17: 0.2 | L17: 0.21 | M17: 0.215
A18: 38000 | B18: 0.13 | C18: 0.14 | D18: 0.15 | E18: 0.16 | F18: 0.17 | G18: 0.18 | H18: 0.185 | I18: 0.195 | J18: 0.205 | K18: 0.21 | L18: 0.22 | M18: 0.225
A19: 39000 | B19: 0.135 | C19: 0.145 | D19: 0.155 | E19: 0.165 | F19: 0.175 | G19: 0.185 | H19: 0.195 | I19: 0.205 | J19: 0.215 | K19: 0.22 | L19: 0.23 | M19: 0.235
A20: 40000 | B20: 0.145 | C20: 0.155 | D20: 0.165 | E20: 0.175 | F20: 0.185 | G20: 0.195 | H20: 0.205 | I20: 0.215 | J20: 0.22 | K20: 0.23 | L20: 0.24 | M20: 0.245
A21: 41000 | B21: 0.15 | C21: 0.16 | D21: 0.17 | E21: 0.18 | F21: 0.19 | G21: 0.2 | H21: 0.21 | I21: 0.22 | J21: 0.23 | K21: 0.24 | L21: 0.245 | M21: 0.255
A22: 42000 | B22: 0.155 | C22: 0.165 | D22: 0.175 | E22: 0.185 | F22: 0.195 | G22: 0.205 | H22: 0.215 | I22: 0.225 | J22: 0.235 | K22: 0.245 | L22: 0.255 | M22: 0.265
A23: 43000 | B23: 0.16 | C23: 0.165 | D23: 0.175 | E23: 0.185 | F23: 0.195 | G23: 0.205 | H23: 0.22 | I23: 0.23 | J23: 0.235 | K23: 0.245 | L23: 0.255 | M23: 0.265
A24: 44000 | B24: 0.16 | C24: 0.17 | D24: 0.18 | E24: 0.19 | F24: 0.2 | G24: 0.21 | H24: 0.22 | I24: 0.23 | J24: 0.235 | K24: 0.245 | L24: 0.255 | M24: 0.265
A25: 45000 | B25: 0.165 | C25: 0.17 | D25: 0.18 | E25: 0.19 | F25: 0.2 | G25: 0.21 | H25: 0.22 | I25: 0.23 | J25: 0.24 | K25: 0.245 | L25: 0.255 | M25: 0.265
A26: 46000 | B26: 0.165 | C26: 0.175 | D26: 0.185 | E26: 0.195 | F26: 0.2 | G26: 0.21 | H26: 0.22 | I26: 0.23 | J26: 0.24 | K26: 0.245 | L26: 0.255 | M26: 0.265
A27: 1000000000 | B27: 0.165 | C27: 0.175 | D27: 0.185 | E27: 0.195 | F27: 0.2 | G27: 0.21 | H27: 0.22 | I27: 0.23 | J27: 0.24 | K27: 0.245 | L27: 0.255 | M27: 0.265

Sheet 2023EZWBOX3 (hidden)
B1: Toetsrente in percentages
A2: Bruto inkomen in euro's | B2: <=1,500% | C2: 1,501-2,000% | D2: 2,001-2,500% | E2: 2,501-3,000% | F2: 3,001-3,500% | G2: 3,501-4,000% | H2: 4,001-4,500% | I2: 4,501-5,000% | J2: 5,001-5,500% | K2: 5,501-6,000% | L2: 6,001-6,500% | M2: > 6,501%
A4: -1 | B4: 0 | C4: 0.01501 | D4: =+C4+0.5% -> 0.02001 | E4: 0.02501 | F4: 0.03001 | G4: 0.03501 | H4: 0.04001 | I4: 0.04501 | J4: 0.05001 | K4: 0.05501 | L4: 0.06001 | M4: 0.06501 | N4: <= beginrente
A5: 0 | B5: 0.025 | C5: 0.025 | D5: 0.025 | E5: 0.025 | F5: 0.025 | G5: 0.025 | H5: 0.025 | I5: 0.025 | J5: 0.025 | K5: 0.025 | L5: 0.025 | M5: 0.025
A6: 26000 | B6: 0.025 | C6: 0.025 | D6: 0.025 | E6: 0.025 | F6: 0.025 | G6: 0.025 | H6: 0.025 | I6: 0.025 | J6: 0.025 | K6: 0.025 | L6: 0.025 | M6: 0.025
A7: 27000 | B7: 0.035 | C7: 0.035 | D7: 0.035 | E7: 0.035 | F7: 0.035 | G7: 0.035 | H7: 0.04 | I7: 0.04 | J7: 0.04 | K7: 0.04 | L7: 0.04 | M7: 0.04
A8: 28000 | B8: 0.045 | C8: 0.045 | D8: 0.045 | E8: 0.045 | F8: 0.05 | G8: 0.05 | H8: 0.05 | I8: 0.05 | J8: 0.05 | K8: 0.05 | L8: 0.05 | M8: 0.05
A9: 29000 | B9: 0.055 | C9: 0.055 | D9: 0.055 | E9: 0.055 | F9: 0.06 | G9: 0.06 | H9: 0.06 | I9: 0.06 | J9: 0.06 | K9: 0.06 | L9: 0.06 | M9: 0.06
A10: 30000 | B10: 0.065 | C10: 0.065 | D10: 0.065 | E10: 0.065 | F10: 0.065 | G10: 0.07 | H10: 0.07 | I10: 0.07 | J10: 0.07 | K10: 0.07 | L10: 0.07 | M10: 0.07
A11: 31000 | B11: 0.07 | C11: 0.075 | D11: 0.075 | E11: 0.075 | F11: 0.075 | G11: 0.075 | H11: 0.08 | I11: 0.08 | J11: 0.08 | K11: 0.08 | L11: 0.08 | M11: 0.08
A12: 32000 | B12: 0.08 | C12: 0.08 | D12: 0.08 | E12: 0.085 | F12: 0.085 | G12: 0.085 | H12: 0.085 | I12: 0.09 | J12: 0.09 | K12: 0.09 | L12: 0.09 | M12: 0.09
A13: 33000 | B13: 0.085 | C13: 0.09 | D13: 0.09 | E13: 0.09 | F13: 0.09 | G13: 0.095 | H13: 0.095 | I13: 0.095 | J13: 0.095 | K13: 0.1 | L13: 0.1 | M13: 0.1
A14: 34000 | B14: 0.095 | C14: 0.095 | D14: 0.095 | E14: 0.1 | F14: 0.1 | G14: 0.1 | H14: 0.1 | I14: 0.105 | J14: 0.105 | K14: 0.105 | L14: 0.105 | M14: 0.105
A15: 35000 | B15: 0.1 | C15: 0.1 | D15: 0.105 | E15: 0.105 | F15: 0.105 | G15: 0.11 | H15: 0.11 | I15: 0.11 | J15: 0.11 | K15: 0.115 | L15: 0.115 | M15: 0.115
A16: 36000 | B16: 0.105 | C16: 0.11 | D16: 0.11 | E16: 0.11 | F16: 0.115 | G16: 0.115 | H16: 0.115 | I16: 0.115 | J16: 0.12 | K16: 0.12 | L16: 0.12 | M16: 0.12
A17: 37000 | B17: 0.11 | C17: 0.115 | D17: 0.115 | E17: 0.12 | F17: 0.12 | G17: 0.12 | H17: 0.12 | I17: 0.125 | J17: 0.125 | K17: 0.125 | L17: 0.125 | M17: 0.13
A18: 38000 | B18: 0.12 | C18: 0.12 | D18: 0.12 | E18: 0.125 | F18: 0.125 | G18: 0.125 | H18: 0.13 | I18: 0.13 | J18: 0.13 | K18: 0.13 | L18: 0.135 | M18: 0.135
A19: 39000 | B19: 0.125 | C19: 0.125 | D19: 0.125 | E19: 0.13 | F19: 0.13 | G19: 0.135 | H19: 0.135 | I19: 0.135 | J19: 0.135 | K19: 0.14 | L19: 0.14 | M19: 0.14
A20: 40000 | B20: 0.13 | C20: 0.13 | D20: 0.13 | E20: 0.135 | F20: 0.135 | G20: 0.14 | H20: 0.14 | I20: 0.14 | J20: 0.14 | K20: 0.145 | L20: 0.145 | M20: 0.145
A21: 41000 | B21: 0.135 | C21: 0.135 | D21: 0.135 | E21: 0.14 | F21: 0.14 | G21: 0.145 | H21: 0.145 | I21: 0.145 | J21: 0.15 | K21: 0.15 | L21: 0.15 | M21: 0.15
A22: 42000 | B22: 0.135 | C22: 0.14 | D22: 0.14 | E22: 0.145 | F22: 0.145 | G22: 0.15 | H22: 0.15 | I22: 0.15 | J22: 0.155 | K22: 0.155 | L22: 0.155 | M22: 0.155
A23: 43000 | B23: 0.14 | C23: 0.145 | D23: 0.145 | E23: 0.15 | F23: 0.15 | G23: 0.15 | H23: 0.155 | I23: 0.155 | J23: 0.155 | K23: 0.16 | L23: 0.16 | M23: 0.16
A24: 44000 | B24: 0.145 | C24: 0.145 | D24: 0.15 | E24: 0.15 | F24: 0.155 | G24: 0.155 | H24: 0.16 | I24: 0.16 | J24: 0.16 | K24: 0.165 | L24: 0.165 | M24: 0.165
A25: 45000 | B25: 0.15 | C25: 0.15 | D25: 0.155 | E25: 0.155 | F25: 0.155 | G25: 0.16 | H25: 0.16 | I25: 0.165 | J25: 0.165 | K25: 0.165 | L25: 0.165 | M25: 0.17
A26: 46000 | B26: 0.15 | C26: 0.155 | D26: 0.155 | E26: 0.16 | F26: 0.16 | G26: 0.16 | H26: 0.165 | I26: 0.165 | J26: 0.165 | K26: 0.17 | L26: 0.17 | M26: 0.17
A27: 1000000000 | B27: 0.15 | C27: 0.155 | D27: 0.155 | E27: 0.16 | F27: 0.16 | G27: 0.16 | H27: 0.165 | I27: 0.165 | J27: 0.165 | K27: 0.17 | L27: 0.17 | M27: 0.17

Sheet 2024 (hidden)
A2: Debetrente | B2: <= 1,500% | C2: 1,501–2,000% | D2: 2,001–2,500% | E2: 2,501–3,000% | F2: 3,001–3,500% | G2: 3,501–4,000% | H2: 4,001–4,500% | I2: 4,501–5,000% | J2: 5,001–5,500% | K2: 5,501–6,000% | L2: 6,001–6,500% | M2: >= 6,501%
A3: toetsinkomen
A4: -1 | B4: 0 | C4: 0.01501 | D4: =+C4+0.5% -> 0.02001 | E4: 0.02501 | F4: 0.03001 | G4: 0.03501 | H4: 0.04001 | I4: 0.04501 | J4: 0.05001 | K4: 0.05501 | L4: 0.06001 | M4: 0.06501 | N4: <= beginrente
A5: 0 | B5: 0.13 | C5: 0.14 | D5: 0.15 | E5: 0.155 | F5: 0.165 | G5: 0.17 | H5: 0.175 | I5: 0.18 | J5: 0.185 | K5: 0.19 | L5: 0.195 | M5: 0.2
A6: 28000 | B6: 0.13 | C6: 0.14 | D6: 0.15 | E6: 0.155 | F6: 0.165 | G6: 0.17 | H6: 0.175 | I6: 0.18 | J6: 0.185 | K6: 0.19 | L6: 0.195 | M6: 0.2
A7: 29000 | B7: 0.135 | C7: 0.145 | D7: 0.155 | E7: 0.165 | F7: 0.175 | G7: 0.185 | H7: 0.19 | I7: 0.195 | J7: 0.2 | K7: 0.21 | L7: 0.215 | M7: 0.22
A8: 30000 | B8: 0.145 | C8: 0.155 | D8: 0.165 | E8: 0.175 | F8: 0.185 | G8: 0.195 | H8: 0.205 | I8: 0.21 | J8: 0.215 | K8: 0.22 | L8: 0.23 | M8: 0.235
A9: 31000 | B9: 0.15 | C9: 0.165 | D9: 0.175 | E9: 0.185 | F9: 0.195 | G9: 0.205 | H9: 0.215 | I9: 0.22 | J9: 0.225 | K9: 0.23 | L9: 0.235 | M9: 0.24
A10: 32000 | B10: 0.155 | C10: 0.17 | D10: 0.18 | E10: 0.19 | F10: 0.2 | G10: 0.21 | H10: 0.22 | I10: 0.225 | J10: 0.23 | K10: 0.235 | L10: 0.24 | M10: 0.245
A11: 33000 | B11: 0.165 | C11: 0.175 | D11: 0.185 | E11: 0.195 | F11: 0.205 | G11: 0.215 | H11: 0.225 | I11: 0.23 | J11: 0.235 | K11: 0.245 | L11: 0.25 | M11: 0.255
A12: 34000 | B12: 0.17 | C12: 0.18 | D12: 0.19 | E12: 0.2 | F12: 0.21 | G12: 0.22 | H12: 0.225 | I12: 0.235 | J12: 0.24 | K12: 0.25 | L12: 0.255 | M12: 0.26
A13: 35000 | B13: 0.175 | C13: 0.185 | D13: 0.195 | E13: 0.205 | F13: 0.21 | G13: 0.22 | H13: 0.23 | I13: 0.235 | J13: 0.245 | K13: 0.25 | L13: 0.26 | M13: 0.265
A14: 36000 | B14: 0.175 | C14: 0.185 | D14: 0.195 | E14: 0.205 | F14: 0.215 | G14: 0.225 | H14: 0.23 | I14: 0.24 | J14: 0.25 | K14: 0.255 | L14: 0.26 | M14: 0.27
A15: 37000 | B15: 0.18 | C15: 0.19 | D15: 0.2 | E15: 0.21 | F15: 0.22 | G15: 0.225 | H15: 0.235 | I15: 0.245 | J15: 0.25 | K15: 0.255 | L15: 0.26 | M15: 0.27
A16: 38000 | B16: 0.18 | C16: 0.19 | D16: 0.2 | E16: 0.21 | F16: 0.22 | G16: 0.23 | H16: 0.24 | I16: 0.245 | J16: 0.255 | K16: 0.26 | L16: 0.265 | M16: 0.27
A17: 39000 | B17: 0.18 | C17: 0.19 | D17: 0.2 | E17: 0.21 | F17: 0.22 | G17: 0.23 | H17: 0.24 | I17: 0.25 | J17: 0.255 | K17: 0.265 | L17: 0.27 | M17: 0.275
A18: 40000 | B18: 0.18 | C18: 0.19 | D18: 0.2 | E18: 0.21 | F18: 0.22 | G18: 0.23 | H18: 0.24 | I18: 0.25 | J18: 0.26 | K18: 0.265 | L18: 0.275 | M18: 0.28
A19: 41000 | B19: 0.18 | C19: 0.19 | D19: 0.2 | E19: 0.21 | F19: 0.22 | G19: 0.23 | H19: 0.24 | I19: 0.25 | J19: 0.26 | K19: 0.265 | L19: 0.275 | M19: 0.28
A20: 42000 | B20: 0.18 | C20: 0.19 | D20: 0.2 | E20: 0.21 | F20: 0.22 | G20: 0.23 | H20: 0.24 | I20: 0.25 | J20: 0.26 | K20: 0.27 | L20: 0.275 | M20: 0.28
A21: 43000 | B21: 0.18 | C21: 0.19 | D21: 0.2 | E21: 0.21 | F21: 0.22 | G21: 0.23 | H21: 0.24 | I21: 0.25 | J21: 0.26 | K21: 0.27 | L21: 0.275 | M21: 0.28
A22: 44000 | B22: 0.18 | C22: 0.19 | D22: 0.2 | E22: 0.21 | F22: 0.22 | G22: 0.23 | H22: 0.24 | I22: 0.25 | J22: 0.26 | K22: 0.27 | L22: 0.275 | M22: 0.28
A23: 45000 | B23: 0.18 | C23: 0.19 | D23: 0.2 | E23: 0.21 | F23: 0.22 | G23: 0.23 | H23: 0.24 | I23: 0.25 | J23: 0.26 | K23: 0.27 | L23: 0.275 | M23: 0.285
A24: 46000 | B24: 0.18 | C24: 0.19 | D24: 0.2 | E24: 0.21 | F24: 0.22 | G24: 0.23 | H24: 0.24 | I24: 0.25 | J24: 0.26 | K24: 0.27 | L24: 0.275 | M24: 0.285
A25: 47000 | B25: 0.18 | C25: 0.19 | D25: 0.2 | E25: 0.21 | F25: 0.22 | G25: 0.23 | H25: 0.24 | I25: 0.25 | J25: 0.26 | K25: 0.27 | L25: 0.275 | M25: 0.285
A26: 48000 | B26: 0.18 | C26: 0.19 | D26: 0.2 | E26: 0.21 | F26: 0.22 | G26: 0.23 | H26: 0.24 | I26: 0.25 | J26: 0.26 | K26: 0.27 | L26: 0.275 | M26: 0.285
A27: 49000 | B27: 0.18 | C27: 0.19 | D27: 0.2 | E27: 0.21 | F27: 0.22 | G27: 0.23 | H27: 0.24 | I27: 0.25 | J27: 0.26 | K27: 0.27 | L27: 0.275 | M27: 0.285
A28: 50000 | B28: 0.18 | C28: 0.19 | D28: 0.2 | E28: 0.21 | F28: 0.22 | G28: 0.23 | H28: 0.24 | I28: 0.25 | J28: 0.26 | K28: 0.27 | L28: 0.275 | M28: 0.285
A29: 51000 | B29: 0.18 | C29: 0.19 | D29: 0.2 | E29: 0.21 | F29: 0.22 | G29: 0.23 | H29: 0.24 | I29: 0.25 | J29: 0.26 | K29: 0.27 | L29: 0.275 | M29: 0.285
A30: 52000 | B30: 0.18 | C30: 0.19 | D30: 0.2 | E30: 0.21 | F30: 0.22 | G30: 0.23 | H30: 0.24 | I30: 0.25 | J30: 0.26 | K30: 0.27 | L30: 0.275 | M30: 0.285
A31: 53000 | B31: 0.18 | C31: 0.19 | D31: 0.2 | E31: 0.21 | F31: 0.22 | G31: 0.23 | H31: 0.24 | I31: 0.25 | J31: 0.26 | K31: 0.27 | L31: 0.275 | M31: 0.285
A32: 54000 | B32: 0.18 | C32: 0.19 | D32: 0.2 | E32: 0.21 | F32: 0.22 | G32: 0.23 | H32: 0.24 | I32: 0.25 | J32: 0.26 | K32: 0.27 | L32: 0.275 | M32: 0.285
A33: 55000 | B33: 0.18 | C33: 0.19 | D33: 0.2 | E33: 0.21 | F33: 0.22 | G33: 0.23 | H33: 0.24 | I33: 0.25 | J33: 0.26 | K33: 0.27 | L33: 0.275 | M33: 0.285
A34: 56000 | B34: 0.18 | C34: 0.19 | D34: 0.205 | E34: 0.215 | F34: 0.225 | G34: 0.235 | H34: 0.245 | I34: 0.25 | J34: 0.26 | K34: 0.27 | L34: 0.275 | M34: 0.285
A35: 57000 | B35: 0.18 | C35: 0.19 | D35: 0.205 | E35: 0.215 | F35: 0.225 | G35: 0.235 | H35: 0.245 | I35: 0.255 | J35: 0.26 | K35: 0.27 | L35: 0.28 | M35: 0.285
A36: 58000 | B36: 0.18 | C36: 0.19 | D36: 0.205 | E36: 0.215 | F36: 0.225 | G36: 0.235 | H36: 0.245 | I36: 0.255 | J36: 0.265 | K36: 0.27 | L36: 0.28 | M36: 0.285
A37: 59000 | B37: 0.185 | C37: 0.195 | D37: 0.205 | E37: 0.215 | F37: 0.225 | G37: 0.235 | H37: 0.245 | I37: 0.255 | J37: 0.265 | K37: 0.275 | L37: 0.28 | M37: 0.29
A38: 60000 | B38: 0.185 | C38: 0.195 | D38: 0.205 | E38: 0.215 | F38: 0.225 | G38: 0.235 | H38: 0.245 | I38: 0.255 | J38: 0.265 | K38: 0.275 | L38: 0.285 | M38: 0.29
A39: 61000 | B39: 0.185 | C39: 0.195 | D39: 0.205 | E39: 0.215 | F39: 0.23 | G39: 0.24 | H39: 0.25 | I39: 0.26 | J39: 0.27 | K39: 0.275 | L39: 0.285 | M39: 0.29
A40: 62000 | B40: 0.185 | C40: 0.195 | D40: 0.205 | E40: 0.22 | F40: 0.23 | G40: 0.24 | H40: 0.25 | I40: 0.26 | J40: 0.27 | K40: 0.28 | L40: 0.285 | M40: 0.295
A41: 63000 | B41: 0.19 | C41: 0.2 | D41: 0.21 | E41: 0.22 | F41: 0.23 | G41: 0.24 | H41: 0.25 | I41: 0.26 | J41: 0.27 | K41: 0.28 | L41: 0.285 | M41: 0.295
A42: 64000 | B42: 0.19 | C42: 0.2 | D42: 0.21 | E42: 0.22 | F42: 0.23 | G42: 0.24 | H42: 0.25 | I42: 0.265 | J42: 0.27 | K42: 0.28 | L42: 0.29 | M42: 0.295
A43: 65000 | B43: 0.19 | C43: 0.2 | D43: 0.21 | E43: 0.22 | F43: 0.23 | G43: 0.24 | H43: 0.25 | I43: 0.265 | J43: 0.275 | K43: 0.28 | L43: 0.29 | M43: 0.295
A44: 66000 | B44: 0.19 | C44: 0.2 | D44: 0.215 | E44: 0.225 | F44: 0.235 | G44: 0.24 | H44: 0.25 | I44: 0.265 | J44: 0.275 | K44: 0.285 | L44: 0.29 | M44: 0.3
A45: 67000 | B45: 0.195 | C45: 0.205 | D45: 0.215 | E45: 0.225 | F45: 0.235 | G45: 0.245 | H45: 0.255 | I45: 0.265 | J45: 0.275 | K45: 0.285 | L45: 0.295 | M45: 0.3
A46: 68000 | B46: 0.195 | C46: 0.205 | D46: 0.215 | E46: 0.225 | F46: 0.235 | G46: 0.245 | H46: 0.255 | I46: 0.265 | J46: 0.275 | K46: 0.285 | L46: 0.295 | M46: 0.3
A47: 69000 | B47: 0.195 | C47: 0.205 | D47: 0.215 | E47: 0.225 | F47: 0.235 | G47: 0.245 | H47: 0.255 | I47: 0.265 | J47: 0.275 | K47: 0.285 | L47: 0.295 | M47: 0.305
A48: 70000 | B48: 0.195 | C48: 0.205 | D48: 0.215 | E48: 0.225 | F48: 0.235 | G48: 0.25 | H48: 0.26 | I48: 0.27 | J48: 0.275 | K48: 0.285 | L48: 0.295 | M48: 0.305
A49: 71000 | B49: 0.2 | C49: 0.21 | D49: 0.22 | E49: 0.23 | F49: 0.24 | G49: 0.25 | H49: 0.26 | I49: 0.27 | J49: 0.28 | K49: 0.29 | L49: 0.295 | M49: 0.305
A50: 72000 | B50: 0.2 | C50: 0.21 | D50: 0.22 | E50: 0.23 | F50: 0.24 | G50: 0.25 | H50: 0.26 | I50: 0.27 | J50: 0.28 | K50: 0.29 | L50: 0.3 | M50: 0.305
A51: 73000 | B51: 0.2 | C51: 0.21 | D51: 0.22 | E51: 0.23 | F51: 0.245 | G51: 0.255 | H51: 0.265 | I51: 0.275 | J51: 0.285 | K51: 0.29 | L51: 0.3 | M51: 0.305
A52: 74000 | B52: 0.2 | C52: 0.21 | D52: 0.22 | E52: 0.23 | F52: 0.245 | G52: 0.255 | H52: 0.265 | I52: 0.275 | J52: 0.285 | K52: 0.29 | L52: 0.3 | M52: 0.305
A53: 75000 | B53: 0.2 | C53: 0.21 | D53: 0.22 | E53: 0.23 | F53: 0.245 | G53: 0.255 | H53: 0.265 | I53: 0.275 | J53: 0.285 | K53: 0.295 | L53: 0.3 | M53: 0.31
A54: 76000 | B54: 0.2 | C54: 0.21 | D54: 0.22 | E54: 0.23 | F54: 0.245 | G54: 0.26 | H54: 0.27 | I54: 0.275 | J54: 0.285 | K54: 0.295 | L54: 0.3 | M54: 0.31
A55: 77000 | B55: 0.205 | C55: 0.215 | D55: 0.225 | E55: 0.24 | F55: 0.25 | G55: 0.26 | H55: 0.27 | I55: 0.28 | J55: 0.285 | K55: 0.295 | L55: 0.305 | M55: 0.31
A56: 78000 | B56: 0.205 | C56: 0.215 | D56: 0.225 | E56: 0.24 | F56: 0.25 | G56: 0.26 | H56: 0.27 | I56: 0.28 | J56: 0.29 | K56: 0.295 | L56: 0.305 | M56: 0.31
A57: 79000 | B57: 0.205 | C57: 0.215 | D57: 0.225 | E57: 0.24 | F57: 0.25 | G57: 0.26 | H57: 0.27 | I57: 0.28 | J57: 0.29 | K57: 0.295 | L57: 0.305 | M57: 0.31
A58: 80000 | B58: 0.205 | C58: 0.215 | D58: 0.23 | E58: 0.24 | F58: 0.25 | G58: 0.26 | H58: 0.27 | I58: 0.28 | J58: 0.29 | K58: 0.3 | L58: 0.305 | M58: 0.315
A59: 81000 | B59: 0.205 | C59: 0.215 | D59: 0.23 | E59: 0.24 | F59: 0.25 | G59: 0.26 | H59: 0.27 | I59: 0.28 | J59: 0.29 | K59: 0.3 | L59: 0.305 | M59: 0.315
A60: 82000 | B60: 0.205 | C60: 0.215 | D60: 0.23 | E60: 0.24 | F60: 0.25 | G60: 0.26 | H60: 0.27 | I60: 0.28 | J60: 0.29 | K60: 0.3 | L60: 0.305 | M60: 0.315
A61: 83000 | B61: 0.205 | C61: 0.215 | D61: 0.23 | E61: 0.24 | F61: 0.25 | G61: 0.26 | H61: 0.27 | I61: 0.28 | J61: 0.29 | K61: 0.3 | L61: 0.305 | M61: 0.315
A62: 84000 | B62: 0.205 | C62: 0.215 | D62: 0.23 | E62: 0.24 | F62: 0.25 | G62: 0.26 | H62: 0.27 | I62: 0.28 | J62: 0.29 | K62: 0.3 | L62: 0.31 | M62: 0.315
A63: 85000 | B63: 0.21 | C63: 0.22 | D63: 0.23 | E63: 0.24 | F63: 0.25 | G63: 0.265 | H63: 0.275 | I63: 0.28 | J63: 0.29 | K63: 0.3 | L63: 0.31 | M63: 0.315
A64: 86000 | B64: 0.21 | C64: 0.22 | D64: 0.23 | E64: 0.24 | F64: 0.255 | G64: 0.265 | H64: 0.275 | I64: 0.285 | J64: 0.29 | K64: 0.3 | L64: 0.31 | M64: 0.315
A65: 87000 | B65: 0.21 | C65: 0.22 | D65: 0.23 | E65: 0.24 | F65: 0.255 | G65: 0.265 | H65: 0.275 | I65: 0.285 | J65: 0.295 | K65: 0.3 | L65: 0.31 | M65: 0.315
A66: 88000 | B66: 0.21 | C66: 0.22 | D66: 0.23 | E66: 0.245 | F66: 0.255 | G66: 0.265 | H66: 0.275 | I66: 0.285 | J66: 0.295 | K66: 0.3 | L66: 0.31 | M66: 0.32
A67: 89000 | B67: 0.21 | C67: 0.22 | D67: 0.235 | E67: 0.245 | F67: 0.255 | G67: 0.265 | H67: 0.275 | I67: 0.285 | J67: 0.295 | K67: 0.3 | L67: 0.31 | M67: 0.32
A68: 90000 | B68: 0.21 | C68: 0.22 | D68: 0.235 | E68: 0.245 | F68: 0.255 | G68: 0.265 | H68: 0.275 | I68: 0.285 | J68: 0.295 | K68: 0.3 | L68: 0.31 | M68: 0.32
A69: 91000 | B69: 0.21 | C69: 0.225 | D69: 0.235 | E69: 0.245 | F69: 0.255 | G69: 0.265 | H69: 0.275 | I69: 0.285 | J69: 0.295 | K69: 0.305 | L69: 0.31 | M69: 0.32
A70: 92000 | B70: 0.21 | C70: 0.225 | D70: 0.235 | E70: 0.245 | F70: 0.255 | G70: 0.265 | H70: 0.275 | I70: 0.285 | J70: 0.295 | K70: 0.305 | L70: 0.31 | M70: 0.32
A71: 93000 | B71: 0.21 | C71: 0.225 | D71: 0.235 | E71: 0.245 | F71: 0.255 | G71: 0.265 | H71: 0.275 | I71: 0.285 | J71: 0.295 | K71: 0.305 | L71: 0.31 | M71: 0.32
A72: 94000 | B72: 0.215 | C72: 0.225 | D72: 0.235 | E72: 0.245 | F72: 0.255 | G72: 0.265 | H72: 0.275 | I72: 0.285 | J72: 0.295 | K72: 0.305 | L72: 0.31 | M72: 0.32
A73: 95000 | B73: 0.215 | C73: 0.225 | D73: 0.235 | E73: 0.245 | F73: 0.26 | G73: 0.27 | H73: 0.28 | I73: 0.285 | J73: 0.295 | K73: 0.305 | L73: 0.315 | M73: 0.32
A74: 96000 | B74: 0.215 | C74: 0.225 | D74: 0.235 | E74: 0.245 | F74: 0.26 | G74: 0.27 | H74: 0.28 | I74: 0.285 | J74: 0.295 | K74: 0.305 | L74: 0.315 | M74: 0.32
A75: 97000 | B75: 0.215 | C75: 0.225 | D75: 0.235 | E75: 0.25 | F75: 0.26 | G75: 0.27 | H75: 0.28 | I75: 0.29 | J75: 0.295 | K75: 0.305 | L75: 0.315 | M75: 0.32
A76: 98000 | B76: 0.215 | C76: 0.225 | D76: 0.24 | E76: 0.25 | F76: 0.26 | G76: 0.27 | H76: 0.28 | I76: 0.29 | J76: 0.295 | K76: 0.305 | L76: 0.315 | M76: 0.32
A77: 99000 | B77: 0.215 | C77: 0.225 | D77: 0.24 | E77: 0.25 | F77: 0.26 | G77: 0.27 | H77: 0.28 | I77: 0.29 | J77: 0.3 | K77: 0.305 | L77: 0.315 | M77: 0.32
A78: 100000 | B78: 0.215 | C78: 0.23 | D78: 0.24 | E78: 0.25 | F78: 0.26 | G78: 0.27 | H78: 0.28 | I78: 0.29 | J78: 0.3 | K78: 0.305 | L78: 0.315 | M78: 0.325
A79: 101000 | B79: 0.215 | C79: 0.23 | D79: 0.24 | E79: 0.25 | F79: 0.26 | G79: 0.27 | H79: 0.28 | I79: 0.29 | J79: 0.3 | K79: 0.305 | L79: 0.315 | M79: 0.325
A80: 102000 | B80: 0.215 | C80: 0.23 | D80: 0.24 | E80: 0.25 | F80: 0.26 | G80: 0.27 | H80: 0.28 | I80: 0.29 | J80: 0.3 | K80: 0.31 | L80: 0.315 | M80: 0.325
A81: 103000 | B81: 0.22 | C81: 0.23 | D81: 0.24 | E81: 0.25 | F81: 0.26 | G81: 0.27 | H81: 0.28 | I81: 0.29 | J81: 0.3 | K81: 0.31 | L81: 0.315 | M81: 0.325
A82: 104000 | B82: 0.22 | C82: 0.23 | D82: 0.24 | E82: 0.25 | F82: 0.265 | G82: 0.275 | H82: 0.28 | I82: 0.29 | J82: 0.3 | K82: 0.31 | L82: 0.315 | M82: 0.325
A83: 105000 | B83: 0.22 | C83: 0.23 | D83: 0.24 | E83: 0.255 | F83: 0.265 | G83: 0.275 | H83: 0.285 | I83: 0.29 | J83: 0.3 | K83: 0.31 | L83: 0.315 | M83: 0.325
A84: 106000 | B84: 0.22 | C84: 0.23 | D84: 0.24 | E84: 0.255 | F84: 0.265 | G84: 0.275 | H84: 0.285 | I84: 0.295 | J84: 0.3 | K84: 0.31 | L84: 0.32 | M84: 0.325
A85: 107000 | B85: 0.22 | C85: 0.23 | D85: 0.245 | E85: 0.255 | F85: 0.265 | G85: 0.275 | H85: 0.285 | I85: 0.295 | J85: 0.3 | K85: 0.31 | L85: 0.32 | M85: 0.325
A86: 108000 | B86: 0.22 | C86: 0.23 | D86: 0.245 | E86: 0.255 | F86: 0.265 | G86: 0.275 | H86: 0.285 | I86: 0.295 | J86: 0.305 | K86: 0.31 | L86: 0.32 | M86: 0.325
A87: 109000 | B87: 0.22 | C87: 0.23 | D87: 0.245 | E87: 0.255 | F87: 0.265 | G87: 0.275 | H87: 0.285 | I87: 0.295 | J87: 0.305 | K87: 0.31 | L87: 0.32 | M87: 0.325
A88: 110000 | B88: 0.22 | C88: 0.23 | D88: 0.245 | E88: 0.255 | F88: 0.265 | G88: 0.275 | H88: 0.285 | I88: 0.295 | J88: 0.305 | K88: 0.31 | L88: 0.32 | M88: 0.33
A89: 111000 | B89: 0.22 | C89: 0.23 | D89: 0.245 | E89: 0.255 | F89: 0.265 | G89: 0.275 | H89: 0.285 | I89: 0.295 | J89: 0.305 | K89: 0.31 | L89: 0.32 | M89: 0.33
A90: 112000 | B90: 0.22 | C90: 0.23 | D90: 0.245 | E90: 0.255 | F90: 0.265 | G90: 0.275 | H90: 0.285 | I90: 0.295 | J90: 0.305 | K90: 0.315 | L90: 0.32 | M90: 0.33
A91: 113000 | B91: 0.22 | C91: 0.235 | D91: 0.245 | E91: 0.255 | F91: 0.265 | G91: 0.275 | H91: 0.285 | I91: 0.295 | J91: 0.305 | K91: 0.315 | L91: 0.32 | M91: 0.33
A92: 114000 | B92: 0.22 | C92: 0.235 | D92: 0.245 | E92: 0.255 | F92: 0.265 | G92: 0.275 | H92: 0.285 | I92: 0.295 | J92: 0.305 | K92: 0.315 | L92: 0.32 | M92: 0.33
A93: 115000 | B93: 0.22 | C93: 0.235 | D93: 0.245 | E93: 0.255 | F93: 0.265 | G93: 0.275 | H93: 0.285 | I93: 0.295 | J93: 0.305 | K93: 0.315 | L93: 0.32 | M93: 0.33
A94: 116000 | B94: 0.22 | C94: 0.235 | D94: 0.245 | E94: 0.255 | F94: 0.265 | G94: 0.275 | H94: 0.29 | I94: 0.295 | J94: 0.305 | K94: 0.315 | L94: 0.32 | M94: 0.33
A95: 117000 | B95: 0.22 | C95: 0.235 | D95: 0.245 | E95: 0.255 | F95: 0.265 | G95: 0.275 | H95: 0.29 | I95: 0.295 | J95: 0.305 | K95: 0.315 | L95: 0.32 | M95: 0.33
A96: 118000 | B96: 0.22 | C96: 0.235 | D96: 0.245 | E96: 0.255 | F96: 0.265 | G96: 0.28 | H96: 0.29 | I96: 0.295 | J96: 0.305 | K96: 0.315 | L96: 0.32 | M96: 0.33
A97: 119000 | B97: 0.22 | C97: 0.235 | D97: 0.245 | E97: 0.255 | F97: 0.27 | G97: 0.28 | H97: 0.29 | I97: 0.3 | J97: 0.305 | K97: 0.315 | L97: 0.32 | M97: 0.33
A98: 120000 | B98: 0.22 | C98: 0.235 | D98: 0.245 | E98: 0.255 | F98: 0.27 | G98: 0.28 | H98: 0.29 | I98: 0.3 | J98: 0.305 | K98: 0.315 | L98: 0.325 | M98: 0.33
A99: 121000 | B99: 0.225 | C99: 0.235 | D99: 0.245 | E99: 0.26 | F99: 0.27 | G99: 0.28 | H99: 0.29 | I99: 0.3 | J99: 0.305 | K99: 0.315 | L99: 0.325 | M99: 0.33
A100: 122000 | B100: 0.225 | C100: 0.235 | D100: 0.245 | E100: 0.26 | F100: 0.27 | G100: 0.28 | H100: 0.29 | I100: 0.3 | J100: 0.31 | K100: 0.315 | L100: 0.325 | M100: 0.33
A101: 123000 | B101: 0.225 | C101: 0.235 | D101: 0.245 | E101: 0.26 | F101: 0.27 | G101: 0.28 | H101: 0.29 | I101: 0.3 | J101: 0.31 | K101: 0.315 | L101: 0.325 | M101: 0.33
A102: 124000 | B102: 0.225 | C102: 0.235 | D102: 0.245 | E102: 0.26 | F102: 0.27 | G102: 0.28 | H102: 0.29 | I102: 0.3 | J102: 0.31 | K102: 0.315 | L102: 0.325 | M102: 0.33
A103: 1000000 | B103: 0.225 | C103: 0.235 | D103: 0.25 | E103: 0.26 | F103: 0.27 | G103: 0.28 | H103: 0.29 | I103: 0.3 | J103: 0.31 | K103: 0.315 | L103: 0.325 | M103: 0.33

Sheet 2024BOX3 (hidden)
A2: Debetrente | B2: <= 1,500% | C2: 1,501–2,000% | D2: 2,001–2,500% | E2: 2,501–3,000% | F2: 3,001–3,500% | G2: 3,501–4,000% | H2: 4,001–4,500% | I2: 4,501–5,000% | J2: 5,001–5,500% | K2: 5,501–6,000% | L2: 6,001–6,500% | M2: >= 6,501%
A3: toetsinkomen
A4: -1 | B4: 0 | C4: 0.01501 | D4: =+C4+0.5% -> 0.02001 | E4: 0.02501 | F4: 0.03001 | G4: 0.03501 | H4: 0.04001 | I4: 0.04501 | J4: 0.05001 | K4: 0.05501 | L4: 0.06001 | M4: 0.06501 | N4: <= beginrente
A5: 0 | B5: 0.115 | C5: 0.12 | D5: 0.12 | E5: 0.12 | F5: 0.125 | G5: 0.125 | H5: 0.125 | I5: 0.13 | J5: 0.13 | K5: 0.13 | L5: 0.13 | M5: 0.135
A6: 28000 | B6: 0.115 | C6: 0.12 | D6: 0.12 | E6: 0.12 | F6: 0.125 | G6: 0.125 | H6: 0.125 | I6: 0.13 | J6: 0.13 | K6: 0.13 | L6: 0.13 | M6: 0.135
A7: 29000 | B7: 0.125 | C7: 0.125 | D7: 0.125 | E7: 0.13 | F7: 0.13 | G7: 0.135 | H7: 0.135 | I7: 0.135 | J7: 0.135 | K7: 0.14 | L7: 0.14 | M7: 0.14
A8: 30000 | B8: 0.13 | C8: 0.13 | D8: 0.135 | E8: 0.135 | F8: 0.135 | G8: 0.14 | H8: 0.145 | I8: 0.145 | J8: 0.145 | K8: 0.145 | L8: 0.145 | M8: 0.15
A9: 31000 | B9: 0.135 | C9: 0.135 | D9: 0.14 | E9: 0.14 | F9: 0.145 | G9: 0.145 | H9: 0.145 | I9: 0.15 | J9: 0.15 | K9: 0.15 | L9: 0.155 | M9: 0.155
A10: 32000 | B10: 0.14 | C10: 0.145 | D10: 0.145 | E10: 0.145 | F10: 0.15 | G10: 0.15 | H10: 0.155 | I10: 0.155 | J10: 0.155 | K10: 0.16 | L10: 0.16 | M10: 0.16
A11: 33000 | B11: 0.145 | C11: 0.15 | D11: 0.15 | E11: 0.155 | F11: 0.155 | G11: 0.155 | H11: 0.16 | I11: 0.16 | J11: 0.16 | K11: 0.165 | L11: 0.165 | M11: 0.165
A12: 34000 | B12: 0.15 | C12: 0.155 | D12: 0.155 | E12: 0.16 | F12: 0.16 | G12: 0.16 | H12: 0.165 | I12: 0.165 | J12: 0.17 | K12: 0.17 | L12: 0.17 | M12: 0.17
A13: 35000 | B13: 0.155 | C13: 0.16 | D13: 0.16 | E13: 0.165 | F13: 0.165 | G13: 0.165 | H13: 0.17 | I13: 0.17 | J13: 0.175 | K13: 0.175 | L13: 0.175 | M13: 0.175
A14: 36000 | B14: 0.16 | C14: 0.16 | D14: 0.165 | E14: 0.165 | F14: 0.17 | G14: 0.17 | H14: 0.175 | I14: 0.175 | J14: 0.175 | K14: 0.18 | L14: 0.18 | M14: 0.18
A15: 37000 | B15: 0.16 | C15: 0.165 | D15: 0.165 | E15: 0.17 | F15: 0.17 | G15: 0.175 | H15: 0.175 | I15: 0.18 | J15: 0.18 | K15: 0.18 | L15: 0.185 | M15: 0.185
A16: 38000 | B16: 0.16 | C16: 0.165 | D16: 0.165 | E16: 0.17 | F16: 0.17 | G16: 0.175 | H16: 0.175 | I16: 0.18 | J16: 0.18 | K16: 0.18 | L16: 0.185 | M16: 0.185
A17: 39000 | B17: 0.16 | C17: 0.165 | D17: 0.165 | E17: 0.17 | F17: 0.17 | G17: 0.175 | H17: 0.175 | I17: 0.18 | J17: 0.18 | K17: 0.18 | L17: 0.185 | M17: 0.185
A18: 40000 | B18: 0.16 | C18: 0.165 | D18: 0.165 | E18: 0.17 | F18: 0.17 | G18: 0.175 | H18: 0.175 | I18: 0.18 | J18: 0.18 | K18: 0.18 | L18: 0.185 | M18: 0.185
A19: 41000 | B19: 0.16 | C19: 0.165 | D19: 0.165 | E19: 0.17 | F19: 0.17 | G19: 0.175 | H19: 0.175 | I19: 0.18 | J19: 0.18 | K19: 0.18 | L19: 0.185 | M19: 0.185
A20: 42000 | B20: 0.16 | C20: 0.165 | D20: 0.165 | E20: 0.17 | F20: 0.17 | G20: 0.175 | H20: 0.175 | I20: 0.18 | J20: 0.18 | K20: 0.18 | L20: 0.185 | M20: 0.185
A21: 43000 | B21: 0.16 | C21: 0.165 | D21: 0.165 | E21: 0.17 | F21: 0.17 | G21: 0.175 | H21: 0.175 | I21: 0.18 | J21: 0.18 | K21: 0.18 | L21: 0.185 | M21: 0.185
A22: 44000 | B22: 0.16 | C22: 0.165 | D22: 0.165 | E22: 0.17 | F22: 0.17 | G22: 0.175 | H22: 0.175 | I22: 0.18 | J22: 0.18 | K22: 0.18 | L22: 0.185 | M22: 0.185
A23: 45000 | B23: 0.16 | C23: 0.165 | D23: 0.165 | E23: 0.17 | F23: 0.17 | G23: 0.175 | H23: 0.175 | I23: 0.18 | J23: 0.18 | K23: 0.18 | L23: 0.185 | M23: 0.185
A24: 46000 | B24: 0.16 | C24: 0.165 | D24: 0.165 | E24: 0.17 | F24: 0.17 | G24: 0.175 | H24: 0.175 | I24: 0.18 | J24: 0.18 | K24: 0.18 | L24: 0.185 | M24: 0.185
A25: 47000 | B25: 0.16 | C25: 0.165 | D25: 0.165 | E25: 0.17 | F25: 0.17 | G25: 0.175 | H25: 0.175 | I25: 0.18 | J25: 0.18 | K25: 0.18 | L25: 0.185 | M25: 0.185
A26: 48000 | B26: 0.16 | C26: 0.165 | D26: 0.165 | E26: 0.17 | F26: 0.17 | G26: 0.175 | H26: 0.175 | I26: 0.18 | J26: 0.18 | K26: 0.18 | L26: 0.185 | M26: 0.185
A27: 49000 | B27: 0.16 | C27: 0.165 | D27: 0.165 | E27: 0.17 | F27: 0.17 | G27: 0.175 | H27: 0.175 | I27: 0.18 | J27: 0.18 | K27: 0.18 | L27: 0.185 | M27: 0.185
A28: 50000 | B28: 0.16 | C28: 0.165 | D28: 0.165 | E28: 0.17 | F28: 0.17 | G28: 0.175 | H28: 0.175 | I28: 0.18 | J28: 0.18 | K28: 0.18 | L28: 0.185 | M28: 0.185
A29: 51000 | B29: 0.16 | C29: 0.165 | D29: 0.165 | E29: 0.17 | F29: 0.17 | G29: 0.175 | H29: 0.175 | I29: 0.18 | J29: 0.18 | K29: 0.18 | L29: 0.185 | M29: 0.185
A30: 52000 | B30: 0.16 | C30: 0.165 | D30: 0.165 | E30: 0.17 | F30: 0.17 | G30: 0.175 | H30: 0.175 | I30: 0.18 | J30: 0.18 | K30: 0.18 | L30: 0.185 | M30: 0.185
A31: 53000 | B31: 0.16 | C31: 0.165 | D31: 0.17 | E31: 0.17 | F31: 0.175 | G31: 0.175 | H31: 0.175 | I31: 0.18 | J31: 0.18 | K31: 0.18 | L31: 0.185 | M31: 0.185
A32: 54000 | B32: 0.165 | C32: 0.165 | D32: 0.17 | E32: 0.17 | F32: 0.175 | G32: 0.175 | H32: 0.18 | I32: 0.18 | J32: 0.18 | K32: 0.185 | L32: 0.185 | M32: 0.185
A33: 55000 | B33: 0.165 | C33: 0.165 | D33: 0.17 | E33: 0.17 | F33: 0.175 | G33: 0.175 | H33: 0.18 | I33: 0.18 | J33: 0.185 | K33: 0.185 | L33: 0.185 | M33: 0.19
A34: 56000 | B34: 0.165 | C34: 0.17 | D34: 0.17 | E34: 0.175 | F34: 0.175 | G34: 0.18 | H34: 0.18 | I34: 0.185 | J34: 0.185 | K34: 0.185 | L34: 0.19 | M34: 0.19
A35: 57000 | B35: 0.165 | C35: 0.17 | D35: 0.175 | E35: 0.175 | F35: 0.18 | G35: 0.18 | H35: 0.185 | I35: 0.185 | J35: 0.185 | K35: 0.19 | L35: 0.19 | M35: 0.19
A36: 58000 | B36: 0.17 | C36: 0.17 | D36: 0.175 | E36: 0.175 | F36: 0.18 | G36: 0.18 | H36: 0.185 | I36: 0.185 | J36: 0.19 | K36: 0.19 | L36: 0.19 | M36: 0.195
A37: 59000 | B37: 0.17 | C37: 0.175 | D37: 0.175 | E37: 0.18 | F37: 0.18 | G37: 0.185 | H37: 0.185 | I37: 0.19 | J37: 0.19 | K37: 0.19 | L37: 0.195 | M37: 0.195
A38: 60000 | B38: 0.17 | C38: 0.175 | D38: 0.175 | E38: 0.18 | F38: 0.18 | G38: 0.185 | H38: 0.185 | I38: 0.19 | J38: 0.19 | K38: 0.195 | L38: 0.195 | M38: 0.195
A39: 61000 | B39: 0.175 | C39: 0.175 | D39: 0.18 | E39: 0.18 | F39: 0.185 | G39: 0.185 | H39: 0.19 | I39: 0.19 | J39: 0.19 | K39: 0.195 | L39: 0.195 | M39: 0.195
A40: 62000 | B40: 0.175 | C40: 0.175 | D40: 0.18 | E40: 0.185 | F40: 0.185 | G40: 0.185 | H40: 0.19 | I40: 0.19 | J40: 0.195 | K40: 0.195 | L40: 0.195 | M40: 0.2
A41: 63000 | B41: 0.175 | C41: 0.18 | D41: 0.18 | E41: 0.185 | F41: 0.185 | G41: 0.19 | H41: 0.19 | I41: 0.195 | J41: 0.195 | K41: 0.195 | L41: 0.2 | M41: 0.2
A42: 64000 | B42: 0.175 | C42: 0.18 | D42: 0.18 | E42: 0.185 | F42: 0.19 | G42: 0.19 | H42: 0.19 | I42: 0.195 | J42: 0.195 | K42: 0.2 | L42: 0.2 | M42: 0.2
A43: 65000 | B43: 0.175 | C43: 0.18 | D43: 0.185 | E43: 0.185 | F43: 0.19 | G43: 0.19 | H43: 0.195 | I43: 0.195 | J43: 0.2 | K43: 0.2 | L43: 0.2 | M43: 0.205
A44: 66000 | B44: 0.18 | C44: 0.18 | D44: 0.185 | E44: 0.19 | F44: 0.19 | G44: 0.195 | H44: 0.195 | I44: 0.195 | J44: 0.2 | K44: 0.2 | L44: 0.205 | M44: 0.205
A45: 67000 | B45: 0.18 | C45: 0.185 | D45: 0.185 | E45: 0.19 | F45: 0.19 | G45: 0.195 | H45: 0.195 | I45: 0.2 | J45: 0.2 | K45: 0.2 | L45: 0.205 | M45: 0.205
A46: 68000 | B46: 0.18 | C46: 0.185 | D46: 0.19 | E46: 0.19 | F46: 0.195 | G46: 0.195 | H46: 0.2 | I46: 0.2 | J46: 0.2 | K46: 0.205 | L46: 0.205 | M46: 0.21
A47: 69000 | B47: 0.18 | C47: 0.185 | D47: 0.19 | E47: 0.19 | F47: 0.195 | G47: 0.195 | H47: 0.2 | I47: 0.2 | J47: 0.205 | K47: 0.205 | L47: 0.205 | M47: 0.21
A48: 70000 | B48: 0.185 | C48: 0.185 | D48: 0.19 | E48: 0.195 | F48: 0.195 | G48: 0.2 | H48: 0.2 | I48: 0.205 | J48: 0.205 | K48: 0.205 | L48: 0.21 | M48: 0.21
A49: 71000 | B49: 0.185 | C49: 0.19 | D49: 0.19 | E49: 0.195 | F49: 0.195 | G49: 0.2 | H49: 0.2 | I49: 0.205 | J49: 0.205 | K49: 0.21 | L49: 0.21 | M49: 0.21
A50: 72000 | B50: 0.185 | C50: 0.19 | D50: 0.19 | E50: 0.195 | F50: 0.2 | G50: 0.2 | H50: 0.205 | I50: 0.205 | J50: 0.21 | K50: 0.21 | L50: 0.21 | M50: 0.215
A51: 73000 | B51: 0.185 | C51: 0.19 | D51: 0.195 | E51: 0.195 | F51: 0.2 | G51: 0.205 | H51: 0.205 | I51: 0.205 | J51: 0.21 | K51: 0.21 | L51: 0.215 | M51: 0.215
A52: 74000 | B52: 0.19 | C52: 0.19 | D52: 0.195 | E52: 0.2 | F52: 0.2 | G52: 0.205 | H52: 0.205 | I52: 0.21 | J52: 0.21 | K52: 0.215 | L52: 0.215 | M52: 0.215
A53: 75000 | B53: 0.19 | C53: 0.195 | D53: 0.195 | E53: 0.2 | F53: 0.2 | G53: 0.205 | H53: 0.21 | I53: 0.21 | J53: 0.21 | K53: 0.215 | L53: 0.215 | M53: 0.22
A54: 76000 | B54: 0.19 | C54: 0.195 | D54: 0.195 | E54: 0.2 | F54: 0.205 | G54: 0.205 | H54: 0.21 | I54: 0.21 | J54: 0.215 | K54: 0.215 | L54: 0.215 | M54: 0.22
A55: 77000 | B55: 0.19 | C55: 0.195 | D55: 0.2 | E55: 0.2 | F55: 0.205 | G55: 0.205 | H55: 0.21 | I55: 0.21 | J55: 0.215 | K55: 0.215 | L55: 0.22 | M55: 0.22
A56: 78000 | B56: 0.19 | C56: 0.195 | D56: 0.2 | E56: 0.2 | F56: 0.205 | G56: 0.21 | H56: 0.21 | I56: 0.215 | J56: 0.215 | K56: 0.215 | L56: 0.22 | M56: 0.22
A57: 79000 | B57: 0.195 | C57: 0.195 | D57: 0.2 | E57: 0.205 | F57: 0.205 | G57: 0.21 | H57: 0.21 | I57: 0.215 | J57: 0.215 | K57: 0.22 | L57: 0.22 | M57: 0.22
A58: 80000 | B58: 0.195 | C58: 0.195 | D58: 0.2 | E58: 0.205 | F58: 0.205 | G58: 0.21 | H58: 0.21 | I58: 0.215 | J58: 0.215 | K58: 0.22 | L58: 0.22 | M58: 0.225
A59: 81000 | B59: 0.195 | C59: 0.2 | D59: 0.2 | E59: 0.205 | F59: 0.205 | G59: 0.21 | H59: 0.21 | I59: 0.215 | J59: 0.22 | K59: 0.22 | L59: 0.22 | M59: 0.225
A60: 82000 | B60: 0.195 | C60: 0.2 | D60: 0.2 | E60: 0.205 | F60: 0.21 | G60: 0.21 | H60: 0.215 | I60: 0.215 | J60: 0.22 | K60: 0.22 | L60: 0.22 | M60: 0.225
A61: 83000 | B61: 0.195 | C61: 0.2 | D61: 0.205 | E61: 0.205 | F61: 0.21 | G61: 0.21 | H61: 0.215 | I61: 0.215 | J61: 0.22 | K61: 0.22 | L61: 0.225 | M61: 0.225
A62: 84000 | B62: 0.195 | C62: 0.2 | D62: 0.205 | E62: 0.205 | F62: 0.21 | G62: 0.21 | H62: 0.215 | I62: 0.215 | J62: 0.22 | K62: 0.22 | L62: 0.225 | M62: 0.225
A63: 85000 | B63: 0.195 | C63: 0.2 | D63: 0.205 | E63: 0.205 | F63: 0.21 | G63: 0.215 | H63: 0.215 | I63: 0.22 | J63: 0.22 | K63: 0.225 | L63: 0.225 | M63: 0.225
A64: 86000 | B64: 0.195 | C64: 0.2 | D64: 0.205 | E64: 0.21 | F64: 0.21 | G64: 0.215 | H64: 0.215 | I64: 0.22 | J64: 0.22 | K64: 0.225 | L64: 0.225 | M64: 0.225
A65: 87000 | B65: 0.2 | C65: 0.2 | D65: 0.205 | E65: 0.21 | F65: 0.21 | G65: 0.215 | H65: 0.215 | I65: 0.22 | J65: 0.22 | K65: 0.225 | L65: 0.225 | M65: 0.23
A66: 88000 | B66: 0.2 | C66: 0.2 | D66: 0.205 | E66: 0.21 | F66: 0.21 | G66: 0.215 | H66: 0.215 | I66: 0.22 | J66: 0.22 | K66: 0.225 | L66: 0.225 | M66: 0.23
A67: 89000 | B67: 0.2 | C67: 0.205 | D67: 0.205 | E67: 0.21 | F67: 0.21 | G67: 0.215 | H67: 0.22 | I67: 0.22 | J67: 0.22 | K67: 0.225 | L67: 0.225 | M67: 0.23
A68: 90000 | B68: 0.2 | C68: 0.205 | D68: 0.205 | E68: 0.21 | F68: 0.215 | G68: 0.215 | H68: 0.22 | I68: 0.22 | J68: 0.225 | K68: 0.225 | L68: 0.23 | M68: 0.23
A69: 91000 | B69: 0.2 | C69: 0.205 | D69: 0.205 | E69: 0.21 | F69: 0.215 | G69: 0.215 | H69: 0.22 | I69: 0.22 | J69: 0.225 | K69: 0.225 | L69: 0.23 | M69: 0.23
A70: 92000 | B70: 0.2 | C70: 0.205 | D70: 0.21 | E70: 0.21 | F70: 0.215 | G70: 0.215 | H70: 0.22 | I70: 0.22 | J70: 0.225 | K70: 0.225 | L70: 0.23 | M70: 0.23
A71: 93000 | B71: 0.2 | C71: 0.205 | D71: 0.21 | E71: 0.21 | F71: 0.215 | G71: 0.22 | H71: 0.22 | I71: 0.225 | J71: 0.225 | K71: 0.225 | L71: 0.23 | M71: 0.23
A72: 94000 | B72: 0.2 | C72: 0.205 | D72: 0.21 | E72: 0.21 | F72: 0.215 | G72: 0.22 | H72: 0.22 | I72: 0.225 | J72: 0.225 | K72: 0.23 | L72: 0.23 | M72: 0.23
A73: 95000 | B73: 0.2 | C73: 0.205 | D73: 0.21 | E73: 0.21 | F73: 0.215 | G73: 0.22 | H73: 0.22 | I73: 0.225 | J73: 0.225 | K73: 0.23 | L73: 0.23 | M73: 0.235
A74: 96000 | B74: 0.2 | C74: 0.205 | D74: 0.21 | E74: 0.215 | F74: 0.215 | G74: 0.22 | H74: 0.22 | I74: 0.225 | J74: 0.225 | K74: 0.23 | L74: 0.23 | M74: 0.235
A75: 97000 | B75: 0.205 | C75: 0.205 | D75: 0.21 | E75: 0.215 | F75: 0.215 | G75: 0.22 | H75: 0.22 | I75: 0.225 | J75: 0.225 | K75: 0.23 | L75: 0.23 | M75: 0.235
A76: 98000 | B76: 0.205 | C76: 0.205 | D76: 0.21 | E76: 0.215 | F76: 0.215 | G76: 0.22 | H76: 0.225 | I76: 0.225 | J76: 0.23 | K76: 0.23 | L76: 0.23 | M76: 0.235
A77: 99000 | B77: 0.205 | C77: 0.205 | D77: 0.21 | E77: 0.215 | F77: 0.22 | G77: 0.22 | H77: 0.225 | I77: 0.225 | J77: 0.23 | K77: 0.23 | L77: 0.23 | M77: 0.235
A78: 100000 | B78: 0.205 | C78: 0.21 | D78: 0.21 | E78: 0.215 | F78: 0.22 | G78: 0.22 | H78: 0.225 | I78: 0.225 | J78: 0.23 | K78: 0.23 | L78: 0.235 | M78: 0.235
A79: 101000 | B79: 0.205 | C79: 0.21 | D79: 0.21 | E79: 0.215 | F79: 0.22 | G79: 0.22 | H79: 0.225 | I79: 0.225 | J79: 0.23 | K79: 0.23 | L79: 0.235 | M79: 0.235
A80: 102000 | B80: 0.205 | C80: 0.21 | D80: 0.215 | E80: 0.215 | F80: 0.22 | G80: 0.22 | H80: 0.225 | I80: 0.225 | J80: 0.23 | K80: 0.23 | L80: 0.235 | M80: 0.235
A81: 103000 | B81: 0.205 | C81: 0.21 | D81: 0.215 | E81: 0.215 | F81: 0.22 | G81: 0.22 | H81: 0.225 | I81: 0.23 | J81: 0.23 | K81: 0.23 | L81: 0.235 | M81: 0.235
A82: 104000 | B82: 0.205 | C82: 0.21 | D82: 0.215 | E82: 0.215 | F82: 0.22 | G82: 0.225 | H82: 0.225 | I82: 0.23 | J82: 0.23 | K82: 0.235 | L82: 0.235 | M82: 0.235
A83: 105000 | B83: 0.205 | C83: 0.21 | D83: 0.215 | E83: 0.215 | F83: 0.22 | G83: 0.225 | H83: 0.225 | I83: 0.23 | J83: 0.23 | K83: 0.235 | L83: 0.235 | M83: 0.235
A84: 106000 | B84: 0.205 | C84: 0.21 | D84: 0.215 | E84: 0.22 | F84: 0.22 | G84: 0.225 | H84: 0.225 | I84: 0.23 | J84: 0.23 | K84: 0.235 | L84: 0.235 | M84: 0.24
A85: 107000 | B85: 0.21 | C85: 0.21 | D85: 0.215 | E85: 0.22 | F85: 0.22 | G85: 0.225 | H85: 0.225 | I85: 0.23 | J85: 0.23 | K85: 0.235 | L85: 0.235 | M85: 0.24
A86: 108000 | B86: 0.21 | C86: 0.21 | D86: 0.215 | E86: 0.22 | F86: 0.22 | G86: 0.225 | H86: 0.225 | I86: 0.23 | J86: 0.23 | K86: 0.235 | L86: 0.235 | M86: 0.24
A87: 109000 | B87: 0.21 | C87: 0.21 | D87: 0.215 | E87: 0.22 | F87: 0.22 | G87: 0.225 | H87: 0.23 | I87: 0.23 | J87: 0.235 | K87: 0.235 | L87: 0.235 | M87: 0.24
A88: 110000 | B88: 0.21 | C88: 0.21 | D88: 0.215 | E88: 0.22 | F88: 0.225 | G88: 0.225 | H88: 0.23 | I88: 0.23 | J88: 0.235 | K88: 0.235 | L88: 0.24 | M88: 0.24
A89: 111000 | B89: 0.21 | C89: 0.215 | D89: 0.215 | E89: 0.22 | F89: 0.225 | G89: 0.225 | H89: 0.23 | I89: 0.23 | J89: 0.235 | K89: 0.235 | L89: 0.24 | M89: 0.24
A90: 112000 | B90: 0.21 | C90: 0.215 | D90: 0.215 | E90: 0.22 | F90: 0.225 | G90: 0.225 | H90: 0.23 | I90: 0.23 | J90: 0.235 | K90: 0.235 | L90: 0.24 | M90: 0.24
A91: 113000 | B91: 0.21 | C91: 0.215 | D91: 0.215 | E91: 0.22 | F91: 0.225 | G91: 0.225 | H91: 0.23 | I91: 0.23 | J91: 0.235 | K91: 0.235 | L91: 0.24 | M91: 0.24
A92: 114000 | B92: 0.21 | C92: 0.215 | D92: 0.215 | E92: 0.22 | F92: 0.225 | G92: 0.225 | H92: 0.23 | I92: 0.23 | J92: 0.235 | K92: 0.235 | L92: 0.24 | M92: 0.24
A93: 115000 | B93: 0.21 | C93: 0.215 | D93: 0.215 | E93: 0.22 | F93: 0.225 | G93: 0.225 | H93: 0.23 | I93: 0.23 | J93: 0.235 | K93: 0.235 | L93: 0.24 | M93: 0.24
A94: 116000 | B94: 0.21 | C94: 0.215 | D94: 0.215 | E94: 0.22 | F94: 0.225 | G94: 0.225 | H94: 0.23 | I94: 0.23 | J94: 0.235 | K94: 0.235 | L94: 0.24 | M94: 0.24
A95: 117000 | B95: 0.21 | C95: 0.215 | D95: 0.215 | E95: 0.22 | F95: 0.225 | G95: 0.225 | H95: 0.23 | I95: 0.23 | J95: 0.235 | K95: 0.235 | L95: 0.24 | M95: 0.24
A96: 118000 | B96: 0.21 | C96: 0.215 | D96: 0.22 | E96: 0.22 | F96: 0.225 | G96: 0.225 | H96: 0.23 | I96: 0.23 | J96: 0.235 | K96: 0.235 | L96: 0.24 | M96: 0.24
A97: 119000 | B97: 0.21 | C97: 0.215 | D97: 0.22 | E97: 0.22 | F97: 0.225 | G97: 0.225 | H97: 0.23 | I97: 0.235 | J97: 0.235 | K97: 0.235 | L97: 0.24 | M97: 0.24
A98: 120000 | B98: 0.21 | C98: 0.215 | D98: 0.22 | E98: 0.22 | F98: 0.225 | G98: 0.225 | H98: 0.23 | I98: 0.235 | J98: 0.235 | K98: 0.235 | L98: 0.24 | M98: 0.24
A99: 121000 | B99: 0.21 | C99: 0.215 | D99: 0.22 | E99: 0.22 | F99: 0.225 | G99: 0.23 | H99: 0.23 | I99: 0.235 | J99: 0.235 | K99: 0.24 | L99: 0.24 | M99: 0.24
A100: 122000 | B100: 0.21 | C100: 0.215 | D100: 0.22 | E100: 0.22 | F100: 0.225 | G100: 0.23 | H100: 0.23 | I100: 0.235 | J100: 0.235 | K100: 0.24 | L100: 0.24 | M100: 0.24
A101: 123000 | B101: 0.21 | C101: 0.215 | D101: 0.22 | E101: 0.22 | F101: 0.225 | G101: 0.23 | H101: 0.23 | I101: 0.235 | J101: 0.235 | K101: 0.24 | L101: 0.24 | M101: 0.24
A102: 124000 | B102: 0.21 | C102: 0.215 | D102: 0.22 | E102: 0.22 | F102: 0.225 | G102: 0.23 | H102: 0.23 | I102: 0.235 | J102: 0.235 | K102: 0.24 | L102: 0.24 | M102: 0.245
A103: 10000000 | B103: 0.21 | C103: 0.215 | D103: 0.22 | E103: 0.22 | F103: 0.225 | G103: 0.23 | H103: 0.23 | I103: 0.235 | J103: 0.235 | K103: 0.24 | L103: 0.24 | M103: 0.245

Sheet 2024AOW (hidden)
A2: Debetrente | B2: <= 1,500% | C2: 1,501–2,000% | D2: 2,001–2,500% | E2: 2,501–3,000% | F2: 3,001–3,500% | G2: 3,501–4,000% | H2: 4,001–4,500% | I2: 4,501–5,000% | J2: 5,001–5,500% | K2: 5,501–6,000% | L2: 6,001–6,500% | M2: >= 6,501%
A3: toetsinkomen
A4: -1 | B4: 0 | C4: 0.01501 | D4: =+C4+0.5% -> 0.02001 | E4: 0.02501 | F4: 0.03001 | G4: 0.03501 | H4: 0.04001 | I4: 0.04501 | J4: 0.05001 | K4: 0.05501 | L4: 0.06001 | M4: 0.06501 | N4: <= beginrente
A5: 0 | B5: 0.175 | C5: 0.175 | D5: 0.18 | E5: 0.18 | F5: 0.185 | G5: 0.185 | H5: 0.19 | I5: 0.19 | J5: 0.195 | K5: 0.195 | L5: 0.195 | M5: 0.2
A6: 28000 | B6: 0.175 | C6: 0.175 | D6: 0.18 | E6: 0.18 | F6: 0.185 | G6: 0.185 | H6: 0.19 | I6: 0.19 | J6: 0.195 | K6: 0.195 | L6: 0.195 | M6: 0.2
A7: 29000 | B7: 0.19 | C7: 0.195 | D7: 0.2 | E7: 0.2 | F7: 0.205 | G7: 0.205 | H7: 0.21 | I7: 0.21 | J7: 0.215 | K7: 0.215 | L7: 0.215 | M7: 0.22
A8: 30000 | B8: 0.205 | C8: 0.21 | D8: 0.215 | E8: 0.22 | F8: 0.225 | G8: 0.225 | H8: 0.23 | I8: 0.23 | J8: 0.235 | K8: 0.235 | L8: 0.235 | M8: 0.24
A9: 31000 | B9: 0.215 | C9: 0.225 | D9: 0.23 | E9: 0.235 | F9: 0.24 | G9: 0.245 | H9: 0.245 | I9: 0.25 | J9: 0.25 | K9: 0.255 | L9: 0.255 | M9: 0.255
A10: 32000 | B10: 0.22 | C10: 0.225 | D10: 0.235 | E10: 0.245 | F10: 0.25 | G10: 0.26 | H10: 0.265 | I10: 0.265 | J10: 0.265 | K10: 0.27 | L10: 0.275 | M10: 0.275
A11: 33000 | B11: 0.22 | C11: 0.23 | D11: 0.24 | E11: 0.245 | F11: 0.255 | G11: 0.265 | H11: 0.27 | I11: 0.275 | J11: 0.28 | K11: 0.28 | L11: 0.285 | M11: 0.29
A12: 34000 | B12: 0.22 | C12: 0.23 | D12: 0.24 | E12: 0.25 | F12: 0.26 | G12: 0.265 | H12: 0.275 | I12: 0.28 | J12: 0.285 | K12: 0.29 | L12: 0.29 | M12: 0.295
A13: 35000 | B13: 0.22 | C13: 0.23 | D13: 0.245 | E13: 0.25 | F13: 0.26 | G13: 0.27 | H13: 0.275 | I13: 0.285 | J13: 0.29 | K13: 0.295 | L13: 0.3 | M13: 0.3
A14: 36000 | B14: 0.22 | C14: 0.235 | D14: 0.245 | E14: 0.255 | F14: 0.265 | G14: 0.27 | H14: 0.28 | I14: 0.285 | J14: 0.29 | K14: 0.3 | L14: 0.305 | M14: 0.305
A15: 37000 | B15: 0.225 | C15: 0.235 | D15: 0.245 | E15: 0.255 | F15: 0.265 | G15: 0.275 | H15: 0.28 | I15: 0.29 | J15: 0.295 | K15: 0.3 | L15: 0.305 | M15: 0.31
A16: 38000 | B16: 0.225 | C16: 0.235 | D16: 0.245 | E16: 0.255 | F16: 0.265 | G16: 0.275 | H16: 0.285 | I16: 0.29 | J16: 0.295 | K16: 0.305 | L16: 0.31 | M16: 0.315
A17: 39000 | B17: 0.225 | C17: 0.235 | D17: 0.245 | E17: 0.255 | F17: 0.265 | G17: 0.275 | H17: 0.285 | I17: 0.29 | J17: 0.3 | K17: 0.305 | L17: 0.31 | M17: 0.315
A18: 40000 | B18: 0.225 | C18: 0.235 | D18: 0.245 | E18: 0.255 | F18: 0.265 | G18: 0.275 | H18: 0.285 | I18: 0.295 | J18: 0.3 | K18: 0.305 | L18: 0.315 | M18: 0.32
A19: 41000 | B19: 0.225 | C19: 0.235 | D19: 0.245 | E19: 0.255 | F19: 0.265 | G19: 0.275 | H19: 0.285 | I19: 0.295 | J19: 0.3 | K19: 0.31 | L19: 0.315 | M19: 0.32
A20: 42000 | B20: 0.225 | C20: 0.235 | D20: 0.25 | E20: 0.26 | F20: 0.27 | G20: 0.28 | H20: 0.285 | I20: 0.295 | J20: 0.305 | K20: 0.31 | L20: 0.315 | M20: 0.325
A21: 43000 | B21: 0.23 | C21: 0.24 | D21: 0.25 | E21: 0.26 | F21: 0.27 | G21: 0.28 | H21: 0.29 | I21: 0.3 | J21: 0.305 | K21: 0.315 | L21: 0.32 | M21: 0.325
A22: 44000 | B22: 0.235 | C22: 0.245 | D22: 0.255 | E22: 0.265 | F22: 0.275 | G22: 0.285 | H22: 0.295 | I22: 0.3 | J22: 0.31 | K22: 0.315 | L22: 0.325 | M22: 0.33
A23: 45000 | B23: 0.235 | C23: 0.245 | D23: 0.255 | E23: 0.265 | F23: 0.275 | G23: 0.285 | H23: 0.295 | I23: 0.305 | J23: 0.31 | K23: 0.32 | L23: 0.325 | M23: 0.335
A24: 46000 | B24: 0.24 | C24: 0.25 | D24: 0.26 | E24: 0.27 | F24: 0.28 | G24: 0.29 | H24: 0.3 | I24: 0.305 | J24: 0.315 | K24: 0.32 | L24: 0.33 | M24: 0.335
A25: 47000 | B25: 0.245 | C25: 0.255 | D25: 0.265 | E25: 0.27 | F25: 0.28 | G25: 0.29 | H25: 0.3 | I25: 0.31 | J25: 0.315 | K25: 0.325 | L25: 0.335 | M25: 0.34
A26: 48000 | B26: 0.245 | C26: 0.255 | D26: 0.265 | E26: 0.275 | F26: 0.285 | G26: 0.295 | H26: 0.305 | I26: 0.31 | J26: 0.32 | K26: 0.33 | L26: 0.335 | M26: 0.345
A27: 49000 | B27: 0.25 | C27: 0.26 | D27: 0.27 | E27: 0.28 | F27: 0.29 | G27: 0.295 | H27: 0.305 | I27: 0.315 | J27: 0.325 | K27: 0.33 | L27: 0.34 | M27: 0.345
A28: 50000 | B28: 0.25 | C28: 0.265 | D28: 0.275 | E28: 0.285 | F28: 0.295 | G28: 0.3 | H28: 0.31 | I28: 0.32 | J28: 0.325 | K28: 0.335 | L28: 0.34 | M28: 0.35
A29: 51000 | B29: 0.255 | C29: 0.265 | D29: 0.28 | E29: 0.285 | F29: 0.295 | G29: 0.305 | H29: 0.315 | I29: 0.32 | J29: 0.33 | K29: 0.34 | L29: 0.345 | M29: 0.355
A30: 52000 | B30: 0.255 | C30: 0.27 | D30: 0.28 | E30: 0.29 | F30: 0.3 | G30: 0.31 | H30: 0.32 | I30: 0.325 | J30: 0.335 | K30: 0.34 | L30: 0.35 | M30: 0.355
A31: 53000 | B31: 0.255 | C31: 0.27 | D31: 0.285 | E31: 0.295 | F31: 0.305 | G31: 0.315 | H31: 0.32 | I31: 0.33 | J31: 0.34 | K31: 0.345 | L31: 0.355 | M31: 0.36
A32: 54000 | B32: 0.255 | C32: 0.275 | D32: 0.285 | E32: 0.3 | F32: 0.31 | G32: 0.32 | H32: 0.325 | I32: 0.335 | J32: 0.34 | K32: 0.35 | L32: 0.355 | M32: 0.365
A33: 55000 | B33: 0.255 | C33: 0.275 | D33: 0.29 | E33: 0.3 | F33: 0.315 | G33: 0.32 | H33: 0.33 | I33: 0.34 | J33: 0.345 | K33: 0.355 | L33: 0.36 | M33: 0.37
A34: 56000 | B34: 0.255 | C34: 0.275 | D34: 0.29 | E34: 0.305 | F34: 0.315 | G34: 0.325 | H34: 0.335 | I34: 0.345 | J34: 0.35 | K34: 0.36 | L34: 0.365 | M34: 0.375
A35: 57000 | B35: 0.26 | C35: 0.275 | D35: 0.29 | E35: 0.305 | F35: 0.32 | G35: 0.33 | H35: 0.34 | I35: 0.345 | J35: 0.355 | K35: 0.36 | L35: 0.37 | M35: 0.375
A36: 58000 | B36: 0.26 | C36: 0.275 | D36: 0.295 | E36: 0.31 | F36: 0.325 | G36: 0.335 | H36: 0.345 | I36: 0.35 | J36: 0.36 | K36: 0.365 | L36: 0.375 | M36: 0.38
A37: 59000 | B37: 0.26 | C37: 0.275 | D37: 0.295 | E37: 0.31 | F37: 0.325 | G37: 0.34 | H37: 0.35 | I37: 0.355 | J37: 0.365 | K37: 0.37 | L37: 0.375 | M37: 0.385
A38: 60000 | B38: 0.26 | C38: 0.275 | D38: 0.295 | E38: 0.31 | F38: 0.325 | G38: 0.34 | H38: 0.35 | I38: 0.36 | J38: 0.37 | K38: 0.375 | L38: 0.38 | M38: 0.39
A39: 61000 | B39: 0.26 | C39: 0.275 | D39: 0.295 | E39: 0.31 | F39: 0.33 | G39: 0.345 | H39: 0.355 | I39: 0.365 | J39: 0.37 | K39: 0.38 | L39: 0.385 | M39: 0.39
A40: 62000 | B40: 0.26 | C40: 0.275 | D40: 0.295 | E40: 0.31 | F40: 0.33 | G40: 0.345 | H40: 0.355 | I40: 0.365 | J40: 0.375 | K40: 0.38 | L40: 0.39 | M40: 0.395
A41: 63000 | B41: 0.26 | C41: 0.275 | D41: 0.295 | E41: 0.31 | F41: 0.33 | G41: 0.345 | H41: 0.36 | I41: 0.37 | J41: 0.38 | K41: 0.385 | L41: 0.395 | M41: 0.4
A42: 64000 | B42: 0.26 | C42: 0.275 | D42: 0.295 | E42: 0.31 | F42: 0.33 | G42: 0.345 | H42: 0.36 | I42: 0.37 | J42: 0.38 | K42: 0.39 | L42: 0.395 | M42: 0.405
A43: 65000 | B43: 0.26 | C43: 0.275 | D43: 0.295 | E43: 0.31 | F43: 0.33 | G43: 0.345 | H43: 0.36 | I43: 0.375 | J43: 0.385 | K43: 0.395 | L43: 0.4 | M43: 0.405
A44: 66000 | B44: 0.26 | C44: 0.275 | D44: 0.295 | E44: 0.31 | F44: 0.33 | G44: 0.345 | H44: 0.36 | I44: 0.375 | J44: 0.385 | K44: 0.395 | L44: 0.405 | M44: 0.41
A45: 67000 | B45: 0.26 | C45: 0.275 | D45: 0.295 | E45: 0.31 | F45: 0.33 | G45: 0.345 | H45: 0.36 | I45: 0.375 | J45: 0.385 | K45: 0.395 | L45: 0.405 | M45: 0.415
A46: 68000 | B46: 0.26 | C46: 0.28 | D46: 0.295 | E46: 0.31 | F46: 0.33 | G46: 0.345 | H46: 0.36 | I46: 0.375 | J46: 0.385 | K46: 0.395 | L46: 0.405 | M46: 0.415
A47: 69000 | B47: 0.265 | C47: 0.28 | D47: 0.295 | E47: 0.31 | F47: 0.33 | G47: 0.345 | H47: 0.36 | I47: 0.375 | J47: 0.385 | K47: 0.395 | L47: 0.405 | M47: 0.415
A48: 70000 | B48: 0.265 | C48: 0.28 | D48: 0.295 | E48: 0.31 | F48: 0.33 | G48: 0.345 | H48: 0.36 | I48: 0.375 | J48: 0.385 | K48: 0.395 | L48: 0.405 | M48: 0.415
A49: 71000 | B49: 0.265 | C49: 0.28 | D49: 0.295 | E49: 0.31 | F49: 0.33 | G49: 0.345 | H49: 0.36 | I49: 0.375 | J49: 0.385 | K49: 0.395 | L49: 0.405 | M49: 0.415
A50: 72000 | B50: 0.27 | C50: 0.285 | D50: 0.3 | E50: 0.315 | F50: 0.33 | G50: 0.345 | H50: 0.36 | I50: 0.375 | J50: 0.385 | K50: 0.395 | L50: 0.405 | M50: 0.415
A51: 73000 | B51: 0.27 | C51: 0.285 | D51: 0.3 | E51: 0.315 | F51: 0.33 | G51: 0.345 | H51: 0.365 | I51: 0.375 | J51: 0.385 | K51: 0.395 | L51: 0.405 | M51: 0.415
A52: 74000 | B52: 0.27 | C52: 0.285 | D52: 0.3 | E52: 0.315 | F52: 0.33 | G52: 0.345 | H52: 0.365 | I52: 0.375 | J52: 0.385 | K52: 0.395 | L52: 0.405 | M52: 0.415
A53: 75000 | B53: 0.27 | C53: 0.285 | D53: 0.3 | E53: 0.315 | F53: 0.33 | G53: 0.345 | H53: 0.365 | I53: 0.375 | J53: 0.385 | K53: 0.395 | L53: 0.405 | M53: 0.415
A54: 76000 | B54: 0.275 | C54: 0.29 | D54: 0.305 | E54: 0.32 | F54: 0.33 | G54: 0.345 | H54: 0.365 | I54: 0.375 | J54: 0.385 | K54: 0.395 | L54: 0.405 | M54: 0.415
A55: 77000 | B55: 0.275 | C55: 0.29 | D55: 0.305 | E55: 0.32 | F55: 0.335 | G55: 0.35 | H55: 0.365 | I55: 0.375 | J55: 0.385 | K55: 0.395 | L55: 0.405 | M55: 0.415
A56: 78000 | B56: 0.275 | C56: 0.29 | D56: 0.305 | E56: 0.32 | F56: 0.335 | G56: 0.35 | H56: 0.365 | I56: 0.375 | J56: 0.385 | K56: 0.395 | L56: 0.405 | M56: 0.415
A57: 79000 | B57: 0.275 | C57: 0.29 | D57: 0.305 | E57: 0.32 | F57: 0.335 | G57: 0.35 | H57: 0.365 | I57: 0.375 | J57: 0.385 | K57: 0.395 | L57: 0.405 | M57: 0.415
A58: 80000 | B58: 0.28 | C58: 0.295 | D58: 0.31 | E58: 0.32 | F58: 0.335 | G58: 0.35 | H58: 0.365 | I58: 0.375 | J58: 0.385 | K58: 0.395 | L58: 0.405 | M58: 0.415
A59: 81000 | B59: 0.28 | C59: 0.295 | D59: 0.31 | E59: 0.325 | F59: 0.335 | G59: 0.35 | H59: 0.365 | I59: 0.375 | J59: 0.385 | K59: 0.395 | L59: 0.405 | M59: 0.415
A60: 82000 | B60: 0.28 | C60: 0.295 | D60: 0.31 | E60: 0.325 | F60: 0.335 | G60: 0.35 | H60: 0.365 | I60: 0.375 | J60: 0.385 | K60: 0.395 | L60: 0.405 | M60: 0.415
A61: 83000 | B61: 0.28 | C61: 0.295 | D61: 0.31 | E61: 0.325 | F61: 0.335 | G61: 0.35 | H61: 0.365 | I61: 0.375 | J61: 0.385 | K61: 0.395 | L61: 0.405 | M61: 0.415
A62: 84000 | B62: 0.28 | C62: 0.295 | D62: 0.31 | E62: 0.325 | F62: 0.335 | G62: 0.35 | H62: 0.365 | I62: 0.375 | J62: 0.385 | K62: 0.395 | L62: 0.405 | M62: 0.415
A63: 85000 | B63: 0.28 | C63: 0.295 | D63: 0.31 | E63: 0.325 | F63: 0.335 | G63: 0.35 | H63: 0.365 | I63: 0.375 | J63: 0.385 | K63: 0.395 | L63: 0.405 | M63: 0.415
A64: 86000 | B64: 0.28 | C64: 0.295 | D64: 0.31 | E64: 0.325 | F64: 0.335 | G64: 0.35 | H64: 0.365 | I64: 0.375 | J64: 0.385 | K64: 0.395 | L64: 0.405 | M64: 0.415
A65: 87000 | B65: 0.28 | C65: 0.295 | D65: 0.31 | E65: 0.325 | F65: 0.335 | G65: 0.35 | H65: 0.365 | I65: 0.375 | J65: 0.385 | K65: 0.395 | L65: 0.405 | M65: 0.415
A66: 88000 | B66: 0.28 | C66: 0.295 | D66: 0.31 | E66: 0.325 | F66: 0.335 | G66: 0.35 | H66: 0.365 | I66: 0.375 | J66: 0.385 | K66: 0.395 | L66: 0.405 | M66: 0.415
A67: 89000 | B67: 0.28 | C67: 0.295 | D67: 0.31 | E67: 0.325 | F67: 0.335 | G67: 0.35 | H67: 0.365 | I67: 0.375 | J67: 0.385 | K67: 0.395 | L67: 0.405 | M67: 0.415
A68: 90000 | B68: 0.28 | C68: 0.295 | D68: 0.31 | E68: 0.325 | F68: 0.335 | G68: 0.35 | H68: 0.365 | I68: 0.375 | J68: 0.385 | K68: 0.395 | L68: 0.405 | M68: 0.415
A69: 91000 | B69: 0.28 | C69: 0.295 | D69: 0.31 | E69: 0.325 | F69: 0.335 | G69: 0.35 | H69: 0.365 | I69: 0.375 | J69: 0.385 | K69: 0.395 | L69: 0.405 | M69: 0.415
A70: 92000 | B70: 0.28 | C70: 0.295 | D70: 0.31 | E70: 0.325 | F70: 0.335 | G70: 0.35 | H70: 0.365 | I70: 0.375 | J70: 0.385 | K70: 0.395 | L70: 0.405 | M70: 0.415
A71: 93000 | B71: 0.28 | C71: 0.295 | D71: 0.31 | E71: 0.325 | F71: 0.335 | G71: 0.35 | H71: 0.365 | I71: 0.375 | J71: 0.385 | K71: 0.395 | L71: 0.405 | M71: 0.415
A72: 94000 | B72: 0.28 | C72: 0.295 | D72: 0.31 | E72: 0.325 | F72: 0.335 | G72: 0.35 | H72: 0.365 | I72: 0.375 | J72: 0.385 | K72: 0.395 | L72: 0.405 | M72: 0.415
A73: 95000 | B73: 0.28 | C73: 0.295 | D73: 0.31 | E73: 0.325 | F73: 0.335 | G73: 0.35 | H73: 0.365 | I73: 0.375 | J73: 0.385 | K73: 0.395 | L73: 0.405 | M73: 0.415
A74: 96000 | B74: 0.28 | C74: 0.295 | D74: 0.31 | E74: 0.325 | F74: 0.335 | G74: 0.35 | H74: 0.365 | I74: 0.375 | J74: 0.385 | K74: 0.395 | L74: 0.405 | M74: 0.415
A75: 97000 | B75: 0.28 | C75: 0.295 | D75: 0.31 | E75: 0.325 | F75: 0.335 | G75: 0.35 | H75: 0.365 | I75: 0.375 | J75: 0.385 | K75: 0.395 | L75: 0.405 | M75: 0.415
A76: 98000 | B76: 0.28 | C76: 0.295 | D76: 0.31 | E76: 0.325 | F76: 0.335 | G76: 0.35 | H76: 0.365 | I76: 0.375 | J76: 0.385 | K76: 0.395 | L76: 0.405 | M76: 0.415
A77: 99000 | B77: 0.28 | C77: 0.295 | D77: 0.31 | E77: 0.325 | F77: 0.335 | G77: 0.35 | H77: 0.365 | I77: 0.375 | J77: 0.385 | K77: 0.395 | L77: 0.405 | M77: 0.415
A78: 100000 | B78: 0.28 | C78: 0.295 | D78: 0.31 | E78: 0.325 | F78: 0.335 | G78: 0.35 | H78: 0.365 | I78: 0.375 | J78: 0.385 | K78: 0.395 | L78: 0.405 | M78: 0.415
A79: 101000 | B79: 0.28 | C79: 0.295 | D79: 0.31 | E79: 0.325 | F79: 0.335 | G79: 0.35 | H79: 0.365 | I79: 0.375 | J79: 0.385 | K79: 0.395 | L79: 0.405 | M79: 0.415
A80: 102000 | B80: 0.28 | C80: 0.295 | D80: 0.31 | E80: 0.325 | F80: 0.335 | G80: 0.35 | H80: 0.365 | I80: 0.375 | J80: 0.385 | K80: 0.395 | L80: 0.405 | M80: 0.415
A81: 103000 | B81: 0.28 | C81: 0.295 | D81: 0.31 | E81: 0.325 | F81: 0.335 | G81: 0.35 | H81: 0.365 | I81: 0.375 | J81: 0.385 | K81: 0.395 | L81: 0.405 | M81: 0.415
A82: 104000 | B82: 0.28 | C82: 0.295 | D82: 0.31 | E82: 0.325 | F82: 0.335 | G82: 0.35 | H82: 0.365 | I82: 0.375 | J82: 0.385 | K82: 0.395 | L82: 0.405 | M82: 0.415
A83: 105000 | B83: 0.28 | C83: 0.295 | D83: 0.31 | E83: 0.325 | F83: 0.335 | G83: 0.35 | H83: 0.365 | I83: 0.375 | J83: 0.385 | K83: 0.395 | L83: 0.405 | M83: 0.415
A84: 106000 | B84: 0.28 | C84: 0.295 | D84: 0.31 | E84: 0.325 | F84: 0.335 | G84: 0.35 | H84: 0.365 | I84: 0.375 | J84: 0.385 | K84: 0.395 | L84: 0.405 | M84: 0.415
A85: 107000 | B85: 0.28 | C85: 0.295 | D85: 0.31 | E85: 0.325 | F85: 0.335 | G85: 0.35 | H85: 0.365 | I85: 0.375 | J85: 0.385 | K85: 0.395 | L85: 0.405 | M85: 0.415
A86: 108000 | B86: 0.28 | C86: 0.295 | D86: 0.31 | E86: 0.325 | F86: 0.335 | G86: 0.35 | H86: 0.365 | I86: 0.375 | J86: 0.385 | K86: 0.395 | L86: 0.405 | M86: 0.415
A87: 109000 | B87: 0.28 | C87: 0.295 | D87: 0.31 | E87: 0.325 | F87: 0.335 | G87: 0.35 | H87: 0.365 | I87: 0.375 | J87: 0.385 | K87: 0.395 | L87: 0.405 | M87: 0.415
A88: 10000000 | B88: 0.28 | C88: 0.295 | D88: 0.31 | E88: 0.325 | F88: 0.335 | G88: 0.35 | H88: 0.365 | I88: 0.375 | J88: 0.385 | K88: 0.395 | L88: 0.405 | M88: 0.415

Sheet 2024AOWBOX3 (hidden)
A2: Debetrente | B2: <= 1,500% | C2: 1,501–2,000% | D2: 2,001–2,500% | E2: 2,501–3,000% | F2: 3,001–3,500% | G2: 3,501–4,000% | H2: 4,001–4,500% | I2: 4,501–5,000% | J2: 5,001–5,500% | K2: 5,501–6,000% | L2: 6,001–6,500% | M2: >= 6,501%
A3: toetsinkomen
A4: -1 | B4: 0 | C4: 0.01501 | D4: =+C4+0.5% -> 0.02001 | E4: 0.02501 | F4: 0.03001 | G4: 0.03501 | H4: 0.04001 | I4: 0.04501 | J4: 0.05001 | K4: 0.05501 | L4: 0.06001 | M4: 0.06501 | N4: <= beginrente
A5: 0 | B5: 0.17 | C5: 0.17 | D5: 0.175 | E5: 0.175 | F5: 0.18 | G5: 0.18 | H5: 0.185 | I5: 0.185 | J5: 0.19 | K5: 0.19 | L5: 0.19 | M5: 0.195
A6: 28000 | B6: 0.17 | C6: 0.17 | D6: 0.175 | E6: 0.175 | F6: 0.18 | G6: 0.18 | H6: 0.185 | I6: 0.185 | J6: 0.19 | K6: 0.19 | L6: 0.19 | M6: 0.195
A7: 29000 | B7: 0.185 | C7: 0.19 | D7: 0.19 | E7: 0.195 | F7: 0.195 | G7: 0.2 | H7: 0.2 | I7: 0.205 | J7: 0.205 | K7: 0.205 | L7: 0.21 | M7: 0.21
A8: 30000 | B8: 0.2 | C8: 0.2 | D8: 0.205 | E8: 0.21 | F8: 0.21 | G8: 0.215 | H8: 0.215 | I8: 0.22 | J8: 0.22 | K8: 0.22 | L8: 0.225 | M8: 0.225
A9: 31000 | B9: 0.205 | C9: 0.21 | D9: 0.21 | E9: 0.215 | F9: 0.22 | G9: 0.22 | H9: 0.225 | I9: 0.225 | J9: 0.23 | K9: 0.23 | L9: 0.23 | M9: 0.235
A10: 32000 | B10: 0.205 | C10: 0.21 | D10: 0.215 | E10: 0.215 | F10: 0.22 | G10: 0.225 | H10: 0.225 | I10: 0.23 | J10: 0.23 | K10: 0.23 | L10: 0.235 | M10: 0.235
A11: 33000 | B11: 0.21 | C11: 0.21 | D11: 0.215 | E11: 0.22 | F11: 0.22 | G11: 0.225 | H11: 0.225 | I11: 0.23 | J11: 0.23 | K11: 0.235 | L11: 0.235 | M11: 0.235
A12: 34000 | B12: 0.21 | C12: 0.21 | D12: 0.215 | E12: 0.22 | F12: 0.22 | G12: 0.225 | H12: 0.225 | I12: 0.23 | J12: 0.23 | K12: 0.235 | L12: 0.235 | M12: 0.24
A13: 35000 | B13: 0.21 | C13: 0.215 | D13: 0.215 | E13: 0.22 | F13: 0.225 | G13: 0.225 | H13: 0.23 | I13: 0.23 | J13: 0.235 | K13: 0.235 | L13: 0.235 | M13: 0.24
A14: 36000 | B14: 0.21 | C14: 0.215 | D14: 0.215 | E14: 0.22 | F14: 0.225 | G14: 0.225 | H14: 0.23 | I14: 0.23 | J14: 0.235 | K14: 0.235 | L14: 0.24 | M14: 0.24
A15: 37000 | B15: 0.21 | C15: 0.215 | D15: 0.22 | E15: 0.22 | F15: 0.225 | G15: 0.225 | H15: 0.23 | I15: 0.23 | J15: 0.235 | K15: 0.235 | L15: 0.24 | M15: 0.24
A16: 38000 | B16: 0.21 | C16: 0.215 | D16: 0.22 | E16: 0.22 | F16: 0.225 | G16: 0.23 | H16: 0.23 | I16: 0.235 | J16: 0.235 | K16: 0.235 | L16: 0.24 | M16: 0.24
A17: 39000 | B17: 0.21 | C17: 0.215 | D17: 0.22 | E17: 0.22 | F17: 0.225 | G17: 0.23 | H17: 0.23 | I17: 0.235 | J17: 0.235 | K17: 0.24 | L17: 0.24 | M17: 0.24
A18: 40000 | B18: 0.21 | C18: 0.215 | D18: 0.22 | E18: 0.225 | F18: 0.225 | G18: 0.23 | H18: 0.23 | I18: 0.235 | J18: 0.235 | K18: 0.24 | L18: 0.24 | M18: 0.245
A19: 41000 | B19: 0.215 | C19: 0.22 | D19: 0.22 | E19: 0.225 | F19: 0.225 | G19: 0.23 | H19: 0.235 | I19: 0.235 | J19: 0.24 | K19: 0.24 | L19: 0.24 | M19: 0.245
A20: 42000 | B20: 0.215 | C20: 0.22 | D20: 0.225 | E20: 0.23 | F20: 0.23 | G20: 0.235 | H20: 0.235 | I20: 0.24 | J20: 0.24 | K20: 0.245 | L20: 0.245 | M20: 0.25
A21: 43000 | B21: 0.22 | C21: 0.225 | D21: 0.23 | E21: 0.23 | F21: 0.235 | G21: 0.24 | H21: 0.24 | I21: 0.245 | J21: 0.245 | K21: 0.25 | L21: 0.25 | M21: 0.25
A22: 44000 | B22: 0.225 | C22: 0.23 | D22: 0.23 | E22: 0.235 | F22: 0.24 | G22: 0.24 | H22: 0.245 | I22: 0.245 | J22: 0.25 | K22: 0.25 | L22: 0.255 | M22: 0.255
A23: 45000 | B23: 0.23 | C23: 0.23 | D23: 0.235 | E23: 0.24 | F23: 0.24 | G23: 0.245 | H23: 0.25 | I23: 0.25 | J23: 0.255 | K23: 0.255 | L23: 0.26 | M23: 0.26
A24: 46000 | B24: 0.23 | C24: 0.235 | D24: 0.24 | E24: 0.24 | F24: 0.245 | G24: 0.25 | H24: 0.25 | I24: 0.255 | J24: 0.255 | K24: 0.26 | L24: 0.26 | M24: 0.265
A25: 47000 | B25: 0.235 | C25: 0.235 | D25: 0.24 | E25: 0.245 | F25: 0.245 | G25: 0.25 | H25: 0.255 | I25: 0.255 | J25: 0.26 | K25: 0.26 | L25: 0.265 | M25: 0.265
A26: 48000 | B26: 0.235 | C26: 0.24 | D26: 0.24 | E26: 0.245 | F26: 0.25 | G26: 0.25 | H26: 0.255 | I26: 0.26 | J26: 0.26 | K26: 0.265 | L26: 0.265 | M26: 0.265
A27: 49000 | B27: 0.235 | C27: 0.24 | D27: 0.245 | E27: 0.245 | F27: 0.25 | G27: 0.255 | H27: 0.255 | I27: 0.26 | J27: 0.26 | K27: 0.265 | L27: 0.265 | M27: 0.27
A28: 50000 | B28: 0.235 | C28: 0.24 | D28: 0.245 | E28: 0.245 | F28: 0.25 | G28: 0.255 | H28: 0.255 | I28: 0.26 | J28: 0.26 | K28: 0.265 | L28: 0.265 | M28: 0.27
A29: 51000 | B29: 0.235 | C29: 0.24 | D29: 0.245 | E29: 0.245 | F29: 0.25 | G29: 0.255 | H29: 0.255 | I29: 0.26 | J29: 0.265 | K29: 0.265 | L29: 0.27 | M29: 0.27
A30: 52000 | B30: 0.235 | C30: 0.24 | D30: 0.245 | E30: 0.25 | F30: 0.25 | G30: 0.255 | H30: 0.255 | I30: 0.26 | J30: 0.265 | K30: 0.265 | L30: 0.27 | M30: 0.27
A31: 53000 | B31: 0.235 | C31: 0.24 | D31: 0.245 | E31: 0.25 | F31: 0.25 | G31: 0.255 | H31: 0.26 | I31: 0.26 | J31: 0.265 | K31: 0.265 | L31: 0.27 | M31: 0.27
A32: 54000 | B32: 0.235 | C32: 0.24 | D32: 0.245 | E32: 0.25 | F32: 0.25 | G32: 0.255 | H32: 0.26 | I32: 0.26 | J32: 0.265 | K32: 0.265 | L32: 0.27 | M32: 0.27
A33: 55000 | B33: 0.235 | C33: 0.24 | D33: 0.245 | E33: 0.25 | F33: 0.25 | G33: 0.255 | H33: 0.26 | I33: 0.26 | J33: 0.265 | K33: 0.265 | L33: 0.27 | M33: 0.27
A34: 56000 | B34: 0.235 | C34: 0.24 | D34: 0.245 | E34: 0.25 | F34: 0.25 | G34: 0.255 | H34: 0.26 | I34: 0.26 | J34: 0.265 | K34: 0.265 | L34: 0.27 | M34: 0.27
A35: 57000 | B35: 0.235 | C35: 0.24 | D35: 0.245 | E35: 0.25 | F35: 0.25 | G35: 0.255 | H35: 0.26 | I35: 0.26 | J35: 0.265 | K35: 0.265 | L35: 0.27 | M35: 0.27
A36: 58000 | B36: 0.235 | C36: 0.24 | D36: 0.245 | E36: 0.25 | F36: 0.25 | G36: 0.255 | H36: 0.26 | I36: 0.26 | J36: 0.265 | K36: 0.265 | L36: 0.27 | M36: 0.27
A37: 59000 | B37: 0.235 | C37: 0.24 | D37: 0.245 | E37: 0.25 | F37: 0.25 | G37: 0.255 | H37: 0.26 | I37: 0.26 | J37: 0.265 | K37: 0.265 | L37: 0.27 | M37: 0.27
A38: 60000 | B38: 0.235 | C38: 0.24 | D38: 0.245 | E38: 0.25 | F38: 0.25 | G38: 0.255 | H38: 0.26 | I38: 0.26 | J38: 0.265 | K38: 0.265 | L38: 0.27 | M38: 0.27
A39: 61000 | B39: 0.235 | C39: 0.24 | D39: 0.245 | E39: 0.25 | F39: 0.255 | G39: 0.255 | H39: 0.26 | I39: 0.265 | J39: 0.265 | K39: 0.27 | L39: 0.27 | M39: 0.27
A40: 62000 | B40: 0.24 | C40: 0.245 | D40: 0.245 | E40: 0.25 | F40: 0.255 | G40: 0.26 | H40: 0.26 | I40: 0.265 | J40: 0.265 | K40: 0.27 | L40: 0.27 | M40: 0.275
A41: 63000 | B41: 0.24 | C41: 0.245 | D41: 0.25 | E41: 0.25 | F41: 0.255 | G41: 0.26 | H41: 0.26 | I41: 0.265 | J41: 0.27 | K41: 0.27 | L41: 0.275 | M41: 0.275
A42: 64000 | B42: 0.24 | C42: 0.245 | D42: 0.25 | E42: 0.255 | F42: 0.255 | G42: 0.26 | H42: 0.265 | I42: 0.265 | J42: 0.27 | K42: 0.27 | L42: 0.275 | M42: 0.275
A43: 65000 | B43: 0.24 | C43: 0.245 | D43: 0.25 | E43: 0.255 | F43: 0.26 | G43: 0.26 | H43: 0.265 | I43: 0.27 | J43: 0.27 | K43: 0.275 | L43: 0.275 | M43: 0.28
A44: 66000 | B44: 0.245 | C44: 0.25 | D44: 0.25 | E44: 0.255 | F44: 0.26 | G44: 0.265 | H44: 0.265 | I44: 0.27 | J44: 0.27 | K44: 0.275 | L44: 0.275 | M44: 0.28
A45: 67000 | B45: 0.245 | C45: 0.25 | D45: 0.255 | E45: 0.255 | F45: 0.26 | G45: 0.265 | H45: 0.265 | I45: 0.27 | J45: 0.275 | K45: 0.275 | L45: 0.28 | M45: 0.28
A46: 68000 | B46: 0.245 | C46: 0.25 | D46: 0.255 | E46: 0.26 | F46: 0.26 | G46: 0.265 | H46: 0.27 | I46: 0.27 | J46: 0.275 | K46: 0.28 | L46: 0.28 | M46: 0.28
A47: 69000 | B47: 0.245 | C47: 0.25 | D47: 0.255 | E47: 0.26 | F47: 0.265 | G47: 0.265 | H47: 0.27 | I47: 0.275 | J47: 0.275 | K47: 0.28 | L47: 0.28 | M47: 0.285
A48: 70000 | B48: 0.25 | C48: 0.255 | D48: 0.255 | E48: 0.26 | F48: 0.265 | G48: 0.27 | H48: 0.27 | I48: 0.275 | J48: 0.28 | K48: 0.28 | L48: 0.285 | M48: 0.285
A49: 71000 | B49: 0.25 | C49: 0.255 | D49: 0.26 | E49: 0.265 | F49: 0.265 | G49: 0.27 | H49: 0.275 | I49: 0.275 | J49: 0.28 | K49: 0.28 | L49: 0.285 | M49: 0.285
A50: 72000 | B50: 0.25 | C50: 0.255 | D50: 0.26 | E50: 0.265 | F50: 0.27 | G50: 0.27 | H50: 0.275 | I50: 0.28 | J50: 0.28 | K50: 0.285 | L50: 0.285 | M50: 0.29
A51: 73000 | B51: 0.255 | C51: 0.26 | D51: 0.26 | E51: 0.265 | F51: 0.27 | G51: 0.275 | H51: 0.275 | I51: 0.28 | J51: 0.285 | K51: 0.285 | L51: 0.29 | M51: 0.29
A52: 74000 | B52: 0.255 | C52: 0.26 | D52: 0.265 | E52: 0.265 | F52: 0.27 | G52: 0.275 | H52: 0.28 | I52: 0.28 | J52: 0.285 | K52: 0.285 | L52: 0.29 | M52: 0.29
A53: 75000 | B53: 0.255 | C53: 0.26 | D53: 0.265 | E53: 0.27 | F53: 0.275 | G53: 0.275 | H53: 0.28 | I53: 0.285 | J53: 0.285 | K53: 0.29 | L53: 0.29 | M53: 0.295
A54: 76000 | B54: 0.255 | C54: 0.26 | D54: 0.265 | E54: 0.27 | F54: 0.275 | G54: 0.28 | H54: 0.28 | I54: 0.285 | J54: 0.285 | K54: 0.29 | L54: 0.295 | M54: 0.295
A55: 77000 | B55: 0.26 | C55: 0.265 | D55: 0.27 | E55: 0.27 | F55: 0.275 | G55: 0.28 | H55: 0.285 | I55: 0.285 | J55: 0.29 | K55: 0.29 | L55: 0.295 | M55: 0.295
A56: 78000 | B56: 0.26 | C56: 0.265 | D56: 0.27 | E56: 0.275 | F56: 0.275 | G56: 0.28 | H56: 0.285 | I56: 0.29 | J56: 0.29 | K56: 0.295 | L56: 0.295 | M56: 0.3
A57: 79000 | B57: 0.26 | C57: 0.265 | D57: 0.27 | E57: 0.275 | F57: 0.28 | G57: 0.28 | H57: 0.285 | I57: 0.29 | J57: 0.29 | K57: 0.295 | L57: 0.295 | M57: 0.3
A58: 80000 | B58: 0.26 | C58: 0.265 | D58: 0.27 | E58: 0.275 | F58: 0.28 | G58: 0.285 | H58: 0.285 | I58: 0.29 | J58: 0.295 | K58: 0.295 | L58: 0.3 | M58: 0.3
A59: 81000 | B59: 0.265 | C59: 0.27 | D59: 0.27 | E59: 0.275 | F59: 0.28 | G59: 0.285 | H59: 0.29 | I59: 0.29 | J59: 0.295 | K59: 0.295 | L59: 0.3 | M59: 0.3
A60: 82000 | B60: 0.265 | C60: 0.27 | D60: 0.275 | E60: 0.28 | F60: 0.28 | G60: 0.285 | H60: 0.29 | I60: 0.29 | J60: 0.295 | K60: 0.3 | L60: 0.3 | M60: 0.305
A61: 83000 | B61: 0.265 | C61: 0.27 | D61: 0.275 | E61: 0.28 | F61: 0.28 | G61: 0.285 | H61: 0.29 | I61: 0.29 | J61: 0.295 | K61: 0.3 | L61: 0.3 | M61: 0.305
A62: 84000 | B62: 0.265 | C62: 0.27 | D62: 0.275 | E62: 0.28 | F62: 0.285 | G62: 0.285 | H62: 0.29 | I62: 0.295 | J62: 0.295 | K62: 0.3 | L62: 0.3 | M62: 0.305
A63: 85000 | B63: 0.265 | C63: 0.27 | D63: 0.275 | E63: 0.28 | F63: 0.285 | G63: 0.285 | H63: 0.29 | I63: 0.295 | J63: 0.295 | K63: 0.3 | L63: 0.305 | M63: 0.305
A64: 86000 | B64: 0.265 | C64: 0.27 | D64: 0.275 | E64: 0.28 | F64: 0.285 | G64: 0.29 | H64: 0.29 | I64: 0.295 | J64: 0.295 | K64: 0.3 | L64: 0.305 | M64: 0.305
A65: 87000 | B65: 0.265 | C65: 0.27 | D65: 0.275 | E65: 0.28 | F65: 0.285 | G65: 0.29 | H65: 0.29 | I65: 0.295 | J65: 0.295 | K65: 0.3 | L65: 0.305 | M65: 0.305
A66: 88000 | B66: 0.265 | C66: 0.27 | D66: 0.275 | E66: 0.28 | F66: 0.285 | G66: 0.29 | H66: 0.29 | I66: 0.295 | J66: 0.295 | K66: 0.3 | L66: 0.305 | M66: 0.305
A67: 89000 | B67: 0.265 | C67: 0.27 | D67: 0.275 | E67: 0.28 | F67: 0.285 | G67: 0.29 | H67: 0.29 | I67: 0.295 | J67: 0.295 | K67: 0.3 | L67: 0.305 | M67: 0.305
A68: 90000 | B68: 0.265 | C68: 0.27 | D68: 0.275 | E68: 0.28 | F68: 0.285 | G68: 0.29 | H68: 0.29 | I68: 0.295 | J68: 0.295 | K68: 0.3 | L68: 0.305 | M68: 0.305
A69: 91000 | B69: 0.265 | C69: 0.27 | D69: 0.275 | E69: 0.28 | F69: 0.285 | G69: 0.29 | H69: 0.29 | I69: 0.295 | J69: 0.295 | K69: 0.3 | L69: 0.305 | M69: 0.305
A70: 92000 | B70: 0.265 | C70: 0.27 | D70: 0.275 | E70: 0.28 | F70: 0.285 | G70: 0.29 | H70: 0.29 | I70: 0.295 | J70: 0.295 | K70: 0.3 | L70: 0.305 | M70: 0.305
A71: 93000 | B71: 0.265 | C71: 0.27 | D71: 0.275 | E71: 0.28 | F71: 0.285 | G71: 0.29 | H71: 0.29 | I71: 0.295 | J71: 0.295 | K71: 0.3 | L71: 0.305 | M71: 0.305
A72: 94000 | B72: 0.265 | C72: 0.27 | D72: 0.275 | E72: 0.28 | F72: 0.285 | G72: 0.29 | H72: 0.29 | I72: 0.295 | J72: 0.295 | K72: 0.3 | L72: 0.305 | M72: 0.305
A73: 95000 | B73: 0.265 | C73: 0.27 | D73: 0.275 | E73: 0.28 | F73: 0.285 | G73: 0.29 | H73: 0.29 | I73: 0.295 | J73: 0.295 | K73: 0.3 | L73: 0.305 | M73: 0.305
A74: 96000 | B74: 0.265 | C74: 0.27 | D74: 0.275 | E74: 0.28 | F74: 0.285 | G74: 0.29 | H74: 0.29 | I74: 0.295 | J74: 0.295 | K74: 0.3 | L74: 0.305 | M74: 0.305
A75: 97000 | B75: 0.265 | C75: 0.27 | D75: 0.275 | E75: 0.28 | F75: 0.285 | G75: 0.29 | H75: 0.29 | I75: 0.295 | J75: 0.295 | K75: 0.3 | L75: 0.305 | M75: 0.305
A76: 98000 | B76: 0.265 | C76: 0.27 | D76: 0.275 | E76: 0.28 | F76: 0.285 | G76: 0.29 | H76: 0.29 | I76: 0.295 | J76: 0.295 | K76: 0.3 | L76: 0.305 | M76: 0.305
A77: 99000 | B77: 0.265 | C77: 0.27 | D77: 0.275 | E77: 0.28 | F77: 0.285 | G77: 0.29 | H77: 0.29 | I77: 0.295 | J77: 0.295 | K77: 0.3 | L77: 0.305 | M77: 0.305
A78: 100000 | B78: 0.265 | C78: 0.27 | D78: 0.275 | E78: 0.28 | F78: 0.285 | G78: 0.29 | H78: 0.29 | I78: 0.295 | J78: 0.295 | K78: 0.3 | L78: 0.305 | M78: 0.305
A79: 101000 | B79: 0.265 | C79: 0.27 | D79: 0.275 | E79: 0.28 | F79: 0.285 | G79: 0.29 | H79: 0.29 | I79: 0.295 | J79: 0.295 | K79: 0.3 | L79: 0.305 | M79: 0.305
A80: 102000 | B80: 0.265 | C80: 0.27 | D80: 0.275 | E80: 0.28 | F80: 0.285 | G80: 0.29 | H80: 0.29 | I80: 0.295 | J80: 0.295 | K80: 0.3 | L80: 0.305 | M80: 0.305
A81: 103000 | B81: 0.265 | C81: 0.27 | D81: 0.275 | E81: 0.28 | F81: 0.285 | G81: 0.29 | H81: 0.29 | I81: 0.295 | J81: 0.295 | K81: 0.3 | L81: 0.305 | M81: 0.305
A82: 104000 | B82: 0.265 | C82: 0.27 | D82: 0.275 | E82: 0.28 | F82: 0.285 | G82: 0.29 | H82: 0.29 | I82: 0.295 | J82: 0.295 | K82: 0.3 | L82: 0.305 | M82: 0.305
A83: 105000 | B83: 0.265 | C83: 0.27 | D83: 0.275 | E83: 0.28 | F83: 0.285 | G83: 0.29 | H83: 0.29 | I83: 0.295 | J83: 0.295 | K83: 0.3 | L83: 0.305 | M83: 0.305
A84: 106000 | B84: 0.265 | C84: 0.27 | D84: 0.275 | E84: 0.28 | F84: 0.285 | G84: 0.29 | H84: 0.29 | I84: 0.295 | J84: 0.295 | K84: 0.3 | L84: 0.305 | M84: 0.305
A85: 107000 | B85: 0.265 | C85: 0.27 | D85: 0.275 | E85: 0.28 | F85: 0.285 | G85: 0.29 | H85: 0.29 | I85: 0.295 | J85: 0.295 | K85: 0.3 | L85: 0.305 | M85: 0.305
A86: 108000 | B86: 0.265 | C86: 0.27 | D86: 0.275 | E86: 0.28 | F86: 0.285 | G86: 0.29 | H86: 0.29 | I86: 0.295 | J86: 0.295 | K86: 0.3 | L86: 0.305 | M86: 0.305
A87: 109000 | B87: 0.265 | C87: 0.27 | D87: 0.275 | E87: 0.28 | F87: 0.285 | G87: 0.29 | H87: 0.29 | I87: 0.295 | J87: 0.295 | K87: 0.3 | L87: 0.305 | M87: 0.305
A88: 110000 | B88: 0.265 | C88: 0.27 | D88: 0.275 | E88: 0.28 | F88: 0.285 | G88: 0.29 | H88: 0.29 | I88: 0.295 | J88: 0.295 | K88: 0.3 | L88: 0.305 | M88: 0.305
A89: 100000000 | B89: 0.27 | C89: 0.275 | D89: 0.28 | E89: 0.285 | F89: 0.29 | G89: 0.29 | H89: 0.295 | I89: 0.3 | J89: 0.3 | K89: 0.305 | L89: 0.305 | M89: 0.31

Sheet 2024EMW (hidden)
A2: ox 1 | B2: <= 1,500 | C2: 1,501 <= 2,000 | D2: 2,001 <= 2,500 | E2: 2,501 <= 3,000 | F2: 3,001 <= 3,500 | G2: 3,501 <= 4,000 | H2: 4,001 <= 4,500 | I2: 4,501 <= 5,000 | J2: 5,001 <= 5,500 | K2: 5,501 <= 6,000 | L2: 6,001 <= 6,500 | M2: >= 6,501
A4: -1 | B4: 0 | C4: 0.01501 | D4: =+C4+0.5% -> 0.02001 | E4: 0.02501 | F4: 0.03001 | G4: 0.03501 | H4: 0.04001 | I4: 0.04501 | J4: 0.05001 | K4: 0.05501 | L4: 0.06001 | M4: 0.06501 | N4: <= beginrente
A5: 0 | B5: 0.13 | C5: 0.14 | D5: 0.15 | E5: 0.155 | F5: 0.165 | G5: 0.17 | H5: 0.175 | I5: 0.18 | J5: 0.185 | K5: 0.19 | L5: 0.195 | M5: 0.2
A6: 28000 | B6: 0.13 | C6: 0.14 | D6: 0.15 | E6: 0.155 | F6: 0.165 | G6: 0.17 | H6: 0.175 | I6: 0.18 | J6: 0.185 | K6: 0.19 | L6: 0.195 | M6: 0.2
A7: 29000 | B7: 0.135 | C7: 0.145 | D7: 0.155 | E7: 0.165 | F7: 0.175 | G7: 0.185 | H7: 0.19 | I7: 0.195 | J7: 0.2 | K7: 0.21 | L7: 0.215 | M7: 0.22
A8: 30000 | B8: 0.145 | C8: 0.155 | D8: 0.165 | E8: 0.175 | F8: 0.185 | G8: 0.195 | H8: 0.205 | I8: 0.21 | J8: 0.215 | K8: 0.22 | L8: 0.23 | M8: 0.235
A9: 31000 | B9: 0.15 | C9: 0.165 | D9: 0.175 | E9: 0.185 | F9: 0.195 | G9: 0.205 | H9: 0.215 | I9: 0.22 | J9: 0.225 | K9: 0.23 | L9: 0.235 | M9: 0.24
A10: 32000 | B10: 0.155 | C10: 0.17 | D10: 0.18 | E10: 0.19 | F10: 0.2 | G10: 0.21 | H10: 0.22 | I10: 0.225 | J10: 0.23 | K10: 0.235 | L10: 0.24 | M10: 0.245
A11: 33000 | B11: 0.165 | C11: 0.175 | D11: 0.185 | E11: 0.195 | F11: 0.205 | G11: 0.215 | H11: 0.225 | I11: 0.23 | J11: 0.235 | K11: 0.245 | L11: 0.25 | M11: 0.255
A12: 34000 | B12: 0.17 | C12: 0.18 | D12: 0.19 | E12: 0.2 | F12: 0.21 | G12: 0.22 | H12: 0.225 | I12: 0.235 | J12: 0.24 | K12: 0.25 | L12: 0.255 | M12: 0.26
A13: 35000 | B13: 0.175 | C13: 0.185 | D13: 0.195 | E13: 0.205 | F13: 0.21 | G13: 0.22 | H13: 0.23 | I13: 0.235 | J13: 0.245 | K13: 0.25 | L13: 0.26 | M13: 0.265
A14: 36000 | B14: 0.175 | C14: 0.185 | D14: 0.195 | E14: 0.205 | F14: 0.215 | G14: 0.225 | H14: 0.23 | I14: 0.24 | J14: 0.25 | K14: 0.255 | L14: 0.26 | M14: 0.27
A15: 37000 | B15: 0.18 | C15: 0.19 | D15: 0.2 | E15: 0.21 | F15: 0.22 | G15: 0.225 | H15: 0.235 | I15: 0.245 | J15: 0.25 | K15: 0.255 | L15: 0.26 | M15: 0.27
A16: 38000 | B16: 0.18 | C16: 0.19 | D16: 0.2 | E16: 0.21 | F16: 0.22 | G16: 0.23 | H16: 0.24 | I16: 0.245 | J16: 0.255 | K16: 0.26 | L16: 0.265 | M16: 0.27
A17: 39000 | B17: 0.18 | C17: 0.19 | D17: 0.2 | E17: 0.21 | F17: 0.22 | G17: 0.23 | H17: 0.24 | I17: 0.25 | J17: 0.255 | K17: 0.265 | L17: 0.27 | M17: 0.275
A18: 40000 | B18: 0.18 | C18: 0.19 | D18: 0.2 | E18: 0.21 | F18: 0.22 | G18: 0.23 | H18: 0.24 | I18: 0.25 | J18: 0.26 | K18: 0.265 | L18: 0.275 | M18: 0.28
A19: 41000 | B19: 0.18 | C19: 0.19 | D19: 0.2 | E19: 0.21 | F19: 0.22 | G19: 0.23 | H19: 0.24 | I19: 0.25 | J19: 0.26 | K19: 0.265 | L19: 0.275 | M19: 0.28
A20: 42000 | B20: 0.18 | C20: 0.19 | D20: 0.2 | E20: 0.21 | F20: 0.22 | G20: 0.23 | H20: 0.24 | I20: 0.25 | J20: 0.26 | K20: 0.27 | L20: 0.275 | M20: 0.28
A21: 43000 | B21: 0.18 | C21: 0.19 | D21: 0.2 | E21: 0.21 | F21: 0.22 | G21: 0.23 | H21: 0.24 | I21: 0.25 | J21: 0.26 | K21: 0.27 | L21: 0.275 | M21: 0.28
A22: 44000 | B22: 0.18 | C22: 0.19 | D22: 0.2 | E22: 0.21 | F22: 0.22 | G22: 0.23 | H22: 0.24 | I22: 0.25 | J22: 0.26 | K22: 0.27 | L22: 0.275 | M22: 0.28
A23: 45000 | B23: 0.18 | C23: 0.19 | D23: 0.2 | E23: 0.21 | F23: 0.22 | G23: 0.23 | H23: 0.24 | I23: 0.25 | J23: 0.26 | K23: 0.27 | L23: 0.275 | M23: 0.285
A24: 46000 | B24: 0.18 | C24: 0.19 | D24: 0.2 | E24: 0.21 | F24: 0.22 | G24: 0.23 | H24: 0.24 | I24: 0.25 | J24: 0.26 | K24: 0.27 | L24: 0.275 | M24: 0.285
A25: 47000 | B25: 0.18 | C25: 0.19 | D25: 0.2 | E25: 0.21 | F25: 0.22 | G25: 0.23 | H25: 0.24 | I25: 0.25 | J25: 0.26 | K25: 0.27 | L25: 0.275 | M25: 0.285
A26: 48000 | B26: 0.18 | C26: 0.19 | D26: 0.2 | E26: 0.21 | F26: 0.22 | G26: 0.23 | H26: 0.24 | I26: 0.25 | J26: 0.26 | K26: 0.27 | L26: 0.275 | M26: 0.285
A27: 49000 | B27: 0.18 | C27: 0.19 | D27: 0.2 | E27: 0.21 | F27: 0.22 | G27: 0.23 | H27: 0.24 | I27: 0.25 | J27: 0.26 | K27: 0.27 | L27: 0.275 | M27: 0.285
A28: 50000 | B28: 0.18 | C28: 0.19 | D28: 0.2 | E28: 0.21 | F28: 0.22 | G28: 0.23 | H28: 0.24 | I28: 0.25 | J28: 0.26 | K28: 0.27 | L28: 0.275 | M28: 0.285
A29: 51000 | B29: 0.18 | C29: 0.19 | D29: 0.2 | E29: 0.21 | F29: 0.22 | G29: 0.23 | H29: 0.24 | I29: 0.25 | J29: 0.26 | K29: 0.27 | L29: 0.275 | M29: 0.285
A30: 52000 | B30: 0.18 | C30: 0.19 | D30: 0.2 | E30: 0.21 | F30: 0.22 | G30: 0.23 | H30: 0.24 | I30: 0.25 | J30: 0.26 | K30: 0.27 | L30: 0.275 | M30: 0.285
A31: 53000 | B31: 0.18 | C31: 0.19 | D31: 0.2 | E31: 0.21 | F31: 0.22 | G31: 0.23 | H31: 0.24 | I31: 0.25 | J31: 0.26 | K31: 0.27 | L31: 0.275 | M31: 0.285
A32: 54000 | B32: 0.18 | C32: 0.19 | D32: 0.2 | E32: 0.21 | F32: 0.22 | G32: 0.23 | H32: 0.24 | I32: 0.25 | J32: 0.26 | K32: 0.27 | L32: 0.275 | M32: 0.285
A33: 55000 | B33: 0.18 | C33: 0.19 | D33: 0.2 | E33: 0.21 | F33: 0.22 | G33: 0.23 | H33: 0.24 | I33: 0.25 | J33: 0.26 | K33: 0.27 | L33: 0.275 | M33: 0.285
A34: 56000 | B34: 0.18 | C34: 0.19 | D34: 0.205 | E34: 0.215 | F34: 0.225 | G34: 0.235 | H34: 0.245 | I34: 0.25 | J34: 0.26 | K34: 0.27 | L34: 0.275 | M34: 0.285
A35: 57000 | B35: 0.18 | C35: 0.19 | D35: 0.205 | E35: 0.215 | F35: 0.225 | G35: 0.235 | H35: 0.245 | I35: 0.255 | J35: 0.26 | K35: 0.27 | L35: 0.28 | M35: 0.285
A36: 58000 | B36: 0.18 | C36: 0.19 | D36: 0.205 | E36: 0.215 | F36: 0.225 | G36: 0.235 | H36: 0.245 | I36: 0.255 | J36: 0.265 | K36: 0.27 | L36: 0.28 | M36: 0.285
A37: 59000 | B37: 0.185 | C37: 0.195 | D37: 0.205 | E37: 0.215 | F37: 0.225 | G37: 0.235 | H37: 0.245 | I37: 0.255 | J37: 0.265 | K37: 0.275 | L37: 0.28 | M37: 0.29
A38: 60000 | B38: 0.185 | C38: 0.195 | D38: 0.205 | E38: 0.215 | F38: 0.225 | G38: 0.235 | H38: 0.245 | I38: 0.255 | J38: 0.265 | K38: 0.275 | L38: 0.285 | M38: 0.29
A39: 61000 | B39: 0.185 | C39: 0.195 | D39: 0.205 | E39: 0.215 | F39: 0.23 | G39: 0.24 | H39: 0.25 | I39: 0.26 | J39: 0.27 | K39: 0.275 | L39: 0.285 | M39: 0.29
A40: 62000 | B40: 0.185 | C40: 0.195 | D40: 0.205 | E40: 0.22 | F40: 0.23 | G40: 0.24 | H40: 0.25 | I40: 0.26 | J40: 0.27 | K40: 0.28 | L40: 0.285 | M40: 0.295
A41: 63000 | B41: 0.19 | C41: 0.2 | D41: 0.21 | E41: 0.22 | F41: 0.23 | G41: 0.24 | H41: 0.25 | I41: 0.26 | J41: 0.27 | K41: 0.28 | L41: 0.285 | M41: 0.295
A42: 64000 | B42: 0.19 | C42: 0.2 | D42: 0.21 | E42: 0.22 | F42: 0.23 | G42: 0.24 | H42: 0.25 | I42: 0.265 | J42: 0.27 | K42: 0.28 | L42: 0.29 | M42: 0.295
A43: 65000 | B43: 0.19 | C43: 0.2 | D43: 0.21 | E43: 0.22 | F43: 0.23 | G43: 0.24 | H43: 0.25 | I43: 0.265 | J43: 0.275 | K43: 0.28 | L43: 0.29 | M43: 0.295
A44: 66000 | B44: 0.19 | C44: 0.2 | D44: 0.215 | E44: 0.225 | F44: 0.235 | G44: 0.24 | H44: 0.25 | I44: 0.265 | J44: 0.275 | K44: 0.285 | L44: 0.29 | M44: 0.3
A45: 67000 | B45: 0.195 | C45: 0.205 | D45: 0.215 | E45: 0.225 | F45: 0.235 | G45: 0.245 | H45: 0.255 | I45: 0.265 | J45: 0.275 | K45: 0.285 | L45: 0.295 | M45: 0.3
A46: 68000 | B46: 0.195 | C46: 0.205 | D46: 0.215 | E46: 0.225 | F46: 0.235 | G46: 0.245 | H46: 0.255 | I46: 0.265 | J46: 0.275 | K46: 0.285 | L46: 0.295 | M46: 0.3
A47: 69000 | B47: 0.195 | C47: 0.205 | D47: 0.215 | E47: 0.225 | F47: 0.235 | G47: 0.245 | H47: 0.255 | I47: 0.265 | J47: 0.275 | K47: 0.285 | L47: 0.295 | M47: 0.305
A48: 70000 | B48: 0.195 | C48: 0.205 | D48: 0.215 | E48: 0.225 | F48: 0.235 | G48: 0.25 | H48: 0.26 | I48: 0.27 | J48: 0.275 | K48: 0.285 | L48: 0.295 | M48: 0.305
A49: 71000 | B49: 0.2 | C49: 0.21 | D49: 0.22 | E49: 0.23 | F49: 0.24 | G49: 0.25 | H49: 0.26 | I49: 0.27 | J49: 0.28 | K49: 0.29 | L49: 0.295 | M49: 0.305
A50: 72000 | B50: 0.2 | C50: 0.21 | D50: 0.22 | E50: 0.23 | F50: 0.24 | G50: 0.25 | H50: 0.26 | I50: 0.27 | J50: 0.28 | K50: 0.29 | L50: 0.3 | M50: 0.305
A51: 73000 | B51: 0.2 | C51: 0.21 | D51: 0.22 | E51: 0.23 | F51: 0.245 | G51: 0.255 | H51: 0.265 | I51: 0.275 | J51: 0.285 | K51: 0.29 | L51: 0.3 | M51: 0.305
A52: 74000 | B52: 0.2 | C52: 0.21 | D52: 0.22 | E52: 0.23 | F52: 0.245 | G52: 0.255 | H52: 0.265 | I52: 0.275 | J52: 0.285 | K52: 0.29 | L52: 0.3 | M52: 0.305
A53: 75000 | B53: 0.2 | C53: 0.21 | D53: 0.22 | E53: 0.23 | F53: 0.245 | G53: 0.255 | H53: 0.265 | I53: 0.275 | J53: 0.285 | K53: 0.295 | L53: 0.3 | M53: 0.31
A54: 76000 | B54: 0.2 | C54: 0.21 | D54: 0.22 | E54: 0.23 | F54: 0.245 | G54: 0.26 | H54: 0.27 | I54: 0.275 | J54: 0.285 | K54: 0.295 | L54: 0.3 | M54: 0.31
A55: 77000 | B55: 0.205 | C55: 0.215 | D55: 0.225 | E55: 0.24 | F55: 0.25 | G55: 0.26 | H55: 0.27 | I55: 0.28 | J55: 0.285 | K55: 0.295 | L55: 0.305 | M55: 0.31
A56: 78000 | B56: 0.205 | C56: 0.215 | D56: 0.225 | E56: 0.24 | F56: 0.25 | G56: 0.26 | H56: 0.27 | I56: 0.28 | J56: 0.29 | K56: 0.295 | L56: 0.305 | M56: 0.31
A57: 79000 | B57: 0.205 | C57: 0.215 | D57: 0.225 | E57: 0.24 | F57: 0.25 | G57: 0.26 | H57: 0.27 | I57: 0.28 | J57: 0.29 | K57: 0.295 | L57: 0.305 | M57: 0.31
A58: 80000 | B58: 0.205 | C58: 0.215 | D58: 0.23 | E58: 0.24 | F58: 0.25 | G58: 0.26 | H58: 0.27 | I58: 0.28 | J58: 0.29 | K58: 0.3 | L58: 0.305 | M58: 0.315
A59: 81000 | B59: 0.205 | C59: 0.215 | D59: 0.23 | E59: 0.24 | F59: 0.25 | G59: 0.26 | H59: 0.27 | I59: 0.28 | J59: 0.29 | K59: 0.3 | L59: 0.305 | M59: 0.315
A60: 82000 | B60: 0.205 | C60: 0.215 | D60: 0.23 | E60: 0.24 | F60: 0.25 | G60: 0.26 | H60: 0.27 | I60: 0.28 | J60: 0.29 | K60: 0.3 | L60: 0.305 | M60: 0.315
A61: 83000 | B61: 0.205 | C61: 0.215 | D61: 0.23 | E61: 0.24 | F61: 0.25 | G61: 0.26 | H61: 0.27 | I61: 0.28 | J61: 0.29 | K61: 0.3 | L61: 0.305 | M61: 0.315
A62: 84000 | B62: 0.205 | C62: 0.215 | D62: 0.23 | E62: 0.24 | F62: 0.25 | G62: 0.26 | H62: 0.27 | I62: 0.28 | J62: 0.29 | K62: 0.3 | L62: 0.31 | M62: 0.315
A63: 85000 | B63: 0.21 | C63: 0.22 | D63: 0.23 | E63: 0.24 | F63: 0.25 | G63: 0.265 | H63: 0.275 | I63: 0.28 | J63: 0.29 | K63: 0.3 | L63: 0.31 | M63: 0.315
A64: 86000 | B64: 0.21 | C64: 0.22 | D64: 0.23 | E64: 0.24 | F64: 0.255 | G64: 0.265 | H64: 0.275 | I64: 0.285 | J64: 0.29 | K64: 0.3 | L64: 0.31 | M64: 0.315
A65: 87000 | B65: 0.21 | C65: 0.22 | D65: 0.23 | E65: 0.24 | F65: 0.255 | G65: 0.265 | H65: 0.275 | I65: 0.285 | J65: 0.295 | K65: 0.3 | L65: 0.31 | M65: 0.315
A66: 88000 | B66: 0.21 | C66: 0.22 | D66: 0.23 | E66: 0.245 | F66: 0.255 | G66: 0.265 | H66: 0.275 | I66: 0.285 | J66: 0.295 | K66: 0.3 | L66: 0.31 | M66: 0.32
A67: 89000 | B67: 0.21 | C67: 0.22 | D67: 0.235 | E67: 0.245 | F67: 0.255 | G67: 0.265 | H67: 0.275 | I67: 0.285 | J67: 0.295 | K67: 0.3 | L67: 0.31 | M67: 0.32
A68: 90000 | B68: 0.21 | C68: 0.22 | D68: 0.235 | E68: 0.245 | F68: 0.255 | G68: 0.265 | H68: 0.275 | I68: 0.285 | J68: 0.295 | K68: 0.3 | L68: 0.31 | M68: 0.32
A69: 91000 | B69: 0.21 | C69: 0.225 | D69: 0.235 | E69: 0.245 | F69: 0.255 | G69: 0.265 | H69: 0.275 | I69: 0.285 | J69: 0.295 | K69: 0.305 | L69: 0.31 | M69: 0.32
A70: 92000 | B70: 0.21 | C70: 0.225 | D70: 0.235 | E70: 0.245 | F70: 0.255 | G70: 0.265 | H70: 0.275 | I70: 0.285 | J70: 0.295 | K70: 0.305 | L70: 0.31 | M70: 0.32
A71: 93000 | B71: 0.21 | C71: 0.225 | D71: 0.235 | E71: 0.245 | F71: 0.255 | G71: 0.265 | H71: 0.275 | I71: 0.285 | J71: 0.295 | K71: 0.305 | L71: 0.31 | M71: 0.32
A72: 94000 | B72: 0.215 | C72: 0.225 | D72: 0.235 | E72: 0.245 | F72: 0.255 | G72: 0.265 | H72: 0.275 | I72: 0.285 | J72: 0.295 | K72: 0.305 | L72: 0.31 | M72: 0.32
A73: 95000 | B73: 0.215 | C73: 0.225 | D73: 0.235 | E73: 0.245 | F73: 0.26 | G73: 0.27 | H73: 0.28 | I73: 0.285 | J73: 0.295 | K73: 0.305 | L73: 0.315 | M73: 0.32
A74: 96000 | B74: 0.215 | C74: 0.225 | D74: 0.235 | E74: 0.245 | F74: 0.26 | G74: 0.27 | H74: 0.28 | I74: 0.285 | J74: 0.295 | K74: 0.305 | L74: 0.315 | M74: 0.32
A75: 97000 | B75: 0.215 | C75: 0.225 | D75: 0.235 | E75: 0.25 | F75: 0.26 | G75: 0.27 | H75: 0.28 | I75: 0.29 | J75: 0.295 | K75: 0.305 | L75: 0.315 | M75: 0.32
A76: 98000 | B76: 0.215 | C76: 0.225 | D76: 0.24 | E76: 0.25 | F76: 0.26 | G76: 0.27 | H76: 0.28 | I76: 0.29 | J76: 0.295 | K76: 0.305 | L76: 0.315 | M76: 0.32
A77: 99000 | B77: 0.215 | C77: 0.225 | D77: 0.24 | E77: 0.25 | F77: 0.26 | G77: 0.27 | H77: 0.28 | I77: 0.29 | J77: 0.3 | K77: 0.305 | L77: 0.315 | M77: 0.32
A78: 100000 | B78: 0.215 | C78: 0.23 | D78: 0.24 | E78: 0.25 | F78: 0.26 | G78: 0.27 | H78: 0.28 | I78: 0.29 | J78: 0.3 | K78: 0.305 | L78: 0.315 | M78: 0.325
A79: 101000 | B79: 0.215 | C79: 0.23 | D79: 0.24 | E79: 0.25 | F79: 0.26 | G79: 0.27 | H79: 0.28 | I79: 0.29 | J79: 0.3 | K79: 0.305 | L79: 0.315 | M79: 0.325
A80: 102000 | B80: 0.215 | C80: 0.23 | D80: 0.24 | E80: 0.25 | F80: 0.26 | G80: 0.27 | H80: 0.28 | I80: 0.29 | J80: 0.3 | K80: 0.31 | L80: 0.315 | M80: 0.325
A81: 103000 | B81: 0.22 | C81: 0.23 | D81: 0.24 | E81: 0.25 | F81: 0.26 | G81: 0.27 | H81: 0.28 | I81: 0.29 | J81: 0.3 | K81: 0.31 | L81: 0.315 | M81: 0.325
A82: 104000 | B82: 0.22 | C82: 0.23 | D82: 0.24 | E82: 0.25 | F82: 0.265 | G82: 0.275 | H82: 0.28 | I82: 0.29 | J82: 0.3 | K82: 0.31 | L82: 0.315 | M82: 0.325
A83: 105000 | B83: 0.22 | C83: 0.23 | D83: 0.24 | E83: 0.255 | F83: 0.265 | G83: 0.275 | H83: 0.285 | I83: 0.29 | J83: 0.3 | K83: 0.31 | L83: 0.315 | M83: 0.325
A84: 106000 | B84: 0.22 | C84: 0.23 | D84: 0.24 | E84: 0.255 | F84: 0.265 | G84: 0.275 | H84: 0.285 | I84: 0.295 | J84: 0.3 | K84: 0.31 | L84: 0.32 | M84: 0.325
A85: 107000 | B85: 0.22 | C85: 0.23 | D85: 0.245 | E85: 0.255 | F85: 0.265 | G85: 0.275 | H85: 0.285 | I85: 0.295 | J85: 0.3 | K85: 0.31 | L85: 0.32 | M85: 0.325
A86: 108000 | B86: 0.22 | C86: 0.23 | D86: 0.245 | E86: 0.255 | F86: 0.265 | G86: 0.275 | H86: 0.285 | I86: 0.295 | J86: 0.305 | K86: 0.31 | L86: 0.32 | M86: 0.325
A87: 109000 | B87: 0.22 | C87: 0.23 | D87: 0.245 | E87: 0.255 | F87: 0.265 | G87: 0.275 | H87: 0.285 | I87: 0.295 | J87: 0.305 | K87: 0.31 | L87: 0.32 | M87: 0.325
A88: 110000 | B88: 0.22 | C88: 0.23 | D88: 0.245 | E88: 0.255 | F88: 0.265 | G88: 0.275 | H88: 0.285 | I88: 0.295 | J88: 0.305 | K88: 0.31 | L88: 0.32 | M88: 0.33
A89: 111000 | B89: 0.22 | C89: 0.23 | D89: 0.245 | E89: 0.255 | F89: 0.265 | G89: 0.275 | H89: 0.285 | I89: 0.295 | J89: 0.305 | K89: 0.31 | L89: 0.32 | M89: 0.33
A90: 112000 | B90: 0.22 | C90: 0.23 | D90: 0.245 | E90: 0.255 | F90: 0.265 | G90: 0.275 | H90: 0.285 | I90: 0.295 | J90: 0.305 | K90: 0.315 | L90: 0.32 | M90: 0.33
A91: 113000 | B91: 0.22 | C91: 0.235 | D91: 0.245 | E91: 0.255 | F91: 0.265 | G91: 0.275 | H91: 0.285 | I91: 0.295 | J91: 0.305 | K91: 0.315 | L91: 0.32 | M91: 0.33
A92: 114000 | B92: 0.22 | C92: 0.235 | D92: 0.245 | E92: 0.255 | F92: 0.265 | G92: 0.275 | H92: 0.285 | I92: 0.295 | J92: 0.305 | K92: 0.315 | L92: 0.32 | M92: 0.33
A93: 115000 | B93: 0.22 | C93: 0.235 | D93: 0.245 | E93: 0.255 | F93: 0.265 | G93: 0.275 | H93: 0.285 | I93: 0.295 | J93: 0.305 | K93: 0.315 | L93: 0.32 | M93: 0.33
A94: 116000 | B94: 0.22 | C94: 0.235 | D94: 0.245 | E94: 0.255 | F94: 0.265 | G94: 0.275 | H94: 0.29 | I94: 0.295 | J94: 0.305 | K94: 0.315 | L94: 0.32 | M94: 0.33
A95: 117000 | B95: 0.22 | C95: 0.235 | D95: 0.245 | E95: 0.255 | F95: 0.265 | G95: 0.275 | H95: 0.29 | I95: 0.295 | J95: 0.305 | K95: 0.315 | L95: 0.32 | M95: 0.33
A96: 118000 | B96: 0.22 | C96: 0.235 | D96: 0.245 | E96: 0.255 | F96: 0.265 | G96: 0.28 | H96: 0.29 | I96: 0.295 | J96: 0.305 | K96: 0.315 | L96: 0.32 | M96: 0.33
A97: 119000 | B97: 0.22 | C97: 0.235 | D97: 0.245 | E97: 0.255 | F97: 0.27 | G97: 0.28 | H97: 0.29 | I97: 0.3 | J97: 0.305 | K97: 0.315 | L97: 0.32 | M97: 0.33
A98: 120000 | B98: 0.22 | C98: 0.235 | D98: 0.245 | E98: 0.255 | F98: 0.27 | G98: 0.28 | H98: 0.29 | I98: 0.3 | J98: 0.305 | K98: 0.315 | L98: 0.325 | M98: 0.33
A99: 121000 | B99: 0.225 | C99: 0.235 | D99: 0.245 | E99: 0.26 | F99: 0.27 | G99: 0.28 | H99: 0.29 | I99: 0.3 | J99: 0.305 | K99: 0.315 | L99: 0.325 | M99: 0.33
A100: 122000 | B100: 0.225 | C100: 0.235 | D100: 0.245 | E100: 0.26 | F100: 0.27 | G100: 0.28 | H100: 0.29 | I100: 0.3 | J100: 0.31 | K100: 0.315 | L100: 0.325 | M100: 0.33
A101: 123000 | B101: 0.225 | C101: 0.235 | D101: 0.245 | E101: 0.26 | F101: 0.27 | G101: 0.28 | H101: 0.29 | I101: 0.3 | J101: 0.31 | K101: 0.315 | L101: 0.325 | M101: 0.33
A102: 124000 | B102: 0.225 | C102: 0.235 | D102: 0.245 | E102: 0.26 | F102: 0.27 | G102: 0.28 | H102: 0.29 | I102: 0.3 | J102: 0.31 | K102: 0.315 | L102: 0.325 | M102: 0.33
A103: 10000000 | B103: 0.225 | C103: 0.235 | D103: 0.25 | E103: 0.26 | F103: 0.27 | G103: 0.28 | H103: 0.29 | I103: 0.3 | J103: 0.31 | K103: 0.315 | L103: 0.325 | M103: 0.33

Sheet 2024AMW (hidden)
A2: Box 1 | B2: <= 1,500 | C2: 1,501 <= 2,000 | D2: 2,001 <= 2,500 | E2: 2,501 <= 3,000 | F2: 3,001 <= 3,500 | G2: 3,501 <= 4,000 | H2: 4,001 <= 4,500 | I2: 4,501 <= 5,000 | J2: 5,001 <= 5,500 | K2: 5,501 <= 6,000 | L2: 6,001 <= 6,500 | M2: >= 6,501
A4: -1 | B4: 0 | C4: 0.01501 | D4: =+C4+0.5% -> 0.02001 | E4: 0.02501 | F4: 0.03001 | G4: 0.03501 | H4: 0.04001 | I4: 0.04501 | J4: 0.05001 | K4: 0.05501 | L4: 0.06001 | M4: 0.06501 | N4: <= beginrente
A5: 0 | B5: 0.265 | C5: 0.28 | D5: 0.295 | E5: 0.315 | F5: 0.335 | G5: 0.355 | H5: 0.37 | I5: 0.38 | J5: 0.39 | K5: 0.4 | L5: 0.405 | M5: 0.41
A6: 28000 | B6: 0.265 | C6: 0.28 | D6: 0.295 | E6: 0.315 | F6: 0.335 | G6: 0.355 | H6: 0.37 | I6: 0.38 | J6: 0.39 | K6: 0.4 | L6: 0.405 | M6: 0.41
A7: 29000 | B7: 0.265 | C7: 0.28 | D7: 0.295 | E7: 0.315 | F7: 0.335 | G7: 0.355 | H7: 0.37 | I7: 0.385 | J7: 0.395 | K7: 0.4 | L7: 0.41 | M7: 0.415
A8: 30000 | B8: 0.265 | C8: 0.28 | D8: 0.295 | E8: 0.315 | F8: 0.335 | G8: 0.355 | H8: 0.37 | I8: 0.385 | J8: 0.395 | K8: 0.405 | L8: 0.415 | M8: 0.42
A9: 31000 | B9: 0.265 | C9: 0.28 | D9: 0.295 | E9: 0.315 | F9: 0.335 | G9: 0.355 | H9: 0.37 | I9: 0.385 | J9: 0.4 | K9: 0.41 | L9: 0.415 | M9: 0.425
A10: 32000 | B10: 0.265 | C10: 0.28 | D10: 0.295 | E10: 0.315 | F10: 0.335 | G10: 0.355 | H10: 0.37 | I10: 0.385 | J10: 0.4 | K10: 0.41 | L10: 0.42 | M10: 0.425
A11: 33000 | B11: 0.265 | C11: 0.28 | D11: 0.295 | E11: 0.315 | F11: 0.335 | G11: 0.355 | H11: 0.37 | I11: 0.385 | J11: 0.4 | K11: 0.41 | L11: 0.42 | M11: 0.43
A12: 34000 | B12: 0.265 | C12: 0.28 | D12: 0.295 | E12: 0.315 | F12: 0.335 | G12: 0.355 | H12: 0.37 | I12: 0.385 | J12: 0.4 | K12: 0.41 | L12: 0.42 | M12: 0.43
A13: 35000 | B13: 0.265 | C13: 0.28 | D13: 0.295 | E13: 0.315 | F13: 0.335 | G13: 0.355 | H13: 0.37 | I13: 0.385 | J13: 0.4 | K13: 0.41 | L13: 0.42 | M13: 0.43
A14: 36000 | B14: 0.265 | C14: 0.28 | D14: 0.295 | E14: 0.315 | F14: 0.335 | G14: 0.355 | H14: 0.37 | I14: 0.385 | J14: 0.4 | K14: 0.41 | L14: 0.42 | M14: 0.435
A15: 37000 | B15: 0.265 | C15: 0.28 | D15: 0.295 | E15: 0.315 | F15: 0.335 | G15: 0.355 | H15: 0.37 | I15: 0.385 | J15: 0.4 | K15: 0.41 | L15: 0.42 | M15: 0.435
A16: 38000 | B16: 0.265 | C16: 0.28 | D16: 0.295 | E16: 0.315 | F16: 0.335 | G16: 0.355 | H16: 0.37 | I16: 0.385 | J16: 0.4 | K16: 0.41 | L16: 0.42 | M16: 0.435
A17: 39000 | B17: 0.265 | C17: 0.28 | D17: 0.295 | E17: 0.315 | F17: 0.335 | G17: 0.355 | H17: 0.37 | I17: 0.385 | J17: 0.4 | K17: 0.41 | L17: 0.42 | M17: 0.435
A18: 40000 | B18: 0.265 | C18: 0.28 | D18: 0.295 | E18: 0.315 | F18: 0.335 | G18: 0.355 | H18: 0.37 | I18: 0.385 | J18: 0.4 | K18: 0.41 | L18: 0.42 | M18: 0.435
A19: 41000 | B19: 0.265 | C19: 0.28 | D19: 0.295 | E19: 0.315 | F19: 0.335 | G19: 0.355 | H19: 0.37 | I19: 0.385 | J19: 0.4 | K19: 0.41 | L19: 0.42 | M19: 0.435
A20: 42000 | B20: 0.265 | C20: 0.28 | D20: 0.295 | E20: 0.315 | F20: 0.335 | G20: 0.355 | H20: 0.37 | I20: 0.385 | J20: 0.4 | K20: 0.41 | L20: 0.42 | M20: 0.435
A21: 43000 | B21: 0.265 | C21: 0.28 | D21: 0.295 | E21: 0.315 | F21: 0.335 | G21: 0.355 | H21: 0.37 | I21: 0.385 | J21: 0.4 | K21: 0.41 | L21: 0.42 | M21: 0.435
A22: 44000 | B22: 0.265 | C22: 0.28 | D22: 0.295 | E22: 0.315 | F22: 0.335 | G22: 0.355 | H22: 0.37 | I22: 0.385 | J22: 0.4 | K22: 0.41 | L22: 0.42 | M22: 0.435
A23: 45000 | B23: 0.265 | C23: 0.28 | D23: 0.295 | E23: 0.315 | F23: 0.335 | G23: 0.355 | H23: 0.37 | I23: 0.385 | J23: 0.4 | K23: 0.41 | L23: 0.42 | M23: 0.435
A24: 46000 | B24: 0.265 | C24: 0.28 | D24: 0.295 | E24: 0.315 | F24: 0.335 | G24: 0.355 | H24: 0.37 | I24: 0.385 | J24: 0.4 | K24: 0.41 | L24: 0.42 | M24: 0.435
A25: 47000 | B25: 0.265 | C25: 0.28 | D25: 0.295 | E25: 0.315 | F25: 0.335 | G25: 0.355 | H25: 0.37 | I25: 0.385 | J25: 0.4 | K25: 0.41 | L25: 0.42 | M25: 0.435
A26: 48000 | B26: 0.265 | C26: 0.28 | D26: 0.295 | E26: 0.315 | F26: 0.335 | G26: 0.355 | H26: 0.37 | I26: 0.385 | J26: 0.4 | K26: 0.41 | L26: 0.42 | M26: 0.435
A27: 49000 | B27: 0.265 | C27: 0.28 | D27: 0.295 | E27: 0.315 | F27: 0.335 | G27: 0.355 | H27: 0.37 | I27: 0.385 | J27: 0.4 | K27: 0.41 | L27: 0.42 | M27: 0.435
A28: 50000 | B28: 0.265 | C28: 0.28 | D28: 0.295 | E28: 0.315 | F28: 0.335 | G28: 0.355 | H28: 0.37 | I28: 0.385 | J28: 0.4 | K28: 0.41 | L28: 0.42 | M28: 0.435
A29: 51000 | B29: 0.265 | C29: 0.28 | D29: 0.295 | E29: 0.315 | F29: 0.335 | G29: 0.355 | H29: 0.37 | I29: 0.385 | J29: 0.4 | K29: 0.41 | L29: 0.42 | M29: 0.435
A30: 52000 | B30: 0.265 | C30: 0.28 | D30: 0.295 | E30: 0.315 | F30: 0.335 | G30: 0.355 | H30: 0.37 | I30: 0.385 | J30: 0.4 | K30: 0.41 | L30: 0.42 | M30: 0.435
A31: 53000 | B31: 0.27 | C31: 0.285 | D31: 0.3 | E31: 0.32 | F31: 0.34 | G31: 0.355 | H31: 0.37 | I31: 0.385 | J31: 0.4 | K31: 0.41 | L31: 0.42 | M31: 0.435
A32: 54000 | B32: 0.27 | C32: 0.285 | D32: 0.3 | E32: 0.32 | F32: 0.34 | G32: 0.355 | H32: 0.37 | I32: 0.385 | J32: 0.4 | K32: 0.41 | L32: 0.42 | M32: 0.435
A33: 55000 | B33: 0.27 | C33: 0.285 | D33: 0.3 | E33: 0.32 | F33: 0.34 | G33: 0.355 | H33: 0.37 | I33: 0.385 | J33: 0.4 | K33: 0.41 | L33: 0.42 | M33: 0.435
A34: 56000 | B34: 0.27 | C34: 0.285 | D34: 0.3 | E34: 0.32 | F34: 0.34 | G34: 0.355 | H34: 0.37 | I34: 0.385 | J34: 0.4 | K34: 0.41 | L34: 0.42 | M34: 0.435
A35: 57000 | B35: 0.27 | C35: 0.285 | D35: 0.3 | E35: 0.32 | F35: 0.34 | G35: 0.355 | H35: 0.37 | I35: 0.385 | J35: 0.4 | K35: 0.41 | L35: 0.42 | M35: 0.435
A36: 58000 | B36: 0.27 | C36: 0.285 | D36: 0.3 | E36: 0.32 | F36: 0.34 | G36: 0.355 | H36: 0.37 | I36: 0.385 | J36: 0.4 | K36: 0.41 | L36: 0.42 | M36: 0.435
A37: 59000 | B37: 0.27 | C37: 0.285 | D37: 0.3 | E37: 0.32 | F37: 0.34 | G37: 0.355 | H37: 0.37 | I37: 0.385 | J37: 0.4 | K37: 0.41 | L37: 0.42 | M37: 0.435
A38: 60000 | B38: 0.27 | C38: 0.285 | D38: 0.3 | E38: 0.32 | F38: 0.34 | G38: 0.355 | H38: 0.37 | I38: 0.385 | J38: 0.4 | K38: 0.41 | L38: 0.42 | M38: 0.435
A39: 61000 | B39: 0.27 | C39: 0.285 | D39: 0.3 | E39: 0.32 | F39: 0.34 | G39: 0.355 | H39: 0.37 | I39: 0.385 | J39: 0.4 | K39: 0.41 | L39: 0.42 | M39: 0.435
A40: 62000 | B40: 0.27 | C40: 0.285 | D40: 0.3 | E40: 0.32 | F40: 0.34 | G40: 0.355 | H40: 0.37 | I40: 0.385 | J40: 0.4 | K40: 0.41 | L40: 0.42 | M40: 0.435
A41: 63000 | B41: 0.275 | C41: 0.29 | D41: 0.305 | E41: 0.325 | F41: 0.34 | G41: 0.355 | H41: 0.37 | I41: 0.385 | J41: 0.4 | K41: 0.41 | L41: 0.42 | M41: 0.435
A42: 64000 | B42: 0.275 | C42: 0.29 | D42: 0.305 | E42: 0.325 | F42: 0.34 | G42: 0.355 | H42: 0.37 | I42: 0.385 | J42: 0.4 | K42: 0.41 | L42: 0.42 | M42: 0.435
A43: 65000 | B43: 0.275 | C43: 0.29 | D43: 0.305 | E43: 0.325 | F43: 0.34 | G43: 0.355 | H43: 0.37 | I43: 0.385 | J43: 0.4 | K43: 0.41 | L43: 0.42 | M43: 0.435
A44: 66000 | B44: 0.275 | C44: 0.29 | D44: 0.305 | E44: 0.325 | F44: 0.34 | G44: 0.355 | H44: 0.37 | I44: 0.385 | J44: 0.4 | K44: 0.41 | L44: 0.42 | M44: 0.435
A45: 67000 | B45: 0.275 | C45: 0.29 | D45: 0.305 | E45: 0.325 | F45: 0.34 | G45: 0.355 | H45: 0.37 | I45: 0.385 | J45: 0.4 | K45: 0.41 | L45: 0.42 | M45: 0.435
A46: 68000 | B46: 0.275 | C46: 0.29 | D46: 0.305 | E46: 0.325 | F46: 0.34 | G46: 0.355 | H46: 0.37 | I46: 0.385 | J46: 0.4 | K46: 0.41 | L46: 0.42 | M46: 0.435
A47: 10000000 | B47: 0.275 | C47: 0.29 | D47: 0.305 | E47: 0.325 | F47: 0.34 | G47: 0.355 | H47: 0.37 | I47: 0.385 | J47: 0.4 | K47: 0.41 | L47: 0.42 | M47: 0.435

Sheet 2024EZW (hidden)
A2: x 1 | B2: <= 1,500 | C2: 1,501 <= 2,000 | D2: 2,001 <= 2,500 | E2: 2,501 <= 3,000 | F2: 3,001 <= 3,500 | G2: 3,501 <= 4,000 | H2: 4,001 <= 4,500 | I2: 4,501 <= 5,000 | J2: 5,001 <= 5,500 | K2: 5,501 <= 6,000 | L2: 6,001 <= 6,500 | M2: >= 6,501
A4: -1 | B4: 0 | C4: 0.01501 | D4: =+C4+0.5% -> 0.02001 | E4: 0.02501 | F4: 0.03001 | G4: 0.03501 | H4: 0.04001 | I4: 0.04501 | J4: 0.05001 | K4: 0.05501 | L4: 0.06001 | M4: 0.06501 | N4: <= beginrente
A5: 0 | B5: 0.13 | C5: 0.135 | D5: 0.14 | E5: 0.145 | F5: 0.155 | G5: 0.16 | H5: 0.165 | I5: 0.17 | J5: 0.175 | K5: 0.175 | L5: 0.18 | M5: 0.185
A6: 20000 | B6: 0.13 | C6: 0.135 | D6: 0.14 | E6: 0.145 | F6: 0.155 | G6: 0.16 | H6: 0.165 | I6: 0.17 | J6: 0.175 | K6: 0.175 | L6: 0.18 | M6: 0.185
A7: 20500 | B7: 0.135 | C7: 0.145 | D7: 0.15 | E7: 0.16 | F7: 0.165 | G7: 0.17 | H7: 0.175 | I7: 0.18 | J7: 0.185 | K7: 0.19 | L7: 0.195 | M7: 0.2
A8: 21000 | B8: 0.145 | C8: 0.155 | D8: 0.16 | E8: 0.17 | F8: 0.175 | G8: 0.18 | H8: 0.185 | I8: 0.19 | J8: 0.195 | K8: 0.2 | L8: 0.205 | M8: 0.21
A9: 21500 | B9: 0.155 | C9: 0.16 | D9: 0.17 | E9: 0.175 | F9: 0.185 | G9: 0.19 | H9: 0.195 | I9: 0.205 | J9: 0.21 | K9: 0.215 | L9: 0.22 | M9: 0.225
A10: 22000 | B10: 0.16 | C10: 0.17 | D10: 0.18 | E10: 0.185 | F10: 0.195 | G10: 0.2 | H10: 0.205 | I10: 0.21 | J10: 0.22 | K10: 0.225 | L10: 0.23 | M10: 0.235
A11: 22500 | B11: 0.17 | C11: 0.18 | D11: 0.185 | E11: 0.195 | F11: 0.2 | G11: 0.21 | H11: 0.215 | I11: 0.22 | J11: 0.23 | K11: 0.235 | L11: 0.24 | M11: 0.245
A12: 23000 | B12: 0.175 | C12: 0.185 | D12: 0.195 | E12: 0.2 | F12: 0.21 | G12: 0.22 | H12: 0.225 | I12: 0.23 | J12: 0.24 | K12: 0.245 | L12: 0.25 | M12: 0.255
A13: 23500 | B13: 0.185 | C13: 0.195 | D13: 0.2 | E13: 0.21 | F13: 0.22 | G13: 0.225 | H13: 0.235 | I13: 0.24 | J13: 0.25 | K13: 0.255 | L13: 0.26 | M13: 0.265
A14: 24000 | B14: 0.19 | C14: 0.2 | D14: 0.21 | E14: 0.22 | F14: 0.225 | G14: 0.235 | H14: 0.245 | I14: 0.25 | J14: 0.255 | K14: 0.265 | L14: 0.27 | M14: 0.275
A15: 24500 | B15: 0.195 | C15: 0.205 | D15: 0.215 | E15: 0.225 | F15: 0.235 | G15: 0.245 | H15: 0.25 | I15: 0.26 | J15: 0.265 | K15: 0.27 | L15: 0.28 | M15: 0.285
A16: 25000 | B16: 0.205 | C16: 0.215 | D16: 0.225 | E16: 0.235 | F16: 0.24 | G16: 0.25 | H16: 0.26 | I16: 0.265 | J16: 0.275 | K16: 0.28 | L16: 0.285 | M16: 0.295
A17: 26000 | B17: 0.21 | C17: 0.225 | D17: 0.235 | E17: 0.245 | F17: 0.255 | G17: 0.265 | H17: 0.275 | I17: 0.28 | J17: 0.29 | K17: 0.295 | L17: 0.305 | M17: 0.31
A18: 27000 | B18: 0.21 | C18: 0.225 | D18: 0.24 | E18: 0.255 | F18: 0.27 | G18: 0.28 | H18: 0.285 | I18: 0.295 | J18: 0.305 | K18: 0.31 | L18: 0.32 | M18: 0.325
A19: 28000 | B19: 0.21 | C19: 0.225 | D19: 0.24 | E19: 0.255 | F19: 0.27 | G19: 0.285 | H19: 0.295 | I19: 0.305 | J19: 0.315 | K19: 0.325 | L19: 0.335 | M19: 0.34
A20: 29000 | B20: 0.21 | C20: 0.225 | D20: 0.24 | E20: 0.255 | F20: 0.27 | G20: 0.285 | H20: 0.295 | I20: 0.305 | J20: 0.32 | K20: 0.33 | L20: 0.34 | M20: 0.355
A21: 30000 | B21: 0.21 | C21: 0.225 | D21: 0.24 | E21: 0.255 | F21: 0.27 | G21: 0.285 | H21: 0.295 | I21: 0.305 | J21: 0.32 | K21: 0.33 | L21: 0.34 | M21: 0.355
A22: 31000 | B22: 0.21 | C22: 0.225 | D22: 0.24 | E22: 0.255 | F22: 0.27 | G22: 0.285 | H22: 0.295 | I22: 0.305 | J22: 0.32 | K22: 0.33 | L22: 0.34 | M22: 0.355
A23: 32000 | B23: 0.21 | C23: 0.225 | D23: 0.24 | E23: 0.255 | F23: 0.27 | G23: 0.285 | H23: 0.295 | I23: 0.305 | J23: 0.32 | K23: 0.33 | L23: 0.34 | M23: 0.355
A24: 33000 | B24: 0.21 | C24: 0.225 | D24: 0.24 | E24: 0.255 | F24: 0.27 | G24: 0.285 | H24: 0.295 | I24: 0.305 | J24: 0.32 | K24: 0.33 | L24: 0.34 | M24: 0.355
A25: 34000 | B25: 0.21 | C25: 0.225 | D25: 0.24 | E25: 0.255 | F25: 0.27 | G25: 0.285 | H25: 0.295 | I25: 0.305 | J25: 0.32 | K25: 0.33 | L25: 0.34 | M25: 0.355
A26: 35000 | B26: 0.21 | C26: 0.225 | D26: 0.24 | E26: 0.255 | F26: 0.27 | G26: 0.285 | H26: 0.295 | I26: 0.305 | J26: 0.32 | K26: 0.33 | L26: 0.34 | M26: 0.355
A27: 36000 | B27: 0.21 | C27: 0.225 | D27: 0.24 | E27: 0.255 | F27: 0.27 | G27: 0.285 | H27: 0.295 | I27: 0.305 | J27: 0.32 | K27: 0.33 | L27: 0.34 | M27: 0.355
A28: 37000 | B28: 0.21 | C28: 0.225 | D28: 0.24 | E28: 0.255 | F28: 0.27 | G28: 0.285 | H28: 0.295 | I28: 0.305 | J28: 0.32 | K28: 0.33 | L28: 0.34 | M28: 0.355
A29: 38000 | B29: 0.21 | C29: 0.225 | D29: 0.24 | E29: 0.255 | F29: 0.27 | G29: 0.285 | H29: 0.295 | I29: 0.305 | J29: 0.32 | K29: 0.33 | L29: 0.34 | M29: 0.355
A30: 39000 | B30: 0.21 | C30: 0.225 | D30: 0.24 | E30: 0.255 | F30: 0.27 | G30: 0.285 | H30: 0.295 | I30: 0.305 | J30: 0.32 | K30: 0.33 | L30: 0.34 | M30: 0.355
A31: 40000 | B31: 0.21 | C31: 0.225 | D31: 0.24 | E31: 0.255 | F31: 0.27 | G31: 0.285 | H31: 0.295 | I31: 0.305 | J31: 0.32 | K31: 0.33 | L31: 0.34 | M31: 0.355
A32: 41000 | B32: 0.225 | C32: 0.235 | D32: 0.25 | E32: 0.26 | F32: 0.275 | G32: 0.285 | H32: 0.3 | I32: 0.31 | J32: 0.32 | K32: 0.33 | L32: 0.34 | M32: 0.355
A33: 42000 | B33: 0.225 | C33: 0.24 | D33: 0.25 | E33: 0.265 | F33: 0.275 | G33: 0.29 | H33: 0.3 | I33: 0.31 | J33: 0.32 | K33: 0.33 | L33: 0.345 | M33: 0.355
A34: 43000 | B34: 0.225 | C34: 0.24 | D34: 0.255 | E34: 0.265 | F34: 0.28 | G34: 0.29 | H34: 0.305 | I34: 0.315 | J34: 0.325 | K34: 0.335 | L34: 0.345 | M34: 0.355
A35: 44000 | B35: 0.225 | C35: 0.24 | D35: 0.255 | E35: 0.27 | F35: 0.285 | G35: 0.295 | H35: 0.305 | I35: 0.32 | J35: 0.33 | K35: 0.34 | L35: 0.35 | M35: 0.36
A36: 45000 | B36: 0.23 | C36: 0.24 | D36: 0.255 | E36: 0.27 | F36: 0.285 | G36: 0.295 | H36: 0.31 | I36: 0.32 | J36: 0.33 | K36: 0.34 | L36: 0.35 | M36: 0.36
A37: 46000 | B37: 0.23 | C37: 0.245 | D37: 0.26 | E37: 0.27 | F37: 0.285 | G37: 0.3 | H37: 0.31 | I37: 0.325 | J37: 0.335 | K37: 0.345 | L37: 0.355 | M37: 0.36
A38: 47000 | B38: 0.235 | C38: 0.245 | D38: 0.26 | E38: 0.275 | F38: 0.285 | G38: 0.3 | H38: 0.315 | I38: 0.325 | J38: 0.335 | K38: 0.345 | L38: 0.355 | M38: 0.365
A39: 48000 | B39: 0.235 | C39: 0.25 | D39: 0.265 | E39: 0.275 | F39: 0.29 | G39: 0.3 | H39: 0.315 | I39: 0.33 | J39: 0.34 | K39: 0.35 | L39: 0.36 | M39: 0.365
A40: 49000 | B40: 0.24 | C40: 0.25 | D40: 0.265 | E40: 0.28 | F40: 0.29 | G40: 0.305 | H40: 0.315 | I40: 0.33 | J40: 0.34 | K40: 0.35 | L40: 0.36 | M40: 0.365
A41: 10000000 | B41: 0.24 | C41: 0.255 | D41: 0.265 | E41: 0.28 | F41: 0.295 | G41: 0.305 | H41: 0.315 | I41: 0.33 | J41: 0.34 | K41: 0.35 | L41: 0.36 | M41: 0.37

Sheet 2024AZW (hidden)
A2: ox 1 | B2: <= 1,500 | C2: 1,501 <= 2,000 | D2: 2,001 <= 2,500 | E2: 2,501 <= 3,000 | F2: 3,001 <= 3,500 | G2: 3,501 <= 4,000 | H2: 4,001 <= 4,500 | I2: 4,501 <= 5,000 | J2: 5,001 <= 5,500 | K2: 5,501 <= 6,000 | L2: 6,001 <= 6,500 | M2: >= 6,501
A4: -1 | B4: 0 | C4: 0.01501 | D4: =+C4+0.5% -> 0.02001 | E4: 0.02501 | F4: 0.03001 | G4: 0.03501 | H4: 0.04001 | I4: 0.04501 | J4: 0.05001 | K4: 0.05501 | L4: 0.06001 | M4: 0.06501 | N4: <= beginrente
A5: 0 | B5: 0.13 | C5: 0.135 | D5: 0.14 | E5: 0.145 | F5: 0.155 | G5: 0.16 | H5: 0.165 | I5: 0.17 | J5: 0.175 | K5: 0.175 | L5: 0.18 | M5: 0.185
A6: 20000 | B6: 0.13 | C6: 0.135 | D6: 0.14 | E6: 0.145 | F6: 0.155 | G6: 0.16 | H6: 0.165 | I6: 0.17 | J6: 0.175 | K6: 0.175 | L6: 0.18 | M6: 0.185
A7: 20500 | B7: 0.135 | C7: 0.145 | D7: 0.15 | E7: 0.16 | F7: 0.165 | G7: 0.17 | H7: 0.175 | I7: 0.18 | J7: 0.185 | K7: 0.19 | L7: 0.195 | M7: 0.2
A8: 21000 | B8: 0.145 | C8: 0.155 | D8: 0.16 | E8: 0.17 | F8: 0.175 | G8: 0.18 | H8: 0.185 | I8: 0.19 | J8: 0.195 | K8: 0.2 | L8: 0.205 | M8: 0.21
A9: 21500 | B9: 0.155 | C9: 0.16 | D9: 0.17 | E9: 0.175 | F9: 0.185 | G9: 0.19 | H9: 0.195 | I9: 0.205 | J9: 0.21 | K9: 0.215 | L9: 0.22 | M9: 0.225
A10: 22000 | B10: 0.16 | C10: 0.17 | D10: 0.18 | E10: 0.185 | F10: 0.195 | G10: 0.2 | H10: 0.205 | I10: 0.21 | J10: 0.22 | K10: 0.225 | L10: 0.23 | M10: 0.235
A11: 22500 | B11: 0.17 | C11: 0.18 | D11: 0.185 | E11: 0.195 | F11: 0.2 | G11: 0.21 | H11: 0.215 | I11: 0.22 | J11: 0.23 | K11: 0.235 | L11: 0.24 | M11: 0.245
A12: 23000 | B12: 0.175 | C12: 0.185 | D12: 0.195 | E12: 0.2 | F12: 0.21 | G12: 0.22 | H12: 0.225 | I12: 0.23 | J12: 0.24 | K12: 0.245 | L12: 0.25 | M12: 0.255
A13: 23500 | B13: 0.185 | C13: 0.195 | D13: 0.2 | E13: 0.21 | F13: 0.22 | G13: 0.225 | H13: 0.235 | I13: 0.24 | J13: 0.25 | K13: 0.255 | L13: 0.26 | M13: 0.265
A14: 24000 | B14: 0.19 | C14: 0.2 | D14: 0.21 | E14: 0.22 | F14: 0.225 | G14: 0.235 | H14: 0.245 | I14: 0.25 | J14: 0.255 | K14: 0.265 | L14: 0.27 | M14: 0.275
A15: 24500 | B15: 0.195 | C15: 0.205 | D15: 0.215 | E15: 0.225 | F15: 0.235 | G15: 0.245 | H15: 0.25 | I15: 0.26 | J15: 0.265 | K15: 0.27 | L15: 0.28 | M15: 0.285
A16: 25000 | B16: 0.205 | C16: 0.215 | D16: 0.225 | E16: 0.235 | F16: 0.24 | G16: 0.25 | H16: 0.26 | I16: 0.265 | J16: 0.275 | K16: 0.28 | L16: 0.285 | M16: 0.295
A17: 26000 | B17: 0.21 | C17: 0.225 | D17: 0.235 | E17: 0.245 | F17: 0.255 | G17: 0.265 | H17: 0.275 | I17: 0.28 | J17: 0.29 | K17: 0.295 | L17: 0.305 | M17: 0.31
A18: 27000 | B18: 0.21 | C18: 0.225 | D18: 0.24 | E18: 0.255 | F18: 0.27 | G18: 0.28 | H18: 0.285 | I18: 0.295 | J18: 0.305 | K18: 0.31 | L18: 0.32 | M18: 0.325
A19: 28000 | B19: 0.21 | C19: 0.225 | D19: 0.24 | E19: 0.255 | F19: 0.27 | G19: 0.285 | H19: 0.295 | I19: 0.305 | J19: 0.315 | K19: 0.325 | L19: 0.335 | M19: 0.34
A20: 29000 | B20: 0.21 | C20: 0.225 | D20: 0.24 | E20: 0.255 | F20: 0.27 | G20: 0.285 | H20: 0.295 | I20: 0.305 | J20: 0.32 | K20: 0.33 | L20: 0.34 | M20: 0.355
A21: 30000 | B21: 0.21 | C21: 0.225 | D21: 0.24 | E21: 0.255 | F21: 0.27 | G21: 0.285 | H21: 0.295 | I21: 0.305 | J21: 0.32 | K21: 0.33 | L21: 0.34 | M21: 0.355
A22: 31000 | B22: 0.21 | C22: 0.225 | D22: 0.24 | E22: 0.255 | F22: 0.27 | G22: 0.285 | H22: 0.295 | I22: 0.305 | J22: 0.32 | K22: 0.33 | L22: 0.34 | M22: 0.355
A23: 32000 | B23: 0.21 | C23: 0.225 | D23: 0.24 | E23: 0.255 | F23: 0.27 | G23: 0.285 | H23: 0.295 | I23: 0.305 | J23: 0.32 | K23: 0.33 | L23: 0.34 | M23: 0.355
A24: 33000 | B24: 0.21 | C24: 0.225 | D24: 0.24 | E24: 0.255 | F24: 0.27 | G24: 0.285 | H24: 0.295 | I24: 0.305 | J24: 0.32 | K24: 0.33 | L24: 0.34 | M24: 0.355
A25: 34000 | B25: 0.21 | C25: 0.225 | D25: 0.24 | E25: 0.255 | F25: 0.27 | G25: 0.285 | H25: 0.295 | I25: 0.305 | J25: 0.32 | K25: 0.33 | L25: 0.34 | M25: 0.355
A26: 35000 | B26: 0.21 | C26: 0.225 | D26: 0.24 | E26: 0.255 | F26: 0.27 | G26: 0.285 | H26: 0.295 | I26: 0.305 | J26: 0.32 | K26: 0.33 | L26: 0.34 | M26: 0.355
A27: 36000 | B27: 0.21 | C27: 0.225 | D27: 0.24 | E27: 0.255 | F27: 0.27 | G27: 0.285 | H27: 0.295 | I27: 0.305 | J27: 0.32 | K27: 0.33 | L27: 0.34 | M27: 0.355
A28: 37000 | B28: 0.21 | C28: 0.225 | D28: 0.24 | E28: 0.255 | F28: 0.27 | G28: 0.285 | H28: 0.295 | I28: 0.305 | J28: 0.32 | K28: 0.33 | L28: 0.34 | M28: 0.355
A29: 38000 | B29: 0.21 | C29: 0.225 | D29: 0.24 | E29: 0.255 | F29: 0.27 | G29: 0.285 | H29: 0.295 | I29: 0.305 | J29: 0.32 | K29: 0.33 | L29: 0.34 | M29: 0.355
A30: 39000 | B30: 0.21 | C30: 0.225 | D30: 0.24 | E30: 0.255 | F30: 0.27 | G30: 0.285 | H30: 0.295 | I30: 0.305 | J30: 0.32 | K30: 0.33 | L30: 0.34 | M30: 0.355
A31: 40000 | B31: 0.21 | C31: 0.225 | D31: 0.24 | E31: 0.255 | F31: 0.27 | G31: 0.285 | H31: 0.295 | I31: 0.305 | J31: 0.32 | K31: 0.33 | L31: 0.34 | M31: 0.355
A32: 41000 | B32: 0.225 | C32: 0.235 | D32: 0.25 | E32: 0.26 | F32: 0.275 | G32: 0.285 | H32: 0.3 | I32: 0.31 | J32: 0.32 | K32: 0.33 | L32: 0.34 | M32: 0.355
A33: 42000 | B33: 0.225 | C33: 0.24 | D33: 0.25 | E33: 0.265 | F33: 0.275 | G33: 0.29 | H33: 0.3 | I33: 0.31 | J33: 0.32 | K33: 0.33 | L33: 0.345 | M33: 0.355
A34: 43000 | B34: 0.225 | C34: 0.24 | D34: 0.255 | E34: 0.265 | F34: 0.28 | G34: 0.29 | H34: 0.305 | I34: 0.315 | J34: 0.325 | K34: 0.335 | L34: 0.345 | M34: 0.355
A35: 44000 | B35: 0.225 | C35: 0.24 | D35: 0.255 | E35: 0.27 | F35: 0.285 | G35: 0.295 | H35: 0.305 | I35: 0.32 | J35: 0.33 | K35: 0.34 | L35: 0.35 | M35: 0.36
A36: 45000 | B36: 0.23 | C36: 0.24 | D36: 0.255 | E36: 0.27 | F36: 0.285 | G36: 0.295 | H36: 0.31 | I36: 0.32 | J36: 0.33 | K36: 0.34 | L36: 0.35 | M36: 0.36
A37: 46000 | B37: 0.23 | C37: 0.245 | D37: 0.26 | E37: 0.27 | F37: 0.285 | G37: 0.3 | H37: 0.31 | I37: 0.325 | J37: 0.335 | K37: 0.345 | L37: 0.355 | M37: 0.36
A38: 47000 | B38: 0.235 | C38: 0.245 | D38: 0.26 | E38: 0.275 | F38: 0.285 | G38: 0.3 | H38: 0.315 | I38: 0.325 | J38: 0.335 | K38: 0.345 | L38: 0.355 | M38: 0.365
A39: 48000 | B39: 0.235 | C39: 0.25 | D39: 0.265 | E39: 0.275 | F39: 0.29 | G39: 0.3 | H39: 0.315 | I39: 0.33 | J39: 0.34 | K39: 0.35 | L39: 0.36 | M39: 0.365
A40: 49000 | B40: 0.24 | C40: 0.25 | D40: 0.265 | E40: 0.28 | F40: 0.29 | G40: 0.305 | H40: 0.315 | I40: 0.33 | J40: 0.34 | K40: 0.35 | L40: 0.36 | M40: 0.365
A41: 10000000 | B41: 0.24 | C41: 0.255 | D41: 0.265 | E41: 0.28 | F41: 0.295 | G41: 0.305 | H41: 0.315 | I41: 0.33 | J41: 0.34 | K41: 0.35 | L41: 0.36 | M41: 0.37

Sheet 2024EMA (hidden)
A2: Box 1 | B2: <= 1,500 | C2: 1,501 <= 2,000 | D2: 2,001 <= 2,500 | E2: 2,501 <= 3,000 | F2: 3,001 <= 3,500 | G2: 3,501 <= 4,000 | H2: 4,001 <= 4,500 | I2: 4,501 <= 5,000 | J2: 5,001 <= 5,500 | K2: 5,501 <= 6,000 | L2: 6,001 <= 6,500 | M2: >= 6,501
A4: -1 | B4: 0 | C4: 0.01501 | D4: =+C4+0.5% -> 0.02001 | E4: 0.02501 | F4: 0.03001 | G4: 0.03501 | H4: 0.04001 | I4: 0.04501 | J4: 0.05001 | K4: 0.05501 | L4: 0.06001 | M4: 0.06501 | N4: <= beginrente
A5: 0 | B5: 0.175 | C5: 0.175 | D5: 0.18 | E5: 0.18 | F5: 0.185 | G5: 0.185 | H5: 0.19 | I5: 0.19 | J5: 0.195 | K5: 0.195 | L5: 0.195 | M5: 0.2
A6: 28000 | B6: 0.175 | C6: 0.175 | D6: 0.18 | E6: 0.18 | F6: 0.185 | G6: 0.185 | H6: 0.19 | I6: 0.19 | J6: 0.195 | K6: 0.195 | L6: 0.195 | M6: 0.2
A7: 29000 | B7: 0.19 | C7: 0.195 | D7: 0.2 | E7: 0.2 | F7: 0.205 | G7: 0.205 | H7: 0.21 | I7: 0.21 | J7: 0.215 | K7: 0.215 | L7: 0.215 | M7: 0.22
A8: 30000 | B8: 0.205 | C8: 0.21 | D8: 0.215 | E8: 0.22 | F8: 0.225 | G8: 0.225 | H8: 0.23 | I8: 0.23 | J8: 0.235 | K8: 0.235 | L8: 0.235 | M8: 0.24
A9: 31000 | B9: 0.215 | C9: 0.225 | D9: 0.23 | E9: 0.235 | F9: 0.24 | G9: 0.245 | H9: 0.245 | I9: 0.25 | J9: 0.25 | K9: 0.255 | L9: 0.255 | M9: 0.255
A10: 32000 | B10: 0.22 | C10: 0.225 | D10: 0.235 | E10: 0.245 | F10: 0.25 | G10: 0.26 | H10: 0.265 | I10: 0.265 | J10: 0.265 | K10: 0.27 | L10: 0.275 | M10: 0.275
A11: 33000 | B11: 0.22 | C11: 0.23 | D11: 0.24 | E11: 0.245 | F11: 0.255 | G11: 0.265 | H11: 0.27 | I11: 0.275 | J11: 0.28 | K11: 0.28 | L11: 0.285 | M11: 0.29
A12: 34000 | B12: 0.22 | C12: 0.23 | D12: 0.24 | E12: 0.25 | F12: 0.26 | G12: 0.265 | H12: 0.275 | I12: 0.28 | J12: 0.285 | K12: 0.29 | L12: 0.29 | M12: 0.295
A13: 35000 | B13: 0.22 | C13: 0.23 | D13: 0.245 | E13: 0.25 | F13: 0.26 | G13: 0.27 | H13: 0.275 | I13: 0.285 | J13: 0.29 | K13: 0.295 | L13: 0.3 | M13: 0.3
A14: 36000 | B14: 0.22 | C14: 0.235 | D14: 0.245 | E14: 0.255 | F14: 0.265 | G14: 0.27 | H14: 0.28 | I14: 0.285 | J14: 0.29 | K14: 0.3 | L14: 0.305 | M14: 0.305
A15: 37000 | B15: 0.225 | C15: 0.235 | D15: 0.245 | E15: 0.255 | F15: 0.265 | G15: 0.275 | H15: 0.28 | I15: 0.29 | J15: 0.295 | K15: 0.3 | L15: 0.305 | M15: 0.31
A16: 38000 | B16: 0.225 | C16: 0.235 | D16: 0.245 | E16: 0.255 | F16: 0.265 | G16: 0.275 | H16: 0.285 | I16: 0.29 | J16: 0.295 | K16: 0.305 | L16: 0.31 | M16: 0.315
A17: 39000 | B17: 0.225 | C17: 0.235 | D17: 0.245 | E17: 0.255 | F17: 0.265 | G17: 0.275 | H17: 0.285 | I17: 0.29 | J17: 0.3 | K17: 0.305 | L17: 0.31 | M17: 0.315
A18: 40000 | B18: 0.225 | C18: 0.235 | D18: 0.245 | E18: 0.255 | F18: 0.265 | G18: 0.275 | H18: 0.285 | I18: 0.295 | J18: 0.3 | K18: 0.305 | L18: 0.315 | M18: 0.32
A19: 41000 | B19: 0.225 | C19: 0.235 | D19: 0.245 | E19: 0.255 | F19: 0.265 | G19: 0.275 | H19: 0.285 | I19: 0.295 | J19: 0.3 | K19: 0.31 | L19: 0.315 | M19: 0.32
A20: 42000 | B20: 0.225 | C20: 0.235 | D20: 0.25 | E20: 0.26 | F20: 0.27 | G20: 0.28 | H20: 0.285 | I20: 0.295 | J20: 0.305 | K20: 0.31 | L20: 0.315 | M20: 0.325
A21: 43000 | B21: 0.23 | C21: 0.24 | D21: 0.25 | E21: 0.26 | F21: 0.27 | G21: 0.28 | H21: 0.29 | I21: 0.3 | J21: 0.305 | K21: 0.315 | L21: 0.32 | M21: 0.325
A22: 44000 | B22: 0.235 | C22: 0.245 | D22: 0.255 | E22: 0.265 | F22: 0.275 | G22: 0.285 | H22: 0.295 | I22: 0.3 | J22: 0.31 | K22: 0.315 | L22: 0.325 | M22: 0.33
A23: 45000 | B23: 0.235 | C23: 0.245 | D23: 0.255 | E23: 0.265 | F23: 0.275 | G23: 0.285 | H23: 0.295 | I23: 0.305 | J23: 0.31 | K23: 0.32 | L23: 0.325 | M23: 0.335
A24: 46000 | B24: 0.24 | C24: 0.25 | D24: 0.26 | E24: 0.27 | F24: 0.28 | G24: 0.29 | H24: 0.3 | I24: 0.305 | J24: 0.315 | K24: 0.32 | L24: 0.33 | M24: 0.335
A25: 47000 | B25: 0.245 | C25: 0.255 | D25: 0.265 | E25: 0.27 | F25: 0.28 | G25: 0.29 | H25: 0.3 | I25: 0.31 | J25: 0.315 | K25: 0.325 | L25: 0.335 | M25: 0.34
A26: 48000 | B26: 0.245 | C26: 0.255 | D26: 0.265 | E26: 0.275 | F26: 0.285 | G26: 0.295 | H26: 0.305 | I26: 0.31 | J26: 0.32 | K26: 0.33 | L26: 0.335 | M26: 0.345
A27: 49000 | B27: 0.25 | C27: 0.26 | D27: 0.27 | E27: 0.28 | F27: 0.29 | G27: 0.295 | H27: 0.305 | I27: 0.315 | J27: 0.325 | K27: 0.33 | L27: 0.34 | M27: 0.345
A28: 50000 | B28: 0.25 | C28: 0.265 | D28: 0.275 | E28: 0.285 | F28: 0.295 | G28: 0.3 | H28: 0.31 | I28: 0.32 | J28: 0.325 | K28: 0.335 | L28: 0.34 | M28: 0.35
A29: 51000 | B29: 0.255 | C29: 0.265 | D29: 0.28 | E29: 0.285 | F29: 0.295 | G29: 0.305 | H29: 0.315 | I29: 0.32 | J29: 0.33 | K29: 0.34 | L29: 0.345 | M29: 0.355
A30: 52000 | B30: 0.255 | C30: 0.27 | D30: 0.28 | E30: 0.29 | F30: 0.3 | G30: 0.31 | H30: 0.32 | I30: 0.325 | J30: 0.335 | K30: 0.34 | L30: 0.35 | M30: 0.355
A31: 53000 | B31: 0.255 | C31: 0.27 | D31: 0.285 | E31: 0.295 | F31: 0.305 | G31: 0.315 | H31: 0.32 | I31: 0.33 | J31: 0.34 | K31: 0.345 | L31: 0.355 | M31: 0.36
A32: 54000 | B32: 0.255 | C32: 0.275 | D32: 0.285 | E32: 0.3 | F32: 0.31 | G32: 0.32 | H32: 0.325 | I32: 0.335 | J32: 0.34 | K32: 0.35 | L32: 0.355 | M32: 0.365
A33: 55000 | B33: 0.255 | C33: 0.275 | D33: 0.29 | E33: 0.3 | F33: 0.315 | G33: 0.32 | H33: 0.33 | I33: 0.34 | J33: 0.345 | K33: 0.355 | L33: 0.36 | M33: 0.37
A34: 56000 | B34: 0.255 | C34: 0.275 | D34: 0.29 | E34: 0.305 | F34: 0.315 | G34: 0.325 | H34: 0.335 | I34: 0.345 | J34: 0.35 | K34: 0.36 | L34: 0.365 | M34: 0.375
A35: 57000 | B35: 0.26 | C35: 0.275 | D35: 0.29 | E35: 0.305 | F35: 0.32 | G35: 0.33 | H35: 0.34 | I35: 0.345 | J35: 0.355 | K35: 0.36 | L35: 0.37 | M35: 0.375
A36: 58000 | B36: 0.26 | C36: 0.275 | D36: 0.295 | E36: 0.31 | F36: 0.325 | G36: 0.335 | H36: 0.345 | I36: 0.35 | J36: 0.36 | K36: 0.365 | L36: 0.375 | M36: 0.38
A37: 59000 | B37: 0.26 | C37: 0.275 | D37: 0.295 | E37: 0.31 | F37: 0.325 | G37: 0.34 | H37: 0.35 | I37: 0.355 | J37: 0.365 | K37: 0.37 | L37: 0.375 | M37: 0.385
A38: 60000 | B38: 0.26 | C38: 0.275 | D38: 0.295 | E38: 0.31 | F38: 0.325 | G38: 0.34 | H38: 0.35 | I38: 0.36 | J38: 0.37 | K38: 0.375 | L38: 0.38 | M38: 0.39
A39: 61000 | B39: 0.26 | C39: 0.275 | D39: 0.295 | E39: 0.31 | F39: 0.33 | G39: 0.345 | H39: 0.355 | I39: 0.365 | J39: 0.37 | K39: 0.38 | L39: 0.385 | M39: 0.39
A40: 62000 | B40: 0.26 | C40: 0.275 | D40: 0.295 | E40: 0.31 | F40: 0.33 | G40: 0.345 | H40: 0.355 | I40: 0.365 | J40: 0.375 | K40: 0.38 | L40: 0.39 | M40: 0.395
A41: 63000 | B41: 0.26 | C41: 0.275 | D41: 0.295 | E41: 0.31 | F41: 0.33 | G41: 0.345 | H41: 0.36 | I41: 0.37 | J41: 0.38 | K41: 0.385 | L41: 0.395 | M41: 0.4
A42: 64000 | B42: 0.26 | C42: 0.275 | D42: 0.295 | E42: 0.31 | F42: 0.33 | G42: 0.345 | H42: 0.36 | I42: 0.37 | J42: 0.38 | K42: 0.39 | L42: 0.395 | M42: 0.405
A43: 65000 | B43: 0.26 | C43: 0.275 | D43: 0.295 | E43: 0.31 | F43: 0.33 | G43: 0.345 | H43: 0.36 | I43: 0.375 | J43: 0.385 | K43: 0.395 | L43: 0.4 | M43: 0.405
A44: 66000 | B44: 0.26 | C44: 0.275 | D44: 0.295 | E44: 0.31 | F44: 0.33 | G44: 0.345 | H44: 0.36 | I44: 0.375 | J44: 0.385 | K44: 0.395 | L44: 0.405 | M44: 0.41
A45: 67000 | B45: 0.26 | C45: 0.275 | D45: 0.295 | E45: 0.31 | F45: 0.33 | G45: 0.345 | H45: 0.36 | I45: 0.375 | J45: 0.385 | K45: 0.395 | L45: 0.405 | M45: 0.415
A46: 68000 | B46: 0.26 | C46: 0.28 | D46: 0.295 | E46: 0.31 | F46: 0.33 | G46: 0.345 | H46: 0.36 | I46: 0.375 | J46: 0.385 | K46: 0.395 | L46: 0.405 | M46: 0.415
A47: 69000 | B47: 0.265 | C47: 0.28 | D47: 0.295 | E47: 0.31 | F47: 0.33 | G47: 0.345 | H47: 0.36 | I47: 0.375 | J47: 0.385 | K47: 0.395 | L47: 0.405 | M47: 0.415
A48: 70000 | B48: 0.265 | C48: 0.28 | D48: 0.295 | E48: 0.31 | F48: 0.33 | G48: 34,5% 34,5% | H48: 0.36 | I48: 0.375 | J48: 0.385 | K48: 0.395 | L48: 0.405 | M48: 0.415
A49: 71000 | B49: 0.265 | C49: 0.28 | D49: 0.295 | E49: 0.31 | F49: 0.33 | G49: 0.36 | H49: 0.375 | I49: 0.385 | J49: 0.395 | K49: 0.405 | L49: 0.415
A50: 72000 | B50: 0.27 | C50: 0.285 | D50: 0.3 | E50: 0.315 | F50: 0.33 | G50: 0.345 | H50: 0.36 | I50: 0.375 | J50: 0.385 | K50: 0.395 | L50: 0.405 | M50: 0.415
A51: 73000 | B51: 0.27 | C51: 0.285 | D51: 0.3 | E51: 0.315 | F51: 0.33 | G51: 0.345 | H51: 0.365 | I51: 0.375 | J51: 0.385 | K51: 0.395 | L51: 0.405 | M51: 0.415
A52: 74000 | B52: 0.27 | C52: 0.285 | D52: 0.3 | E52: 0.315 | F52: 0.33 | G52: 0.345 | H52: 0.365 | I52: 0.375 | J52: 0.385 | K52: 0.395 | L52: 0.405 | M52: 0.415
A53: 75000 | B53: 0.27 | C53: 0.285 | D53: 0.3 | E53: 0.315 | F53: 0.33 | G53: 0.345 | H53: 0.365 | I53: 0.375 | J53: 0.385 | K53: 0.395 | L53: 0.405 | M53: 0.415
A54: 76000 | B54: 0.275 | C54: 0.29 | D54: 0.305 | E54: 0.32 | F54: 0.33 | G54: 0.345 | H54: 0.365 | I54: 0.375 | J54: 0.385 | K54: 0.395 | L54: 0.405 | M54: 0.415
A55: 77000 | B55: 0.275 | C55: 0.29 | D55: 0.305 | E55: 0.32 | F55: 0.335 | G55: 0.35 | H55: 0.365 | I55: 0.375 | J55: 0.385 | K55: 0.395 | L55: 0.405 | M55: 0.415
A56: 78000 | B56: 0.275 | C56: 0.29 | D56: 0.305 | E56: 0.32 | F56: 0.335 | G56: 0.35 | H56: 0.365 | I56: 0.375 | J56: 0.385 | K56: 0.395 | L56: 0.405 | M56: 0.415
A57: 79000 | B57: 0.275 | C57: 0.29 | D57: 0.305 | E57: 0.32 | F57: 0.335 | G57: 0.35 | H57: 0.365 | I57: 0.375 | J57: 0.385 | K57: 0.395 | L57: 0.405 | M57: 0.415
A58: 80000 | B58: 0.28 | C58: 0.295 | D58: 0.31 | E58: 0.32 | F58: 0.335 | G58: 0.35 | H58: 0.365 | I58: 0.375 | J58: 0.385 | K58: 0.395 | L58: 0.405 | M58: 0.415
A59: 81000 | B59: 0.28 | C59: 0.295 | D59: 0.31 | E59: 0.325 | F59: 0.335 | G59: 0.35 | H59: 0.365 | I59: 0.375 | J59: 0.385 | K59: 0.395 | L59: 0.405 | M59: 0.415
A60: 82000 | B60: 0.28 | C60: 0.295 | D60: 0.31 | E60: 0.325 | F60: 0.335 | G60: 0.35 | H60: 0.365 | I60: 0.375 | J60: 0.385 | K60: 0.395 | L60: 0.405 | M60: 0.415
A61: 83000 | B61: 0.28 | C61: 0.295 | D61: 0.31 | E61: 0.325 | F61: 0.335 | G61: 0.35 | H61: 0.365 | I61: 0.375 | J61: 0.385 | K61: 0.395 | L61: 0.405 | M61: 0.415
A62: 84000 | B62: 0.28 | C62: 0.295 | D62: 0.31 | E62: 0.325 | F62: 0.335 | G62: 0.35 | H62: 0.365 | I62: 0.375 | J62: 0.385 | K62: 0.395 | L62: 0.405 | M62: 0.415
A63: 85000 | B63: 0.28 | C63: 0.295 | D63: 0.31 | E63: 0.325 | F63: 0.335 | G63: 0.35 | H63: 0.365 | I63: 0.375 | J63: 0.385 | K63: 0.395 | L63: 0.405 | M63: 0.415
A64: 86000 | B64: 0.28 | C64: 0.295 | D64: 0.31 | E64: 0.325 | F64: 0.335 | G64: 0.35 | H64: 0.365 | I64: 0.375 | J64: 0.385 | K64: 0.395 | L64: 0.405 | M64: 0.415
A65: 87000 | B65: 0.28 | C65: 0.295 | D65: 0.31 | E65: 0.325 | F65: 0.335 | G65: 0.35 | H65: 0.365 | I65: 0.375 | J65: 0.385 | K65: 0.395 | L65: 0.405 | M65: 0.415
A66: 88000 | B66: 0.28 | C66: 0.295 | D66: 0.31 | E66: 0.325 | F66: 0.335 | G66: 0.35 | H66: 0.365 | I66: 0.375 | J66: 0.385 | K66: 0.395 | L66: 0.405 | M66: 0.415
A67: 89000 | B67: 0.28 | C67: 0.295 | D67: 0.31 | E67: 0.325 | F67: 0.335 | G67: 0.35 | H67: 0.365 | I67: 0.375 | J67: 0.385 | K67: 0.395 | L67: 0.405 | M67: 0.415
A68: 90000 | B68: 0.28 | C68: 0.295 | D68: 0.31 | E68: 0.325 | F68: 0.335 | G68: 0.35 | H68: 0.365 | I68: 0.375 | J68: 0.385 | K68: 0.395 | L68: 0.405 | M68: 0.415
A69: 91000 | B69: 0.28 | C69: 0.295 | D69: 0.31 | E69: 0.325 | F69: 0.335 | G69: 0.35 | H69: 0.365 | I69: 0.375 | J69: 0.385 | K69: 0.395 | L69: 0.405 | M69: 0.415
A70: 92000 | B70: 0.28 | C70: 0.295 | D70: 0.31 | E70: 0.325 | F70: 0.335 | G70: 0.35 | H70: 0.365 | I70: 0.375 | J70: 0.385 | K70: 0.395 | L70: 0.405 | M70: 0.415
A71: 93000 | B71: 0.28 | C71: 0.295 | D71: 0.31 | E71: 0.325 | F71: 0.335 | G71: 0.35 | H71: 0.365 | I71: 0.375 | J71: 0.385 | K71: 0.395 | L71: 0.405 | M71: 0.415
A72: 94000 | B72: 0.28 | C72: 0.295 | D72: 0.31 | E72: 0.325 | F72: 0.335 | G72: 0.35 | H72: 0.365 | I72: 0.375 | J72: 0.385 | K72: 0.395 | L72: 0.405 | M72: 0.415
A73: 95000 | B73: 0.28 | C73: 0.295 | D73: 0.31 | E73: 0.325 | F73: 0.335 | G73: 0.35 | H73: 0.365 | I73: 0.375 | J73: 0.385 | K73: 0.395 | L73: 0.405 | M73: 0.415
A74: 96000 | B74: 0.28 | C74: 0.295 | D74: 0.31 | E74: 0.325 | F74: 0.335 | G74: 0.35 | H74: 0.365 | I74: 0.375 | J74: 0.385 | K74: 0.395 | L74: 0.405 | M74: 0.415
A75: 97000 | B75: 0.28 | C75: 0.295 | D75: 0.31 | E75: 0.325 | F75: 0.335 | G75: 0.35 | H75: 0.365 | I75: 0.375 | J75: 0.385 | K75: 0.395 | L75: 0.405 | M75: 0.415
A76: 98000 | B76: 0.28 | C76: 0.295 | D76: 0.31 | E76: 0.325 | F76: 0.335 | G76: 0.35 | H76: 0.365 | I76: 0.375 | J76: 0.385 | K76: 0.395 | L76: 0.405 | M76: 0.415
A77: 99000 | B77: 0.28 | C77: 0.295 | D77: 0.31 | E77: 0.325 | F77: 0.335 | G77: 0.35 | H77: 0.365 | I77: 0.375 | J77: 0.385 | K77: 0.395 | L77: 0.405 | M77: 0.415
A78: 100000 | B78: 0.28 | C78: 0.295 | D78: 0.31 | E78: 0.325 | F78: 0.335 | G78: 0.35 | H78: 0.365 | I78: 0.375 | J78: 0.385 | K78: 0.395 | L78: 0.405 | M78: 0.415
A79: 101000 | B79: 0.28 | C79: 0.295 | D79: 0.31 | E79: 0.325 | F79: 0.335 | G79: 0.35 | H79: 0.365 | I79: 0.375 | J79: 0.385 | K79: 0.395 | L79: 0.405 | M79: 0.415
A80: 102000 | B80: 0.28 | C80: 0.295 | D80: 0.31 | E80: 0.325 | F80: 0.335 | G80: 0.35 | H80: 0.365 | I80: 0.375 | J80: 0.385 | K80: 0.395 | L80: 0.405 | M80: 0.415
A81: 103000 | B81: 0.28 | C81: 0.295 | D81: 0.31 | E81: 0.325 | F81: 0.335 | G81: 0.35 | H81: 0.365 | I81: 0.375 | J81: 0.385 | K81: 0.395 | L81: 0.405 | M81: 0.415
A82: 104000 | B82: 0.28 | C82: 0.295 | D82: 0.31 | E82: 0.325 | F82: 0.335 | G82: 0.35 | H82: 0.365 | I82: 0.375 | J82: 0.385 | K82: 0.395 | L82: 0.405 | M82: 0.415
A83: 105000 | B83: 0.28 | C83: 0.295 | D83: 0.31 | E83: 0.325 | F83: 0.335 | G83: 0.35 | H83: 0.365 | I83: 0.375 | J83: 0.385 | K83: 0.395 | L83: 0.405 | M83: 0.415
A84: 106000 | B84: 0.28 | C84: 0.295 | D84: 0.31 | E84: 0.325 | F84: 0.335 | G84: 0.35 | H84: 0.365 | I84: 0.375 | J84: 0.385 | K84: 0.395 | L84: 0.405 | M84: 0.415
A85: 107000 | B85: 0.28 | C85: 0.295 | D85: 0.31 | E85: 0.325 | F85: 0.335 | G85: 0.35 | H85: 0.365 | I85: 0.375 | J85: 0.385 | K85: 0.395 | L85: 0.405 | M85: 0.415
A86: 108000 | B86: 0.28 | C86: 0.295 | D86: 0.31 | E86: 0.325 | F86: 0.335 | G86: 0.35 | H86: 0.365 | I86: 0.375 | J86: 0.385 | K86: 0.395 | L86: 0.405 | M86: 0.415
A87: 109000 | B87: 0.28 | C87: 0.295 | D87: 0.31 | E87: 0.325 | F87: 0.335 | G87: 0.35 | H87: 0.365 | I87: 0.375 | J87: 0.385 | K87: 0.395 | L87: 0.405 | M87: 0.415
A88: 10000000 | B88: 0.28 | C88: 0.295 | D88: 0.31 | E88: 0.325 | F88: 0.335 | G88: 0.35 | H88: 0.365 | I88: 0.375 | J88: 0.385 | K88: 0.395 | L88: 0.405 | M88: 0.415

Sheet 2024AMA (hidden)
A2: ox 1 | B2: <= 1,500 | C2: 1,501 <= 2,000 | D2: 2,001 <= 2,500 | E2: 2,501 <= 3,000 | F2: 3,001 <= 3,500 | G2: 3,501 <= 4,000 | H2: 4,001 <= 4,500 | I2: 4,501 <= 5,000 | J2: 5,001 <= 5,500 | K2: 5,501 <= 6,000 | L2: 6,001 <= 6,500 | M2: >= 6,501
A4: -1 | B4: 0 | C4: 0.01501 | D4: =+C4+0.5% -> 0.02001 | E4: 0.02501 | F4: 0.03001 | G4: 0.03501 | H4: 0.04001 | I4: 0.04501 | J4: 0.05001 | K4: 0.05501 | L4: 0.06001 | M4: 0.06501 | N4: <= beginrente
A5: 0 | B5: 0.23 | C5: 0.235 | D5: 0.24 | E5: 0.24 | F5: 0.245 | G5: 0.25 | H5: 0.25 | I5: 0.255 | J5: 0.255 | K5: 0.26 | L5: 0.26 | M5: 0.26
A6: 20000 | B6: 0.23 | C6: 0.235 | D6: 0.24 | E6: 0.24 | F6: 0.245 | G6: 0.25 | H6: 0.25 | I6: 0.255 | J6: 0.255 | K6: 0.26 | L6: 0.26 | M6: 0.26
A7: 20500 | B7: 0.24 | C7: 0.245 | D7: 0.25 | E7: 0.255 | F7: 0.255 | G7: 0.26 | H7: 0.265 | I7: 0.265 | J7: 0.27 | K7: 0.27 | L7: 0.275 | M7: 0.275
A8: 21000 | B8: 0.255 | C8: 0.26 | D8: 0.26 | E8: 0.265 | F8: 0.27 | G8: 0.27 | H8: 0.275 | I8: 0.28 | J8: 0.28 | K8: 0.285 | L8: 0.285 | M8: 0.29
A9: 21500 | B9: 0.26 | C9: 0.27 | D9: 0.275 | E9: 0.275 | F9: 0.28 | G9: 0.285 | H9: 0.285 | I9: 0.29 | J9: 0.295 | K9: 0.295 | L9: 0.3 | M9: 0.3
A10: 22000 | B10: 0.27 | C10: 0.275 | D10: 0.285 | E10: 0.285 | F10: 0.29 | G10: 0.295 | H10: 0.3 | I10: 0.3 | J10: 0.305 | K10: 0.305 | L10: 0.31 | M10: 0.31
A11: 22500 | B11: 0.275 | C11: 0.285 | D11: 0.295 | E11: 0.3 | F11: 0.3 | G11: 0.305 | H11: 0.31 | I11: 0.31 | J11: 0.315 | K11: 0.32 | L11: 0.32 | M11: 0.325
A12: 23000 | B12: 0.275 | C12: 0.285 | D12: 0.295 | E12: 0.305 | F12: 0.31 | G12: 0.315 | H12: 0.32 | I12: 0.32 | J12: 0.325 | K12: 0.33 | L12: 0.33 | M12: 0.335
A13: 23500 | B13: 0.275 | C13: 0.29 | D13: 0.295 | E13: 0.305 | F13: 0.315 | G13: 0.32 | H13: 0.325 | I13: 0.33 | J13: 0.335 | K13: 0.34 | L13: 0.34 | M13: 0.345
A14: 24000 | B14: 0.275 | C14: 0.29 | D14: 0.3 | E14: 0.31 | F14: 0.315 | G14: 0.325 | H14: 0.33 | I14: 0.335 | J14: 0.34 | K14: 0.345 | L14: 0.35 | M14: 0.35
A15: 24500 | B15: 0.275 | C15: 0.29 | D15: 0.3 | E15: 0.31 | F15: 0.315 | G15: 0.325 | H15: 0.33 | I15: 0.34 | J15: 0.345 | K15: 0.35 | L15: 0.35 | M15: 0.355
A16: 25000 | B16: 0.275 | C16: 0.29 | D16: 0.3 | E16: 0.31 | F16: 0.32 | G16: 0.325 | H16: 0.335 | I16: 0.34 | J16: 0.345 | K16: 0.35 | L16: 0.355 | M16: 0.36
A17: 26000 | B17: 0.275 | C17: 0.29 | D17: 0.3 | E17: 0.31 | F17: 0.32 | G17: 0.33 | H17: 0.335 | I17: 0.345 | J17: 0.35 | K17: 0.355 | L17: 0.36 | M17: 0.365
A18: 27000 | B18: 0.275 | C18: 0.29 | D18: 0.3 | E18: 0.31 | F18: 0.325 | G18: 0.335 | H18: 0.34 | I18: 0.345 | J18: 0.355 | K18: 0.36 | L18: 0.365 | M18: 0.37
A19: 28000 | B19: 0.275 | C19: 0.29 | D19: 0.3 | E19: 0.315 | F19: 0.325 | G19: 0.335 | H19: 0.345 | I19: 0.35 | J19: 0.36 | K19: 0.365 | L19: 0.37 | M19: 0.375
A20: 29000 | B20: 0.275 | C20: 0.29 | D20: 0.3 | E20: 0.315 | F20: 0.325 | G20: 0.335 | H20: 0.345 | I20: 0.355 | J20: 0.36 | K20: 0.37 | L20: 0.375 | M20: 0.38
A21: 30000 | B21: 0.275 | C21: 0.29 | D21: 0.3 | E21: 0.315 | F21: 0.325 | G21: 0.335 | H21: 0.345 | I21: 0.355 | J21: 0.365 | K21: 0.37 | L21: 0.375 | M21: 0.38
A22: 31000 | B22: 0.275 | C22: 0.29 | D22: 0.3 | E22: 0.315 | F22: 0.325 | G22: 0.335 | H22: 0.345 | I22: 0.355 | J22: 0.365 | K22: 0.375 | L22: 0.38 | M22: 0.385
A23: 32000 | B23: 0.275 | C23: 0.29 | D23: 0.3 | E23: 0.315 | F23: 0.325 | G23: 0.335 | H23: 0.35 | I23: 0.36 | J23: 0.365 | K23: 0.375 | L23: 0.385 | M23: 0.39
A24: 33000 | B24: 0.275 | C24: 0.29 | D24: 0.305 | E24: 0.315 | F24: 0.33 | G24: 0.34 | H24: 0.35 | I24: 0.36 | J24: 0.37 | K24: 0.38 | L24: 0.385 | M24: 0.395
A25: 34000 | B25: 0.28 | C25: 0.29 | D25: 0.305 | E25: 0.315 | F25: 0.33 | G25: 0.34 | H25: 0.355 | I25: 0.365 | J25: 0.375 | K25: 0.38 | L25: 0.39 | M25: 0.395
A26: 35000 | B26: 0.285 | C26: 0.295 | D26: 0.305 | E26: 0.32 | F26: 0.33 | G26: 0.345 | H26: 0.355 | I26: 0.365 | J26: 0.375 | K26: 0.385 | L26: 0.395 | M26: 0.4
A27: 36000 | B27: 0.285 | C27: 0.3 | D27: 0.31 | E27: 0.32 | F27: 0.335 | G27: 0.345 | H27: 0.355 | I27: 0.365 | J27: 0.375 | K27: 0.385 | L27: 0.395 | M27: 0.405
A28: 37000 | B28: 0.29 | C28: 0.3 | D28: 0.315 | E28: 0.325 | F28: 0.335 | G28: 0.35 | H28: 0.36 | I28: 0.37 | J28: 0.38 | K28: 0.39 | L28: 0.4 | M28: 0.405
A29: 38000 | B29: 0.29 | C29: 0.305 | D29: 0.315 | E29: 0.33 | F29: 0.34 | G29: 0.35 | H29: 0.36 | I29: 0.375 | J29: 0.385 | K29: 0.39 | L29: 0.4 | M29: 0.41
A30: 39000 | B30: 0.295 | C30: 0.31 | D30: 0.32 | E30: 0.33 | F30: 0.345 | G30: 0.355 | H30: 0.365 | I30: 0.375 | J30: 0.385 | K30: 0.395 | L30: 0.405 | M30: 0.415
A31: 40000 | B31: 0.295 | C31: 0.31 | D31: 0.325 | E31: 0.335 | F31: 0.345 | G31: 0.355 | H31: 0.37 | I31: 0.38 | J31: 0.39 | K31: 0.4 | L31: 0.41 | M31: 0.415
A32: 41000 | B32: 0.295 | C32: 0.31 | D32: 0.325 | E32: 0.34 | F32: 0.35 | G32: 0.36 | H32: 0.37 | I32: 0.38 | J32: 0.39 | K32: 0.4 | L32: 0.41 | M32: 0.42
A33: 42000 | B33: 0.295 | C33: 0.31 | D33: 0.325 | E33: 0.345 | F33: 0.355 | G33: 0.365 | H33: 0.375 | I33: 0.385 | J33: 0.395 | K33: 0.405 | L33: 0.415 | M33: 0.425
A34: 43000 | B34: 0.295 | C34: 0.31 | D34: 0.325 | E34: 0.345 | F34: 0.36 | G34: 0.37 | H34: 0.38 | I34: 0.39 | J34: 0.4 | K34: 0.41 | L34: 0.42 | M34: 0.425
